{"text_format":"1","workbook":"xlsx","n_sheets":34,"sheets":["Emplacement fichier","exemple tab2","exemple tab","Résultats par corps","logo","Administrateur","Menu Initialisation","Résumé","Cat DGFIP","exemple","Résultats globaux","transfa","Menu Principal","Menu annee mm","Menu annee diff","Nomenclature non DGFIP","DGFIP","Nomenclature DGFIP","Reimport nomenclature","Reimport rémunération","Importer la nomenclature","catégories de rémunération","Erreur page","nomenclature rémunérations","1er fichier","Base","Tmp","T0","T1","T2","Import Fini","2eme fichier","3eme fichier","4eme fichier"],"not_rendered":{"charts":0,"images":74,"macros":1,"external_links":0,"defined_names":5,"comments":1,"pivot_tables":0},"unopened":[],"bounds":{"document_bytes":16777216,"sheet_cells":100000,"rows_first":2000,"rows_last":500,"rows_between":2000,"halvings":0,"cell_chars":16384,"cell_head_chars":4096},"cells_cut":0,"cells_raw":0,"read":"whole","date_system":"1900"}

{"sheet":"Emplacement fichier","index":0,"n_rows":11,"n_cols":8,"rows_kept":11,"cut":false,"hidden":true,"merged":[[10,1,10,5]]}
[]
[null,null,null,null,null,0,0,0]
[]
[]
[]
[]
[]
[]
[]
[]
[null,"Nombre de fichiers à importer:"]

{"sheet":"exemple tab2","index":1,"n_rows":17,"n_cols":21,"rows_kept":17,"cut":false,"hidden":true,"merged":[[14,2,14,3],[14,5,15,5],[1,2,1,3],[1,5,1,6],[1,7,1,8],[14,6,15,6],[14,7,15,7],[14,8,15,8],[8,2,8,3],[8,5,9,5],[8,6,9,6],[8,7,9,7],[8,8,9,8],[14,10,14,19],[1,15,2,15],[8,10,8,19],[1,14,2,14],[1,10,1,11],[1,13,2,13]]}
[]
["liste des corps",null,"rémunération mensuelle moyenne (par EQTP)",null,null,"effectifs physiques",null,"effectifs (ETPT)",null,null,"Taux moyen de temps partiel",null,null,"Indicateur mixité salaire","Indicateur mixité emploi","Indicateur qualité TIB"]
[null,null,"hommes","femmes",null,"hommes","femmes","hommes","femmes",null,"hommes","femmes"]
["corps 1",null,3371095.9891276238,1796004.4278579783,null,1504,796,1499.5,783.21666666666681,null,{"$f":"H4/F4","v":0.9970079787234043},{"$f":"I4/G4","v":0.98394053601340048}]
[]
[]
[]
[]
[null,null,"rémunération mensuelle moyenne (par EQTP)",null,null,"Indicateur mixité salaire","Indicateur mixité emploi","Indicateur qualité TIB","effet démographique du corps",null,"effet primes à C-G-E identique lié à "]
["liste des corps",null,"hommes","femmes",null,null,null,null,null,null,"Catégorie prime1","catégorie prime 2","Catégorie prime3","Catégorie prime4","Catégorie prime5","Catégorie prime6","Catégorie prime7","Catégorie prime8","Catégorie prime9","Catégorie prime10","Catégorie prime10"]
["corps 1",null,3371095.9891276238,1796004.4278579783,null,1,4.6944806125902551E-2,null,0,null,-22.718819920603565,11.54295608075283,18.505968959033872,0,0,0,0,0,0,4.3903029964234346,4.3903029964234346]
[]
[]
[]
[null,null,"écarts rémunération F-H",null,null,"Indicateur mixité salaire","Indicateur mixité emploi","Indicateur qualité TIB","effet démographique du corps/H",null,"effet primes/H à C-G-E identique lié à "]
["liste des corps",null,"% (F-H)/H",null,null,null,null,null,null,null,"indemnités liées au temps ou aux cycles de travail","catégorie prime 2","Catégorie prime3","Catégorie prime4","Catégorie prime5","Catégorie prime6","Catégorie prime7","Catégorie prime8","Catégorie prime9","Catégorie prime10","Catégorie prime10"]
["corps 1",null,{"$f":"(D11-C11)/C11","v":-0.46723426634827137},null,null,null,null,null,{"$f":"I11/C11","v":0},null,{"$f":"K11/$C11","v":-6.7392978407840491E-6},3.424095937339337E-6,5.4896001237339045E-6,0,0,0,0,0,0,1.302336987906287E-6,1.302336987906287E-6]

{"sheet":"exemple tab","index":2,"n_rows":34,"n_cols":9,"rows_kept":34,"cut":false,"hidden":true,"merged":[[3,8,4,8]]}
[]
[]
["nombre de corps pris en compte",null,null,null,null,-1]
[null,null,null,null,null,null,null,null,"part des femmes (%)"]
["emploi annuel moyen :",null,null,"hommes",null,"femmes",null,"total"]
["effectifs annuels",null,null,58857.416666666664,null,75957.416666666672,null,{"$f":"D6+F6","v":134814.83333333334},{"$f":"F6/H6","v":0.56342032095874717}]
["équivalents temps plein employés",null,null,57687.414166666604,null,71630.224749997404,null,{"$f":"D7+F7","v":129317.638916664},{"$f":"F7/H7","v":0.55390916003468005}]
["taux moyen de  temps partiel",null,null,{"$f":"D7/D6","v":0.98012140922483471},null,{"$f":"F7/F6","v":0.94303134431679236},null,{"$f":"H7/H6","v":0.95922411294996468}]
[]
["Rémunération mensuelle moyenne en € non redressée du temps partiel (et de la présence partielle dans le mois)"]
[null,null,"€/mois",null,null,"€/mois",null,"€/mois","% (F-H)/H"]
["Hommes",null,26.009864780468885,"Femmes",null,32.674976708337518,"écart",{"$f":"F12-C12","v":6.665111927868633},{"$f":"F12/C12-1","v":0.25625323253789256}]
[]
["Rémunération mensuelle moyenne en € par équivalent temps plein"]
["Hommes",null,26.537390710646498,"Femmes",null,34.648876630935199,"écart",{"$f":"F15-C15","v":8.1114859202887004},{"$f":"F15/C15-1","v":0.30566252759109669}]
[]
[]
["décomposition des écarts :",null,null,null,null,null,null,"€/mois","% effet/(F-H par EQTP)"]
[null,null,"effet temps partiel",null,null,null,null,{"$f":"H12-H15","v":-1.4463739924200674},{"$f":"H19/H$15","v":-0.17831184158285374}]
[null,null,"effet ségrégation des corps",null,null,null,null,"xxxx",{"$error":"#VALUE!"}]
[null,null,"effet démographique au sein des corps",null,null,null,null,9.5346929678416767,1.1754557748775976]
[null,null,null,"dont sur primes",null,null,null,-26.078541916579919,-3.2150141383283994]
[null,null,"effet primes à corps-Grade-échelon identique",null,null,null,null,6.0063040901527494,0.74046902739849363]
[null,null,null,"dont","Catégorie prime1",null,null,5613391.2123966822,692029.95204075915]
[null,null,null,null,"catégorie prime 2",null,null,5613397.8759883344,692030.77354149497]
[null,null,null,null,"Catégorie prime3",null,null,5613396.4758673115,692030.6009318108]
[null,null,null,null,"Catégorie prime4",null,null,5613397.4693793878,692030.72341394122]
[null,null,null,null,"Catégorie prime5",null,null,5613397.4693793878,692030.72341394122]
[null,null,null,null,"Catégorie prime6",null,null,5613397.4693793878,692030.72341394122]
[null,null,null,null,"Catégorie prime7",null,null,5613397.4693793878,692030.72341394122]
[null,null,null,null,"Catégorie prime8",null,null,5613397.4693793878,692030.72341394122]
[null,null,null,null,"Catégorie prime9",null,null,5613397.4693793878,692030.72341394122]
[null,null,null,null,"Catégorie prime10",null,null,5613393.0559405116,692030.17931648239]
[null,null,null,null,"Autre",null,null,5613393.0559405116,692030.17931648239]

{"sheet":"Résultats par corps","index":3,"n_rows":17,"n_cols":21,"rows_kept":17,"cut":false,"hidden":true,"merged":[[14,2,14,3],[14,5,15,5],[1,2,1,3],[1,5,1,6],[1,7,1,8],[14,6,15,6],[14,7,15,7],[14,8,15,8],[8,2,8,3],[8,5,9,5],[8,6,9,6],[8,7,9,7],[8,8,9,8],[14,10,14,19],[1,15,2,15],[8,10,8,19],[1,14,2,14],[1,10,1,11],[1,13,2,13]]}
[]
["liste des corps",null,"rémunération mensuelle moyenne (par EQTP)",null,null,"effectifs physiques",null,"effectifs (ETPT)",null,null,"Taux moyen de temps partiel",null,null,"indicateur \"qualité\" 1","indicateur \"qualité\" 2","indicateur \"qualité\" 3"]
[null,null,"hommes","femmes",null,"hommes","femmes","hommes","femmes",null,"hommes","femmes"]
["corps 1",null,3371095.9891276238,1796004.4278579783,null,1504,796,1499.5,783.21666666666681,null,{"$f":"H4/F4","v":0.9970079787234043},{"$f":"I4/G4","v":0.98394053601340048}]
[]
[]
[]
[]
[null,null,"rémunération mensuelle moyenne (par EQTP)",null,null,"indicateur \"qualité\" 1","indicateur \"qualité\" 2","indicateur \"qualité\" 3","effet démographique du corps",null,"effet primes à C-G-E identique lié à "]
["liste des corps",null,"hommes","femmes",null,null,null,null,null,null,"Catégorie prime1","catégorie prime 2","Catégorie prime3","Catégorie prime4","Catégorie prime5","Catégorie prime6","Catégorie prime7","Catégorie prime8","Catégorie prime9","Catégorie prime10","Catégorie prime10"]
["corps 1",null,3371095.9891276238,1796004.4278579783,null,1,4.6944806125902551E-2,null,0,null,-22.718819920603565,11.54295608075283,18.505968959033872,0,0,0,0,0,0,4.3903029964234346,4.3903029964234346]
[]
[]
[]
[null,null,"écarts rémunération F-H",null,null,"indicateur \"qualité\" 1","indicateur \"qualité\" 2","indicateur \"qualité\" 3","effet démographique du corps/H",null,"effet primes/H à C-G-E identique lié à "]
["liste des corps",null,"% (F-H)/H",null,null,null,null,null,null,null,"indemnités liées au temps ou aux cycles de travail","catégorie prime 2","Catégorie prime3","Catégorie prime4","Catégorie prime5","Catégorie prime6","Catégorie prime7","Catégorie prime8","Catégorie prime9","Catégorie prime10","Catégorie prime10"]
["corps 1",null,{"$f":"(D11-C11)/C11","v":-0.46723426634827137},null,null,null,null,null,{"$f":"I11/C11","v":0},null,{"$f":"K11/$C11","v":-6.7392978407840491E-6},3.424095937339337E-6,5.4896001237339045E-6,0,0,0,0,0,0,1.302336987906287E-6,1.302336987906287E-6]

{"sheet":"logo","index":4,"n_rows":0,"n_cols":0,"rows_kept":0,"cut":false,"hidden":true,"merged":[]}

{"sheet":"Administrateur","index":5,"n_rows":24,"n_cols":7,"rows_kept":24,"cut":false,"hidden":true,"merged":[[17,4,17,9],[19,4,19,9],[21,4,21,9],[23,4,23,9]]}
[]
[]
[]
[]
[]
[]
[]
[]
[]
[]
[]
[null,"Ecart entre ETPE et ETPR :",null,null,null,1,"%"]
[]
[null,"Nombre de lignes où le cas se produit :",null,null,null,10,"%"]
[]
[null,"Nombre maximum de catégories :",null,null,null,10]
[]
[null,"Hyperlien - Documentation:",null,null,"https://www.fonction-publique.gouv.fr/files/files/carrieres_et_parcours_professionnel/egalite-pro/documentation-outil-de-calcul-des-ecarts-de-remuneration.pdf"]
[]
[null,"Hyperlien - Grille de lecture",null,null,"https://www.fonction-publique.gouv.fr/files/files/carrieres_et_parcours_professionnel/egalite-pro/grille-de-lecture-des-resultats.pdf"]
[]
[null,"Nouvelle nomenclature DGFIP:",null,null,"Y:\\Travaux B3 par thèmes\\2.4 Parité\\égalité de rémunération F-H\\outil et documents en ligne\\fichiers dans l'outil\\Nomenclature rémunérations DGFIP_270122.xlsx"]
[]
[null,"Nouveau Transfa:",null,null,"Y:\\Travaux B3 par thèmes\\2.4 Parité\\égalité de rémunération F-H\\outil et documents en ligne\\fichiers dans l'outil\\titulaire_FPE_140222.xlsx"]

{"sheet":"Menu Initialisation","index":6,"n_rows":0,"n_cols":0,"rows_kept":0,"cut":false,"hidden":false,"merged":[]}

{"sheet":"Résumé","index":7,"n_rows":12,"n_cols":4,"rows_kept":12,"cut":false,"hidden":true,"merged":[[0,0,1,5]]}
["Résumé de l'importation"]
[]
[]
[null,"Fichier importé:",null,"test_psop.xlsx"]
[]
[null,"Il contient 134 lignes correspondant à 263 corps-grade-échelon-indice."]
[]
[]
[null,0,"lignes avec effectifs à 0 supprimées"]
[null,0,"lignes avec TIB à 0 supprimées"]
[null,0,"lignes avec indice égal 0  supprimées   "]
[null,0,"lignes correspondant à des corps de non fonctionnaires supprimées   "]

{"sheet":"Cat DGFIP","index":8,"n_rows":13,"n_cols":3,"rows_kept":13,"cut":false,"hidden":true,"merged":[]}
["Catégorie","Intitulés des différentes catégories","Indicatrice sur-rémunération du temps partiel"]
["TIB","TIB",1]
["Cat1","sur-rémunération temps partiel (80% ou 90%)",0]
["Cat2","temps ou aux cycles de travail",0]
["Cat3","géographie et aux mobilités non forcées",1]
["Cat4","résultats / performance / engagement professionnel",0]
["Cat5","rémunérations accessoires",0]
["Cat6","fonctions / sujétions indexées sur le traitement",1]
["Cat7","fonctions / sujétions non indexées sur le traitement",1]
["Cat8","restructurations ou mobilités forcées",0]
["Cat9"]
["Cat10"]
["Autre","autres primes et écarts résiduels sur traitement",0]

{"sheet":"exemple","index":9,"n_rows":77,"n_cols":21,"rows_kept":77,"cut":false,"hidden":true,"merged":[[68,10,68,19],[43,14,44,14],[43,15,44,15],[56,2,56,3],[56,5,57,5],[56,6,57,6],[56,7,57,7],[56,8,57,8],[56,10,56,19],[43,13,44,13],[68,2,68,3],[68,5,69,5],[68,6,69,6],[68,7,69,7],[68,8,69,8],[5,8,6,8],[43,2,43,3],[43,5,43,6],[43,7,43,8],[43,10,43,11]]}
[null,"Les cases XXXX sont à remplir à partir des calculs faits sur la ligne \"ensemble des corps\""]
[null,"Les cases YYYY sont à remplir à partir des calculs faits sur chaque ligne de corps\""]
[]
[]
["nombre de corps pris en compte",null,null,null,null,"xxx"]
[null,null,null,null,null,null,null,null,"part des femmes (%)"]
["emploi annuel moyen :",null,null,"hommes",null,"femmes",null,"total"]
["effectifs annuels",null,null,"xxxx",null,"xxxx",null,{"$f":"D8+F8","v":{"$error":"#VALUE!"}},{"$f":"F8/H8","v":{"$error":"#VALUE!"}}]
["équivalents temps plein employés",null,null,"xxxx",null,"xxxx",null,{"$f":"D9+F9","v":{"$error":"#VALUE!"}},{"$f":"F9/H9","v":{"$error":"#VALUE!"}}]
["taux moyen de  temps partiel",null,null,{"$f":"D9/D8","v":{"$error":"#VALUE!"}},null,{"$f":"F9/F8","v":{"$error":"#VALUE!"}},null,{"$f":"H9/H8","v":{"$error":"#VALUE!"}}]
[]
["Rémunération mensuelle moyenne en € non redressée du temps partiel (et de la présence partielle dans le mois)"]
[null,null,"€/mois",null,null,"€/mois",null,"€/mois","% F/H"]
["Hommes",null,"xxx","Femmes",null,"xxx","écart",{"$f":"F14-C14","v":{"$error":"#VALUE!"}},{"$f":"F14/C14-1","v":{"$error":"#VALUE!"}}]
[]
["Rémunération mensuelle moyenne en € par équivalent temps plein"]
["Hommes",null,"xxx","Femmes",null,"xxx","écart",{"$f":"F17-C17","v":{"$error":"#VALUE!"}},{"$f":"F17/C17-1","v":{"$error":"#VALUE!"}}]
[]
[]
["décomposition des écarts :",null,null,null,null,null,null,"€/mois","% F/H"]
[null,null,"effet temps partiel",null,null,null,null,{"$f":"H14-H17","v":{"$error":"#VALUE!"}},{"$f":"H21/H$17","v":{"$error":"#VALUE!"}}]
[null,null,"effet ségrégation des corps",null,null,null,null,"xxxx",{"$error":"#VALUE!"}]
[null,null,"effet démographique au sein des corps",null,null,null,null,"xxxx",{"$error":"#VALUE!"}]
[null,null,null,"dont sur primes",null,null,null,"xxxx",{"$error":"#VALUE!"}]
[null,null,"effet primes à corps-Grade-échelon identique",null,null,null,null,"xxxx",{"$error":"#VALUE!"}]
[null,null,null,"dont","Catégorie prime1",null,null,"xxxx",{"$error":"#VALUE!"}]
[null,null,null,null,"catégorie prime 2",null,null,"xxxx",{"$error":"#VALUE!"}]
[null,null,null,null,"Catégorie prime3",null,null,"xxxx",{"$error":"#VALUE!"}]
[null,null,null,null,"Catégorie prime4",null,null,"xxxx",{"$error":"#VALUE!"}]
[null,null,null,null,"Catégorie prime5",null,null,"xxxx",{"$error":"#VALUE!"}]
[null,null,null,null,"Catégorie prime6",null,null,"xxxx",{"$error":"#VALUE!"}]
[null,null,null,null,"Catégorie prime7",null,null,"xxxx",{"$error":"#VALUE!"}]
[null,null,null,null,"Catégorie prime8",null,null,"xxxx",{"$error":"#VALUE!"}]
[null,null,null,null,"Catégorie prime9",null,null,"xxxx",{"$error":"#VALUE!"}]
[null,null,null,null,"Catégorie prime10",null,null,"xxxx",{"$error":"#VALUE!"}]
[]
[]
[]
[]
[]
[]
[]
[]
["liste des corps",null,"rémunération mensuelle moyenne (par EQTP)",null,null,"effectifs physiques",null,"effectifs (ETPT)",null,null,"Taux moyen de temps partiel",null,null,"indicateur \"qualité\" 1","indicateur \"qualité\" 2","indicateur \"qualité\" 3"]
[null,null,"hommes","femmes",null,"hommes","femmes","hommes","femmes",null,"hommes","femmes"]
["corps 1",null,"YYYY","YYYY",null,"YYYY","YYYY","YYYY","YYYY",null,{"$f":"H46/F46","v":{"$error":"#VALUE!"}},{"$f":"I46/G46","v":{"$error":"#VALUE!"}}]
["corps 2",null,"YYYY","YYYY",null,"YYYY","YYYY","YYYY","YYYY",null,{"$f":"H47/F47","v":{"$error":"#VALUE!"}},{"$error":"#VALUE!"}]
["…",null,"YYYY","YYYY",null,"YYYY","YYYY","YYYY","YYYY",null,{"$error":"#VALUE!"},{"$error":"#VALUE!"}]
[null,null,"YYYY","YYYY",null,"YYYY","YYYY","YYYY","YYYY",null,{"$error":"#VALUE!"},{"$error":"#VALUE!"}]
[null,null,"YYYY","YYYY",null,"YYYY","YYYY","YYYY","YYYY",null,{"$error":"#VALUE!"},{"$error":"#VALUE!"}]
[null,null,"YYYY","YYYY",null,"YYYY","YYYY","YYYY","YYYY",null,{"$error":"#VALUE!"},{"$error":"#VALUE!"}]
["corps n",null,"YYYY","YYYY",null,"YYYY","YYYY","YYYY","YYYY",null,{"$error":"#VALUE!"},{"$error":"#VALUE!"}]
[]
[]
[]
[]
[null,null,"rémunération mensuelle moyenne (par EQTP)",null,null,"indicateur \"qualité\" 1","indicateur \"qualité\" 2","indicateur \"qualité\" 3","effet démographique du corps",null,"effet primes à C-G-E identique lié à "]
["liste des corps",null,"hommes","femmes",null,null,null,null,null,null,"Catégorie prime1","catégorie prime 2","Catégorie prime3","Catégorie prime4","Catégorie prime5","Catégorie prime6","Catégorie prime7","Catégorie prime8","Catégorie prime9","Catégorie prime10","Catégorie prime10"]
["corps 1",null,"YYYY","YYYY",null,null,null,null,"YYYY",null,null,"YYYY","YYYY","YYYY","YYYY","YYYY","YYYY","YYYY","YYYY","YYYY","YYYY"]
["corps 2",null,"YYYY","YYYY",null,null,null,null,"YYYY",null,null,"YYYY","YYYY","YYYY","YYYY","YYYY","YYYY","YYYY","YYYY","YYYY","YYYY"]
["…",null,"YYYY","YYYY",null,null,null,null,"YYYY",null,null,"YYYY","YYYY","YYYY","YYYY","YYYY","YYYY","YYYY","YYYY","YYYY","YYYY"]
[null,null,"YYYY","YYYY",null,null,null,null,"YYYY",null,null,"YYYY","YYYY","YYYY","YYYY","YYYY","YYYY","YYYY","YYYY","YYYY","YYYY"]
[null,null,"YYYY","YYYY",null,null,null,null,"YYYY",null,null,"YYYY","YYYY","YYYY","YYYY","YYYY","YYYY","YYYY","YYYY","YYYY","YYYY"]
[null,null,"YYYY","YYYY",null,null,null,null,"YYYY",null,null,"YYYY","YYYY","YYYY","YYYY","YYYY","YYYY","YYYY","YYYY","YYYY","YYYY"]
["corps n",null,"YYYY","YYYY",null,null,null,null,"YYYY",null,null,"YYYY","YYYY","YYYY","YYYY","YYYY","YYYY","YYYY","YYYY","YYYY","YYYY"]
[]
[]
[]
[null,null,"écarts rémunération F/H (%)",null,null,"indicateur \"qualité\" 1","indicateur \"qualité\" 2","indicateur \"qualité\" 3","effet démographique du corps",null,"effet primes à C-G-E identique lié à "]
["liste des corps",null,"hommes",null,null,null,null,null,null,null,"Catégorie prime1","catégorie prime 2","Catégorie prime3","Catégorie prime4","Catégorie prime5","Catégorie prime6","Catégorie prime7","Catégorie prime8","Catégorie prime9","Catégorie prime10","Catégorie prime10"]
["corps 1",null,{"$f":"D59/C59","v":{"$error":"#VALUE!"}},null,null,null,null,null,{"$f":"I59/C59","v":{"$error":"#VALUE!"}},null,{"$f":"K59/$C59","v":{"$error":"#VALUE!"}},{"$f":"L59/$C59","v":{"$error":"#VALUE!"}},{"$error":"#VALUE!"},{"$error":"#VALUE!"},{"$error":"#VALUE!"},{"$error":"#VALUE!"},{"$error":"#VALUE!"},{"$error":"#VALUE!"},{"$error":"#VALUE!"},{"$error":"#VALUE!"},{"$f":"U59/$C59","v":{"$error":"#VALUE!"}}]
["corps 2",null,{"$f":"D60/C60","v":{"$error":"#VALUE!"}},null,null,null,null,null,{"$f":"I60/C60","v":{"$error":"#VALUE!"}},null,{"$f":"K60/$C60","v":{"$error":"#VALUE!"}},{"$error":"#VALUE!"},{"$error":"#VALUE!"},{"$error":"#VALUE!"},{"$error":"#VALUE!"},{"$error":"#VALUE!"},{"$error":"#VALUE!"},{"$error":"#VALUE!"},{"$error":"#VALUE!"},{"$error":"#VALUE!"},{"$f":"U60/$C60","v":{"$error":"#VALUE!"}}]
["…",null,{"$error":"#VALUE!"},null,null,null,null,null,{"$error":"#VALUE!"},null,{"$error":"#VALUE!"},{"$error":"#VALUE!"},{"$error":"#VALUE!"},{"$error":"#VALUE!"},{"$error":"#VALUE!"},{"$error":"#VALUE!"},{"$error":"#VALUE!"},{"$error":"#VALUE!"},{"$error":"#VALUE!"},{"$error":"#VALUE!"},{"$f":"U61/$C61","v":{"$error":"#VALUE!"}}]
[null,null,{"$error":"#VALUE!"},null,null,null,null,null,{"$error":"#VALUE!"},null,{"$error":"#VALUE!"},{"$error":"#VALUE!"},{"$error":"#VALUE!"},{"$error":"#VALUE!"},{"$error":"#VALUE!"},{"$error":"#VALUE!"},{"$error":"#VALUE!"},{"$error":"#VALUE!"},{"$error":"#VALUE!"},{"$error":"#VALUE!"},{"$f":"U62/$C62","v":{"$error":"#VALUE!"}}]
[null,null,{"$error":"#VALUE!"},null,null,null,null,null,{"$error":"#VALUE!"},null,{"$error":"#VALUE!"},{"$error":"#VALUE!"},{"$error":"#VALUE!"},{"$error":"#VALUE!"},{"$error":"#VALUE!"},{"$error":"#VALUE!"},{"$error":"#VALUE!"},{"$error":"#VALUE!"},{"$error":"#VALUE!"},{"$error":"#VALUE!"},{"$f":"U63/$C63","v":{"$error":"#VALUE!"}}]
[null,null,{"$error":"#VALUE!"},null,null,null,null,null,{"$error":"#VALUE!"},null,{"$error":"#VALUE!"},{"$error":"#VALUE!"},{"$error":"#VALUE!"},{"$error":"#VALUE!"},{"$error":"#VALUE!"},{"$error":"#VALUE!"},{"$error":"#VALUE!"},{"$error":"#VALUE!"},{"$error":"#VALUE!"},{"$error":"#VALUE!"},{"$f":"U64/$C64","v":{"$error":"#VALUE!"}}]
["corps n",null,{"$error":"#VALUE!"},null,null,null,null,null,{"$error":"#VALUE!"},null,{"$error":"#VALUE!"},{"$error":"#VALUE!"},{"$error":"#VALUE!"},{"$error":"#VALUE!"},{"$error":"#VALUE!"},{"$error":"#VALUE!"},{"$error":"#VALUE!"},{"$error":"#VALUE!"},{"$error":"#VALUE!"},{"$error":"#VALUE!"},{"$f":"U65/$C65","v":{"$error":"#VALUE!"}}]

{"sheet":"Résultats globaux","index":10,"n_rows":34,"n_cols":9,"rows_kept":34,"cut":false,"hidden":true,"merged":[[3,8,4,8]]}
[]
[]
["nombre de corps pris en compte",null,null,null,null,2]
[null,null,null,null,null,null,null,null,"part des femmes (%)"]
["emploi annuel moyen :",null,null,"hommes",null,"femmes",null,"total"]
["effectifs annuels",null,null,379.83333333333331,null,11.416666666666666,null,{"$f":"D6+F6","v":391.25},{"$f":"F6/H6","v":2.9179978700745471E-2}]
["équivalents temps plein employés",null,null,376.68333333333334,null,11.383333333333333,null,{"$f":"D7+F7","v":388.06666666666666},{"$f":"F7/H7","v":2.9333447861192234E-2}]
["taux moyen de  temps partiel",null,null,{"$f":"D7/D6","v":0.99170688898639758},null,{"$f":"F7/F6","v":0.99708029197080295},null,{"$f":"H7/H6","v":0.99186368477103304}]
[]
["Rémunération mensuelle moyenne en € non redressée du temps partiel (et de la présence partielle dans le mois)"]
[null,null,"€/mois",null,null,"€/mois",null,"€/mois","% (F-H)/H"]
["Hommes",null,5035.6156291930256,"Femmes",null,13337.555623333816,"écart",{"$f":"F12-C12","v":8301.9399941407901},{"$f":"F12/C12-1","v":1.6486444966156411}]
[]
["Rémunération mensuelle moyenne en € par équivalent temps plein"]
["Hommes",null,5077.7257727228462,"Femmes",null,13376.611423109318,"écart",{"$f":"F15-C15","v":8298.8856503864718},{"$f":"F15/C15-1","v":1.6343705867235778}]
[]
[]
["décomposition des écarts :",null,null,null,null,null,null,"€/mois","% effet/(F-H par EQTP)"]
[null,null,"effet temps partiel",null,null,null,null,3.0543437543183245,{"$f":"H19/H$15","v":3.6804263644433832E-4}]
[null,null,"effet ségrégation des corps",null,null,null,null,-518.4292147263568,-6.2469738295793248E-2]
[null,null,"effet démographique au sein des corps",null,null,null,null,8817.3148651128286,1.0624697382957933]
[null,null,null,"dont sur primes",null,null,null,5753.2552080648984,0.69325635397771435]
[null,null,"effet primes à corps-Grade-échelon identique",null,null,null,null,0,0]
[null,null,null,"dont","Catégorie prime1",null,null,0,0]
[null,null,null,null,"catégorie prime 2",null,null,0,0]
[null,null,null,null,"Catégorie prime3",null,null,0,0]
[null,null,null,null,"Catégorie prime4",null,null,0,0]
[null,null,null,null,"Catégorie prime5",null,null,0,0]
[null,null,null,null,"Catégorie prime6",null,null,0,0]
[null,null,null,null,"Catégorie prime7",null,null,0,0]
[null,null,null,null,"Catégorie prime8",null,null,0,0]
[null,null,null,null,"Catégorie prime9",null,null,0,0]
[null,null,null,null,"Catégorie prime10",null,null,0,0]
[null,null,null,null,"Autre",null,null,5613393.0559405116,676.40322959252978]

{"sheet":"transfa","index":11,"n_rows":1367,"n_cols":2,"rows_kept":1367,"cut":false,"hidden":true,"merged":[]}
["corps","libellé corps"]
["0000","Emplois fonctionnels"]
["0001","Personnel de direction de 1ère catégorie"]
["0002","Personnel de direction de 2ème catégorie"]
["0005","Attaché administratif de l'École nationale d'administration (ENA)"]
["0006","Secrétaire et secrétaire adjoint de l'École nationale d'administration (ENA)"]
["0007","Appariteur de l'École nationale d'administration (ENA)"]
["0008","Conservateur d'archives"]
["0009","Chiffreur en chef du ministère des Affaires étrangères"]
["0010","Ingénieur des travaux ruraux"]
["0011","Ingénieur du génie rural des eaux et des forêts"]
["0012","Inspecteur général de la Défense (anciens combattants)"]
["0014","Inspecteur général de l'Éducation nationale"]
["0017","Trésorier-payeur général"]
["0018","Préfet"]
["0019","Secrétaire administratif des services techniques centraux de l'Aviation civile"]
["0020","Attaché d'administration des services techniques et déconcentrés de la direction générale de l'Aviation civile"]
["0021","Inspecteur de la navigation et du travail maritime"]
["0022","Inspecteur général de la jeunesse et des sports"]
["0023","Inspecteur principal de l'enseignement technique"]
["0024","Inspecteur général de l'administration du ministère de l'Intérieur"]
["0025","Contrôleur des travaux immobiliers du ministère de l'Économie et finances"]
["0026","Personnel de catégorie A des services déconcentrés du Trésor"]
["0027","Membre des Chambres régionales des comptes"]
["0028","Directeur de recherche de l'Institut de recherche pour le développement (IRD)"]
["0029","Médecin inspecteur conseiller technique des anciens combattants et victimes de guerre"]
["0030","Directeur régional et délégué services déconcentrés des anciens combattants et victimes de guerre"]
["0031","Conseiller du Commissariat général du plan"]
["0032","Chargé de recherche de l'Institut de recherche pour le développement (IRD)"]
["0033","Conseiller d'administration scolaire et universitaire"]
["0034","Attaché de recherche de l'Institut de recherche pour le développement (IRD)"]
["0035","Ingénieur de recherche de l'Institut de recherche pour le développement (IRD)"]
["0036","Ingénieur d'études de l'Institut de recherche pour le développement (IRD)"]
["0037","Ingénieur des systèmes d'information et de communication de l'intérieur"]
["0038","Assistant ingénieur de l'Institut de recherche pour le développement (IRD)"]
["0039","Conseiller et secrétaires des Affaires étrangères"]
["0040","Personnel enseignant écoles de reconversion professionnelle de l'Office national des anciens combattants et victimes de guerre (ONACVG - en extinction)"]
["0041","Assistant du Commissariat général du plan"]
["0042","Officier contrôleur de la circulation aérienne"]
["0043","Ingénieur des mines"]
["0044","Chargé d'administration de la recherche de l'Institut de recherche pour le développement (IRD)"]
["0045","Attaché d'administration de la recherche de l'Institut de recherche pour le développement (IRD)"]
["0046","Professeur d'éducation physique et sportive"]
["0047","Chargé d'enseignement d'éducation physique et sportive (en voie d'extinction)"]
["0048","Interprète du ministère des Affaires étrangères"]
["0049","Ingénieur de l'industrie et des mines"]
["0050","Professeur de sport"]
["0051","Conseiller d'éducation populaire et de jeunesse"]
["0052","Chargé d'éducation populaire et de jeunesse (en voie d'extinction)"]
["0053","Ingénieur de l'Aviation civile"]
["0054","Chargé d'administration de la recherche de l'Institut national de recherche en informatique et en automatique (INRIA)"]
["0055","Secrétaire adjoint des Affaires étrangères"]
["0056","Ingénieur des services techniques du matériel du ministère de l'Intérieur"]
["0057","Membre des tribunaux administratifs"]
["0058","Documentaliste du Secrétariat général du gouvernement (SGG)"]
["0059","Professeur agrégé de l'enseignement du second degré"]
["0060","Administrateur civil"]
["0061","Agent supérieur d'administration centrale"]
["0062","Attaché d'administration centrale"]
["0063","Chiffreur du ministère des Affaires étrangères"]
["0064","Chancelier des Affaires étrangères"]
["0065","Secrétaire de chancellerie"]
["0066","Secrétaire administratif d'administration centrale"]
["0067","Secrétaire d'administration centrale"]
["0068","Assistant de service social"]
["0069","Inspecteur du matériel des Affaires étrangères"]
["0070","Adjoint de chancellerie"]
["0071","Sténodactylographe de chancellerie"]
["0072","Agent technique de chancellerie"]
["0073","Adjoint administratif d'administration centrale"]
["0074","Secrétaire sténodactylographe"]
["0075","Sténodactylographe"]
["0076","Sous-préfet"]
["0077","Ingénieur des travaux des services techniques du ministère de l'intérieur"]
["0078","Administrateur de la ville de Paris"]
["0079","Directeur attaché principal et attaché de préfecture"]
["0080","Directeur de service administratif attachés principaux et attachés territoriaux"]
["0081","Agent administratif supérieur de préfecture (en voie d'extinction)"]
["0082","Chef de division et attachés de France d'Outre-mer (en voie d'extinction)"]
["0083","Personnel supérieur des groupes mobiles de sécurité (en voie d'extinction)"]
["0084","Administrateur des services civils (en voie d'extinction)"]
["0086","Agent d'administration de l'intérieur (en voie d'extinction)"]
["0087","Contrôleur du service des transmissions"]
["0088","Contrôleur divisionnaire des services techniques du matériel"]
["0089","Contrôleur des services techniques du matériel"]
["0090","Secrétaire en chef de préfecture"]
["0091","Secrétaire administratif de préfecture"]
["0092","Commandant et officier de paix de la Police nationale"]
["0093","Inspecteur de la Police nationale"]
["0094","Secrétaire administratif de la Police nationale"]
["0095","Agent des systèmes d'information et de communication"]
["0096","Gradé et gardien de la paix de la Police nationale"]
["0097","Enquêteur de la Police nationale"]
["0098","Commis des services extérieurs"]
["0099","Agent technique de bureau"]
["0101","Contremaître"]
["0104","Conducteur d'automobile"]
["0105","Chef de garage"]
["0106","Téléphoniste"]
["0107","Commissaire de la Police nationale"]
["0108","Agent de chancellerie"]
["0110","Directeur de recherche de l'Institut national de recherche sur les transports et leur sécurité (INRETS)"]
["0111","Chargé de recherche de l'Institut national de recherche sur les transports et leur sécurité (INRETS)"]
["0112","Ingénieur de recherche de l'Institut national de recherche sur les transports et leur sécurité (INRETS)"]
["0113","Ingénieur d'études de l'Institut national de recherche sur les transports et leur sécurité (INRETS)"]
["0114","Assistant ingénieur de l'Institut national de recherche sur les transports et leur sécurité (INRETS)"]
["0115","Attaché d'administration de la recherche de l'Institut national de recherche sur les transports et leur sécurité (INRETS)"]
["0116","Directeur de recherche du Centre national de la recherche scientifique (CNRS)"]
["0117","Chargé de recherche du Centre national de la recherche scientifique (CNRS)"]
["0118","Attaché de recherche du Centre national de la recherche scientifique (CNRS)"]
["0119","Ingénieur de recherche du Centre national de la recherche scientifique (CNRS)"]
["0120","Ingénieur d'études des établissements publics scientifiques et technologiques (Centre national de la recherche scientifique (CNRS), Institut national de recherche sur les transports et leur sécurité ("]
["0121","Assistant ingénieur des établissements publics scientifiques et technologiques (y compris Centre national de la recherche scientifique (CNRS), Institut national de recherche sur les transports et leur"]
["0122","Directeur de recherche de l'Institut français de recherche pour l'exploitation de la mer (IFREMer)"]
["0123","Chargé de recherche de l'Institut français de recherche pour l'exploitation de la mer (IFREMer)"]
["0124","Ingénieur de recherche de l'Institut français de recherche pour l'exploitation de la mer (IFREMer)"]
["0125","Ingénieur d'études de l'Institut français de recherche pour l'exploitation de la mer (IFREMer)"]
["0126","Attaché d'administration de la recherche de l'Institut français de recherche pour l'exploitation de la mer (IFREMer)"]
["0127","Assistant ingénieur de l'Institut français de recherche pour l'exploitation de la mer (IFREMer)"]
["0128","Chargé d'administration de la recherche de l'Institut français de recherche pour l'exploitation de la mer (IFREMer)"]
["0129","Directeur de recherche de l'Institut national de la santé et de la recherche médicale (INSERM)"]
["0130","Chargé de recherche de l'Institut national de la santé et de la recherche médicale (INSERM)"]
["0131","Attaché de recherche de l'Institut national de la santé et de la recherche médicale (INSERM - corps titulaire provisoire)"]
["0132","Ingénieur de recherche de l'Institut national de la santé et de la recherche médicale (INSERM)"]
["0133","Chargé d'administration de la recherche du Centre national de la recherche scientifique (CNRS)"]
["0134","Attaché d'administration de la recherche du Centre national de la recherche scientifique (CNRS)"]
["0135","Assistant ingénieur de l'Institut national de la santé et de la recherche médicale (INSERM)"]
["0136","Chargé d'administration de la recherche de l'Institut national de la santé et de la recherche médicale (INSERM)"]
["0137","Attaché d'administration de la recherche de l'Institut national de la santé et de la recherche médicale (INSERM)"]
["0138","Ingénieur d'études de l'Institut national de la santé et de la recherche médicale (INSERM)"]
["0139","Traducteur"]
["0140","Ministre plénipotentiaire"]
["0141","Agent de service de la Police nationale"]
["0142","Attaché des services civils (corps en voie d'extinction)"]
["0143","Personnel de l'Institut national d'études démographiques (INED)"]
["0144","Inspecteur du travail"]
["0145","Conseiller au travail à la législation sociale Outre-mer (en extinction)"]
["0146","Chef de centre des services déconcentrés du travail"]
["0147","Contrôleur des services déconcentrés du travail"]
["0148","Contrôleur des services déconcentrés du travail de la Polynésie française"]
["0149","Secrétaire général chef des services administratifs de l'Agence nationale de sécurité du médicament et des produits de santé (ANSM, ex-LNS)"]
["0150","Pharmacien inspecteur de la santé"]
["0152","Personnel scientifique de l'Agence nationale de sécurité du médicament et des produits de santé (ANSM, ex-LNS)"]
["0153","Médecin inspecteur de la santé"]
["0154","Adjoint au chef des services administratifs et financiers de l'Institut national de la santé et de la recherche médicale (INSERM)"]
["0155","Médecin de la santé publique (corps provisoire)"]
["0156","Aide comptable écoles de reconversion professionnelle de l'Office national des anciens combattants et victimes de guerre (ONACVG)"]
["0157","Aide-soignant de l'Institution nationale des invalides (INI)"]
["0158","Personnel supérieur des directions régionales et départementales des affaires sanitaires et sociales"]
["0159","Médecin des hôpitaux psychiatriques autonomes (HPA) et établissement national de Saint-Maurice"]
["0160","Médecin des sanatoriums publics"]
["0161","Médecin des hôpitaux psychiatriques départementaux de la Seine"]
["0162","Pharmacien résident des établissements d'hospitalisation, de soins ou de cure publics"]
["0163","Pharmacien des hôpitaux psychiatriques et des sanatoriums publics"]
["0164","Inspecteur des établissements sanitaires de la Caisse nationale de l'assurance maladie des travailleurs salariés (CNAMTS)"]
["0165","Professeur de l'Institut national des jeunes aveugles (INJA)"]
["0166","Inspecteur des études des Instituts nationaux de jeunes sourds (INJS)"]
["0167","Professeur des Instituts nationaux de jeunes sourds (INJS)"]
["0168","Chef d'atelier des Instituts nationaux de jeunes sourds et jeunes aveugles (INJS et INJA - ancien régime - en extinction)"]
["0169","Professeur technique chef d'atelier des Instituts nationaux de jeunes sourds et jeunes aveugles (INJS et INJA - en voie d'extinction)"]
["0170","Professeur technique des Instituts nationaux de jeunes sourds et jeunes aveugles (INJS et INJA - en voie d'extinction)"]
["0171","Directeur des études de l'École des hautes études en santé publique (EHESP, ex-ENSP)"]
["0172","Secrétaire général de l'École des hautes études en santé publique (EHESP, ex-ENSP)"]
["0173","Chef de contrôle de l'action sanitaire et sociale (en voie d'extinction)"]
["0174","Adjoint du service de santé scolaire et universitaire (en extinction)"]
["0175","Technicien de laboratoire de l'Agence nationale de sécurité du médicament et des produits de santé (ANSM, ex-LNS)"]
["0176","Traducteur de l'Institut national de la santé et de la recherche médicale (INSERM)"]
["0177","Régisseur économe et secrétaire écoles de reconversion professionnelle de l'Office national des anciens combattants et victimes de guerre (ONACVG)"]
["0178","Personnel infirmier des services médicaux des hôpitaux psychiatriques, des établisssements nationaux bienfaisance, sanatoriums et thermes nationaux"]
["0179","Personnel infirmier des services médicaux des établisssements nationaux de bienfaisance (ENB) de la Polynésie française"]
["0180","Personnel infirmier des établisssements nationaux de bienfaisance (ENB) de Saint-Pierre et Miquelon"]
["0181","Sage-femme des services médicaux hôpitaux psychiatriques, des établisssements nationaux de bienfaisance (ENB), sanatorium national et thermes nationaux"]
["0182","Sage-femme des services médicaux des établisssements nationaux de bienfaisance (ENB) de la Polynésie française"]
["0183","Orthophoniste des services médicaux des hôpitaux psychiatriques autonomes (HPA), des établisssements nationaux de bienfaisance (ENB) et des thermes nationaux"]
["0184","Puériculteur des services médicaux des hôpitaux psychiatriques autonomes (HPA), des établisssements nationaux de bienfaisance (ENB) et des thermes nationaux"]
["0185","Orthoptiste des services médicaux des hôpitaux psychiatriques autonomes (HPA), des établisssements nationaux de bienfaisance (ENB) et des thermes nationaux"]
["0186","Masseur des services médicaux des hôpitaux psychiatriques autonomes (HPA), des établisssements nationaux de bienfaisance (ENB) et des thermes nationaux"]
["0187","Diététicien des services médicaux des hôpitaux psychiatriques autonomes (HPA), des établisssements nationaux de bienfaisance (ENB) et des thermes nationaux"]
["0188","Préparateur en pharmacie titulaires du brevet professionnel des établisssements nationaux de bienfaisance (ENB)"]
["0189","Préparateur en pharmacie des établisssements nationaux de bienfaisance (ENB - en extinction)"]
["0190","Laborantin des services des laboratoires des établisssements nationaux de bienfaisance (ENB)"]
["0191","Manipulateur de radiologie des établisssements nationaux de bienfaisance (ENB)"]
["0192","Aide physiothérapeute des établisssements nationaux de bienfaisance (ENB)"]
["0193","Personnel des services agricoles des hôpitaux psychiatriques autonomes (HPA), des établisssements nationaux bienfaisance et thermes nationaux (en extinction)"]
["0194","Laborantin de l'Institution nationale des invalides (INI)"]
["0195","Aspirant professeur de l'Institut national des jeunes aveugles (INJA - en extinction)"]
["0196","Technicien de la recherche de l'Institut national de la santé et de la recherche médicale (INSERM)"]
["0197","Maître répétiteur des Instituts nationaux de jeunes sourds (INJS - en extinction)"]
["0198","Éducateur des hôpitaux psychiatriques autonomes (HPA) et du sanatorium de Zuydcoote"]
["0199","Éducateur des établisssements nationaux de bienfaisance (ENB)"]
["0200","Moniteur éducateur des établisssements nationaux de bienfaisance (ENB - en voie d'extinction)"]
["0201","Secrétaire d'administration de la recherche de l'Institut national de la santé et de la recherche médicale (INSERM)"]
["0203","Sage-femme d'Outre-mer (corps autonome)"]
["0204","Infirmier d'Outre-mer (corps autonome)"]
["0205","Technicien de physiothérapie relevant du ministre charge de la santé"]
["0206","Infirmier d'administration centrale, des services déconcentrés et des établissements publics"]
["0207","Aide médico-sociale de l'action sanitaire et sociale (en extinction)"]
["0208","Aide technique de laboratoire de l'Agence nationale de sécurité du médicament et des produits de santé (ANSM, ex-LNS)"]
["0209","Agent technique des services sanitaires (en extinction)"]
["0210","Aide de laboratoire de l'Agence nationale de sécurité du médicament et des produits de santé (ANSM, ex-LNS)"]
["0211","Expert vérificateur service appareillage mutilés des anciens combattants et victimes de guerre"]
["0212","Vérificateur des directions régionales de la Sécurité sociale (en extinction)"]
["0214","Secrétaire dactylographe du centre national d'ophtalmologie des Quinze-Vingts"]
["0215","Secrétaire des services médicaux des établisssements nationaux bienfaisance, hôpitaux psychiatriques autonomes (HPA) et thermes nationaux d'Aix-les-Bains"]
["0216","Secrétaire spécialisé dans l'écriture braille des établisssements nationaux de bienfaisance (ENB), des hôpitaux psychiatriques autonomes (HPA) et des thermes nationaux"]
["0217","Aide-soignant des établisssements nationaux de bienfaisance (ENB)"]
["0218","Aide technique des services de pharmacie des établisssements nationaux de bienfaisance (ENB)"]
["0219","Aide de laboratoire spécialisé des services de laboratoire des établisssements nationaux de bienfaisance (ENB)"]
["0220","Personnel des parcs automobiles des hôpitaux psychiatriques autonomes (HPA), des établisssements nationaux de bienfaisance (ENB) et thermes nationaux (en extinction)"]
["0221","Personnel de chaufferie des services généraux des hôpitaux psychiatriques autonomes (HPA), des établisssements nationaux bienfaisance et thermes nationaux (en extinction)"]
["0222","Personnel des services généraux des hôpitaux psychiatriques autonomes (HPA), des établisssements nationaux de bienfaisance (ENB) et thermes nationaux (en extinction)"]
["0223","Adjoint technique de la recherche de l'Institut national de la santé et de la recherche médicale (INSERM)"]
["0224","Agent technique de la recherche de l'Institut national de la santé et de la recherche médicale (INSERM)"]
["0225","Jardinier d'enfants (éducateur de jeunes enfants) dans les Instituts nationaux de jeunes sourds et jeunes aveugles (INJS et INJA)"]
["0226","Surveillant d'élèves des Instituts nationaux de jeunes sourds et jeunes aveugles (INJS et INJA)"]
["0227","Adjoint administratif de la recherche de l'Institut national de la santé et de la recherche médicale (INSERM)"]
["0228","Agent d'administration de la recherche de l'Institut national de la santé et de la recherche médicale (INSERM)"]
["0230","Chef d'atelier d'apprentissage du sanatorium national de Zuydcoote (en extinction)"]
["0231","Agent de laboratoire de l'Agence nationale de sécurité du médicament et des produits de santé (ANSM, ex-LNS)"]
["0232","Agent des services hospitaliers des établisssements nationaux de bienfaisance (ENB)"]
["0233","Aide technique de la recherche de l'Institut national de la santé et de la recherche médicale (INSERM)"]
["0234","Agent de bureau de la recherche de l'Institut national de la santé et de la recherche médicale (INSERM)"]
["0235","Médecin et pharmacien africains (corps autonome - en extinction)"]
["0236","Manipulateur d'électroradiologie de l'Institution nationale des invalides (INI)"]
["0237","Personnel de direction Instituts nationaux de jeunes sourds et jeunes aveugles (INJS et INJA), hôpitaux psychiatriques autonomes (HPA) et des thermes nationaux"]
["0238","Sous-chef d'atelier des Instituts nationaux de jeunes sourds et jeunes aveugles (INJS et INJA - ancien régime - en extinction)"]
["0239","Agent des services hospitaliers de l'Institution nationale des invalides (INI)"]
["0240","Personnel infirmier et masseurs kinésithérapeutes de l'Institution nationale des invalides (INI)"]
["0241","Professeur des écoles de reconversion professionnelle de l'Office national des anciens combattants et victimes de guerre (ONACVG) nouveau régime"]
["0242","Secrétaire administratif des services déconcentrés des anciens combattants et victimes de guerre"]
["0243","Calculateur du Commissariat général du plan"]
["0244","Attaché de l'emploi et de la formation professionnelle (en voie d'extinction)"]
["0245","Aide de documentation du Secrétariat général du gouvernement (SGG)"]
["0246","Contrôleur de la formation professionnelle"]
["0247","Chargé de mission titulaire du Secrétariat général du gouvernement (SGG)"]
["0248","Chargé d'études au Secrétariat général du gouvernement (SGG)"]
["0249","Conseiller aux affaires administratives"]
["0250","Magistrat"]
["0251","Greffier en chef des cours et tribunaux"]
["0252","Greffier en chef des conseils de prud'hommes"]
["0253","Personnel de direction de l'Administration pénitentiaire"]
["0254","Professeur technique d'enseignement professionnel et des travaux services déconcentrés Administration pénitentiaire"]
["0255","Attaché d'administration et d'intendance des services pénitentiaires"]
["0257","Professeur technique chef enseignement professionnel et travaux de l'éducation surveillée"]
["0258","Professeur technique d'enseignement professionnel de l'éducation surveillée"]
["0259","Attaché d'intendance de l'éducation surveillée"]
["0260","Psychologue des services extérieurs de la Protection judiciaire de la jeunesse (PJJ)"]
["0261","Chef des services de secrétariat"]
["0262","Greffier des cours et tribunaux"]
["0263","Greffier des cours et tribunaux (cadre latéral)"]
["0264","Greffier des cours et tribunaux de la Polynésie française"]
["0265","Greffier des conseils de prud'hommes"]
["0266","Secrétaire d'administration et d'intendance des services pénitentiaires"]
["0267","Instructeur technique de l'Administration pénitentiaire"]
["0268","Chef de travaux de l'Administration pénitentiaire"]
["0269","Éducateur de l'Administration pénitentiaire"]
["0270","Personnel de surveillance de l'Administration pénitentiaire"]
["0271","Infirmier du ministère de la Justice"]
["0272","Secrétaire d'intendance de l'éducation surveillée"]
["0273","Commis des services pénitentiaires"]
["0274","Adjoint de probation de l'Administration pénitentiaire (en extinction)"]
["0276","Agent technique d'éducation de l'éducation surveillée"]
["0277","Contrôleur des transports terrestres"]
["0278","Adjoint de contrôle des transports terrestres"]
["0279","Inspecteur général de la santé et de la population"]
["0280","Inspecteur général de la Sécurité sociale"]
["0281","Inspecteur des institutions nationales et établissements privés de sourds-muets et jeunes aveugles"]
["0282","Inspecteur technique et pédagogique des écoles d'assistantes sociales"]
["0283","Médecin conseiller technique de l'administration centrale de la santé publique"]
["0284","Vérificateur des travaux de bâtiment de l'administration centrale de la santé publique et du travail"]
["0285","Métreur vérificateur de l'administration centrale de la santé publique et du travail"]
["0331","Adjoint technique de la recherche de l'Institut national de recherche sur les transports et leur sécurité (INRETS)"]
["0332","Agent technique de la recherche de l'Institut national de recherche sur les transports et leur sécurité (INRETS)"]
["0333","Adjoint administratif de la recherche de l'Institut national de recherche sur les transports et leur sécurité (INRETS)"]
["0334","Agent d'administration de la recherche de l'Institut national de recherche sur les transports et leur sécurité (INRETS)"]
["0335","Conducteur des travaux publics de l'État"]
["0336","Conducteur des travaux publics de l'État de la Polynésie française"]
["0337","Conducteur des travaux publics de l'État pour l'administration de Saint-Pierre et Miquelon"]
["0338","Agent des travaux publics de l'État de la Polynésie française"]
["0339","Agent des travaux publics de l'État pour l'administration de Saint-Pierre et Miquelon"]
["0340","Agent des travaux publics de l'État"]
["0341","Dessinateur du service de l'Équipement"]
["0343","Moniteur vérificateur et électromécanicien du service des phares"]
["0344","Vérificateur des instruments de précision de l'École nationale des ponts et chaussées"]
["0345","Expert technique des services techniques de l'Équipement logement"]
["0346","Géomètre de l'Institut géographique national (IGN)"]
["0347","Assistant cartographe de l'Institut géographique national (IGN)"]
["0348","Technicien de la recherche de l'Institut national de recherche sur les transports et leur sécurité (INRETS)"]
["0349","Technicien des travaux publics de l'État"]
["0350","Secrétaire d'administration de la recherche de l'Institut national de recherche sur les transports et leur sécurité (INRETS)"]
["0351","Technicien des travaux publics de l'État de la Polynésie française"]
["0352","Technicien des travaux publics de l'État pour l'administration de Saint-Pierre et Miquelon"]
["0353","Officier de port adjoint"]
["0354","Inspecteur du permis de conduire et de la sécurité routière"]
["0355","Secrétaire administratif des services déconcentrés de l'Équipement et du logement"]
["0356","Dessinateur de la Polynésie française"]
["0357","Aide technique de la recherche de l'Institut national de recherche sur les transports et leur sécurité (INRETS)"]
["0358","Agent de bureau de la recherche de l'Institut national de recherche sur les transports et leur sécurité (INRETS)"]
["0359","Ingénieur géographe"]
["0360","Ingénieur des travaux géographiques et cartographiques de l'État"]
["0361","Inspecteur général du tourisme"]
["0362","Inspecteur général des Monuments historiques chargé des sites et paysages"]
["0363","Architecte des Bâtiments de France"]
["0364","Inspecteur général de l'Équipement"]
["0365","Inspecteur de la construction"]
["0366","Ingénieur des ponts et chaussées"]
["0367","Ingénieur des travaux publics de l'État"]
["0368","Chargé d'administration de la recherche de l'Institut national de recherche sur les transports et leur sécurité (INRETS)"]
["0369","Architecte et urbaniste de l'État"]
["0370","Officier de port"]
["0371","Inspecteur général de la construction"]
["0372","Personnel administratif supérieur des services déconcentrés de l'Équipement, du logement, des transports et de la mer"]
["0373","Inspecteur du travail et de la main d'œuvre des transports"]
["0376","Agent technique des parcs nationaux"]
["0377","Technicien des parcs nationaux"]
["0379","Inspecteur mécanicien de la Marine marchande"]
["0381","Attaché des Affaires maritimes"]
["0382","Professeur technique chef de travaux des écoles nationales de la Marine marchande"]
["0383","Professeur technique des écoles nationales de la Marine marchande"]
["0384","Contrôleur des Affaires maritimes"]
["0385","Technicien du contrôle des établissements de pêche maritime"]
["0386","Encadrement et de commandement des personnels embarqués d'assistance et de surveillance des Affaires maritimes"]
["0387","Technicien de la recherche de l'Institut français de recherche pour l'exploitation de la mer (IFREMer)"]
["0388","Secrétaire d'administration de la recherche de l'Institut français de recherche pour l'exploitation de la mer (IFREMer)"]
["0389","Exécution et de maîtrise des personnels embarqués d'assistance et de surveillance des Affaires maritimes"]
["0390","Garde maritime"]
["0391","Syndic des gens de mer"]
["0392","Adjoint technique de la recherche de l'Institut français de recherche pour l'exploitation de la mer (IFREMer)"]
["0393","Agent technique de la recherche de l'Institut français de recherche pour l'exploitation de la mer (IFREMer)"]
["0394","Adjoint administratif de la recherche de l'Institut français de recherche pour l'exploitation de la mer (IFREMer)"]
["0395","Agent d'administration de la recherche de l'Institut français de recherche pour l'exploitation de la mer (IFREMer)"]
["0396","Agent de bureau de la recherche de l'Institut français de recherche pour l'exploitation de la mer (IFREMer)"]
["0397","Aide technique de la recherche de l'Institut français de recherche pour l'exploitation de la mer (IFREMer)"]
["0398","Inspecteur général de l'industrie"]
["0399","Artiste cartographe du service de la carte géologique"]
["0400","Directeur de recherche de l'Institut national de recherche en informatique et en automatique (INRIA)"]
["0401","Chargé de recherche de l'Institut national de recherche en informatique et en automatique (INRIA)"]
["0402","Ingénieur de recherche de l'Institut national de recherche en informatique et en automatique (INRIA)"]
["0403","Ingénieur d'études de l'Institut national de recherche en informatique et en automatique (INRIA)"]
["0404","Assistant ingénieur de l'Institut national de recherche en informatique et en automatique (INRIA)"]
["0405","Attaché d'administration de la recherche de l'Institut national de recherche en informatique et en automatique (INRIA)"]
["0406","Ingénieur des travaux du cadre spécial des carburants"]
["0407","Ingénieur des mines et des techniques industrielles"]
["0408","Professeur de 1ère catégorie écoles supérieures des mines de l'industrie"]
["0409","Professeur de 2ème catégorie des écoles supérieures des mines de l'industrie"]
["0410","Maître assistant des écoles supérieures des mines de l'industrie"]
["0411","Chef de travaux des écoles nationales supérieures des mines de Paris et Saint Étienne (en extinction)"]
["0412","Assistant des écoles supérieures des mines de l'industrie"]
["0413","Technicien de la recherche de l'Institut de recherche pour le développement (IRD)"]
["0414","Secrétaire d'administration de la recherche de l'Institut de recherche pour le développement (IRD)"]
["0415","Technicien de la recherche de l'Institut national de recherche en informatique et en automatique (INRIA)"]
["0416","Technicien de l'industrie et des mines"]
["0417","Secrétaire d'administration de la recherche de l'Institut national de recherche en informatique et en automatique (INRIA)"]
["0418","Secrétaire administratif de l'industrie et de l'aménagement du territoire"]
["0419","Technicien de laboratoire des écoles nationales supérieures des mines"]
["0420","Adjoint technique de la recherche de l'Institut de recherche pour le développement (IRD)"]
["0421","Agent technique de la recherche de l'Institut de recherche pour le développement (IRD)"]
["0422","Adjoint administratif de la recherche de l'Institut de recherche pour le développement (IRD)"]
["0423","Agent d'administration de la recherche de l'Institut de recherche pour le développement (IRD)"]
["0424","Adjoint technique de la recherche de l'Institut national de recherche en informatique et en automatique (INRIA)"]
["0425","Agent technique de la recherche de l'Institut national de recherche en informatique et en automatique (INRIA)"]
["0426","Adjoint administratif de la recherche de l'Institut national de recherche en informatique et en automatique (INRIA)"]
["0427","Agent d'administration de la recherche de l'Institut national de recherche en informatique et en automatique (INRIA)"]
["0428","Aide technique de laboratoires des écoles nationales supérieures des mines"]
["0429","Agent technique de contrôle"]
["0430","Expert technique des services déconcentrés de l'industrie"]
["0431","Aide technique de la recherche de l'Institut de recherche pour le développement (IRD)"]
["0432","Agent de bureau de la recherche de l'Institut de recherche pour le développement (IRD)"]
["0433","Aide technique de la recherche de l'Institut national de recherche en informatique et en automatique (INRIA)"]
["0434","Agent de bureau de la recherche de l'Institut national de recherche en informatique et en automatique (INRIA)"]
["0435","Ingénieur des instruments de mesure (en voie d'extinction)"]
["0436","Cadre administratif latéral des services techniques extérieurs de l'Aviation civile"]
["0437","Ingénieur des études et de l'exploitation de l'Aviation civile"]
["0438","Ingénieur de la météorologie"]
["0439","Ingénieur des travaux de la météorologie"]
["0440","Commandant d'aérodromes (corps provisoire)"]
["0441","Technicien supérieur des études et de l'exploitation de l'Aviation civile de la Polynésie française"]
["0442","Électronicien de la sécurité aérienne"]
["0443","Technicien de l'Aviation civile"]
["0444","Technicien de la météorologie"]
["0445","Technicien d'études et de travaux de l'Aviation civile et de la météorologie"]
["0446","Technicien de la météorologie de la Polynésie française"]
["0447","Dessinateur de l'Aviation civile"]
["0448","Aide technicien de la navigation aérienne de la Polynésie française"]
["0449","Aide technicien de la météorologie"]
["0450","Aide technicien de la météorologie de la Polynésie française"]
["0451","Inspecteur général des affaires culturelles"]
["0452","Contrôleur des travaux des Bâtiments de France"]
["0453","Attaché des services déconcentrés des affaires culturelles"]
["0454","Inspecteur général des Archives de France"]
["0455","Conservateur d'archives"]
["0456","Chargé d'études documentaires de la Culture"]
["0457","Documentaliste de la Culture"]
["0458","Professeur des écoles nationales d'art"]
["0459","Personnel administratif du Mobilier national et des manufactures nationales des Gobelins, de Beauvais et de la Savonnerie"]
["0463","Personnel de service de la fabrication de la manufacture nationale de Sèvres"]
["0464","Personnel service artistique de la manufacture nationale de Sèvres"]
["0465","Personnel de service de gestion de la manufacture nationale de Sèvres"]
["0466","Conservateur des musées de France"]
["0467","Inspecteur des Monuments historiques"]
["0468","Conservateur des Bâtiments de France"]
["0469","Architecte en chef des Monuments historiques"]
["0470","Conservateur de l'Inventaire général et des fouilles archéologiques"]
["0471","Technicien des Bâtiments de France"]
["0472","Secrétaire administratif des services déconcentrés des affaires culturelles"]
["0473","Secrétaire de documentation de la Culture"]
["0474","Restaurateur spécialiste relevant de la direction des Archives de France"]
["0475","Inspecteur de surveillance et de magasinage"]
["0476","Personnel technique du Mobilier national"]
["0477","Restauration d'art des musées de France"]
["0478","Jardinier en chef des parcs et jardins de la Culture"]
["0479","Adjoint technique des Bâtiments de France"]
["0480","Agent chef de surveillance et de magasinage"]
["0481","Agent technique de surveillance et de magasinage"]
["0482","Jardinier spécialisé des parcs et jardins (direction du patrimoine)"]
["0483","Personnel de surveillance et de service de la direction des Archives de France"]
["0485","Gardien des Monuments historiques"]
["0486","Aide jardinier des parcs et jardins (en extinction)"]
["0492","Technicien adjoint de laboratoire de langues vivantes de l'École nationale d'administration (ENA)"]
["0493","Aide de bibliothèque au Conseil d'État"]
["0494","Garçon de laboratoire des établissements d'enseignement supérieur"]
["0502","Chercheur de l'Institut de recherche pour le développement (IRD)"]
["0503","Inspecteur de l'enseignement technique"]
["0504","Inspecteur départemental de l'Éducation nationale"]
["0505","Inspecteur d'information et d'orientation"]
["0506","Inspecteur général de l'administration de l'Éducation nationale"]
["0507","Chargé d'études documentaires du ministère de l'Éducation nationale"]
["0508","Attaché d'administration scolaire et universitaire"]
["0509","Inspecteur général des bibliothèques"]
["0510","Documentaliste du ministère de l'Éducation nationale"]
["0511","Directeur de centre d'information et d'orientation conseiller d'orientation (en extinction)"]
["0512","Intendant universitaires"]
["0513","Ingénieur d'études de l'Éducation nationale"]
["0514","Assistant ingénieur du ministère de l'Éducation nationale"]
["0515","Chargé d'administration de recherche et de formation du ministère de l'Éducation nationale"]
["0516","Attaché d'administration de recherche et de formation du ministère de l'Éducation nationale"]
["0517","Conservateur des bibliothèques"]
["0518","Assistant des disciplines juridiques, politiques, gestion littéraire, sciences humaines (corps en extinction)"]
["0519","Professeur des universités praticien hospitalier"]
["0520","Professeur des universités"]
["0521","Professeur des universités odontologiste des services de consultations dentaires"]
["0522","Professeur sans chaire des disciplines médicales"]
["0523","Maître de conférences agrégés des disciplines médicales"]
["0524","Maître de conférences des universités-praticien hospitalier de médecine, d'odontologie et des disciplines pharmaceutiques"]
["0525","Maître de conférences"]
["0526","Maître assistant des disciplines scientifiques, littéraires et sciences humaines"]
["0527","Maître assistant des disciplines pharmaceutiques"]
["0528","Maître assistant des disciplines juridiques, politiques, économiques et gestion (en extinction)"]
["0529","Chef de travaux des universités et autres établissements d'enseignement supérieur (en extinction)"]
["0530","Chef de travaux des universités (ancien régime) médecine"]
["0531","Chef de travaux des universités praticiens hospitaliers"]
["0532","Chef de travaux des universités odontologiste adjoint"]
["0533","Assistant des disciplines médicales biologiques et mixtes (en voie d'extinction)"]
["0534","Assistant agrégé des universités et autres établissements d'enseignement supérieur"]
["0535","Assistant non agrégé des universités et autres établissements d'enseignement supérieur"]
["0536","Professeur en chirurgie dentaire odontologistes (en voie d'extinction)"]
["0537","Astronome titulaire des observatoires et du bureau des longitudes (en voie d'extinction)"]
["0538","Physicien adjoint des observatoires et instituts de physique du globe et bureau des longitudes (en extinction)"]
["0539","Astronome adjoint des observatoires, instituts de physique du globe et bureau des longitudes (en extinction)"]
["0540","Calculateur du bureau des longitudes"]
["0541","Aide physicien des Instituts de physique du globe (en voie d'extinction)"]
["0542","Aide astronome des observatoires (en voie d'extinction)"]
["0543","Assistant des observatoires, instituts de physique du globe et bureau des longitudes (en extinction)"]
["0544","Astronome et physicien"]
["0545","Astronome adjoint et physiciens adjoints"]
["0546","Chargé de mission de la recherche du Centre national de la recherche scientifique (CNRS - en voie d'extinction)"]
["0547","Professeur du Collège de France"]
["0548","Professeur du Muséum national d'histoire naturelle (MNHN)"]
["0549","Professeur sans chaire du Muséum national d'histoire naturelle (MNHN)"]
["0550","Conservateur de Muséum national d'histoire naturelle (MNHN)"]
["0551","Assistant du Conservatoire national des arts et métiers (CNAM)"]
["0552","Professeur de l'École centrale de Lyon"]
["0553","Professeur de l'École nationale supérieure des arts et métiers (ENSAM)"]
["0554","Professeur technique adjoint de l'École nationale supérieure des arts et métiers (ENSAM)"]
["0555","Professeur de chaire supérieure"]
["0556","Professeur bi-admissible à l'agrégation"]
["0557","Professeur certifié et assimilé"]
["0558","Professeur technique adjoint des lycées techniques"]
["0559","Professeur technique chef de travaux lycée technique degré supérieur"]
["0560","Professeur et professeur technique école normale nationale d'apprentissage"]
["0561","Professeur d'enseignement général de collège"]
["0562","Adjoint d'enseignement (en voie d'extinction)"]
["0563","Chargé d'enseignement (en voie d'extinction)"]
["0564","Conseiller principal d'éducation"]
["0565","Conseiller d'éducation"]
["0566","Surveillant général de collège d'enseignement technique (en voie d'extinction)"]
["0567","Surveillant général de lycée (en voie d'extinction)"]
["0568","Professeur technique chef de travaux de collège enseignement technique (ancien régime)"]
["0569","Professeur d'enseignement général de collège d'enseignement technique (ancien régime)"]
["0570","Professeur d'enseignement technique théorique de collège d'enseignement technique (ancien régime)"]
["0571","Professeur technique chef d'ateliers de collège d'enseignement technique (ancien régime)"]
["0573","Professeur technique chef de travaux de collège d'enseignement technique (nouveau régime)"]
["0574","Secrétaire d'administration scolaire et universitaire"]
["0575","Secrétaire de documentation du ministère de l'Éducation nationale"]
["0576","Technicien de recherche et de formation du ministère de l'Éducation nationale"]
["0577","Secrétaire d'administration de recherche et de formation du ministère de l'Éducation nationale"]
["0578","Technicien de laboratoire des établissements d'enseignement supérieur"]
["0579","Technicien de laboratoire des établissements scolaires"]
["0580","Bibliothécaire adjoint des bibliothèques"]
["0581","Restaurateur spécialiste des bibliothèques"]
["0582","Inspecteur de magasinage"]
["0583","Technicien de la recherche du Centre national de la recherche scientifique (CNRS)"]
["0584","Secrétaire d'administration de la recherche du Centre national de la recherche scientifique (CNRS)"]
["0585","Technicien principal de physique nucléaire du Centre national de la recherche scientifique (CNRS - en voie d'extinction)"]
["0586","Technicien de physique nucléaire du Centre national de la recherche scientifique (CNRS - en voie d'extinction)"]
["0587","Technicien d'atelier de physique nucléaire du Centre national de la recherche scientifique (CNRS - en voie d'extinction)"]
["0588","Technicien d'études de physique nucléaire du Centre national de la recherche scientifique (CNRS - en voie d'extinction)"]
["0589","Préparateur de physique nucléaire du Centre national de la recherche scientifique (CNRS)"]
["0590","Prototypiste de physique nucléaire du Centre national de la recherche scientifique (CNRS)"]
["0591","Surveillance du Muséum national d'histoire naturelle (MNHN)"]
["0592","Instituteur"]
["0593","Instructeur (en voie d'extinction)"]
["0594","Instituteur de la Polynésie française"]
["0595","Agent de service des établissements d'enseignement"]
["0596","Aide d'économat de l'intendance universitaire (en voie d'extinction)"]
["0597","Aide infirmier de l'intendance universitaire (en voie d'extinction)"]
["0598","Adjoint technique de recherche et de formation du ministère de l'Éducation nationale"]
["0599","Agent technique de recherche et de formation"]
["0600","Aide technique de recherche et de formation"]
["0601","Adjoint administratif de recherche et de formation"]
["0602","Agent d'administration de recherche et de formation du ministère de l'Éducation nationale"]
["0603","Aide technique de laboratoire des établissements d'enseignement supérieur"]
["0604","Aide de laboratoire des établissements d'enseignement supérieur"]
["0605","Aide technique de laboratoire de l'Éducation nationale"]
["0606","Aide de laboratoire des établissements scolaires régi par le décret D80-790 du 02/10/80"]
["0607","Magasinier en chef"]
["0608","Magasinier des bibliothèques"]
["0609","Adjoint technique de la recherche du Centre national de la recherche scientifique (CNRS)"]
["0610","Agent technique de la recherche du Centre national de la recherche scientifique (CNRS)"]
["0611","Adjoint administratif de la recherche du Centre national de la recherche scientifique (CNRS)"]
["0612","Agent d'administration de la recherche du Centre national de la recherche scientifique (CNRS)"]
["0613","Ouvrier professionnel de physique nucléaire du Centre national de la recherche scientifique (CNRS)"]
["0614","Soigneur d'animaux du Muséum national d'histoire naturelle (MNHN)"]
["0615","Agent de bureau de recherche et de formation du ministère de l'Éducation nationale"]
["0616","Agent de laboratoire des établissements scolaires"]
["0617","Gardien des bibliothèques service général service de sécurité"]
["0618","Aide technique de la recherche du Centre national de la recherche scientifique (CNRS)"]
["0619","Agent de bureau de la recherche du Centre national de la recherche scientifique (CNRS)"]
["0648","Infirmier des établissements publics d'enseignement"]
["0659","Professeur adjoint d'éducation physique et sportive (cadre en extinction)"]
["0660","Professeur adjoint d'éducation physique et sportive"]
["0663","Chargé de mission à l'administration centrale de l'agriculture (en extinction)"]
["0664","Ingénieur des travaux ruraux (cadre latéral)"]
["0665","Ingénieur des travaux des eaux et forêts"]
["0666","Ingénieur des travaux des eaux et forêts (cadre latéral)"]
["0667","Ingénieur des travaux agricoles"]
["0668","Ingénieur des travaux agricoles (cadre latéral)"]
["0669","Ingénieur d'agronomie"]
["0670","Attaché administratif de l'Office national des forêts (ONF)"]
["0671","Vétérinaire des Haras nationaux"]
["0672","Vétérinaire inspecteur"]
["0673","Directeur de recherche des laboratoires de recherches vétérinaires"]
["0674","Administrateur financier de la Caisse nationale du Crédit agricole"]
["0675","Maître de recherche des laboratoires de recherches vétérinaires"]
["0676","Attaché de la Caisse nationale du Crédit agricole"]
["0677","Chargé de recherche des laboratoires de recherches vétérinaires"]
["0678","Attaché de recherche des laboratoires de recherches vétérinaires"]
["0679","Attaché administratif des services déconcentrés du ministère de l'Agriculture"]
["0680","Inspecteur général adjoint de l'Office national interprofessionnel des céréales (ONIC)"]
["0681","Inspecteur de la répression des fraudes"]
["0682","Inspecteur de l'Office national interprofessionnel des céréales (ONIC)"]
["0683","Personnel scientifique laboratoires services répression des fraudes et contrôle qualité"]
["0684","Attaché d'administration de l'Office national interprofessionnel des céréales (ONIC)"]
["0685","Officier ingénieur des eaux et forêts France d'Outre-mer (corps autonome)"]
["0686","Ingénieur du génie rural (France d'Outre-mer)"]
["0687","Vétérinaire inspecteur élevage et industries animales France d'Outre-mer (corps autonome)"]
["0688","Ingénieur d'agriculture de la France et d'Outre-mer (corps autonome)"]
["0689","Intendant des établissements d'enseignement supérieur de l'agriculture"]
["0690","Attaché d'administration et d'intendance de l'agriculture"]
["0691","Conseiller principal d'éducation des établissements d'enseignement agricole"]
["0692","Conseiller d'éducation des établissements d'enseignement agricole"]
["0693","Directeur de recherche de l'Institut national de la recherche agronomique (INRA)"]
["0694","Chargé de recherche de l'Institut national de la recherche agronomique (INRA)"]
["0695","Ingénieur de recherche de l'Institut national de la recherche agronomique (INRA)"]
["0696","Ingénieur d'études de l'Institut national de la recherche agronomique (INRA)"]
["0697","Assistant ingénieur de l'Institut national de la recherche agronomique (INRA)"]
["0698","Maître assistant Institut national agronomique (INA - INA) écoles nationales supérieures agronomiques"]
["0699","Chargé d'administration de la recherche de l'Institut national de la recherche agronomique (INRA)"]
["0700","Attaché d'administration de la recherche de l'Institut national de la recherche agronomique (INRA)"]
["0701","Professeur des écoles nationales d'ingénieurs des travaux agricoles (en voie d'extinction)"]
["0702","Chef de travaux des écoles nationales d'ingénieurs des travaux agricoles (en voie d'extinction)"]
["0703","Maître assistant des écoles nationales vétérinaires"]
["0704","Professeur de l'École nationale supérieure des industries agricoles et alimentaires (ENSIA)"]
["0705","Maître de conférences de l'École nationale supérieure des industries agricoles et alimentaires (ENSIA)"]
["0706","Maître assistant de l'École nationale supérieure des industries agricoles et alimentaires (ENSIA)"]
["0707","Professeur de l'École nationale supérieure féminine d'agronomie (ENSFA) de l'École nationale de formation agronomique (ENFA - en voie d'extinction)"]
["0708","Chef de travaux de l'École nationale supérieure féminine d'agronomie (ENSFA) de l'École nationale de formation agronomique (ENFA) (en extinction)"]
["0709","Professeur certifié de l'enseignement agricole"]
["0711","Professeur technique adjoint de lycées agricoles"]
["0712","Professeur de collèges agricoles (en extinction)"]
["0713","Professeur technique adjoint de collèges agricoles (en extinction)"]
["0714","Professeur de collège de l'enseignement technique agricole"]
["0715","Professeur technique chef de travaux de collège d'enseignement technique agricole"]
["0716","Professeur d'éducation culturelle établissements d'enseignement de l'agriculture"]
["0717","Secrétaire administratif des services déconcentrés de l'agriculture"]
["0718","Chef de section administrative des services déconcentrés de l'agriculture (en voie d'extinction)"]
["0719","Technicien du génie rural"]
["0720","Technicien du génie rural (cadre latéral)"]
["0721","Technicien des services vétérinaires"]
["0722","Technicien d'agriculture"]
["0723","Technicien forestier de l'Office national des forêts (ONF)"]
["0724","Technicien des travaux forestiers de l'État"]
["0725","Secrétaire administratif de l'Office national des forêts (ONF)"]
["0726","Préposé sanitaire des services vétérinaires"]
["0727","Préposé sanitaire des services vétérinaires pour l'administration de Saint-Pierre et Miquelon"]
["0728","Contrôleur de la Caisse nationale du Crédit agricole"]
["0729","Contrôleur des lois sociales en agriculture"]
["0730","Chef de section administrative et rédacteurs de l'Office national interprofessionnel des céréales (ONIC)"]
["0731","Contrôleur de la répression des fraudes"]
["0732","Secrétaire d'administration et d'intendance de l'agriculture"]
["0733","Répétiteur des établissements d'enseignement du ministère de l'Agriculture"]
["0734","Technicien de la recherche de l'Institut national de la recherche agronomique (INRA)"]
["0735","Secrétaire d'administration de la recherche de l'Institut national de la recherche agronomique (INRA)"]
["0736","Technicien de laboratoire des services du ministère de l'Agriculture et des établissements d'enseignement agricole"]
["0737","Chef de district forestier de l'Office national des forêts (ONF)"]
["0738","Agent technique forestier de l'Office national des forêts (ONF)"]
["0739","Agent technique de 2ème catégorie des services déconcentrés du ministère de l'Agriculture"]
["0740","Agent des Haras nationaux"]
["0741","Chef d'atelier des établissements d'enseignement supérieur agricole et vétérinaire"]
["0742","Agent de service des établissements d'enseignement supérieur agricole et vétérinaire"]
["0743","Adjoint technique de la recherche de l'Institut national de la recherche agronomique (INRA)"]
["0744","Agent technique de la recherche de l'Institut national de la recherche agronomique (INRA)"]
["0745","Adjoint administratif de la recherche de l'Institut national de la recherche agronomique (INRA)"]
["0746","Agent d'administration de la recherche de l'Institut national de la recherche agronomique (INRA)"]
["0747","Agent de maîtrise des services déconcentrés de l'agriculture (en extinction)"]
["0748","Aide technique de laboratoire des services du ministère de l'Agriculture et des établissements d'enseignement agricole"]
["0749","Aide de laboratoires des services du ministère de l'Agriculture et des établissements d'enseignement agricole"]
["0750","Adjoint technique des services déconcentrés de l'agriculture"]
["0751","Agent technique de 1ère catégorie des services déconcentrés de l'agriculture"]
["0752","Surveillant des établissements d'enseignement technique agricole"]
["0753","Aide technique de la recherche de l'Institut national de la recherche agronomique (INRA)"]
["0754","Agent de bureau de la recherche de l'Institut national de la recherche agronomique (INRA)"]
["0755","Agent de laboratoire des services du ministère de l'Agriculture et des établissements d'enseignement dépendants"]
["0774","Administrateur civil du Conseil économique, social et environnemental (CESE)"]
["0775","Attaché d'administration centrale du Conseil économique, social et environnemental (CESE)"]
["0788","Chargé de mission à l'administration centrale du ministère de l'Économie, des finances et du budget"]
["0789","Architecte à l'administration centrale du ministère de l'Économie et des finances"]
["0790","Ingénieur mécanicien électricien à l'administration centrale du ministère de l'Économie et des finances"]
["0791","Ingénieur adjoint à l'administration centrale du ministère de l'Économie et des finances"]
["0792","Sous-ingénieur à l'administration centrale du ministère de l'Économie et des finances"]
["0793","Agent mécanicien électricien administration centrale du ministère de l'Économie et des finances"]
["0794","Conservateur du matériel du ministère de l'Économie et des finances (en voie d'extinction)"]
["0795","Dessinateur projeteur du ministère de l'Économie et des finances"]
["0796","Dessinateur du ministère de l'Économie et des finances"]
["0797","Inspecteur général des finances"]
["0798","Contrôleur d'État"]
["0799","Contrôleur financier"]
["0800","Conseiller financier des services financiers à l'étranger"]
["0801","Contrôleur divisionnaire du Trésor"]
["0802","Contrôleur du Trésor"]
["0803","Contrôleur des assurances"]
["0804","Inspecteur général de l'Institut national de la statistique et des études économiques (INSEE)"]
["0805","Administrateur de l'Institut national de la statistique et des études économiques (INSEE)"]
["0806","Attaché de l'Institut national de la statistique et des études économiques (INSEE)"]
["0807","Contrôleur et contrôleur divisionnaire de l'Institut national de la statistique et des études économiques (INSEE)"]
["0808","Personnel de l'expansion économique à l'étranger"]
["0809","Magistrat de la Cour des Comptes"]
["0810","Fonctionnaire des secrétariats première présidence du parquet de la Cour des Comptes (en voie d'extinction)"]
["0811","Greffier chef de service et greffiers de Chambre de la Cour des Comptes"]
["0812","Magasinier des archives de la Cour des Comptes"]
["0813","Agent huissier du Trésor"]
["0814","Agent de recouvrement du Trésor"]
["0815","Agent de recouvrement du Trésor de la Polynésie française"]
["0816","Contrôleur du Trésor de la Polynésie française"]
["0817","Contrôleur du trésor (corps latéral)"]
["0818","Contrôleur divisionnaire du trésor (corps latéral)"]
["0819","Contrôleur du Trésor pour l'administration de Saint-Pierre et Miquelon"]
["0820","Agent de recouvrement du trésor (corps latéral)"]
["0821","Personnel de catégorie A des services déconcentrés du trésor (corps latéral)"]
["0824","Agent technique de bureau des services extérieurs du trésor (corps latéral)"]
["0825","Personnel de catégorie A des services du Trésor (hors métropole)"]
["0826","Personnel de catégorie A des services extérieurs de la Direction générale des impôts"]
["0827","Chef de contrôle des hypothèques (en voie d'extinction)"]
["0828","Contrôleur divisionnaire des impôts"]
["0829","Contrôleur des impôts"]
["0830","Corps latéral des contrôleurs des services déconcentrés de la Direction générale des impôts"]
["0831","Contrôleur des impôts de la Polynésie française"]
["0832","Agent de constatation ou d'assiette des impôts"]
["0833","Agent de constatation ou d'assiette des impôts de la Polynésie française"]
["0834","Manutentionnaire des entrepôts de la Direction générale des impôts"]
["0835","Chef de travaux du cadastre (en voie d'extinction)"]
["0836","Géomètre du cadastre"]
["0837","Géomètre du cadastre de la Polynésie française"]
["0839","Personnel de la catégorie A des services déconcentrés de la Direction générale des douanes et droits indirects"]
["0840","Personnel de catégorie A des services déconcentrés de la Direction générale des douanes et droits indirects (corps latéral)"]
["0841","Contrôleur des douanes"]
["0842","Contrôleur des douanes de la Polynésie française"]
["0843","Contrôleur des douanes pour l'administration de Saint-Pierre et Miquelon"]
["0844","Contrôleur des douanes (corps latéral)"]
["0845","Agent de constatation des douanes"]
["0846","Agent de constatation des douanes (corps latéral)"]
["0847","Agent de constatation des douanes de la Polynésie française"]
["0848","Agent de constatation des douanes pour l'administration de Saint-Pierre et Miquelon"]
["0849","Préposé des douanes"]
["0850","Préposé des douanes de la Polynésie française"]
["0851","Préposé des douanes pour l'administration de Saint-Pierre et Miquelon"]
["0852","Ingénieur des laboratoires du ministère de l'Économie et des finances"]
["0853","Personnel administratif du service des laboratoires"]
["0854","Technicien de laboratoire de l'Économie et des finances"]
["0855","Aide technique de laboratoire de l'Économie et des finances"]
["0856","Aide de laboratoire de l'Économie et des finances"]
["0858","Contrôleur principal des installations téléphoniques administration centrale du ministère de l'Économie et finances"]
["0860","Fonctionnaire de la catégorie A des services déconcentrés de la concurrence, consommation et répression des fraudes"]
["0861","Allocataire d'enseignement et de recherche des établissements d'enseignement supérieur"]
["0862","Ingénieur de recherche du ministère de l'Éducation nationale"]
["0863","Adjoint de contrôle de la concurrence, de la consommation, de la consommation et de la répression des fraudes"]
["0864","Instituteur spécialisé (ancien régime)"]
["0865","Chef de section du service des alcools"]
["0866","Contrôleur du service des alcools"]
["0867","Agent de constatation du service des alcools"]
["0868","Adjoint technique de l'Imprimerie nationale"]
["0869","Personnel de la correction de l'Imprimerie nationale"]
["0870","Personnel de maîtrise de l'Imprimerie nationale"]
["0872","Dessinateur projeteur à l'administration centrale de l'agriculture"]
["0873","Dessinateur à l'administration centrale de l'agriculture"]
["0874","Attaché administratif de l'Institut international d'administration publique (IIAP)"]
["0875","Secrétaire et secrétaire adjoint de l'Institut international d'administration publique (IIAP)"]
["0885","Personnel du laboratoire central des ponts et chaussées"]
["0889","Chef d'atelier imprimeur de l'Institut géographique national (IGN)"]
["0890","Imprimeur géographe de l'Institut géographique national (IGN)"]
["0891","Adjoint technique des travaux publics (corps autonome)"]
["0892","Technicien des travaux publics de l'État (corps latéral)"]
["0893","Agent des travaux publics de l'État (corps latéral)"]
["0894","Conducteur des travaux publics de l'État (corps latéral)"]
["0895","Ingénieur des travaux publics (corps autonome)"]
["0896","Ingénieur des travaux publics de l'État cadre latéral service des ponts et chaussées"]
["0897","Officier de port adjoint (corps latéral)"]
["0898","Officier de port (corps latéral)"]
["0899","Personnel de surveillance du Conservatoire national des arts et métiers (CNAM)"]
["0900","Dessinateur de l'Institut national de la santé et de la recherche médicale (INSERM)"]
["0902","Conservateur d'archives de la Défense"]
["0903","Attaché d'administration des services déconcentrés de la Défense"]
["0904","Inspecteur des services et inspecteurs d'études des transmissions de la Défense"]
["0905","Chef d'études du ministère de la Défense"]
["0906","Ingénieur des travaux maritimes"]
["0907","Délégué du ministère de la Défense"]
["0908","Expert analyseur du ministère de la Défense"]
["0909","Ingénieur technicien d'études et de fabrications de la Défense"]
["0910","Chiffreur en chef du ministère de la Défense"]
["0911","Inspecteur du ministère de la Défense"]
["0912","Conservateur de bibliothèque de la Marine"]
["0913","Professeur civil des écoles, Saint-Cyr, air, navale"]
["0914","Inspecteur principal du groupement des contrôles radioélectriques de la Défense"]
["0915","Inspecteur du groupement des contrôles radioélectriques de la Défense"]
["0916","Secrétaire administratif des services déconcentrés de la Défense"]
["0917","Secrétaire administratif de la Caisse nationale militaire de sécurité sociale (CNMSS)"]
["0918","Technicien d'études et de fabrications, armements terrestres, poudres de la Défense"]
["0919","Technicien d'études et de fabrications des constructions navales de la Défense"]
["0920","Chiffreur de la Direction générale de la sécurité extérieure"]
["0921","Technicien d'études et de fabrications des constructions aéronautiques de la Défense"]
["0922","Secrétaire de documentation de la Direction générale de la sécurité extérieure"]
["0923","Technicien d'études et de fabrications des services de l'Armée de terre, services communs de la Défense"]
["0924","Technicien d'études et de fabrications des services de la Marine de la Défense"]
["0925","Secrétaire spécialiste de la Direction générale de la sécurité extérieure"]
["0926","Contrôleur des transmissions de la Direction générale de la sécurité extérieure"]
["0927","Technicien de la Direction générale de la sécurité extérieure"]
["0928","Expert de l'habillement (en extinction)"]
["0929","Infirmier civil des hôpitaux militaires"]
["0930","Contrôleur des transmissions de la Défense"]
["0931","Secrétaire sténodactylographe du ministère de la Défense"]
["0932","Sténodactylographe du ministère de la Défense"]
["0933","Adjoint spécial du ministère de la Défense"]
["0934","Agent de maîtrise spécialisé du service des études et de fabrications d'armement"]
["0935","Personnel de surveillance de la Direction générale de la sécurité extérieure"]
["0936","Agent de maîtrise spécialisé des services techniques et industriels de la Défense"]
["0937","Technicien d'exécution du service des fabrications d'armement"]
["0938","Aide de laboratoire du ministère de la Défense"]
["0939","Technicien d'exécution du service des poudres"]
["0940","Technicien d'exécution des transmissions, intendance, génie, matériel, santé"]
["0941","Agent des transmissions de la Direction générale de la sécurité extérieure"]
["0942","Agent technique du ministère de la Défense"]
["0943","Agent technique de bureau du ministère de la Défense"]
["0944","Téléphoniste du ministère de la Défense"]
["0945","Agent de maîtrise et ouvriers du ministère de la Défense"]
["0946","Conducteur d'automobile de la Direction générale de la sécurité extérieure"]
["0947","Agent technique de l'électronique de la Défense"]
["0948","Agent des transmissions et de l'électronique de la Défense"]
["0949","Agent civil de gardiennage des ports et établissements de la Marine nationale"]
["0950","Agent de service de la Direction générale de la sécurité extérieure"]
["0969","Assistant de l'Institut national agronomique (INA - INA) écoles nationales supérieures agronomiques (en voie d'extinction)"]
["0970","Assistant de l'École nationale supérieure d'horticulture (ENSH)"]
["0971","Assistant de l'École nationale supérieure des industries agricoles et alimentaires (ENSIA)"]
["0972","Maître de conférences de l'École nationale supérieure d'horticulture (ENSH)"]
["0973","Maître assistant de l'École nationale supérieure d'horticulture (ENSH)"]
["0974","Maître de conférences Institut national agronomique (INA - INA)"]
["0975","Secrétaire de l'Institut national de la recherche agronomique (INRA)"]
["0977","Agent technique du ministère de la construction (corps provisoire)"]
["0978","Chauffeur mécanicien d'usine à gaz"]
["0979","Géomètre de l'Institut géographique national (IGN - corps latéral)"]
["0980","Bibliothécaire en chef agrégé"]
["0981","Chef mécanicien de laboratoire de l'École centrale des arts et manufactures"]
["0982","Chef électricien de laboratoire de l'École centrale des arts et manufactures"]
["0983","Chef de travaux pratiques de l'École nationale supérieure des arts et métiers (ENSAM)"]
["0984","Chimiste du Conservatoire national des arts et métiers (CNAM)"]
["0985","Conservateur adjoint du Conservatoire national des arts et métiers (CNAM)"]
["0986","Préparateur licencié de l'École pratique des hautes études (EPHE)"]
["0987","Préparateur non licencié de l'École pratique des hautes études (EPHE) et de l'École des hautes études en sciences sociales (EHESS)"]
["0988","Corps provisoire des attachés de la Marine marchande (en extinction)"]
["0989","Sous-directeur de l'École normale supérieure d'enseignement technique"]
["0997","Secrétaire général des services départementaux de l'Office national des anciens combattants et victimes de guerre (ONACVG)"]
["0998","Secrétaire administratif des services départementaux de l'Office national des anciens combattants et victimes de guerre (ONACVG)"]
["1000","Contrôleur des travaux publics de l'État"]
["1001","Chef de pratique des écoles régionales d'agriculture (en voie d'extinction)"]
["1002","Inspecteur général de l'agriculture"]
["1003","Professeur à l'Institut national agronomique (INA - INA)s, écoles nationales supérieures agronomiques, écoles nationales vétérinaires"]
["1004","Contrôleur des services déconcentrés direction générale concurrence, consommation et répression des fraudes"]
["1005","Directeur des stages de l'École normale supérieure de l'enseignement technique (ENSET)"]
["1009","Professeur de lycée professionnel agricole"]
["1010","Directeur d'études de l'École des hautes études en sciences sociales (EHESS)"]
["1011","Maître de conférences de l'École des hautes études en sciences sociales (EHESS)"]
["1012","Directeur d'études de l'École pratique des hautes études (EPHE), de l'École nationale des chartes et école française extrême orient"]
["1013","Maître de conférences de l'École nationale des chartes, de l'École pratique des hautes études (EPHE) et de l'EFEO"]
["1014","Conservateur du patrimoine"]
["1015","Conservateur général du patrimoine"]
["1016","Personnel infirmier de l'Institution nationale des invalides (INI)"]
["1017","Infirmier des services extérieurs de l'Administration pénitentiaire et de la Protection judiciaire de la jeunesse (PJJ)"]
["1018","Agent administratif de l'administration centrale"]
["1019","Agent administratif des services déconcentrés"]
["1020","Adjoint administratif des services déconcentrés"]
["1021","Agent administratif de l'industrie"]
["1022","Adjoint administratif de l'administration centrale et des services déconcentrés"]
["1023","Agent des services techniques"]
["1024","Agent des services techniques des services déconcentrés"]
["1025","Agent des services techniques de chancellerie"]
["1026","Agent des services techniques de la Police nationale"]
["1027","Ouvrier professionnel de l'administration centrale"]
["1028","Maître-ouvrier d'administration centrale"]
["1029","Ouvrier professionnel des services déconcentrés"]
["1030","Maître-ouvrier des services déconcentrés"]
["1031","Agent administratif de chancellerie"]
["1032","Professeur d'éducation physique et sportive"]
["1033","Agent des services techniques de l'industrie et de l'aménagement du territoire"]
["1034","Inspecteur général des affaires sociales"]
["1035","Professeur des écoles"]
["1036","Inspecteur de l'Éducation nationale"]
["1037","Inspecteur pédagogique régional - inspecteur d'académie"]
["1038","Professeur des écoles de reconversion professionnelle de la Défense (anciens combattants)"]
["1039","Attaché de la grande chancellerie de la Légion d'honneur"]
["1040","Adjoint administratif d'administration centrale"]
["1041","Adjoint administratif de chancellerie"]
["1042","Agent de service de l'industrie et de l'aménagement du territoire"]
["1043","Agent de bureau de l'industrie et de l'aménagement du territoire"]
["1044","Technicien supérieur d'études et de fabrications de la Défense"]
["1045","Ingénieur d'études et de fabrications du ministère de la Défense"]
["1046","Secrétaire administratif des affaires sanitaires et sociales"]
["1048","Attaché d'administration scolaire et universitaire de l'enseignement agricole"]
["1049","Secrétaire d'administration scolaire et universitaire de l'enseignement agricole"]
["1055","Psychologue sur contrat des services déconcentrés de l'éducation surveillée"]
["1061","Ouvrier d'entretien et d'accueil des établissements d'enseignement du ministère de l'Éducation nationale"]
["1062","Ouvrier professionnel des établissements d'enseignement du ministère de l'Éducation nationale"]
["1063","Maître-ouvrier des établissements d'enseignement du ministère de l'Éducation nationale"]
["1064","Technicien de l'Éducation nationale"]
["1065","Personnel d'exploitation des travaux publics de l'État"]
["1066","Personnel d'exploitation des travaux publics de l'État"]
["1067","Ingénieur du contrôle de la navigation aérienne"]
["1068","Ingénieur électronicien des systèmes de la sécurité aérienne"]
["1069","Ingénieur du génie sanitaire"]
["1070","Ingénieur d'études sanitaires"]
["1071","Chef de magasin des entrepôts de tabac"]
["1072","Directeur de centre d'information et d'orientation et conseillers d'orientation-psychologues"]
["1073","Assistant technique de la Caisse des dépôts et consignations (CDC)"]
["1074","Agent des services techniques de l'industrie"]
["1075","Personnel de direction de 1ère catégorie des établissements publics d'enseignement technique du ministère de l'Agriculture"]
["1076","Personnel de direction de 2ème catégorie des établissements publics d'enseignement technique du ministère de l'Agriculture"]
["1077","Ouvrier professionnel des services techniques du ministère de l'Équipement"]
["1078","Conseiller technique de service social des administrations de l'État"]
["1079","Assistant de service social des administrations de l'État"]
["1080","Personnel navigant de la Direction générale des douanes et droits indirects"]
["1081","Médecin inspecteur de santé publique"]
["1085","Ingénieur de recherche du ministère de la Culture, de la Communication et des grands travaux"]
["1086","Ingénieur d'études du ministère de la Culture, de la communication et des grands travaux"]
["1087","Technicien de recherche du ministère de la Culture, de la communication et des grands travaux"]
["1091","Maître-ouvrier des parcs et jardins de la Culture"]
["1092","Ouvrier professionnel des parcs et jardins de la Culture"]
["1093","Médecin de l'Éducation nationale"]
["1094","Conservateur général des bibliothèques"]
["1095","Conservateur des bibliothèques"]
["1096","Bibliothécaire"]
["1097","Bibliothécaire adjoint spécialisés"]
["1098","Conservateur des musées d'histoire naturelle et des musées d'établissements d'enseignement supérieur"]
["1099",""]
["1100",""]
["1102","Adjoint technique de 2ème classe de recherche et de formation (en voie d'extinction)"]
["1103","Agent des services techniques de recherche et de formation"]
["1104","Agent technique de 2ème niveau de recherche et de formation (en voie d'extinction)"]
["1105","Technicien d'art du ministère de la Culture"]
["1106","Chef de travaux d'art du ministère de la Culture"]
["1107","Greffier en chef des services judiciaires"]
["1108","Greffier des services judiciaires"]
["1109","Ingénieur (ingénieur, cadre technico-commercial et technicien ICT)"]
["1110","Cadre (ingénieur, cadre technico-commercial et technicien ICT)"]
["1111","Technicien (ingénieur, cadre technico-commercial et technicien ICT)"]
["1112","Ingénieur et chercheur contrat \"conventions collectives\""]
["1113","Technicien contrat \"conventions collectives\""]
["1114","Ingénieur et cadre SNC"]
["1115","Technicien salaires normaux et courants"]
["1116","Technicien paramédical de l'Institution nationale des invalides (INI)"]
["1117","Surveillant-chef des services médicaux de l'Institution nationale des invalides (INI)"]
["1118","Aide-soignant de l'Institution nationale des invalides (INI)"]
["1119","Agent des services hospitaliers qualifiés de l'Institution nationale des invalides (INI)"]
["1120","Agent des services hospitaliers de l'Institution nationale des invalides (INI)"]
["1121","Chef de service éducatif de la Protection judiciaire de la jeunesse (PJJ)"]
["1122","Éducateur de la Protection judiciaire de la jeunesse (PJJ)"]
["1123","Aide-soignant de l'Office national des anciens combattants et victimes de guerre (ONACVG)"]
["1127","Ingénieur des laboratoires de la police technique et scientifique"]
["1128","Technicien des laboratoires de la police technique et scientifique"]
["1129","Professeur des écoles d'architecture"]
["1130","Maître-assistant des écoles d'architecture"]
["1131","Aide technique des laboratoires de la police technique et scientifique"]
["1132","Assistant ingénieur de la mission de la recherche de la Culture et de la communication"]
["1133","Surveillant-chef des services médicaux de l'Office national des anciens combattants et victimes de guerre (ONACVG)"]
["1134","Infirmier de l'Office national des anciens combattants et victimes de guerre (ONACVG)"]
["1135","Adjoint technique de 2ème classe de la recherche du Centre national de la recherche scientifique (CNRS - en voie d'extinction)"]
["1136","Agent technique de 2ème niveau de la recherche du Centre national de la recherche scientifique (CNRS - en voie d'extinction)"]
["1137","Agent des services techniques de la recherche du Centre national de la recherche scientifique (CNRS)"]
["1138","Adjoint technique de 2ème classe de la recherche de l'Institut national de la santé et de la recherche médicale (INSERM - en voie d'extinction)"]
["1139","Agent technique de 2ème niveau de la recherche de l'Institut national de la santé et de la recherche médicale (INSERM - en voie d'extinction)"]
["1140","Agent des services techniques de la recherche de l'Institut national de la santé et de la recherche médicale (INSERM)"]
["1141","Adjoint technique de 2ème classe de la recherche de l'Institut national de la recherche agronomique (INRA - en voie d'extinction)"]
["1142","Agent technique de 2ème niveau de la recherche de l'Institut national de la recherche agronomique (INRA - en voie d'extinction)"]
["1143","Agent des services techniques de la recherche de l'Institut national de la recherche agronomique (INRA)"]
["1144","Adjoint technique de 2ème classe de la recherche de l'Institut de recherche pour le développement (IRD, ex-ORSTOM - en voie d'extinction)"]
["1145","Agent technique de 2ème niveau de la recherche de l'Institut de recherche pour le développement (IRD, ex-ORSTOM - en voie d'extinction)"]
["1146","Agent des services techniques de la recherche de l'Institut de recherche pour le développement (IRD, ex-ORSTOM)"]
["1147","Adjoint technique de 2ème classe de la recherche de l'Institut national de recherche en informatique et en automatique (INRIA - en voie d'extinction)"]
["1148","Agent technique de 2ème niveau de la recherche de l'Institut national de recherche en informatique et en automatique (INRIA - en voie d'extinction)"]
["1149","Agent des services techniques de la recherche de l'Institut national de recherche en informatique et en automatique (INRIA)"]
["1150","Adjoint technique de 2ème classe de la recherche de l'Institut national de recherche sur les transports et leur sécurité (INRETS - en voie d'extinction)"]
["1151","Agent technique de 2ème niveau de la recherche de l'Institut national de recherche sur les transports et leur sécurité (INRETS - en voie d'extinction)"]
["1152","Agent des services techniques de la recherche de l'Institut national de recherche sur les transports et leur sécurité (INRETS)"]
["1153","Directeur de recherche de l'Institut national de recherche en sciences et technologies pour l'environnement et l'agriculture (IRSTEA, ex-CEMAGREF)"]
["1154","Chargé de recherche de l'Institut national de recherche en sciences et technologies pour l'environnement et l'agriculture (IRSTEA, ex-CEMAGREF)"]
["1155","Ingénieur de recherche de l'Institut national de recherche en sciences et technologies pour l'environnement et l'agriculture (IRSTEA, ex-CEMAGREF)"]
["1156","Ingénieur d'études de l'Institut national de recherche en sciences et technologies pour l'environnement et l'agriculture (IRSTEA, ex-CEMAGREF)"]
["1157","Assistant ingénieur de l'Institut national de recherche en sciences et technologies pour l'environnement et l'agriculture (IRSTEA, ex-CEMAGREF)"]
["1158","Technicien de la recherche de l'Institut national de recherche en sciences et technologies pour l'environnement et l'agriculture (IRSTEA, ex-CEMAGREF)"]
["1159","Adjoint technique de la recherche de l'Institut national de recherche en sciences et technologies pour l'environnement et l'agriculture (IRSTEA, ex-CEMAGREF)"]
["1160","Agent technique de la recherche de l'Institut national de recherche en sciences et technologies pour l'environnement et l'agriculture (IRSTEA, ex-CEMAGREF)"]
["1161","Chargé d'administration de la recherche de l'Institut national de recherche en sciences et technologies pour l'environnement et l'agriculture (IRSTEA, ex-CEMAGREF)"]
["1162","Attaché d'administration de la recherche de l'Institut national de recherche en sciences et technologies pour l'environnement et l'agriculture (IRSTEA, ex-CEMAGREF)"]
["1163","Secrétaire d'administration de la recherche de l'Institut national de recherche en sciences et technologies pour l'environnement et l'agriculture (IRSTEA, ex-CEMAGREF)"]
["1164","Adjoint administratif de la recherche de l'Institut national de recherche en sciences et technologies pour l'environnement et l'agriculture (IRSTEA, ex-CEMAGREF)"]
["1165","Agent d'administration de la recherche de l'Institut national de recherche en sciences et technologies pour l'environnement et l'agriculture (IRSTEA, ex-CEMAGREF)"]
["1166","Professeur du Muséum national d'histoire naturelle (MNHN)"]
["1167","Maître de conférences du Muséum national d'histoire naturelle (MNHN)"]
["1168","Directeur de la Protection judiciaire de la jeunesse (PJJ)"]
["1169","Contremaître des services techniques du matériel du ministère de l'Intérieur et de la sécurité publique (en voie d'extinction)"]
["1170","Pharmacien inspecteur de santé publique"]
["1171","Maître de conférences de l'enseignement supérieur agricole"]
["1172","Professeur de l'enseignement supérieur agricole"]
["1173","Agent technique de laboratoire des établissements d'enseignement"]
["1174","Aide de laboratoire des établissements d'enseignement"]
["1175","Aide technique de laboratoire des établissements d'enseignement"]
["1176","Ouvrier d'entretien et d'accueil des établissements d'enseignement agricole publics"]
["1178","Technicien de laboratoire des établissements d'enseignement du ministère de l'Éducation nationale"]
["1179","Agent technique des services déconcentrés du ministère de l'Agriculture et du développement rural"]
["1180","Adjoint technique des services déconcentrés du ministère de l'Agriculture et du développement rural"]
["1181","Agent d'administration de l'Aviation civile"]
["1182","Adjoint d'administration de l'Aviation civile"]
["1184","Inspecteur des Affaires maritimes"]
["1185","Professeur enseignements général de l'Institut national des jeunes aveugles (INJA)"]
["1186","Surveillant-chef des services médicaux des services externes de l'Administration pénitentiaire et de la Protection judiciaire de la jeunesse (PJJ)"]
["1187","Professeur d'enseignement général des Instituts nationaux de jeunes sourds (INJS)"]
["1188","Professeur de l'enseignement technique Instituts nationaux de jeunes sourds (INJS) et Institut national des jeunes aveugles (INJA)"]
["1189","Adjoint administratif de la Direction générale de la sécurité extérieure"]
["1190","Agent administratif de la Direction générale de la sécurité extérieure"]
["1191","Ouvrier professionnel de la Direction générale de la sécurité extérieure"]
["1192","Agent des services techniques de la Direction générale de la sécurité extérieure"]
["1193","Délégué de la Direction générale de la sécurité extérieure"]
["1194","Adjoint spécial de la Direction générale de la sécurité extérieure"]
["1195","Assistant d'administration de l'Aviation civile"]
["1196","Inspecteur de la création et des enseignements artistiques"]
["1197","Maître-ouvrier de la Direction générale de la sécurité extérieure"]
["1198","Technicien supérieur des études et de l'exploitation de l'Aviation civile"]
["1199","Agent sanitaire"]
["1200","Adjoint sanitaire"]
["1201","Technicien sanitaire"]
["1202","Ouvrier d'entretien et d'accueil des maisons d'éducation de la Légion d'honneur"]
["1203","Ouvrier professionnel des maisons d'éducation de la Légion d'honneur"]
["1204","Maître-ouvrier des maisons d'éducation de la Légion d'honneur"]
["1205","Magistrat de l'ordre judiciaire"]
["1206","Professeur technique de l'enseignement maritime"]
["1207","Technicien des services culturels et des Bâtiments de France"]
["1208","Gradé et surveillant de l'Administration pénitentiaire"]
["1209","Chef de service pénitentiaire de l'Administration pénitentiaire"]
["1210","Inspecteur de la jeunesse, des sports et des loisirs"]
["1211","Inspecteur principal de la jeunesse, des sports et des loisirs"]
["1229","Officier du corps technique et administratif de l'armement"]
["1232","Ingénieur du service des essences des Armées"]
["1253","Conseiller d'insertion et de probation de l'Administration pénitentiaire"]
["1254","Chef des services d'insertion et de probation de l'Administration pénitentiaire"]
["1278","Éducateur spécialisé des Instituts nationaux de jeunes sourds (INJS) et de l'Institut national des jeunes aveugles (INJA)"]
["1279","Conseiller technique d'éducation spécialisée des instituts national de jeunes sourds et Institut national des jeunes aveugles (INJA)"]
["1284","Ouvrier professionnel des établissements d'enseignement agricole publics"]
["1285","Maître-ouvrier des établissements d'enseignement agricole publics"]
["1286","Infirmier de l'État, corps interministériel"]
["1287","Infirmier du ministère de la Défense"]
["1288","Infirmier du ministère de l'Éducation nationale"]
["1289","Secrétaire administratif d'administration centrale"]
["1290","Secrétaire administratif relevant des ministres charges des affaires sociales"]
["1291","Secrétaire administratif des services déconcentrés du ministère de l'Agriculture"]
["1292","Contrôleur de la Caisse nationale du Crédit agricole"]
["1293","Secrétaire administratif de l'Office national des forêts (ONF)"]
["1294","Secrétaire administratif des services déconcentrés du ministère des Anciens combattants et victimes de guerre"]
["1295","Secrétaire administratif des services départementaux Office national des anciens combattants et victimes de guerre (ONACVG)"]
["1296","Secrétaire administratif du ministère de la Culture et de la Communication"]
["1297","Secrétaire administratif des services déconcentrés du ministère de la Défense"]
["1298","Secrétaire administratif de la Caisse nationale militaire de sécurité sociale (CNMSS)"]
["1299","Secrétaire technique de la Caisse des dépôts et consignations (CDC)"]
["1300","Secrétaire administratif de l'Équipement"]
["1301","Secrétaire administratif de police"]
["1302","Secrétaire administratif de l'intérieur et de l'Outre-mer"]
["1303","Secrétaire administratif de la Protection judiciaire de la jeunesse (PJJ)"]
["1304","Secrétaire administratif des services déconcentrés de l'Administration pénitentiaire"]
["1305","Secrétaire administratif du ministère de l'Industrie"]
["1306","Assistant d'administration de l'Aviation civile"]
["1307","Secrétaire d'administration scolaire et universitaire du ministère de l'Éducation nationale"]
["1308","Secrétaire d'administration scolaire et universitaire du ministère de l'Agriculture"]
["1309","Secrétaire de chancellerie"]
["1310","Chargé de recherche du laboratoire central des ponts et chaussées de l'Équipement"]
["1311","Directeur de recherche du laboratoire central des ponts et chaussées de l'Équipement"]
["1312","Secrétaire administratif du ministère de l'Industrie, des postes et télécommunications (PTT) et du commerce extérieur"]
["1313","Technicien supérieur de la météorologie"]
["1314","Bibliothécaire adjoint"]
["1315","Technicien supérieur de la météorologie en Polynésie française"]
["1316","Contrôleur du Trésor public"]
["1317","Contrôleur du trésor (corps latéral) public"]
["1318","Contrôleur de la concurrence, de la consommation et de la répression des fraudes"]
["1319","Contrôleur des douanes et droits indirects"]
["1320","Contrôleur des douanes (corps latéral) et droits indirects"]
["1321","Contrôleur de l'Institut national de la statistique et des études économiques (INSEE)"]
["1322","Contrôleur des impôts"]
["1323","Contrôleur du Trésor public de la Polynésie française"]
["1324","Agent technique de laboratoire des établissements d'enseignement agricole publics"]
["1325","Aide de laboratoire des établissements d'enseignement agricole publics"]
["1326","Aide technique de laboratoire des établissements d'enseignement agricole publics"]
["1327","Technicien de laboratoire des établissements d'enseignement agricole publics"]
["1328","Agent technique de laboratoire du Centre national d'études vétérinaires et alimentaires (CNEVA) et des services de l'agriculture"]
["1329","Aide de laboratoire du centre national d'études vétérinaires et des services déconcentrés du ministère de l'Agriculture"]
["1330","Aide technique de laboratoire des services déconcentrés du ministère de l'Agriculture et de la pêche"]
["1331","Technicien de laboratoire du centre national d'études vétérinaires et des services déconcentrés de l'agriculture"]
["1332","Inspecteur de la concurrence, de la consommation et de la répression des fraudes"]
["1333","Fonctionnaire de direction et d'encadrement de la concurrence, de la consommation et de la répression des fraudes"]
["1334","Personnel de catégorie A du Trésor public"]
["1335","Personnel de catégorie A des services déconcentrés de la Direction générale des douanes et droits indirects"]
["1336","Attaché de l'Institut national de la statistique et des études économiques (INSEE)"]
["1337","Personnel de catégorie A des services déconcentrés de la Direction générale des impôts"]
["1338","Attaché d'administration de l'Aviation civile"]
["1339","Personnel de catégorie A du Trésor public (corps latéral)"]
["1340","Personnel de catégorie A des services déconcentrés de la Direction générale des douanes et droits indirects (corps latéral)"]
["1341","Agent technique des Haras nationaux"]
["1342","Adjoint technique des Haras nationaux"]
["1343","Agent des services techniques de l'Aviation civile"]
["1344","Adjoint technique d'accueil, de surveillance et de magasinage du ministère de la Culture"]
["1345","Agent technique d'accueil, de surveillance et de magasinage du ministère de la Culture"]
["1346","Surveillant des établissements d'enseignement technique agricole"]
["1347","Attaché d'administration centrale"]
["1348","Conception et de direction de la Police nationale"]
["1349","Commandement de la Police nationale"]
["1350","Encadrement et d'application de la Police nationale (ancien corps maîtrise application de la Police nationale)"]
["1351","Attaché de la Police nationale"]
["1352","Secrétaire de documentation du ministère de la Culture"]
["1353","Inspecteur des affaires sanitaires et sociales"]
["1354","Chef de pratique enseignement agricole (en voie d'extinction)"]
["1355","Ingénieur de recherche du ministère de l'Agriculture et de la pêche"]
["1356","Ingénieur d'études du ministère de l'Agriculture"]
["1357","Assistant ingénieur du ministère de l'Agriculture"]
["1358","Technicien de formation et de recherche du ministère de l'Agriculture"]
["1359","Adjoint technique de formation et de recherche du ministère de l'Agriculture"]
["1360","Agent technique de formation et de recherche du ministère de l'Agriculture"]
["1361","Agent des services techniques de formation et de recherche du ministère de l'Agriculture"]
["1362","Technicien sanitaire"]
["1363","Répétiteur des établissements d'enseignement technique agricole"]
["1364","Préposé sanitaire des services vétérinaires"]
["1365","Agent technique forestier de l'Office national des forêts (ONF)"]
["1366","Psychologue de la Protection judiciaire de la jeunesse (PJJ)"]
["1367","Technicien de laboratoires des établissements d'enseignement agricole"]
["1368","Technicien de laboratoire des écoles nationales des mines"]
["1369","Technicien de laboratoire des douanes"]
["1370","Technicien de laboratoire de la concurrence, de la consommation et de la répression des fraudes"]
["1371","Technicien de laboratoire du ministère de la Santé et de ses établissements publics"]
["1372","Technicien des laboratoires de la police technique et scientifique de la Police nationale"]
["1373","Technicien de laboratoire des établissements d'enseignement du ministère de l'Éducation nationale"]
["1374","Secrétaire administratif de l'Office national interprofessionnel des céréales (ONIC)"]
["1375","Attaché administratif des services déconcentrés du ministère de l'Agriculture"]
["1376","Aide de documentation du Secrétariat général du gouvernement (SGG)"]
["1377","Technicien des services du ministère de l'Agriculture"]
["1378","Attaché de la Caisse nationale du Crédit agricole"]
["1379","Contrôleur des alcools"]
["1380","Contrôleur des Affaires maritimes"]
["1381","Attaché administratif de l'Office national des forêts (ONF)"]
["1382","Géomètre des finances publiques"]
["1383","Géomètre du cadastre de la Polynésie française"]
["1384","Professeur technique de la Protection judiciaire de la jeunesse (PJJ)"]
["1385","Secrétaire de documentation du ministère de l'éducation nationale"]
["1386","Technicien forestier de l'Office national des forêts (ONF)"]
["1387","Attaché des services déconcentrés du ministère de la Culture"]
["1388","Contrôleur du travail"]
["1389","Inspecteur des transmissions du ministère de la Défense"]
["1390","Chargé de mission de l'Institut national de la statistique et des études économiques (INSEE)"]
["1391","Attaché commercial de la Direction des relations économiques extérieures"]
["1392","Attaché d'administration des services déconcentrés du ministère de la Défense"]
["1393","Directeurs, attachés principaux et attachés de préfecture"]
["1394","Attaché de la Protection judiciaire de la jeunesse (PJJ)"]
["1395","Huissier du Trésor public"]
["1396","Contrôleur des services techniques du ministère de l'Intérieur"]
["1397","Agent spécialiste de la Protection judiciaire de la jeunesse (PJJ)"]
["1398","Technicien des cultures marines"]
["1399","Agent technique d'éducation de la Protection judiciaire de la jeunesse (PJJ)"]
["1400","Professeur certifié de l'enseignement agricole"]
["1401","Attaché d'administration de l'Office national interprofessionnel des céréales (ONIC)"]
["1402","Inspecteur général de l'Office national interprofessionnel des céréales (ONIC)"]
["1403","Officier de protection des réfugiés et des apatrides"]
["1404","Secrétaire de protection des réfugiés et apatrides"]
["1405","Délégué au permis de conduire et à la sécurité routière"]
["1406","Inspecteur des Affaires maritimes"]
["1407","Traducteur du ministère des Affaires étrangères et du ministère de l'Économie, des finances et de l'industrie"]
["1408","Technicien du ministère de la Défense"]
["1409","Chargé d'études documentaires du Secrétariat général du gouvernement (SGG)"]
["1410","Chargé d'études documentaires des ministères chargés de l'Éducation nationale et de la Culture"]
["1411","Chargé d'études documentaires (corps interministériel) relevant du ministère de l'Équipement"]
["1412","Membre des tribunaux administratifs et des cours administratives d'appel"]
["1413","Technicien de la météorologie nationale"]
["1414","Expert vérificateur de l'appareillage des services déconcentrés du ministère de la Défense"]
["1415","Directeur de la Protection judiciaire de la jeunesse (PJJ)"]
["1416","Personnel du Service de santé des Armées (SSA)"]
["1417","Ingénieur des services culturels et du patrimoine"]
["1419","Ingénieur-économiste de la construction du ministère de l'Économie, des Finances et de l'Industrie"]
["1420","Directeur des services pénitentiaires"]
["1422","Directeurs, délégués principaux et délégués principaux des services déconcentrés du ministère de la Défense"]
["1423","Assistant de l'enseignement supérieur (en voie d'extinction)"]
["1425","Technicien paramédical civil du Service de santé des Armées (SSA)"]
["1427","Préparateur en pharmacie civils du Service de santé des Armées (SSA)"]
["1429","Garde-pêche du Conseil supérieur de la pêche"]
["1430","Aide-soignant civil du Service de santé des Armées (SSA)"]
["1431","Agent civil des services hospitaliers qualifiés du Service de santé des Armées (SSA)"]
["1437","Chef des services administratifs du Conseil d'État"]
["1438","Inspecteur général de l'administration de l'Éducation nationale et de la recherche"]
["1439","Directeur technique des services déconcentrés de l'Administration pénitentiaire"]
["1440","Technicien des services déconcentrés de l'Administration pénitentiaire"]
["1441","Adjoint technique des services déconcentrés de l'Administration pénitentiaire"]
["1442","Conseiller des Affaires étrangères (cadre général) et conseillers des Affaires étrangères (cadre d'Orient)"]
["1443","Secrétaire des Affaires étrangères (cadre général, cadre d'Orient et cadre d'administration)"]
["1444","Officier et personnel militaire de rang correspondant"]
["1445","Technicien supérieur des services du ministère de l'agriculture"]
["1446","Corps des techniciens supérieurs forestiers de l'Office national des forêts (ONF)"]
["1447","Contrôleur des systèmes d'information et de communication du ministère de l'Intérieur"]
["1448","Inspecteur du travail"]
["1452","Contrôleur des Affaires maritimes"]
["1453","Aide technique de laboratoire du ministère de l'Économie, des finances et de l'industrie"]
["1454","Aide de laboratoire du ministère de l'Économie, des finances et de l'industrie"]
["1456","Technicien de laboratoire du ministère des finances"]
["1457","Personnel scientifique de laboratoire du ministère des finances"]
["1458","Officier de port"]
["1493","Élève des écoles techniques normales de la délégation générale pour l'armement du ministère de la Défense"]
["1494","Secrétaire administratif de la Défense"]
["1495","Agent administratif du ministère de la Défense"]
["1496","Attaché d'administration centrale de la Défense"]
["1497","Conseiller technique de service social de la Défense"]
["1498","Assistant de service social de la Défense"]
["1499","Adjoint administratif de la Défense"]
["1500","Maître-ouvrier d'administration centrale de la Défense"]
["1501","Maître-ouvrier des services déconcentrés de la Défense"]
["1502","Ouvrier professionnel d'administration centrale du du ministère de la Défense"]
["1503","Ouvrier professionnel des services déconcentrés de la Défense"]
["1504","Agent des services techniques d'administration centrale de la Défense"]
["1505","Agent des services techniques déconcentrés du ministère de la défense"]
["1506","Inspecteur du service intérieur et du matériel du ministère de l'Agriculture et de la pêche services déconcentrés"]
["1507","Technicien de l'Environnement"]
["1508","Agent technique de l'Environnement"]
["1514","Syndic des gens de mer"]
["1517","Assistant des bibliothèques"]
["1518","Professeur de lycée professionnel"]
["1520","Inspecteur général de l'agriculture"]
["1521","Chargé d'éducation des maisons d'éducation de la Légion d'honneur"]
["1522","Personnel de direction d'établissement d'enseignement ou de formation relevant du ministre de l'Éducation nationale"]
["1523","Professeur de lycée professionnel de l'enseignement privé"]
["1524","Ingénieur du génie rural, des eaux et des forêts"]
["1525","Inspecteur de santé publique vétérinaire"]
["1526","Secrétaire des systèmes d'information et de communication du ministère des Affaires étrangères"]
["1527","Agent administratif des services déconcentrés de l'Administration pénitentiaire"]
["1528","Adjoint administratif des services déconcentrés de l'Administration pénitentiaire"]
["1529","Agent des services techniques de l'Administration pénitentiaire"]
["1530","Ingénieur des ponts et chaussées"]
["1531","Ingénieur de police technique et scientifique de la Police nationale"]
["1532","Agent spécialisé de police technique et scientifique de la Police nationale"]
["1533","Cadre professionnel de la Poste"]
["1535","Magistrat de l'ordre judiciaire"]
["1537","Contrôleur sanitaire des services du ministère de l'Agriculture"]
["1542","Ingénieur des travaux maritimes"]
["1543","Magistrat de chambre régionale des comptes"]
["1544","Technicien des établissements publics de l'enseignement technique agricole"]
["1545","Inspecteur et conseiller de la création, des enseignements artistiques et de l'action culturelle"]
["1546","Professeur des écoles nationales supérieures d'art"]
["1547","Inspecteur de l'action sanitaire et sociale"]
["1551","Technicien opérationnel de l'Office national des forêts (ONF)"]
["1552","Cadre technique de l'Office national des forêts (ONF)"]
["1553","Agent des services techniques et inspecteurs services techniques"]
["1554","Infirmiers de classe normale et de classe supérieure de l'État"]
["1555","Infirmier du ministère de l'Éducation nationale"]
["1556","Infirmier du ministère de la Défense"]
["1558","Personnel de direction des établissements publics d'ENSET de formation professionnelle agricole"]
["1559","Conseiller technique et pédagogique supérieur (domaine sport et jeunesse D-2004-272 du 24/03/04)"]
["1560","Architecte et urbaniste de l'État"]
["1561","Technicien du ministère de l'Économie, des finances et de l'industrie"]
["1562","Inspecteur départemental des services déconcentrés de la d irection générale des Impôts"]
["1563","Assistant technique de la Caisse des dépôts et consignations (CDC)"]
["1564","Inspecteur de la jeunesse et des sports"]
["1565","Sous-préfet du ministère de l'Intérieur, de la sécurité et des libertés locales"]
["1567","Cadre de santé civil du ministère de la Défense"]
["1568","Conseiller économique et attaché commercial des services à l'étranger (D2004-1260 et 1261 du 25/11/04)"]
["1569","Instituteur de la fonction publique de l'État recruté à Mayotte"]
["1573","Contrôleur général économique et financier"]
["1574","Directeur d'insertion et de probation de l'Administration pénitentiaire (niveau corps)"]
["1575","Inspecteur général et inspecteur de l'administration du Développement durable"]
["1576","Directeur des services de la Protection judiciaire de la jeunesse (PJJ)"]
["1578","Contrôleur des assurances"]
["1579","Inspecteur général de l'Institut national de la statistique et des études économiques (INSEE)"]
["1581","Préparateur en pharmacie hospitalière civil de la Défense"]
["1582","Ingénieur des travaux publics de l'État"]
["1583","Attaché d'administration de l'État"]
["1584","Ingénieur des services techniques du ministère de l'Intérieur"]
["1585","Technicien de police technique et scientifique de la police nationale"]
["1586","Ingénieur de l'agriculture et de l'Environnement"]
["1587","Commandement de l'Administration pénitentiaire"]
["1588","Encadrement et d'application de l'Administration pénitentiaire"]
["1589","Adjoint administratif des administrations de l'État"]
["1590","Adjoint administratif de la Police nationale"]
["1591","Adjoint administratif d'administration centrale de la justice"]
["1592","Adjoint administratif des services judiciaires"]
["1593","Adjoint administratif des services déconcentrés de la direction de la Protection judiciaire de la jeunesse (PJJ)"]
["1594","Adjoint administratif de la grande chancellerie de la Légion d'honneur"]
["1595","Adjoint administratif d'administration centrale du ministère de l'Éducation nationale"]
["1596","Adjoint administratif des services déconcentrés du ministère de l'Éducation nationale"]
["1597","Adjoint administratif de l'Institut national de la statistique et des études économiques (INSEE)"]
["1598","Adjoint administratif du ministère de l'Intérieur et du ministère de l'Outre-mer"]
["1599","Adjoint technique des administrations de l'État"]
["1600","Adjoint technique de la Police nationale"]
["1601","Adjoint technique d'administration centrale du ministère de la Justice"]
["1602","Adjoint technique des services judiciaires"]
["1603","Adjoint technique des services déconcentrés de la Protection judiciaire de la jeunesse (PJJ)"]
["1604","Adjoint technique de la grande chancellerie de la Légion d'honneur"]
["1605","Adjoint technique des impôts"]
["1606","Adjoint technique du Trésor public"]
["1607","Adjoint technique de laboratoire des administrations de l'État"]
["1608","Directeur des services douaniers"]
["1609","Maître-assistant des écoles des mines"]
["1610","Professeur des écoles des mines"]
["1611","Adjoint de protection des réfugiés et apatrides"]
["1612","Agent technique du ministère de la Défense"]
["1613","Agent administratif des impôts"]
["1614","Agent d'administration du Trésor public"]
["1615","Adjoint technique de recherche de l'Éducation nationale"]
["1616","Adjoint technique des établissements d'enseignement du ministère de l'Éducation nationale"]
["1617","Adjoint technique des établissements d'enseignement agricole publics"]
["1618","Personnel scientifique de laboratoire de l'Agence nationale de sécurité du médicament et des produits de santé (ANSM, ex-AFSSaPS)"]
["1619","Attaché d'administrations parisiennes"]
["1620","Agent d'administration du Trésor public de la Polynésie française"]
["1621","Agent administratif des impôts de la Polynésie française"]
["1622","Adjoint technique du ministère de l'Intérieur et du du ministère de l'Outre-mer"]
["1624","Chef de district forestier de l'Office national des forêts (ONF)"]
["1625","Adjoint administratif des juridictions financières"]
["1626","Adjoint technique des juridictions financières"]
["1627","Secrétaire administratif des services judiciaires"]
["1628","Attaché d'administration du Conseil d'État"]
["1630","Adjoint administratif de chancellerie"]
["1631","Adjoint technique de chancellerie"]
["1632","Attaché d'administration"]
["1633","Secrétaire administratif du ministère de l'Agriculture et de la pêche"]
["1635","Secrétaire administratif des services déconcentrés du travail, de l'emploi et de la formation professionnelle"]
["1636","Secrétaire administratif de l'Éducation nationale et de l'enseignement supérieur"]
["1637","Adjoint administratif de l'Éducation nationale et de l'enseignement supérieur"]
["1638","Secrétaire administratif du ministère de la Justice"]
["1639","Administrateur des finances publiques"]
["1640","Attaché d'administration de l'Office national des forêts (ONF)"]
["1641","Ingénieur des ponts, des eaux et des forêts"]
["1651","Secrétaire administratif des administrations de l'État"]
["1652","Agent technique des finances publiques"]
["1653","Agent administratif des finances publiques"]
["1654","Personnel de catégorie A des finances publiques"]
["1655","Contrôleur des finances publiques"]
["1656","Technicien supérieur du ministère de l'Agriculture"]
["1658","Technicien de recherche et de formation de l'éducation nationale"]
["1659","Secrétaire administratif des services du Premier Ministre"]
["1661","Bibliothécaire assistant spécialisé"]
["1662","Technicien supérieur de la météorologie"]
["1663","Technicien supérieur études fabrications du ministère de la Défense"]
["1665","Maître assistant associé non titulaire des écoles des mines"]
["1666","Professeur associé non titulaire des écoles des mines"]
["1667","Administrateur général"]
["1669","Secrétaire administratif relevant du ministère de l'Agriculture"]
["1671","Infirmier des administrations de l'État"]
["1672","Infirmier de l'Éducation nationale"]
["1673","Infirmier de la Défense"]
["1675","Technicien supérieur de l'économie et de l'industrie"]
["1676","Technicien supérieur du Développement durable"]
["1677","Secrétaire d'administration et de contrôle du Développement durable"]
["1682","Conseiller technique de service social des administrations de l'État"]
["1683","Assistant de service social des administrations de l'État"]
["1684","Technicien de formation et de recherche du ministère agriculture et pêche"]
["1685","Technicien sanitaire et sécurité sanitaire"]
["1692","Conservateur du patrimoine"]
["1693","Contrôleur du travail"]
["1694","Technicien paramédical civil de la Défense"]
["1695","Technicien supérieur forestier de l'Office national des forêts (ONF)"]
["1696","Infirmier civil en soins généraux et spécialisés du du ministère de la Défense"]
["1697","Cadre de santé paramédical civil du ministère de la Défense"]
["1698","Éducateur spécialisé des instituts nationaux de jeunes sourds et de l'institut national jeunes aveugles"]
["1699","Directeur des services de greffe judiciaires"]
["1700","Greffier des services judiciaires"]
["1706","Psychologue de l'Éducation nationale"]
["1707","Personnel civil de rééducation et médico-technique de la Défense"]
["1708","Professeur d'université de médecine générale Éducation nationale"]
["1711","Professeur ex bi-admissible"]
["1712","Chargé d'études documentaires du ministère de la Culture et du ministère de la ransition écologique et solidaire"]
["1713","Administrateur adjoint du Conseil Economique et Social et Environnemental"]
["1714","Maître de conférences des écoles supérieures nationales d'architecture"]
["1715","Professeur des écoles nationales supérieures d'architecture"]
["1716","Adjoint administratif du Conseil Economique, Social et Environnemental"]
["1721","Professeur des écoles à Mayotte"]
["1722","Administrateur du conseil économque, social et environnemental"]
["1723","Rédacteur technicien du conseil économique social et environnemental"]
["1724","Ingénieur de physique nucléaire"]
["1726","Elève officier polytechnicien de la direction générale des Armées"]
["1727","Assistant de service social des administrations de l'État"]
["1728","Conseiller technique des services sociaux des administrations de l'État"]
["1729","Pédicure, orthopédiste, manipulateur radio, ergothérapeute,"]
["1730","Masseur psychologue ortho"]
["1731","Éducateur de la protection judiciaire et de la jeunesse"]
["1732","Conseiller pénitentiaires d'insertion et de probation"]
["1733","Éducateur spécialisé des instituts nationaux de jeunessourds et de l'Institut national des jeunes aveugles (INJA)"]
["1734","Inspecteur général de l'éducation, du sport et de la recherche"]
["1752","Surveillant pénitentiaires de l'état pourl'administration de Mayotte"]
["1754","Agent des douanes pour l'administrationde Mayotte"]
["1755","Agent technique des administrations de l'étatà Mayotte"]
["1756","Agent administratif des administrations de l'étatà Mayotte"]
["1788","Chef des services péntentiaires"]
["1789","Cadre éducatif de la protection judiciairede la jeunesse"]
["1792","Chef technicien de la météorologie"]
["1793","Chef technicien de la météorologie 1er à 3° groupe"]
["1808","Secrétaire administratif spécialisé de la Direction générale de la sécurité extérieure"]
["1809","Contrôleur spécialisé de la Direction générale de la sécurité extérieure"]
["1810","Adjoint administratif de la direction générale de la sécurité extérieur"]
["1811","Surveillant de la Direction générale de la sécurité extérieure"]
["1812","Attaché de la Direction générale de la sécurité extérieure"]
["1813","ADMINISTRATEUR ETAT"]
["1814","Corps des professeurs des universités-praticiens hospitaliers"]
["1815","Maître de conférences des universités-praticiens hospitaliers"]
["40990","Ouvrier du métal"]
["41088","ouvriers des parcs et ateliers des ponts et chaussées et des bases aériennes"]
["41089","ouvriers des parcs et ateliers des ponts et chaussées et des bases aériennes, maitrise"]
["41090","ouvriers des parcs et ateliers des ponts et chaussées et des bases aériennes, techniciens"]
["41428","Technicien à statut ouvrier du ministère de la Défense"]
["30572","Professeur de lycée professionnel agricole enseignement privé"]
["30647","Maître contractuel"]
["30710","Adjoint d'enseignement privé des lycées agricoles"]
["30756","Maître auxiliaire de l'enseignement privé agricole"]
["31400","Professeur certifié de l'enseignement agricole de l'enseignement privé"]
["31548"," enseignement privé agricole"]
["31709","Enseignant contractuel de 2ème catégorie ministèrede l'Agriculture"]
["31717","Enseignant contractuel privé agricole de 1ère catégorie2° groupe"]
["31718","Enseignant contractuel privé agricole3° catégorie"]
["31719","Enseignant contractuel l'enseignement privé agricole4° catégorie"]
["6471","1- P. des écoles, certifiés, d'EPS et de lycée pro"]
["6472","2- P. agrégés et de ch. supérieure"]
["6473","3- Corps du 1er degré en voie d'extinction"]
["6474","4- Corps du 2d degré en voie d'extinction"]

{"sheet":"Menu Principal","index":12,"n_rows":0,"n_cols":0,"rows_kept":0,"cut":false,"hidden":true,"merged":[]}

{"sheet":"Menu annee mm","index":13,"n_rows":0,"n_cols":0,"rows_kept":0,"cut":false,"hidden":true,"merged":[]}

{"sheet":"Menu annee diff","index":14,"n_rows":0,"n_cols":0,"rows_kept":0,"cut":false,"hidden":true,"merged":[]}

{"sheet":"Nomenclature non DGFIP","index":15,"n_rows":13,"n_cols":3,"rows_kept":13,"cut":false,"hidden":true,"merged":[]}
["Libellé détaillé","Code","Libellé catégorie"]
[]
[]
[]
[]
[]
[]
[]
[]
[]
[]
[]
[null,null," "]

{"sheet":"DGFIP","index":16,"n_rows":1985,"n_cols":3,"rows_kept":1985,"cut":false,"hidden":true,"merged":[]}
["Libellé code de paie","Code de paie","Libellé catégorie"]
["INDEMNITE MENSUELLE",101002,"Cat3"]
["TRAITEMENT BRUT - AGENTS EN CONGE DE LONGUEDUREE",101020,"hors champ"]
["INDEMNITE COMPENSATRICE - D47-1457*04/08/1947 MODIFIE",101030,"Autre"]
["RETENUE PC-ECLATEMENT CAS PENSIONS - NAM PAY2007-142",101050,"hors champ"]
["RETENUE PC IMT-ECLATEMENT CAS PENSIONS - NAM PAY2007-142",101052,"hors champ"]
["RETENUE PC NBI-ECLATEMENT CAS PENSIONS",101053,"hors champ"]
["RETENUE PC ISSP-ECLATEMENT CAS PENSIONS - NAM PAY2007-142",101054,"hors champ"]
["RETENUE PC IRTI-ART 127 LFI 1990 - D2011-572*24/05/2011",101055,"hors champ"]
["RETENUE PC PSS-ECLATEMENT CAS PENSION - NAM PAY2007-142",101056,"hors champ"]
["RETENUE PC SURCOTISATION-ECLATEMENT CAS PENSIONS - NAM PAY2007-142",101057,"hors champ"]
["RETENUE PC ISS PTS",101059,"hors champ"]
["RETENUE PC-TITULAIRES DEFENSE EN CAA - D2006-418*07/04/2006",101066,"hors champ"]
["TRAITEMENT BRUT N.B.I. - ",101070,"Cat7"]
["INDEMNITE DE RESIDENCE - ",102000,"Cat3"]
["I.R.E. GROUPE 01 - D67-290*28/03/1967 MODIFIE",102001,"Cat3"]
["I.R.E. GROUPE 02 - D67-290*28/03/1967 MODIFIE",102002,"Cat3"]
["I.R.E. GROUPE 03 - D67-290*28/03/1967 MODIFIE",102003,"Cat3"]
["I.R.E. GROUPE 04 - D67-290*28/03/1967 MODIFIE",102004,"Cat3"]
["I.R.E. GROUPE 05 - D67-290*28/03/1967 MODIFIE",102005,"Cat3"]
["I.R.E. GROUPE 06 - D67-290*28/03/1967 MODIFIE",102006,"Cat3"]
["I.R.E. GROUPE 07 - D67-290*28/03/1967 MODIFIE",102007,"Cat3"]
["I.R.E. GROUPE 08 - D67-290*28/03/1967 MODIFIE",102008,"Cat3"]
["I.R.E. GROUPE 09 - D67-290*28/03/1967 MODIFIE",102009,"Cat3"]
["I.R.E. GROUPE 10 - D67-290*28/03/1967 MODIFIE",102010,"Cat3"]
["I.R.E. GROUPE 11 - D67-290*28/03/1967 MODIFIE",102011,"Cat3"]
["I.R.E. GROUPE 12 - D67-290*28/03/1967 MODIFIE",102012,"Cat3"]
["I.R.E. GROUPE 13 - D67-290*28/03/1967 MODIFIE",102013,"Cat3"]
["I.R.E. GROUPE 14 - D67-290*28/03/1967 MODIFIE",102014,"Cat3"]
["I.R.E. GROUPE 15 - D67-290*28/03/1967 MODIFIE",102015,"Cat3"]
["I.R.E. GROUPE 16 - D67-290*28/03/1967 MODIFIE",102016,"Cat3"]
["I.R.E. GROUPE 17 - D67-290*28/03/1967 MODIFIE",102017,"Cat3"]
["I.R.E. GROUPE 18 - D67-290*28/03/1967 MODIFIE",102018,"Cat3"]
["INDEMNITE SUPPLEMENTAIRE-ART. L122-12 DU CSN",102051,"hors champ"]
["I.S.V.L.GROUPE1",102081,"Cat3"]
["I.S.V.L.GROUPE2",102082,"Cat3"]
["I.S.V.L.GROUPE3",102083,"Cat3"]
["I.S.V.L.GROUPE4",102084,"Cat3"]
["I.S.V.L.GROUPE5",102085,"Cat3"]
["I.S.V.L.GROUPE6",102086,"Cat3"]
["I.S.V.L.GROUPE7",102087,"Cat3"]
["I.S.V.L.GROUPE8",102088,"Cat3"]
["INDEM EXPATRIATION GR 01",102091,"Cat3"]
["INDEM EXPATRIATION GR 02",102092,"Cat3"]
["INDEM EXPATRIATION GR 03",102093,"Cat3"]
["INDEM EXPATRIATION GR 04",102094,"Cat3"]
["INDEM EXPATRIATION GR 05",102095,"Cat3"]
["INDEM EXPATRIATION GR 06",102096,"Cat3"]
["INDEM EXPATRIATION GR 07",102097,"Cat3"]
["INDEM EXPATRIATION GR 08",102098,"Cat3"]
["INDEM EXPATRIATION GR 09",102099,"Cat3"]
["SUPP FAMILIAL TRAITEMENT - ",104000,"hors champ"]
["SUPPLEMENT FAMILIAL",104001,"hors champ"]
["SUPP FAMIL TRAIT DIFFER",104010,"hors champ"]
["MAJO. FAMILIALES GR. 00",104100,"hors champ"]
["MAJO. FAMILIALES GR. 01",104101,"hors champ"]
["MAJO. FAMILIALES GR. 02",104102,"hors champ"]
["MAJO. FAMILIALES GR. 03",104103,"hors champ"]
["MAJO. FAMILIALES GR. 04",104104,"hors champ"]
["MAJO. FAMILIALES GR. 05",104105,"hors champ"]
["PRIME FAMILLES MODESTES  L2009-431*20/04/2009 (LFR 2009)",200001,"hors champ"]
["VACATIONS                NON ASSUJETTIES EN FRANCE (FONCTIONNAIRES INTERNATIONAUX)",200002,"hors champ"]
["ASSIETTE FORFAIT SOCIAL  ART. 137-15 DU CSS",200003,"hors champ"]
["CONTR.PAT. SOUMISES S.S. ART. L242-1 ALINEAS 6 A 8 ET ART. D242-1 DU CSS",200004,"hors champ"]
["COT RAFP CAAA            D2006-418*07/04/2006",200005,"hors champ"]
["BASE IJ SOUMISES S.S.    MARINS DE L'EQUIPEMENT - L242-1 CSS",200006,"hors champ"]
["ABATTEMENT INDEMNITAIRE - LFI 2016 - ART. 148",200007,"hors champ"]
["PRESTAT. ASS. MALADIE S.S - ",200008,"hors champ"]
["PRESTAT. ASS. INVALID S.S",200009,"hors champ"]
["IJ SS NETTES",200010,"hors champ"]
["PREST. ACC. SERVICE TITUL",200011,"hors champ"]
["REGUL REDUCTION COTIS HS",200012,"hors champ"]
["PREST. A.T.NON TITUL",200013,"hors champ"]
["RENTE ACCIDENT DU TRAVAIL - ARTICLES R434-15 ET R434-34 DU CSS - VST MENSUEL",200014,"hors champ"]
["BASE FSPOEIE EX OUVR GIATNM2004",200015,"hors champ"]
["RENTE ACCIDENT DU TRAVAIL - ARTICLES R434-15 ET R434-34 DU CSS - VST TRIMESTRIEL",200016,"hors champ"]
["IND. LICENCIEMENT PECULE - D86-83*17/01/1986 TITRE XII",200018,"hors champ"]
["IND JOURNAL. DEPLACEMENT",200019,"hors champ"]
["FRAIS DE DEPLACEMENT",200020,"hors champ"]
["INDEMNITE DE STAGE - D2006-781*03/07/2006 - D2014-1021*08/09/2014 (MEN)",200021,"hors champ"]
["B.M.C. - PR. DE MOBILITE BOURSES INTRA-EUROPEENNES MARIE CURIE - UNIVERSITES RCE",200022,"hors champ"]
["FRAIS DEPLAC. FORF. SPEC. - D54-135 (MEN) - D2006-1680 A 1682",200023,"hors champ"]
["INDEMNITE DE MUTATION",200024,"Cat3"]
["FRAIS DE TRANSPORT",200025,"hors champ"]
["FRAIS CHANGT RES. FORFAIT",200026,"hors champ"]
["RAPAT OM FRAIS CHANG RESI",200027,"hors champ"]
["RAPAT OM INDEM. REINSTALL",200028,"hors champ"]
["IND. HABILLEMENT CHAUSSUR - D 60 1302 DU 5 DECEMBRE 1960 A DU 20/12/96 C.05 TRIM",200029,"hors champ"]
["FRAIS BUREAU TELEPHONE - ",200030,"hors champ"]
["INDEMNITE DE COSTUME - ",200031,"hors champ"]
["IND. ENTRETIEN BICYCLETTE",200032,"hors champ"]
["REMBT DOMICILE-TRAVAIL - D2010-676*21/06/2010 - ILE-DE-FRANCE",200033,"hors champ"]
["IND.FORFAITAIRE SCOLARITE",200034,"hors champ"]
["INDEMNITE DOC CADASTRAUX DELIVRANCE DES EXTRAITS ET REPRODUCTIONS",200035,"Cat7"]
["FRAIS D'APPROCHE - D69-600*13/06/1969 MODIFIE - STATISTIQUE AGRICOLE",200036,"Autre"]
["IND BICYCLETTE DDE",200037,"hors champ"]
["IND. SUJ. SPEC. O.N.F.",200038,"Cat7"]
["REMBT DOMICILE-TRAVAIL - D2010-676*21/06/2010 - HORS ILE-DE-FRANCE",200039,"hors champ"]
["IND. KILOMETRIQUE VELO - D2016-",200040,"hors champ"]
["FORF. MOBILITES DURABLES",200041,"hors champ"]
["MAJORATION FAMILIALE",200046,"hors champ"]
["INDEM MISSION DEPLT TEMP - ",200048,"hors champ"]
["COT PAT ASSURANCE CHOMAGE",200049,"hors champ"]
["FRAIS DE DEPLACEMENT TEMP",200050,"hors champ"]
["IND. REPRESENT. MINISTRES",200051,"hors champ"]
["IND. CHARGES MILITAIRES",200052,"hors champ"]
["IND. SURVEILLANCE CASINOS - ",200053,"hors champ"]
["INDEMNITE D'UNIFORME - ",200055,"hors champ"]
["IND. PETIT EQUIPEMENT - ",200056,"hors champ"]
["INDEMNITE DE CAMPAGNE",200057,"hors champ"]
["IND. VIVRE EN MER",200058,"hors champ"]
["REMB. FRAIS REELS",200059,"hors champ"]
["INDEMNITE DE PANIER - ",200060,"hors champ"]
["IND.CHARGES AERONAUTIQUESD48-1366*27/08/1948 MODIFIE - ART. 2 - DGA",200061,"hors champ"]
["INDEMNITE DE ROULAGE",200062,"Cat7"]
["REGUL. REDUCTION TEPA",200063,"hors champ"]
["IND. SORTIES EN MER - ",200064,"hors champ"]
["REGUL. COTISATIONS",200065,"hors champ"]
["IND. DE DEPART VOLONTAIRE",200066,"hors champ"]
["IND BINAGE SERVICE CULTES ALSACE LORRAINE SEULEMENT",200067,"hors champ"]
["IND. CHARGES MILITAIRES",200068,"hors champ"]
["IND. MISSION",200069,"hors champ"]
["IND. DEPLACT.MIN EQUIPT",200070,"hors champ"]
["PRESTATIONS FRAIS MED.",200071,"hors champ"]
["IND. SPE. DE TERRAIN.",200073,"Autre"]
["IND. DE LOYER.",200074,"hors champ"]
["ALLOC. CHIEN DE SERVICE - D 2003 449 DU 16/05/03 ADU 16/05/03 (JO DU 21/05/03)",200075,"hors champ"]
["MAJOR. TIERCE PERSONNE - ART. L434-2 DU CSS AVANTART. 85 DE LA LFSS POUR 2013",200076,"hors champ"]
["IND. SPECIF. RUPT. CONV.",200077,"Cat8"]
["PRIME EXCEPTIONNELLE",200078,"Cat2"]
["INDEMNITE DE REPAS       D2011-1171*23/09/2011 ART.7 - OUVRIERS DGAC ET METEO-FRANCE",200080,"hors champ"]
["IND.DETERIOR.EFFETS PERSO - ",200081,"hors champ"]
["IND. ENTRETIEN HABILL. - D2005-1028*26/08/2005 - D2000-153*21/02/2000",200085,"hors champ"]
["IND. 1ERE MISE D'UNIFORME - D2010-532*20/05/2016",200086,"hors champ"]
["ALLOC. SUPPLEMENT. F.N.S.",200087,"hors champ"]
["INDEMNITE DE FONCTIONS   D2012-983*23/08/2012 - MEMBRES DU GOUVERNEMENT",200088,"Cat6"]
["INDEMNITE MENSUELLE VCI  ART. L122-12 DU CODE DU SERVICE NATIONAL",200090,"hors champ"]
["INDEMNITE SUPPL. VCI     ART. L122-12 ET L122-12-1 DU CODE DU SERVICE NATIONAL",200091,"hors champ"]
["FRAIS REPRESENT C.ETAT - VICE PDT CONSEIL ETAT ETPDT COURS ADM. D'APPEL",200095,"hors champ"]
["AFEAMA AIDE MAT. DOM",200096,"hors champ"]
["MEDAILLE D'HONNEUR - D96 342 DU 22/04/96",200097,"Cat4"]
["BASE RAFP DETACHES ENCPP NAM 08-067",200098,"hors champ"]
["BASE FSPOEIE OUVR AMIANTEBASE FSPOEIE OUVR AMIANTE",200099,"hors champ"]
["HEURES SUPPLEMENTAIRES",200101,"Cat2"]
["H. SUP. 14 PREM. H. - ",200102,"Cat2"]
["H. SUP. PLUS DE 14 H. - ",200103,"Cat2"]
["H. SUP. DIM. ET J. F. - ",200104,"Cat2"]
["H SUP 22 HEURES Ó 7 HEURE - ",200105,"Cat2"]
["IND FORF TRAV SUP ADM CEN - D63 32 DU 19/01/63 A DU 5/08/75 A DU 23/12/94 C.20 TRIM",200106,"Cat7"]
["I. F. T. S. SERVICES EXT.",200107,"Cat7"]
["IND. SUJETIONS SPE. - D78.965 D73.973 D90.966 D91.1108 ET D92.1002",200108,"Cat7"]
["IND. SUJETIONS DIV. - ",200109,"Cat7"]
["IND. DE RESPONSABILITE. - D 00.1101 DU 14/04/00 ETD 02.47 DU 09/01/02",200110,"Cat7"]
["IND. TRAV. DANG. OU SALIS - D67.624 DU 23/7/67 MODIFA DU 11/8/75 DU 20/02/96 ALR211.8",200111,"Cat7"]
["IND SUJ SPECIALES CHARGES - D92.356 DU 27/3/92 D90.50DU 12/01/90 RLR211.2 C.05 C.20",200112,"Cat7"]
["IND. DIFFICULTES ADMINIS. - D 46.2020 DU 17/9/46 C F3.38 DU 28/5/58 C.05",200113,"Cat3"]
["PRIME RENDEMENT ADM CENT - D50.196 DU 06/02/50 D45.1753 DU 6/08/45 A DU 2/05/02",200114,"Cat7"]
["PRIME DE RENDEMENT - CF. ANNEXE 14 POUR LES TEXTES - SERVICES DECONCENTRES",200115,"Cat7"]
["PRIME RENDEMENT",200116,"Cat6"]
["HEURES SUPPLEMENTAIRES - D68-518*30/05/1968 - SERVICES PENITENTIAIRES",200117,"Cat2"]
["HEURES SUPPLEMENTAIRES",200118,"Cat2"]
["INDEMNITE DE TECHNICITE - D2010-920*03/08/2010 - D2010-921*03/08/2010",200119,"Cat7"]
["INDEM TECHNI MONITEUR DAC",200120,"Cat7"]
["IND. TECH. OPER.MACH.CPT. - D73.374 DU 28/03/1973",200121,"Cat7"]
["JURYS CONCOURS EXAMENS",200122,"Cat5"]
["COURS ET CONFERENCES",200123,"Cat5"]
["INDEMNITE D'ENSEIGNEMENT",200124,"Cat7"]
["VACATIONS - ",200125,"Cat5"]
["S.F.T. DIFFERENTIEL. - ",200126,"hors champ"]
["PRIME SPEC. INSTALLATION - D89-259*24/04/1989",200127,"Cat3"]
["INDEMNITE D'ELOIGNEMENT.",200128,"Cat3"]
["INDEMNITE COMPENSATRICE - AUTRES QUE CELLES PREVUESAU D47-1457*04/08/1947 MODIFIE",200129,"Autre"]
["COMPENSATRICE ART. 2 - D47-1457*04/08/1947 MODIFIE - ARTICLE 2",200130,"Autre"]
["COMPENSATRICE ART. 4 - D47-1457*04/08/1947 MODIFIE - ARTICLE 4",200131,"Autre"]
["FRAIS REPRES. (I.F.).",200133,"hors champ"]
["IND. DIFFERENTIELLE SPECI",200134,"Autre"]
["IND JOURNALIERE SPECIALE",200135,"hors champ"]
["AVANTAGE EN NATURE LOGT  LOGEMENT A/C DU 1ER JANVIER 2008",200136,"hors champ"]
["INDEMNITE DE CABINET.",200137,"Cat7"]
["SUP. TRAIT. MINISTRE.",200138,"Cat7"]
["ALLOC. SUPPL. D'ATTENTE.",200139,"Autre"]
["MAJORATION TRAITEMENT 40% - ANTILLES - GUYANE - SAINT#NAME?",200141,"Cat3"]
["MAJORATION TRAITEMENT 35% - REUNION",200142,"Cat3"]
["INDEXATION REUNION. - ",200143,"Cat3"]
["INTERET RETARD.",200144,"hors champ"]
["VACATION TRAIT REC LOC LV",200145,"Cat5"]
["INDEMNITE SPECIALE INSTIT - ",200147,"Cat7"]
["COMPLEMENT INDEM FINANCES",200148,"Cat4"]
["IND EXCEP AIDE A MOBILITE 2000.252 ARRETE DU 15/03/2000  C.20",200149,"Cat3"]
["COMPL. GARANTIE.",200150,"Autre"]
["I.F.T.S. SPECIALE",200151,"Cat7"]
["TRAVAUX SUPPLEMENTAIRES.",200152,"Cat2"]
["TRAV. SUPPL. EXCEPT.",200153,"Cat2"]
["IND.FORFAIT. DEGRESSIVE. - D 77.1445 DU 21/12/77 A DU 9/10/95 RLR 211.3 C.05 C.20",200154,"Autre"]
["PRIME DE FONCTION TEMP.",200155,"Cat7"]
["IND.SPECIALE CONTRACT. HC",200156,"hors champ"]
["IND.DIFFERENTIELLE SPEC. INSEE",200157,"Autre"]
["IND.FORF. DIR.REG. ET DEP",200159,"Cat7"]
["GRATIF.TRAV.AMELIOR.O.N.F",200160,"Autre"]
["IND PERMAN. TELEPHONISTES",200161,"Cat2"]
["IND.FORF.SECRET.COMMISS.",200163,"Cat7"]
["INDEM. PERCEPTION VILLE",200164,"Autre"]
["IND. FORF. CONSERVATEUR.",200165,"Cat7"]
["ACF CAISSIER",200166,"Cat7"]
["IND. SUJETIONS EXCEPT. - D 76.1167 DU 3/12/1976 ADU9/10/95 RLR 211.5D C.20",200167,"Cat2"]
["IND. RESPONS. REGISSEUR. - D92-681 D92-1368 D97-33",200168,"Cat7"]
["IND. CAISSE.",200169,"Cat7"]
["IND. REGISSEURS RECETTES.",200170,"Cat7"]
["IND. CAISSE ET REGIE.",200171,"Cat7"]
["IND. CAISSE ET RESPONSAB. - D 73 899 DU 18/09/73 A DU16/3/1971 ET DU19/8/1995 RLR 211.3",200172,"Cat7"]
["IND. GESTION ET RESPONSAB - D 71.34 DU 6/1/1971 A DU9/10/1995 RLR 211.3 C.05 C.20",200173,"Cat7"]
["IND. DE COMPTABILITE.",200174,"Cat7"]
["IND. DE RISQUES. - D69-945*16/10/1969-D2006-1335*03/11/2006 (MIATTRANSITOIRE)",200175,"Cat7"]
["IND. TRAVAIL DE NUIT - CF LISTE DES DECRETS A LARUBRIQUE 0176 DE L'ANNEXE 14-B",200176,"Cat2"]
["IND. TRAVAIL DOMINICAL - D 72.430 DU 24/5/1972 MODIF A DU 9/10/1995 RLR 211.5D C.20",200177,"Cat2"]
["INDEMNITE GARDIEN.",200178,"Cat7"]
["IND. SUJ. OBS. HYD. METEO",200179,"Cat7"]
["TRAVAUX D ENTRETIEN.",200180,"Cat7"]
["TRAVAUX AMELIORATION ONF",200181,"Cat7"]
["IND.SURV.PETITS EFFECTIFS",200182,"Cat7"]
["IND. SURVEILLANCE JEUX.",200183,"Cat7"]
["IND.SURV.CAISSE D EPARGNE",200184,"Cat7"]
["INDEMNITE D INTERIM - ",200185,"hors champ"]
["INDEMNITE DE FONCTIONS - D 2000 1104 DU 14/11/00 ET ARRETE DU 14/11/00",200186,"Cat7"]
["IND.EXCEP. PDT. TRIB. ADM",200187,"Cat7"]
["PR.REND. CONT. PHYS. NUCL",200188,"Cat6"]
["PRIME REND.PERS.TECHNIQUE - D 2001 1027 DU 2/11/2001",200189,"Cat7"]
["PRIME REND. CONDUCTEURS",200190,"Cat7"]
["PRIME REND. TECHNICIENS",200191,"Cat7"]
["PR. REND. CONST. SCOL.",200192,"Cat7"]
["AB. IND. PRIM. REND.",200193,"Cat6"]
["IND. PRODUCTIVITE.",200194,"Cat7"]
["GRATIF. SERVICE",200195,"Autre"]
["SUPP. TRAV. HORS SERVICE - D 88.132 DU 4/2/1988 RLR211.3  C.05 C.20",200196,"Cat2"]
["IND. TRAVAUX EXTRAORDIN.",200197,"Cat7"]
["IND. TITULAIRE MEDAILLE.",200198,"Autre"]
["PRIME D ANCIENNETE.",200199,"Autre"]
["PRIME DE QUALIFICATION",200200,"Cat6"]
["PRIME QUALIF. INTEND.UNIV",200201,"Cat7"]
["BOURSE DE QUALIFICATION.",200202,"Autre"]
["IND. FORFAIT ENSEIGNANTS. - ",200203,"Cat7"]
["C. COMPLEM. ENSEIGN. SUP.",200204,"Cat2"]
["HEURES ANNEES ENSEIGNT - SECONDAIRE ET TECHNIQUE",200205,"Cat2"]
["HEURES SUPPLEM. SURV.",200206,"Cat2"]
["HEURES D INTERROGATION. - ",200207,"Cat2"]
["HTS PAE OU ETUDE DIRIGEE - ",200208,"Cat2"]
["IND.PROFESSEUR PRINCIPAL",200209,"Cat7"]
["IND. HORAIRES ENSEIGNT. - ",200210,"Cat2"]
["H. A. SUPPLEANCE ENSEIGNT - ",200213,"Cat2"]
["IND. SURVEILLANCE.",200214,"Cat7"]
["H. EFF. ENSEIGNEMENT. - EFFECTUEES EN DEHORS DESSUPPLEANCES",200215,"Cat2"]
["H.EFF.SURV.HORS SUPPLEANC",200216,"Cat2"]
["H ANNEES SUPPL SURVEILLAN",200217,"Cat2"]
["COURS COMPL. UNIVERSITE",200218,"Cat2"]
["IND PROF DELEGUE INFORMAT",200219,"Cat7"]
["PRIME RECH. ENS. SUP.",200220,"Cat7"]
["PR.PART.RECH.SCIENTIFIQUE - D 86.1170 DU 30/10/86 A DU 30/10/86 C N.17 DU 11/5/95 C.22",200221,"Cat4"]
["ALLOCATION DE RECHERCHE.",200222,"Cat7"]
["IND.SPEC CONSERV BIBLIOTH - INDEMNITE SPECIALE AUX CONSERVATEURS DES BIBLIOTHEQUES",200223,"Cat7"]
["FDS. PARTIC. RECH. SCIENT",200224,"hors champ"]
["IND PROF PREPA GR.ECOLES",200225,"Cat7"]
["COURS COMPL. CHAIRE VAC. - D83-1175*23/12/83",200226,"Cat2"]
["IND CHEF ETAB. STAGES CPR",200227,"Cat7"]
["IND. CHEF CEN. FORM. PROF",200228,"Cat7"]
["INDEMNITE D'ANNEXE",200229,"Autre"]
["IND RESPONS CHEF TRAVAUX - ",200230,"Cat7"]
["IND. DIRECTEUR CUMULANT.",200231,"Cat7"]
["IND. C.N.T.E.",200232,"Cat7"]
["IND. ENS. P/SCOL. ET MEN.",200233,"Cat7"]
["IND. FORF. SUJ. SPEC. - ",200234,"Cat7"]
["COURS PROMOTION ADULTES.",200235,"Cat7"]
["PRIME MONITEURS ETRANGERS",200236,"Cat7"]
["IND. EDUC. PHYS. COL. VAC",200237,"Cat7"]
["IND. PROF. JEUN.ET SPORTS - ",200238,"Cat7"]
["VACATIONS BACCALAUREAT.",200239,"Cat5"]
["VAC. EXAM. ENS. AGRIC. PR",200240,"Cat5"]
["INDEMNITE DE SCOLARITE - D72-73*21/01/1973",200241,"Cat7"]
["IND. MEDECINS-INSPECTEURS - D73-964*11/10/1973 MODIFIE",200242,"Cat7"]
["IND. MEDECIN RELAIS",200243,"Cat7"]
["VAC.MEDECINS C.M.P.",200244,"Cat5"]
["VACATIONS MEDECINS",200245,"Cat5"]
["HON. MED. CENT. AP.",200246,"Cat5"]
["IND. EXAM. MED. EMP. RES.",200247,"Autre"]
["IND. APT. PRO. EMP. RES.",200248,"Autre"]
["COLLABORATIONS DIVERSES - D95-532*04/05/1995 MAE",200249,"Cat7"]
["IND.MEDECIN COORDONNATEUR",200250,"Cat7"]
["IND.MEDECIN RAPPORTEUR",200251,"Cat7"]
["REMUNERATIONS GREFFIER.",200252,"Autre"]
["IND. PERS. SECRET. GREFF.",200253,"Cat7"]
["IND. PERSON. TECHNIQUES. - ",200254,"Cat7"]
["INDEMNITE FORFAITAIRE",200255,"Cat7"]
["JETONS DE PRESENCE",200256,"Autre"]
["IND.MEMBRE DE COMMISSION",200257,"Cat5"]
["IND. REPRES. DE LOGEMENT D72-889*28/09/1972 MODIFIE",200258,"hors champ"]
["IND. FORFAIT. D'ARCHIVES.",200260,"Cat7"]
["IND. SPEC. AUX CONSERVATE",200261,"Cat7"]
["IND. ORG. BIBLIOTH. MUNIC",200262,"Cat7"]
["IND. DE BIBLIOTHEQUE. - ",200263,"Cat7"]
["IND. SPEC. INGENIEURS T.P",200264,"Cat7"]
["HONORAIRES INGENIEURS",200265,"Cat5"]
["IND. MONITEURS ET PREPARA",200266,"Cat7"]
["IND. MONIT. ITINER. SPORT",200267,"Cat7"]
["IND. SPEC. FORF. SUJ. - ",200268,"Cat7"]
["IND. SPEC. AG. SERV. LABO",200269,"Cat7"]
["IND. ASSIETTE.",200270,"Autre"]
["INDEMNITE AUX ASSESSEURS.",200271,"Cat5"]
["IND. GARDIEN DE PHARE.",200272,"Cat7"]
["IND. COMPLEM. RESIDENCE. - ",200273,"Cat3"]
["INDEMNITE E.N.A.",200274,"Cat7"]
["IND. CHARGE MISSION. - ",200275,"Cat7"]
["PRIME CHEF D'EQUIPE.",200276,"Cat7"]
["INDEMNITE D'ASTREINTE. - ",200277,"Cat2"]
["VACATIONS RESIDENCE.",200278,"Cat5"]
["VACATIONS TRAIT. ASS.L.V. - REMUNERATION DES ASSISTANTS DE LANGUE VIVANTE",200279,"Cat5"]
["ALL. EXCEPT. RECENSEMENT",200281,"Cat5"]
["ALLOC.EXCEPT.RECENSEMENT",200282,"Cat5"]
["ALLOC. GARANTIE MARQUE. - ",200283,"Autre"]
["INDEMNITE DE FORMATION - D74-44*18/01/1974",200284,"Cat7"]
["IND.FORF.TRAV.SUPPL.ENS.",200285,"Cat7"]
["PRIME FONCT. INFORMATIQUE - D 71 343 DU 29/04/1971 D80 948 DU 28/11/1980 C.22 MENS",200286,"Cat7"]
["IND. SPE. CHARG. ENS.EPS",200287,"Cat7"]
["INDEMNITE D'EXPERTISE",200288,"Cat7"]
["IND. SERV. DOCUMENTATION.",200289,"Cat7"]
["IND. CONGE PAYE. - Article 10 décret n°86-83",200290,"hors champ"]
["IND. DIFFERENTIELLE - D99-770*06/06/1999 ABROGEPAR D2015-1089*28/08/2015",200291,"Autre"]
["IND. FORFAITAIRE A.S.S.U.",200292,"Cat7"]
["MAJORATION D'EMBARQUEMENT - ",200293,"Cat6"]
["IND. FORF. PROF. UER/EPS",200294,"Cat7"]
["IND. SPEC. PROF. IREPS",200295,"Cat7"]
["PRIME SERVICE INFIRMIERS - ",200296,"Cat7"]
["PRIME SPECIF. FACONNAGE.",200297,"Cat7"]
["INDEMNITE CADRES.",200298,"Cat7"]
["IND. POURCENTAGE.",200299,"Autre"]
["IND. SPECIF. 1 CAT. 2 T.",200301,"Cat7"]
["IND. SPECIF. 1 CAT. 1 3/4",200302,"Cat7"]
["IND. SPECIF. 1 CAT. 1 T.",200303,"Cat7"]
["IND. SPECIF. 1 CAT. 1/2 T",200304,"Cat7"]
["IND. SPECIF. 2 CAT. 1/2 T",200305,"Cat7"]
["IND. SPECIF. 3 CAT. 1 T.",200306,"Cat7"]
["IND. SPECIF. 3 CAT. 1/2 T",200307,"Cat7"]
["EXPLOIT EN REGIE EX.C ONF",200308,"Cat7"]
["EXPLOIT EN REGIE EX.P ONF",200309,"Cat7"]
["INDEMNITE DE POSTE.",200310,"Cat7"]
["IND CONTROLE TARIFICATION",200311,"Cat7"]
["IND. DE RISQUE INDEXEE - D2011-571*24/05/2011",200312,"Cat6"]
["PRIME VOL PERS NAVIGANT - ",200316,"Cat7"]
["IND POUR SERVICE CONTINU",200317,"Cat2"]
["INDEMNITE DE TRAFIC",200318,"Cat7"]
["ACF REMPLACANT ENQUETEUR",200319,"Cat7"]
["IND. HORAIRE SPEC. T.A.I. - D 72.1012 DU 7/11/1972 ADU 15/4/1975 ET DU 20/2/76 C.20.22",200320,"Cat2"]
["IND. MENSUELLE TECHNICITE - D2010-1568*15/12/2010",200321,"Cat7"]
["SUPPL.FAMILIAL TRAITEMENT - RAI - BERKANIS REUNION",200322,"hors champ"]
["IND CONSEILLER FORMATION - ",200323,"Cat7"]
["IND INFORMATIQ. D28/11/80",200324,"Cat7"]
["IND. EXCEPT. 30 % C.P.A.",200325,"Autre"]
["REVENU DE REMPLACEMENT",200326,"hors champ"]
["TRAIT PERS HOSPITALO UNIV - TITULAIRES",200327,"TIB"]
["JURY DE CONCOURS",200328,"Cat5"]
["COURS ET CONFERENCES.",200329,"Cat7"]
["INDEMNITES D'ENSEIGNEMENT",200330,"Cat7"]
["COURS COMPLEMENTAIRES",200331,"Cat2"]
["REMP.PORTIER CONCIERGE TI - ",200332,"Cat7"]
["IND. SUJ. SPECIALE POLICE - D2013-617*11/07/2013",200333,"Cat6"]
["MAJORATION TRAVAIL NUIT - ",200334,"Cat2"]
["PRIME DE DEMINAGE - ",200335,"Cat7"]
["PRIME PERSONNEL NAVIGANT - ",200336,"Cat7"]
["IND. FONCTION PERS.NAVIG.",200337,"Cat7"]
["IND LANGUE ETRANGERE - D75-1090 DU 17/11/1975",200338,"Cat7"]
["IND RISQUES AERIENS P.A.F - ",200339,"Cat7"]
["IND COMP.AVANT.NAT.SGAP",200340,"hors champ"]
["IND.SPEC.DECENTRAL.DEFA",200341,"Cat7"]
["RECOMPENSES POLICE",200344,"Autre"]
["IND. CABINET S.E.",200346,"Cat7"]
["IND TECHNICITE SECURITE - METEO FRANCE D2006-1235*10/10/2006",200348,"Cat7"]
["PRIME D ACTIVITE",200349,"hors champ"]
["SUP. TECHNICITE.",200350,"Cat7"]
["METEO. IND. SERV. EN MER. - ",200351,"Cat7"]
["METEO. IND. HAUTE MONTAGN",200352,"Cat7"]
["INDEMNITE D'UNIFORME",200353,"Cat7"]
["PRIME GESTION.",200354,"Cat7"]
["COMPL.MINIMUM GARANTI P.N",200355,"Autre"]
["IND.CONDUC.PDS LOURDS A.C",200356,"Cat7"]
["IND HORAIRES ADAPTES IPHA",200357,"Cat2"]
["IND.COUR DES COMPTES",200358,"Cat7"]
["IND PARTICULIERE DOM  D88-1059*23/11/1988 - ANTILLE-GUYANE 40% - REUNION 25%     ",200359,"Cat3"]
["PRIME RECH.ENSEIGN.SUP. - D 89.775 D 89.776 DU 23/10/89 A DU 23/10/89 MODIF  C.20",200361,"Cat7"]
["COMPLEMENT REMUNERATION - ",200362,"Autre"]
["ISOE PART FIXE - ",200364,"Cat7"]
["IND.REPRESENTAT. LOGEMENT",200365,"hors champ"]
["REM ACC SCE REDEVANCE",200366,"Autre"]
["COLLABORATIONS DIVERSES",200368,"Cat5"]
["COMPL INDEM EXCEPT EQUIPT",200370,"Autre"]
["IND SERV CONT POSTES DIF",200371,"Cat5"]
["PRIME FORFAIT QUALIFICAT",200372,"Cat7"]
["IND.MONITORAT.INIT.ENS.SU",200373,"Cat7"]
["IND SPEC ALL MONIT NORM",200374,"Cat7"]
["IND DE CIRCONSCRIPTION",200375,"Cat7"]
["PRIME PEDAGOGIQUE - D 90.49 DU 12/1/90 MODIFA DU 13/10/95 RLR 212.7  C.20",200376,"Cat7"]
["IND DIFFERENTIELLE / IRL - COMPENSATRICE IRL INSTITUTEURS",200377,"Autre"]
["IND DES A NON COMPTABLES",200378,"Cat7"]
["IND ACTIVITES PERI EDUCAT - ",200379,"Cat7"]
["INDEMNITE DE FONCTION",200380,"Cat7"]
["MODUL.ACTIVITE I.A.C.",200381,"Cat7"]
["MODUL.ACTIVITE I.E.E.A.C.",200382,"Cat7"]
["MODUL.FONCTIONNELLE I.A.C",200383,"Cat7"]
["COMPL FONCTION ACTIVITE - abrogé",200384,"Cat7"]
["MAJ.EXCEP.PRIME ACTIVITE - abrogé",200385,"Cat7"]
["IND.SPECIALE COORDINATION - abrogé",200386,"Cat7"]
["MAJ. SITE IND. FONCTION D2005 1048 DU 26/08/2005  AVIATION CIVILE ",200387,"Cat3"]
["MAJ. SITE IND. SPECIALE",200388,"Cat3"]
["INDEMNITE DE FONCTION - D2005 1048 ET 1049 DU 26/08/2005 AVIATION CIVILE",200389,"Cat7"]
["INDEMNITE SPECIALE",200390,"Cat7"]
["IND SPEC PERS AVIAT CIVIL",200395,"Cat7"]
["PRIME E.V.S.",200396,"Cat7"]
["IND I F E A C (Institut français d'études sur l'Asie centrale)",200397,"Cat7"]
["PRIME CONTRAINTES DE SCE",200398,"Cat7"]
["PRIME EVOL.QUAL.ING.EL.",200399,"Cat7"]
["PRIME EXP SUJ ET VAC AV.C",200400,"Autre"]
["MAJORATION PRIME EXPLOIT.",200401,"Autre"]
["INDEMNITE FORFAITAIRE",200402,"Cat7"]
["IND SUJET. SPECIALES ZEP - ",200403,"Cat3"]
["IND PREMIERE AFFECTATION",200404,"Cat3"]
["IND DE TRAFIC AC",200405,"Cat7"]
["PRIME ENCADR.DOCT.RECHER.",200406,"Cat4"]
["PRIME D'ADMINISTRATION - D 90.50 DU 12/01/90 A DU13/10/95 RLR 211.2 C.05 C.20",200407,"Cat7"]
["IND FONCT PART PROF ECOLE - D 91 236 DU 28/02/1991",200408,"Cat7"]
["HSE FAI 1ER DEGRE",200409,"Cat2"]
["HSE ZEP 1ER DEGRE",200410,"Cat2"]
["IND COORDINATEUR INSPECT.",200411,"Cat7"]
["ALLOC AIDE RETOUR EMPLOI - ART L 351 12 DU CODE TRAVAIL  A 18/12/97 C.22",200412,"hors champ"]
["IND SUJ PARTICUL.EDUC.NAT - D 91.466 DU 14/5/1991 A DU 14/5/1991 RLR 212.8 C.22",200413,"Cat7"]
["IND FORF CONSEIL PR EDUCA - ",200414,"Cat7"]
["IND DIFFERENTIELLE SMIC - D91-769*02/08/1991",200415,"Autre"]
["ALLOC.SPEC.ING.CORPS P T",200416,"Cat7"]
["IND SPECIF HEBERGEMENT",200424,"hors champ"]
["AJUSTEMENT INDEMNITAIRE B",200425,"Autre"]
["IND COMPL ANC FONCT CNCA",200427,"Autre"]
["IND.DIR.SCIENT.ETUD.DOCT.",200428,"Cat7"]
["IND FONC POLICE TEC SCIEN",200429,"Cat7"]
["I.S.O.E. PART MODULABLE - ",200430,"Cat7"]
["INDEMNITE CHARGES PENIT. - D2006-1353*08/11/2006",200431,"Cat7"]
["PRIME ENCADT TECHNI. ART - ",200432,"Cat7"]
["IND. SUJETIONS SPECIALES - D2002-47*09/01/2002 MODIFIE - PERSONNEL DE DIRECTION E.N.",200433,"Cat7"]
["REMISES SUR OCTROI DE MER",200434,"Autre"]
["REM.PERSONNELS DE L I.N.T",200435,"Autre"]
["IND POUR ETABT ANNEXE",200436,"Cat7"]
["IND CHARGES ADMINISTRAT - D 71 847 DU 13/10/71",200437,"Cat7"]
["IND CHARGES ADMINISTRAT",200438,"Cat7"]
["IND SPECIALE OUVRIER PROF",200439,"Cat7"]
["PRIME TECHNICITE FORF BIB - D 93.526 DU 26/3/93 A DU17/7/96 RLR 211.5A C.22",200440,"Cat7"]
["IND.INFORMATISATION C.I.O",200441,"Cat7"]
["COMPL.INDEM.SAINT MARTIN",200442,"Cat3"]
["IND FORFAITAIRE MENSUELLE - D93-552*27/03/1993 - AUDITEURS DE JUSTICE",200444,"Cat7"]
["COMPLT PRIME DE RENDEMENT",200446,"Cat6"]
["SUPPLT PRIME DE RENDEMENT",200447,"Cat6"]
["SUJ.ENSEIGN.FORMATI.CONT. - D 93 436 DU 24/03/1993",200451,"Cat7"]
["IND CHARG PART FORM CONTID 93 437 DU 24/03/1993",200452,"Cat7"]
["REM.ACTI.FORM.CONTINUE EN - D 93 438 DU 24/03/1993",200453,"Cat5"]
["REMB PREC SOLDE MILITAIRE",200454,"hors champ"]
["REGUL PREC PENSION CIVILE",200455,"hors champ"]
["REGUL PREC CNMSS",200456,"hors champ"]
["REGUL COTIS S.S. PEC AA - ",200457,"hors champ"]
["REGUL COTIS IRCANTEC AA - ",200458,"hors champ"]
["REMB PRECOMPTE URCREP AA",200459,"hors champ"]
["ISO ELEVE PART FIXE - ",200462,"Cat7"]
["IND TECHNI.INSPECT.DDASS - D 98 568 DU 7/07/1998",200463,"Cat7"]
["MODULATION DIFF. DES IAC",200464,"Cat7"]
["IND CH.ADM EX.CONSEIL.ADMART 4 DECRET 72 827",200465,"Cat7"]
["IND. DE CHARGES ADMIN. - D90-427*22/05/1990 MODIFIE - D92-204*28/02/1992",200466,"Cat7"]
["IND EXCEPT 1995 POLICE N.",200467,"Cat4"]
["INDEMNITE FONCTION BAAC",200468,"Cat7"]
["IND COMPLEMENTAIRE BAAC METEO FRANCE DECRET 96 104 DU 09/02/96 JORF 11/02/1996 ",200469,"Cat4"]
["MAJOR ANCIENNETE BAAC",200470,"Autre"]
["PRIME DEV ING TELECOM",200471,"Cat7"]
["IND.SPEC.MEDECINE PREV.",200472,"Cat7"]
["PREST. ESPECES AS.MALADIE - NOTES PAY 95 197 ET 95 187B",200474,"hors champ"]
["IND.FONCT.PART.TECH.ED.NA",200475,"Cat7"]
["PRIME DE COMMANDEMENT P.N - ABROGEE PAR D2013-1144*11/12/2013",200476,"Cat7"]
["IND. FIDELIS. SECT. DIFF. - D99-1055*15/12/1999 MODIFIE - POLICE NATIONALE",200477,"Cat3"]
["PRIME DE PRECARITE",200478,"hors champ"]
["PR. DEPART A LA RETRAITE",200479,"hors champ"]
["INDEMNITE FORFAITAIRE - D2007-349*14/03/2007 - ADM.PENIT. INSERTION ET PROBATION",200480,"Cat7"]
["ALLOC SERV CORPS DIR PN",200483,"Cat7"]
["IND ENSEIG MILIEU PENIT - D71-685*18/08/1971",200484,"Cat7"]
["IND.FORF.SUJETIONS SPEC.",200485,"Cat7"]
["IND SUJET SPEC MEDEC EDUC",200486,"Cat7"]
["IND CHARGES ADM SECR ACAD - D 92.356 DU 27/3/1992 A DU 09/7/1998 RLR 211.3 C.22",200487,"Cat7"]
["PRIME D'ENCADRT EDUC. PPJ",200488,"Cat7"]
["INDEMNITE EXCEPTIONNELLE - D 97 215 DU 10/03/1997",200489,"Autre"]
["COMP MAJ SGAP PARIS",200490,"Cat7"]
["PRIME ACTIVITE CONTR TRAV - D 97 530 DU 26/05/1997",200491,"Cat7"]
["IND EXPERTISE POL SCIENTI - D 97 647 DU 31/05/1997",200492,"Cat7"]
["ALLOCATION SPECIALE - D89-755*18/10/1989 MODIFIE - ING.ETUDES ET FABRICATION DEF.",200493,"Cat7"]
["PR RENDT PERS TRANSM ARME",200494,"Cat6"]
["I SUJ PART PERS TRANS ARM",200495,"Cat7"]
["IND DE RESTRUCTURATION",200496,"Cat8"]
["HSE ENS SUPPLEANCES - ",200497,"Cat2"]
["H.S EFFECT SURV SUPPLEANC",200498,"Cat2"]
["INDEMNITE FORFAITAIRE",200505,"Cat7"]
["IND EXERCICE POSTES DIFF. - D2005 1644*26/12/2005",200506,"Cat3"]
["REM.SECTION APPRENTISSAGE - D79 916 DU 17/10/79 D68 536 DU 23/05/68",200507,"Cat5"]
["IND EX.DE MISSIONS PREFEC - D 97 1224 DU 26/12/97 JO28/12/97   D 97 1223",200508,"Cat7"]
["IND FONCT ARCHI URBA ETAT",200509,"Cat7"]
["REMUN. ETUDES DIRIGEES - D96-80*30/01/1996 MODIFIE- ARRETE DU 21/01/2009",200510,"Cat7"]
["VACATIONS ENS. GENERAL",200511,"Cat5"]
["ACT.D'ANIMATION LYCEES",200512,"Cat5"]
["VACATIONS FAI",200513,"Cat5"]
["VACATIONS ZEP",200514,"Cat5"]
["IND. TRAVAUX INSALUBRES - D67-624*23/07/1967 - OUVRIERS DU MINISTÞRE DES ARMEES",200515,"Cat7"]
["IND. TRAVAUX SALISSANTS - D67-624*23/07/1967 - OUVRIERS DU MINISTERE DES ARMEES",200516,"Cat7"]
["IND. TRAVAUX DANGEREUX - D 67 624 23/07/67 A 11/08/75 RLR 211 8 A 20/02/96 RLR 211 8",200517,"Cat7"]
["RISQUES PROF. CIVILS DEF - D 82300 31/3/82 ARRETE 28/2/95",200518,"Cat7"]
["IND DEPART VOLONT OUV DEF",200519,"Cat8"]
["SUP IND SPEC QUALIF",200520,"Cat7"]
["PRIME POLYVALENCE BAAC",200521,"Cat7"]
["PR. SERVICE ET RENDEMENT - D2009-1558*15/12/2009",200522,"Cat7"]
["SURVEILL TRAV.USINE PRIVE - D 45 1857 DU 18/08/1945",200523,"Autre"]
["ALLOC SPEC TEMPO ING ARMT",200524,"Cat7"]
["IND. EMBARQT SOUS-MARIN",200525,"Cat7"]
["IND.HOR.EMB.IMMERSION",200526,"Cat2"]
["IND. SERV. AERIENS TECHN.",200527,"Cat7"]
["IND.SPECIALE",200528,"Cat7"]
["TRAVAUX A FORFAIT",200529,"Autre"]
["HSA HORS SUPPLEANCES MLDS",200530,"Cat2"]
["HSA SUPPLEANCES MLDS",200531,"Cat2"]
["HSE HORS SUPPLEANCES MLDS - HEURES SUPPL.ENSEIGT MDLSHORS SUPPLEANCES",200532,"Cat2"]
["HSE SUPPLEANCES MLDS - HSE ENSEIGT MDLS DANS LECADRE DES SUPPLEANCES",200533,"Cat2"]
["IND.PERMANENCE DOMICILE - DECIS.MINIST.N27328MA/SCR/PC*21/11/1960 DM N37108*01/09/80",200534,"Cat2"]
["IND.COMPENS.CONGES",200535,"Cat2"]
["IND.SPEC.QUALIFICATION",200537,"Cat7"]
["IND.FONCTION",200538,"Cat7"]
["IND.EXCEP.ATTENTE PENSIOND65 836 DU 24 09 1965 ART 25",200539,"Autre"]
["IND.JOURN.STAGE",200540,"Cat5"]
["REM.PERS.NON ENSEIGNANTS",200541,"Cat5"]
["INDEMNITE SPECIALE - D2001-414*09/05/2001 - CORPS TECHNIQUES DE L'IGN",200542,"Cat7"]
["IND.TRAVAUX SOUS MARINS - (D98 341*06/05/1998) MIN.DEFENSE",200543,"Cat7"]
["IND.FORF.VARIABLES",200544,"Cat7"]
["IND.ENQUETEURS DE PRIX - (D71 159*26/02/1971) MIN.DEFENSE",200545,"Cat7"]
["PRIME DE DESINTERESSEMENT",200546,"Autre"]
["PRIME RISQUE",200547,"Cat7"]
["IND.SPEC.RESPONSABILITE",200548,"Cat7"]
["PRIME ANCIENNETE",200549,"Autre"]
["PRIME SUJ.SPECIALES",200550,"Cat7"]
["INDEMNITE DE POLYVALENCE",200552,"Cat7"]
["IND.RESPONSABILITE",200571,"Cat7"]
["REM. GESTION OPHLM - ARTICLE R423-23 DU CODE DE LA CONSTRUCTION ET DE L'HABITAT",200574,"Cat5"]
["IND.SPECIALE",200575,"Cat7"]
["MAJO.1ERE HSA ENSEIGNT - EN DEHORS DES SUPPLEANCES(1ERE HEURE) (D50 1253*06/10/1950)",200576,"Cat2"]
["MAJO.1ERE HSA ENSEIGNT - DANS LE CADRE DES SUPPLEANCES (D50 1253*06/10/1950)",200577,"Cat2"]
["MAJ. HSA HORS SUPPL. MLDS",200578,"Cat2"]
["MAJ. HSA SUPPLEANCES MLDS",200579,"Cat2"]
["MAJO.1ERE HSA SURVEIL.",200580,"Cat2"]
["MAJO.1ERE HSA SURVEIL.",200581,"Cat2"]
["IND.SUIVI APPRENTIS - (D99 703*03/08/1999)",200582,"Cat7"]
["IND.FORF.MEMSUELLE",200583,"Cat7"]
["PRIME DE SERVICE - SERVICE DE SANTE DES ARMEES (ARR.24/03/1987 MODIFIE)",200584,"Cat4"]
["IND.SUJ.SPECIALE - SERVICE DE SANTE DES ARMEES (D90 693*01/08/1990)",200585,"Cat7"]
["PRIME SPEC.SUJETION - SERVICE DE SANTE DES ARMEES (ARR.23/04/1975)",200586,"Cat7"]
["PRIME FORF.MENSUELLE - SERVICE DE SANTE DES ARMEES (ARR.23/04/1975)",200587,"Cat7"]
["IND.FORF.TRAV.DIM.& JF. - (D92 7*02/01/1992) SERVICE DE SANTE DES ARMEES",200588,"Cat2"]
["PRIME RESPONSABILITE",200589,"Cat7"]
["IND.FONCTION",200590,"Cat7"]
["PRIME FAISANT FONCTION",200591,"Cat7"]
["PRIME ENCADREMENT TECHNQ.",200592,"Cat7"]
["PRIME TECHNICITE",200593,"Cat7"]
["COMPL.RENDEMENT C.I.",200594,"Cat6"]
["PRIME RESP.PEDAGOGIQUES",200596,"Cat7"]
["IND.FONCTIONS PARTIC. - D 99 886 DU 19/10/1999",200597,"Cat7"]
["A.F.D.E.F.               D2010-574*31/05/2010 - ALLOC DEMANDEUR D'EMPLOI EN FORMATION",200598,"hors champ"]
["MINIMUM GARANTI          MINIMUM GARANTI PERSONNELS NAVIGANTS (BAAC)",200599,"hors champ"]
["FORFAIT PERSONNELS NAVIG.",200600,"Cat7"]
["IND.SPEC.HABILITATION",200601,"Cat7"]
["COMPL.REMUNERATION",200602,"Cat7"]
["IND.ENSEIGT MILIEU PENIT. - (D2000 876*06/09/2000)",200603,"Cat7"]
["ALLOC.COMPL.FONCTION - (D2002 710*02/05/2002)",200604,"Cat7"]
["IND.SPEC.SERVICE - (D2003 799*25/08/2003)",200605,"Cat7"]
["PRIME FORF.OPJ - (D99 708*03/08/1999) OFFICIER POLICE JUDICIAIRE",200606,"Cat7"]
["INDEMNITE DE DIRECTION",200607,"Cat7"]
["PRIME SPECIALE - (D2000 239*13/03/2000)AGRICULTURE   PERS. NON OUVRIERS",200608,"Cat7"]
["IND DE GESTION DES A.S.A. - DGFIP/GESTION PUBLIQUE",200609,"Cat7"]
["IND.COMPENS./DEG.",200610,"Autre"]
["IND.SPEC.SUJETIONS - (D2000 240*13/03/2000) MIN.AGRICULT.",200611,"Cat7"]
["IND.SPEC.FONCTIONS",200612,"Cat7"]
["IND.GESTION CONJOINTE PNC",200613,"Cat7"]
["PRIME ENCADREMENT",200614,"Cat7"]
["IND.COMPENS.NOURRITURE - PERSONNELS CIVILS CUISINEET SALLE MIN.DEFENSE",200615,"Autre"]
["IND.FONCTION ANIMATION - (D2001 775*30/08/2001)",200616,"Cat7"]
["PRIME SERV PERS AUTRE ADM",200617,"Cat7"]
["HEURES SUP S.G.C.I.",200618,"Cat2"]
["H SUP PERSONNEL TECHNIQUE",200619,"Cat2"]
["INDEMNITE ACADEMIQUE",200620,"Cat7"]
["IFS INGENIEURS TELECOM",200621,"Cat7"]
["HEURES SUP ELECTION",200622,"Cat2"]
["IND. FORFAITAIRE SPECIALE",200623,"Cat7"]
["INDEMNITE FORFAITAIRE",200624,"Cat7"]
["IND. CHARGES ADMINISTRAT.",200625,"Cat7"]
["IND CC ENQ COUT RENDT SP",200626,"Autre"]
["PRIME INNOV.SCIENT./TECH. - (D2000 730*31/07/2000)",200627,"Cat7"]
["PRIME SUJETIONS",200628,"Cat7"]
["PRIME SUJETIONS",200629,"Cat7"]
["I.R.T.L.",200630,"Autre"]
["PRIME DE RENDEMENT - D45-1753*06/08/1945 DGFIP GESTION PUBLIQUE",200631,"Cat6"]
["PRIME DE FONCTIONS",200632,"Cat7"]
["IND.DIFFICULTE ACCES - (D2000 1108*14/11/2000)",200633,"Cat3"]
["REGIME INDEMNITAIRE",200638,"Cat7"]
["ALLOC.INDEMNITAIRE - ",200639,"Autre"]
["IND. JOURN. DE SUJETIONS - D2001-297*04/04/2001",200640,"Cat3"]
["GARANTIE DIFFERENTIELLE  DGFIP/GESTION PUBLIQUE",200641,"Autre"]
["ACF APPORTEURS PRODUCTEUR",200642,"Cat7"]
["IND.RESPONSABILITE",200643,"Cat7"]
["IND.RESPONSABILITE",200644,"Cat7"]
["IND.SPEC.RENFORT SAISON. - (D2001 676 ARRETE 27/07/2001)",200645,"Autre"]
["IND.COMPENS.SUJ.SPECIF. - D2005-1643*26/12/2005",200646,"Cat3"]
["ALLOCATION DE MAITRISE - D2001-722*31/07/2001",200647,"Cat7"]
["HEURES SUPPLEMENTAIRES",200648,"Cat2"]
["REMUN.ENSEIGT LANGUES",200649,"Cat7"]
["IND.FONCTIONS - (D2001 811*07/09/2001)",200650,"Cat7"]
["REGIME INDEMNITAIRE DES CASU STAGIAIRES DU MEN (D2001 1190*11/12/2001) ",200655,"Cat7"]
["IND.RESPONSABILITE ADM. D2007-1607*13/11/2007 - EMPLOIS DE CASU ET SGASU ",200657,"Cat7"]
["PRIME MOBILITE PEDAGOGIQUE (D2001 935*11/10/2001)          ",200658,"Cat2"]
["COMPL.INDEMNITE SEJOUR",200661,"Cat3"]
["COMPL.DIFFERENT.SALAIRE  NOTE MAINTENANCE PAY2002 011",200662,"Autre"]
["IND.EXAMENS SUPPL.",200663,"Cat5"]
["IND.FORF.EXCEPT.",200664,"Cat7"]
["REM. DES ASTREINTES - D2000-815*25/08/2000 ET TEXTES VISANT CE MEME DECRET",200667,"Cat2"]
["IND.FONCTION",200668,"Cat7"]
["PRIME FORFAITAIRE - (D2001 772*27/08/2001)CATEG.A,CONTR. DGDDI ENQ.JUDICIAIRES",200670,"Cat7"]
["PRIME FONCTIONS PARTICUL. - (D2001 1359 ARR.28/12/2001) PERS.ACTIFS POLICE NAT.",200671,"Cat7"]
["PRIME SPEC.INSTALLATION - (D2001 1225*20/12/2001)",200672,"Cat3"]
["IND.PARTIC.SUJ.INSTALL. - (D2001 1226*20/12/2001)",200673,"Cat3"]
["IND. ADM. ET TECHNICITE - D2006-61*14/01/2002",200674,"Cat7"]
["IND.FORF.TRAV.SUPPL. - 2002-63*14/01/2002 - SERVICES DECONCENTRES",200676,"Cat7"]
["PRIME DE FONCTION",200677,"Cat7"]
["IND SPECIFIQUE DE GESTION - D2005 1679*28/12/2005 - ADMINISTRATION PENITENTIAIRE",200678,"Cat7"]
["VACATION TRAITEMENT      ABROGE PAR D2018-134*27/02/2018",200679,"hors champ"]
["IND.COMMISSAIRE GVT. - DECRET 63 766 DU 30/07/1963",200680,"Cat7"]
["IND.COM.GVT.COUR.CASS.PEN",200681,"Autre"]
["TRAIT PERS HOSPITALO UNIV - NON-TITULAIRES",200682,"hors champ"]
["INDEMNITE DE LOGEMENT - D71-631 DU 28/07/1971 MODIFIE",200683,"hors champ"]
["IND. SPECIF. DEGRESSIVE  DECISION MINISTERIELLE DU 12/10/2005 - ENS MINES PARIS",200684,"Autre"]
["IND.FRAIS ADM.ONF        IND.FRAIS ADMINISTR.VENTES COUPES BOIS (ARRETE 07/02/1969)",200687,"hors champ"]
["PRIME DE DANGER - (D2002 103*23/01/2002) TRAITEMENT MUNITIONS",200688,"Cat7"]
["PRIME RENDEMENT",200689,"Cat6"]
["IND.SUJETIONS HORAIRES",200690,"Cat2"]
["PRIME METIER",200691,"Cat7"]
["PRIME TECHNIQUE - PRIME TECHNIQUE ENTRETIEN,TRAVAUX,EXPLOITATION EQUIPEMENT",200692,"Cat7"]
["IND.FONCTIONS",200693,"Cat7"]
["INDEMNITE DE DIRECTION",200695,"Cat7"]
["COMPL.PRIME RENDEMENT OUVRIERS DE L'AVIATION CIVILE - PROTOCOLE DU 25/01/2001   ",200696,"Cat6"]
["ALLOC. SPECIFIQUE CAAA",200697,"hors champ"]
["IND.DIFFERENTIELLE       D2008-478*21/05/2008 - AVIATION CIVILE",200698,"Autre"]
["INDEMNITE FORMATION ENSAM CHALON        ",200699,"Cat5"]
["IND. RESPONSABILITE - INDEMNITE DE RESPONSABILITE",200701,"Cat7"]
["IND.SUJETIONS SPECIALES - DE REMPLACEMENT (NON IMPOSABLE)",200702,"Cat6"]
["IND.SUJETIONS EXCEPT. - FRACTION NON IMPOSABLE",200703,"hors champ"]
["AVANCE TRAIT.BUDG.DOM    AVANCE TRAITEMENT BUDGETAIRE DOM SI SENS 1",200704,"hors champ"]
["IND.PERCEPTION VILLE",200705,"Cat7"]
["INDEMNITE D'INTERIM",200706,"Cat7"]
["IND.COMP.TRANSPORT CORSE - D89-251 DU 20/04/1989",200707,"hors champ"]
["INDEMNITE D'ELOIGNEMENT - D68-568*21/06/1968 - TAAF",200708,"Cat3"]
["IND.CAISSE ET RESPONSAB. - D73-899*18/09/1973",200709,"Cat7"]
["IND.FORF.FRAIS REPRESENT. - D2001 1045*06/11/2001",200710,"hors champ"]
["VACATIONS CPH",200711,"Cat5"]
["IND.SURV.CAISSES EPARGNE",200712,"Autre"]
["IND. DE PERTE AU CHANGE - INDEMNITE DE PERTE AU CHANGE",200713,"hors champ"]
["IND. RESID. A L'ETRANGER - D67-290*28/03/1967 - ART.2",200714,"Cat3"]
["IND. SERVICE EN RFA",200715,"Cat3"]
["ATTRIB.INDEMN.RECEVEURS",200716,"Cat7"]
["IND.FRAIS EXPATRIATION - INDEMNITE REPRESENT.FRAISEXPATR.TEMPORAIRE",200717,"hors champ"]
["MAJORATIONS FAMILIALES - D67-290*28/03/1967 - ART.8",200718,"hors champ"]
["IND.SPEC.DECENTRALISATION",200719,"Cat8"]
["ALLOC.AIDE MOBILITE CONJ.",200720,"Cat8"]
["IND.EXCEPT.MUTATION",200721,"Cat3"]
["PRIME DE RESTRUCTURATION",200722,"Cat8"]
["IND.SPEC.DECENTRALISATION",200723,"Cat8"]
["ALLOC.AIDE MOBILITE CONJ.",200724,"Cat8"]
["IND.EXCEPT.MUTATION",200725,"Cat8"]
["PRIME DE RESTRUCTURATION",200726,"Cat8"]
["INDEMNITE D'ETABLISSEMENT - D67-290*28/03/1967 - ART.11",200727,"Cat3"]
["IND.CONVERSION           CERTAINS OUVRIERS MIN.DEFENSE (D97 599*30/05/1997)",200728,"Cat8"]
["IND.CONVERSION(PART EXON)(PART EXONEREE SS 1%CSG ET RDS (IRCANTEC) D97 599*30/05/97",200729,"Cat8"]
["CPLT SPECIF/EXCEPT RESTR. - D97-599 ET D97-600*30/05/1997 MODIFIES",200730,"Cat8"]
["CPLT SPECIF/EXCEPT RESTR. - D97-599 ET D97-600*30/05/1997 - PART EXONEREE DE COTISATIONS",200731,"Cat8"]
["IND.REPR.LOGEMENT        INDEMNITE REPRESENTATIVE LOGEMENT (PREFECTURE ILE DE FRANCE)",200732,"hors champ"]
["I. DEPART VOLONTAIRE OMID",200733,"Cat8"]
["IND.SEJOUR - PERSONNELS CIVILS PLACESSUITE DES FORCES FR. EN ALLEMAGNE",200734,"Cat3"]
["MAJ. SPEC. SERV. EN RFA - PERSONNELS CIVILS PLACESSUITE DES FORCES FR.EN ALLGNE",200735,"hors champ"]
["COMPL.IND.SEJOUR - PERSONNELS CIVILS PLACESSUITE DES FORCES FR.EN ALLGNE",200736,"Cat3"]
["PRIME TRANSPORT DRAGAGE",200737,"Cat7"]
["IND.FRAIS DE ROUTE MARINSMARINS DE L'EQUIPEMENT",200738,"hors champ"]
["IND.FIN CARRIERE         MARINS DE L'EQUIPEMENT",200739,"Cat7"]
["IND.RESERVISTES CIVILS - POLICE NATIONALE  (D20031395*31/12/2003)",200740,"Cat7"]
["INDEMNITE MENSUELLE",200741,"Cat7"]
["COMPL ACF GARANTIE REM ID",200742,"Cat7"]
["IND.DEPART OUTRE-MER",200743,"Cat3"]
["IND. SUJ. SERVICE ETR.   D97-901*01/10/1997 - MILITAIRES DGA A SOLDE MENSUELLE",200744,"Cat3"]
["IND. SUJ. SERVICE ETR.   D97-902*01/10/1997 - MILITAIRES DGA",200745,"Cat3"]
["IND. CHARGES MILITAIRES - D59-1193*13/10/1959 MODIFIE - DGA",200746,"Autre"]
["IND. DE DEPART VOLONTAIRE",200747,"Cat8"]
["B.M.C. - ALLOC. MOBILITE",200748,"hors champ"]
["B.M.C. - IND. DEPLACEMENTBOURSES MARIE CURIE - UNIVERSITES RCE",200749,"hors champ"]
["IND.FORF.FRAIS REPRESENT. - D2001-1045*06/11/2001 - CORPS PREFECTORAL",200750,"Autre"]
["PECULE 2EME CARRIERE",200751,"Cat8"]
["PECULE INCITATION DEPART",200752,"Cat8"]
["CPLT SPECIF. RESTRUCT.",200753,"Cat8"]
["SUPPLEMENT FAMILIAL - D67-290*28/03/1967 MODIFIE - ART. 7 - COUR DES COMPTES",200754,"hors champ"]
["MAJ. SAL. A L'ETRANGER",200755,"Cat3"]
["INDEMNITE ACADEMIQUE",200756,"Cat7"]
["IND. FRAIS EXPAT. TEMP.-D2018-948*10/09/2019",200757,"Autre"]
["IND. SPECIF. RUPT. CONV.",200758,"Cat8"]
["INDEMNITE POUR MISSION",200759,"Cat2"]
["MAJ.IND.CHARG.MILITAIRE - MAJO.INDEMNITE POUR CHARGES MILITAIRES(D59 1193*13/10/1959)",201000,"Autre"]
["COMPL.FORF.IND.CH.MILIT. - COMPLEMENT FORFAITAIRE INDEMNITE POUR CHARGES MILITAIRES",201001,"Cat7"]
["SUPPL.FORF.IND.CH.MILIT.",201002,"Cat7"]
["PRIME SERVICE ET RENDT - PRIME DE SERVICE ET RENDEMENT INGENIEURS ARMEMENT",201003,"Cat7"]
["PRIME DE SERVICE - D80-119*05/02/1980 - INGENIEURS ETUDES TECHNIQUES ARMEMENT",201004,"Cat7"]
["ALLOC.SPEC.DEVELOPPEMENT - INGENIEURS DE L'ARMEMENT",201005,"Cat6"]
["PRIME DE QUALIFICATION - D54 539*26/05/1954 - D751206*22/12/1975 - 16 % SOLDE BRUTE",201006,"Cat6"]
["PRIME DE QUALIFICATION - D64-1374*31/12/1964 - D70-319*14/04/1970 - 28 % SOLDE BRUTE",201007,"Cat6"]
["IND.RISQ. PROFESSIONNELS",201008,"Cat6"]
["IND.RISQ. PROFESSIONNELS",201009,"Cat7"]
["IND.JOURN.RISQ.PROF.",201010,"Cat7"]
["MAJ.JOURN.SERVICE",201011,"Cat7"]
["MAJ.SOLDE SERVICE S/M",201012,"Cat7"]
["IND.FORF.SPECIALE",201013,"Cat7"]
["PRIME DE RENDEMENT ENQUETEURS DE PRIX DU MIN.DEFENSE     ",201014,"Cat4"]
["IND.RESPONSABILITE",201015,"Cat7"]
["IND.APPEL PREPA.DEFENSE - D98 1051*23/11/1998",201016,"Cat5"]
["IND.TRAV.SCAPHANDRE",201017,"Cat7"]
["IND.TRAVAUX SOUTERRAINS",201018,"Cat7"]
["IND.JOURN.SERVICE",201019,"Cat7"]
["COMPLEMENT SPECIAL        APPLIC.REGIME DE SOLDE BATIMENTS NAVIGANT A EXTERIEUR",201020,"Cat7"]
["MAJ.SERVICE A LA MER",201021,"Cat6"]
["INDEMNITE COMPENSATRICE  D2006-4*04/01/2006 - D2006-882*17/07/2006 - MILIT. DETACHES",201022,"Autre"]
["PR. SERVICE ET RENDEMENT - D70-354*21/04/1970 - INGENIEURS DU GREF",201023,"Cat6"]
["PR. SERVICE ET RENDEMENT",201024,"Cat7"]
["PR. SERVICE ET RENDEMENT - D70-354*21/04/1970 - VETERINAIRES INSPECTEURS",201025,"Cat6"]
["PR. SERVICE ET RENDEMENT - D70-354*21/04/1970 - ITA,ITR, ITEF",201026,"Cat6"]
["PR. SERVICE ET RENDEMENT - D70-354*21/04/1970 - TECHNICIENS DU MAP",201027,"Cat6"]
["PRIME DE RENDEMENT",201028,"Cat7"]
["PRIME DE RENDEMENT",201029,"Cat7"]
["PRIME DE RENDEMENT",201030,"Cat7"]
["PRIME DE TECHNICITE - (D2001 479*30/05/2001)",201031,"Cat7"]
["PRIME D'ACTIVITE - PRIME D'ACTIVITE INSPECTION DU TRAVAIL",201032,"Cat7"]
["PRIME DE TECHNICITE - D2000-1139*24/11/2000 -D2000-1140*24/11/2000",201033,"Cat7"]
["IND. SUJ. PARTICULIERES - D2001-1148*05/12/2001 - PERSONNELS DES CABINETS MINISTERIELS",201036,"Cat7"]
["PRIME FORFAITAIRE - D2003-1284 Ó 1286 DU 26/12/2003 - MAGISTRATS - ENM",201037,"Cat6"]
["IND.RENDEMENT (ABROGE PAR LES DECRETS DU 26/12/2003) MAGISTRATS      ",201038,"Cat4"]
["PRIME COMPLEMENTAIRE - (D2003 1284*26/12/2003)",201039,"Cat7"]
["PRIME MENS EXPLOITATION",201040,"Cat7"]
["PRIME MENS.RESPONSABILITE",201041,"Cat7"]
["SUPPLEMENT QUALIFICATION",201042,"Cat7"]
["BREVET SPECIALISTE FEU   BREVET SPECIALISTE FEU (INSCRITS MARITIMES)",201043,"Cat7"]
["INDEMNITE PLONGEE",201044,"Cat7"]
["INDEMNITE CHANTIER EXT",201045,"Cat7"]
["PRIME FIN ANNEE MARINS EQ",201046,"Cat7"]
["IND. GARDE",201047,"Cat7"]
["IND.PLAN POLMAR",201048,"Cat7"]
["IND.SURCLASSEMENT        INDEMNITE SURCLASSEMENT CATEGORIEL ENIM(MARINS EQUIPT)",201049,"Cat7"]
["IND.ACT.OBLIG.PROF. - (D2002 185*14/02/2002 JODU 15/02/2002)",201050,"Cat7"]
["IND.FORFAIT.ACTIVITE - (D2002 469*05/04/2002 JODU 07/04/2002)",201051,"Cat7"]
["IND. DEMINAGE/DEPIEGEAGE - OUVRIERS MIN.DEFENSE (PASSOUMIS AU FSPOEIE)",201052,"Cat7"]
["IND.JOURN.SERV.AERIENS",201053,"Cat7"]
["IND.MENS.OUVRIERS DCN",201054,"Cat7"]
["INDEMNITE DE BORD",201055,"Cat7"]
["IND.FORF.RESPONSABILITE - (D2002 740*02/05/2002 JODU 04/05/2002)",201056,"Cat7"]
["IND.SPECIALE",201057,"Cat7"]
["IND. DE JOUR FERIE - D2002-856*03/05/2002 - D2012-261*23/02/2012",201058,"Cat2"]
["IND.JOURN. INTERVENTION",201059,"Cat7"]
["HEURES SUPPL 1ER TAUX",201060,"Cat2"]
["HEURES SUPPL 2EME TAUX",201061,"Cat2"]
["HEURES COMPL NON MAJOREES",201062,"Cat2"]
["IND.GESTION - (D2002 83*17/01/2002)",201063,"Cat7"]
["COMPLEMENT DE GARANTIE   DGFIP/GESTION PUBLIQUE",201064,"Cat7"]
["ALLOC.COMPL.FONCTIONS - DGFIP/FISCALITE - D2002-710*02/05/2002",201065,"Cat7"]
["IND.DIFFERENTIELLE - (D2002 711*02/05/2002 JODU 04/05/2002)",201066,"Autre"]
["ALLOC.COMPL.FONCTIONS - DGDDI (COMMANDEMENT)",201067,"Cat7"]
["ALLOC.COMPL.DE FONCTIONS - DGDDI (ADMINISTRATION GENERALE)",201068,"Cat7"]
["ALLOC.COMPL.FONCTIONS - DGDDI(OPERATIONS COMMERCIALES)",201069,"Cat7"]
["ALLOC.COMPL.FONCTIONS - DGDDI (COMPTABLES)",201070,"Cat7"]
["ALLOC.COMPL.FONCTIONS - DGDDI (SURVEILLANCE)",201071,"Cat7"]
["ALLOC.COMPL.FONCTIONS - DGDDI (SPECIALISTES SURVEILLANCE)",201072,"Cat7"]
["IND.FORF.REPRES.SUJETIONS - (D2002 1105*30/08/2002 JODU 01/09/2002)",201073,"Cat7"]
["IND. RESPONS. ADMIN.",201074,"Cat7"]
["IND.PARTIC.SERVICE",201075,"Cat7"]
["ALLOC.COMP. FONCTIONS - D2002-710*02/05/2002 - INSEE DRIRE DGCCRF",201076,"Cat6"]
["ACF - RESPONSABILITES - INSEE - D2002-710*02/05/22",201077,"Cat7"]
["ALLOC.COMPL.FONCTIONS - (ARTICLE 6 ARRETE DU 02/05/2002) INSEE",201078,"Cat7"]
["ALLOC.COMPL.FONCTIONS",201079,"Cat7"]
["MAJ.ACF LABO",201080,"Cat7"]
["ALLOC.COMPL.FONCTIONS",201081,"Cat7"]
["MAJ.ACF CATEG.A - MAJORATION ACF CATEGORIEA (DGDDI)",201082,"Cat7"]
["MAJ.ACF ISA",201083,"Cat7"]
["MAJ.ACF ST MARTIN - MAJO.ALLOC.COMPL.FONCTIONS ST MARTIN (DOUANES)",201084,"Cat3"]
["MAJ.ACF - MAJO.ACF CHEFS DE POLE DES RECETTES REGIONALES ET ADJOINTS",201085,"Cat7"]
["MAJ ACF - MAJORATION ACF POSTE DIFFICILE (DOUANES)",201086,"Cat7"]
["MAJ.ACF SERVICE - SECRET.DU DIR.GAL,CHEFS DE SERVICE,SOUS DIRECTEURS(DOUANES)",201088,"Cat7"]
["MAJ.ACF OBLIG. RESIDENCE - MAJO.ACF OBLIGATION DE RESIDENCE (DGDDI)",201089,"Cat7"]
["PRIME RENDEMENT - PRIME DE RENDEMENT DGDDI",201090,"Cat6"]
["PRIME DE RENDEMENT - DGCCRF   DECRET 45 1753 ET DECRET 50 196 ARRETE DU 02/05/02",201091,"Cat6"]
["IND.SUJ.SPEC. 1ERE PART - D2002 1247*04/10/2002",201092,"Cat7"]
["ALLOC.COMPL.FONCTIONS - DGFIP/GESTION PUBLIQUE (EXPERTISE) - DPAEP (SGAR)",201093,"Cat7"]
["ALLOC.COMPL.FONCTIONS",201094,"Cat7"]
["ACF ANIMATION DU RESEAU - DGFIP/GESTION PUBLIQUE -D2002-710*02/05/2002",201095,"Cat7"]
["ACF PCNC PART FIXE",201096,"Cat7"]
["ACF PCNC PART VARIABLE DGFIP/GESTION PUBLIQUE - PART VARIABLE PCNC     ",201097,"Cat7"]
["ACF SUJETIONS SPECIALES - DGFIP/GESTION PUBLIQUE -AGENTS CHARGES DES POURSUITES",201098,"Cat7"]
["IND.DIFFERENT.CLASSEMENT DGFIP/GESTION PUBLIQUE",201099,"Autre"]
["ACF ANIMATEUR EPARGNE",201100,"Cat7"]
["PRIME D'ACTIVITE",201101,"Cat7"]
["PRIME FORF.FONCTIONS - (PART LIEE FONCTION OCCUPEE)ALLOUEE MAGISTRATS DES CRC",201102,"Cat7"]
["PRIME FORF.FONCTIONS     (PART LIEE GRADE ET ECHELON DANS LE GRADE)ALLOUEE MAGIST.CRC",201103,"Cat7"]
["PRIME RENDEMENT - ALLOUEE PERSONNELS COUR DES COMPTES ET CRC",201104,"Cat6"]
["PRIME RENDEMENT - ALLOUEE PERSONNELS CRC,DREE,MIN.AGR.,EMPL.,EQUIPT,IGF",201105,"Cat6"]
["MAJ.ACF NUIT - MAJORATION ACF TRAVAIL DENUIT",201106,"Cat2"]
["MAJ.ACF DJF - MAJORATION ACF TRAVAIL DIMANCHES,JOURS FERIES",201107,"Cat2"]
["MAJ.ACF RTS - MAJORATION ACF REGIME TRAVAIL SUPPLEMENTAIRE",201108,"Cat7"]
["MAJ.ACF ENTRETIEN MOTO - 1ERE MISE ET ENTRETIEN MOTOCYCLETTES (DGDDI)",201109,"Cat7"]
["MAJ.ACF OCTROI MER",201110,"Cat7"]
["ALLOC.SPECIF.BSM - PERSONNELS BRIGADE DE SURVEILLANCE DU MINEFI (BSM)",201111,"Cat7"]
["PRIME DE RENDEMENT - PERSONNELS DES DRIRE",201112,"Cat6"]
["REMBT.ENIM               REMBOURSEMENTS DU PRECOMPTE COTISATIONS ENIM DE CODE 0943",201113,"hors champ"]
["REMBT CONTRAT PREVOYANCE MARINS DE L'EQUIPEMENT (CODE 0944)",201114,"hors champ"]
["REMBT PRECOMPTE USM      MARINS DE L'EQUIPEMENT ( CODE 0945)",201115,"hors champ"]
["REMBT CONTRAT SANTE      CONTRAT FILLON POUR MARINS DE L'EQUIPEMENT (CODE 0961)",201116,"hors champ"]
["REMBT PRECOMPTE NON DED. REMBOURSEMENT PRECOMPTE 0948 = NON DEDUCTIBLE",201118,"hors champ"]
["REMBT PRECOMPTE          REMBOURSEMENT PRECOMPTE 0949 = DEDUCTIBLE (ASSEDIC)",201119,"hors champ"]
["REMBT PRECOMPTE DED.     PRECOMPTE 0950 = DEDUCTIBLE",201120,"hors champ"]
["REMBT PRECOMPTE          PRECOMPTE 0951 = DEDUCTIBLE",201121,"hors champ"]
["REMBT PRECOMPTE          PRECOMPTE 0952 = DEDUCTIBLE",201122,"hors champ"]
["IND.SPEC.SERVICE - DIRECTEUR CENTR.,INGEN. DES TRAV.IMMOB.,MARITIMES/MIN 370",201123,"Cat7"]
["PRIME SERVICE ET RENDT - DIRECTEUR CENTR.,INGEN.DES TRAV.IMMO.ET MARITIMES MIN370",201124,"Cat6"]
["IND.LICENCIEMENT",201125,"hors champ"]
["IND. FONCT. DIRECTEUR",201126,"Cat7"]
["IND SUJETIONS SPECIALES",201127,"Cat7"]
["INDEMNITE FONCTION - (D2005 480*16/05/05)(D92224*10/03/92)(D2003 1068*10/11/03)",201128,"Cat7"]
["IND FORF DE SUJETIONS - CONSEILLERS D'EDUCAT. ETEDUC. INST NAT SOURDS AVEUGLES",201129,"Cat7"]
["INDEMNITE SPECIALE - ADJOINTS ET AGENTS SANITAIRES (D92 1438*30/12/1992)",201130,"Cat7"]
["INDEMNITE SPECIALE - TECHNICIENS SANITAIRES (D92 1438*30/12/1992)",201131,"Cat7"]
["INDEMNITE SPECIALE - INGENIEURS SANITAIRES (D90 976*30/10/1990)",201132,"Cat7"]
["IND SUJETIONS SPECIALES - PHARMACIENS INSPECTEURS SANTE PUBLIQUE(D79 126*01/02/1979)",201133,"Cat7"]
["PRIME D'ACTIVITE",201134,"Cat7"]
["PRIME D'ACTIVITE",201135,"Cat7"]
["INDEMNITE D'ACTIVITE",201136,"Cat7"]
["IND CAISSE RESPONSABILITE",201137,"Cat7"]
["INDEMNITE SPECIFIQUE - COMMANDEMT ENCADREMT POLICE NAT (D2003 402*29/04/2003)",201138,"Cat7"]
["RESTRUCTURATION RF/PNC",201139,"Cat8"]
["INDEMNITE DE TECHNICITE - MEDECINS INSPECTEURS SANTE PUBLIQUE (D91 657*15/07/1991)",201140,"Cat7"]
["INDEMNITE TECHNICITE - PHARMACIENS INSPECTEURS SANTE PUBLIQUE (D92 1077*01/10/1992)",201141,"Cat7"]
["IND.FORF.MENSUELLE",201142,"Cat7"]
["INDEMNITE DE GESTION - (D2003 404*29/04/2003)",201143,"Cat7"]
["IND.PROFESSEUR PRINCIPAL",201144,"Cat7"]
["IND ENSEIGNANTS IUFM",201145,"Cat7"]
["IND DIRECTEUR TUTORAT",201146,"Cat7"]
["TUTORAT STAG NON IUFM",201147,"Cat7"]
["CONS PEDAGO FORMA CAPSAIS",201148,"Cat7"]
["CONS PEDAGO PSYCHO SCOL",201149,"Cat7"]
["IND FONCTION - (D2003 745*31/07/2003)",201150,"Cat7"]
["PR.PART.RECH.SCIENTIFIQUE - (D2003 813*26/08/03)(D951105*12/10/95)(D78 211*28/02/78)",201151,"Cat7"]
["PRIME GESTION ET RESP ADM",201152,"Cat7"]
["IND SERV EXTRAORDINAIRE - (D95 860*27/07/1995 MODIFIE)",201153,"Cat7"]
["PRIME D'EXPERIENCE",201154,"Cat7"]
["IND.COMPL.DE FONCTIONS - (D2002 1090*07/08/2002)",201155,"Cat7"]
["IND SUJ PARTICUL. OMID",201156,"Cat7"]
["IND DE FONCTION",201157,"Cat7"]
["PRIME MODULABLE - (D2003 1284 A 2003 1286*26/12/2003)",201158,"Cat6"]
["PRIME TRAV SUPPL",201159,"Cat7"]
["IND RESTRUCTURATION",201160,"Cat8"]
["REVENU REMPLACEMENT CPA - AGENTS EN CPA A COMPTER DU 01/01/2004(LOI 2003 775)",201161,"Autre"]
["IND.FORFAIT.DE SUJETIONS",201162,"Cat7"]
["PRIME RENDEMENT (D90 408*16/05/1990)            ",201163,"Cat6"]
["IND.CHARGES ADMINISTR.",201164,"Cat7"]
["PRIME RENDEMENT - (D45 1753*06/08/1945)",201165,"Cat7"]
["PRIME RENDEMENT",201166,"Cat7"]
["PRIME RENDEMENT - (D57 1030*18/09/1957)",201167,"Cat6"]
["PRIME SERVICE ET RENDT",201168,"Cat7"]
["PRIME DE RENDEMENT",201169,"Cat7"]
["PRIME DE SUJETIONS - (D92 1002*18/09/1992)",201170,"Cat7"]
["PRIME SERVICE ET RENDT",201171,"Cat7"]
["INDEMNITE DE FONCTION",201172,"Cat7"]
["IND.SUJETIONS SPEC.",201173,"Cat7"]
["PRIME SERVICE ET RENDT - D58-7*02/01/1958 MODIFIE#NAME?",201174,"Cat6"]
["IND.PROPORTIONNELLE",201175,"Cat7"]
["IND.CADRE D'EMPLOI",201176,"Cat7"]
["IND.FORF. SPECIFIQUE",201177,"Cat7"]
["IND.RISQUES ET SUJETIONS",201178,"Cat7"]
["IND.RISQUES ET SUJETIONS",201179,"Cat7"]
["IND SUJETIONS PARTICUL.",201180,"Cat7"]
["IND.SUJETIONS SPECIALES - (D96 88*02/02/1996)",201181,"Cat7"]
["PRIME RENDEMENT (ARRETE*10/12/1974 MODIFIE)      ",201182,"Cat4"]
["PRIME SPECIFIQUE",201183,"Cat7"]
["PRIME SERVICE & RENDT",201184,"Cat7"]
["PR. SERVICE ET SUJETIONS - D2008-886*02/09/2008 - OFFICIERS DE PORT",201185,"Cat7"]
["IND.INSTAL/REINSTALLATION",201187,"Cat3"]
["PRIME PERSONNEL NAVIGANT - D2009-1556*14/12/2009",201188,"Cat7"]
["IND.FORF.DE SUJETIONS",201189,"Cat7"]
["PRIME FONCTIONNELLE",201190,"Cat7"]
["IND EXERCICE DE FONCTIONS - (D2004 529*11/06/2004)",201191,"Cat7"]
["PRIME DE GARDE",201192,"Cat7"]
["PRIME RESULTATS EXCEPT. - DECRET 2004 731 DU 21 7 2004   (MEL HESPEEL DU 29 7)",201193,"Cat7"]
["IND SUJETION D'ABSENCE - D2002 674*24/04/2002",201194,"Cat6"]
["HEURES SUPP ENSEIGNEMENT - DECRET 501253 06/10/1950RLR2134",201195,"Cat2"]
["CLAUSE DE MAINTIEN DRIRE CLAUSE DE MAINTIEN VERSEE TECHNICIENS DRIRE             ",201196,"Autre"]
["IND.FONCTION ET RESULTATS - D2004 1082*13/10/2004",201197,"Cat7"]
["MAJ SUPP RENDT BRIGADES - MAJORATION ACF (DGDDI)",201198,"Cat7"]
["MAJ.ACF SRBJ - SUPPLEMENT RENDT BRIGADESJOURNALIER (DGDDI)",201199,"Cat7"]
["MAJ.ACF ISM - ISM(INDEMNITE DE SERVICEDE MER) DGDDI",201200,"Cat7"]
["MAJ ACF ALLOC.FORFAITAIRE - DGDDI",201201,"Cat7"]
["MAJ ACF OBLIG.RESID.DISP.",201202,"Cat7"]
["MAJ ACF IND.CARENAGE - DGDDI",201203,"Cat7"]
["MAJ ACF PLONGEUR",201204,"Cat7"]
["MAJ ACF CUISINIER - MAJ ACF PRIME DE CUISINIER (DGDDI)",201205,"Cat7"]
["MAJ CAF COMPENSATION - PERSONNELS DNRED (RENSEIGTS ET ENQUETES DOUANIERES)",201206,"Cat7"]
["MAJ ACF MAINT.INFORMATQ - DGDDI",201207,"Cat7"]
["MAJ ACF IND. DE GARDE",201208,"Cat7"]
["MAJ ACF DELEG.DEPART. - MAJ ACF ALLOCATION DELEG.DEPTX ACTION SOCIALE (MINEFI)",201209,"Cat7"]
["MAJ ACF STAG.EXTERNE B",201210,"Cat7"]
["IND FONC CONT.GAL TRAVAIL",201211,"Cat7"]
["ACF RESPONSABILITE TP PNC",201212,"Cat7"]
["IND SPECIFIQUE TEMPO DGAC",201213,"Cat7"]
["IND.SPECIFIQUE FONCTION - (D2004 1244*23/11/2004) PREFETS NOMMES HORS CADRE",201214,"Cat7"]
["INDEMNITE EXCEPTIONNELLE D2004-1477*23/12/2004 MODIFIE",201215,"Cat7"]
["IND.PROJET PERSONNEL",201216,"Cat7"]
["INDEMNITE DE MISSION - D2004-1315*26/11/2004",201217,"Cat7"]
["ACF CAMPAGNE IR",201218,"Cat7"]
["ALLOC.RESPONSABILITE - (D2005 297*31/03/2005)",201219,"Cat7"]
["IND.EXCEPT.SOMMET GRADE  D2005 396*27/04/2005 - ABROGE PAR LE D2008-539*06/06/2008",201220,"Cat7"]
["IND.PARTICIPATION",201221,"Cat7"]
["MAJ.COM (73%) - (D67 600*23/07/1967)",201222,"Cat3"]
["MAJ COM (65%) - (D67 600*23/07/1967)",201223,"Cat3"]
["IND.SPECIALE MOBILITE",201224,"Cat8"]
["INDEMNITE SPECIALE - D98-40*13/01/1998 MODIFIE- MEN A/C 01/07/2005",201225,"Cat7"]
["IND. FORF. D'ACTIVITE - D2003 10 DU 03/01/2003",201226,"Cat7"]
["IND. PROFESSEUR PRINCIPAL - D71 884 DU 22/11/1971   D93 55 DU 15/01/1993 A/C 09/2005",201227,"Cat7"]
["I.S.O.E. PART MODULABLE - D93 55 DU 15/01/1993 MODIFIE   A/C 09/2005",201228,"Cat7"]
["ALLOCATION D'ETUDES      CADETS DE LA REPUBLIQUE (PN)   D2000 800 DU 24/08/2000",201229,"Cat7"]
["IND.FORFAITAIRE MENSUELLE",201230,"Cat4"]
["IND. DE RESPONSABILITE",201231,"Cat7"]
["PRIME D'ENCADREMENT",201232,"Cat7"]
["PRIME D'INTERESSEMENT",201233,"Cat7"]
["BOURSE DE STAGE          ENA D90 1055 DU 27/11/90 MODIFIÚ PAR D92 63 DU 15/01/92",201234,"Cat7"]
["IND PRESENCE RESPONSABLE",201235,"Cat7"]
["INDEMNITE SCIENTIFIQUE - D90 409 DU 16/05/90 CONSERVATEURS DU PATRIMOINE",201236,"Cat7"]
["PRIME D'INTERESSEMENT",201237,"Cat7"]
["IND.SPECIFIQUE DE SEJOURS - D2000 379 DU 28/04/2000PROTECTION JUD. DE LA JEUNESSE",201238,"Cat6"]
["ASTREINTES CONTX ADMIN.",201239,"Cat7"]
["ASTREINTES CONTX ADMIN.",201240,"Cat7"]
["HSE ENS.SUPPL.C.DUREE - D2005 1036 DU 26/08/2005",201241,"Cat2"]
["HSE ENS.SUPPL.C.DUREE",201242,"Cat2"]
["INDEMNITE DE DIRECTION",201243,"Cat7"]
["PR.DANGER PART FONCT. - D2005 1098 DU 02/09/05SECURITE CIVILE",201244,"Cat7"]
["INDEMNITE DE PLONGEE",201245,"Cat7"]
["REMBT PRECOMPTE RAFP",201246,"hors champ"]
["IND. JOURN. DE SUJETIONS",201247,"Cat7"]
["PRIME D'INTERESSEMENT",201248,"Cat7"]
["ACF PRIME D'INTERESSEMENT",201249,"Cat7"]
["PRIME DE CHARGES ADMIN.",201250,"Cat7"]
["IND.SUJETIONS SPECIALES",201251,"Cat7"]
["IND. CHARGES ADMIN. - D2004 119 DU 05/02/2004",201252,"Cat7"]
["IND. RESPONS. DIRECTION",201253,"Cat7"]
["IND. SUJETIONS SPECIALES",201254,"Cat7"]
["PRIME DE DIRECTION",201255,"Cat7"]
["IND. SPECIALE ISOLEMENT - D77 1364 DU 05/12/1977 MODIFIÚ",201256,"Cat3"]
["IND. SUJETIONS SPECIALES",201257,"Cat7"]
["PRIME DE RENDEMENT - D92 1001 DU 18/09/1992  MENESR  CHEFS DE TRAVAUX D'ART",201258,"Cat6"]
["PRIME DE RENDEMENT - D99 33 DU 09/01/1999 MODIFIÚ CONSERVATEURS GAUX BIBIOTHÞQUES",201259,"Cat6"]
["VACATIONS - VACATIONS INDEXEES SUR LEPOINT (DEDOUBLEMENT 0125)",201260,"Cat5"]
["PRIME DE QUALIFICATION",201261,"Cat7"]
["PRIME DE QUALIFICATION",201262,"Cat7"]
["PRIME DE QUALIFICATION - DIPLOMES ET TITRES DE GUERRE EQUIPEMENT",201263,"Cat7"]
["PRIME DE QUALIFICATION - PERSONNELS MILITAIRES EN ACTIVITÚ EQUIPEMENT",201264,"Cat7"]
["PRIME DE QUALIFICATION",201265,"Cat7"]
["ACF \"MEDAILLE\"           DOUANES",201266,"Cat7"]
["INDEMNITE DE LOGEMENT    D2001 1273 DU 21/12/2001 TECHNICIENS DE L'ENVIRONNEMRNT",201267,"Cat7"]
["INDEMNITE DE MOBILITE",201268,"Cat3"]
["MAJORATION COM (92%) - D67 600 DU 23/07/1967",201269,"Cat3"]
["MAJORATION COM (113%)",201270,"Cat3"]
["MAJORATION COM (105%)",201271,"Cat3"]
["HEURES ENS. RELIGIEUX ART. D481-4 DU CODE DE L'EDUCATION      ",201272,"Cat5"]
["PRIME DE QUALIFICATION",201273,"Cat7"]
["PRIME DE RENDEMENT",201274,"Cat7"]
["PRIME DE RENDEMENT",201275,"Cat7"]
["PRIME SPECIALE",201276,"Cat7"]
["REPARTITION CONTENTIEUSE - DECRET DU 8 AVRIL 1939 MODIFIE - ART 391 CODE DES DOUANES",201278,"Cat4"]
["COMPENS. EXCEPTIONNELLES - DGDDI - D2002-710*02/05/22",201279,"Cat4"]
["MAJ. ACF \"ENSEIGNEMENT\" - D2002-710 DU 02/05/2002",201280,"Cat6"]
["COMPLT ACF GARANTIE REM - D2002-710 DU 02/05/2002 -DM DU 20/12/2005 - DGDDI",201281,"Autre"]
["COMPLT ACF MOBILITE",201282,"Cat3"]
["PRIME DE MOBILITE",201283,"Cat3"]
["PRIME D'ANCIENNETE",201284,"Autre"]
["PR. RESP ET TECHN. PETR. - D2005-375*20/04/2005",201285,"Cat7"]
["PR. GRADE ET SUJ. EMPLOI",201286,"Cat7"]
["PR. GRADE ET SUJ. EMPLOI",201287,"Cat7"]
["PR. GRADE ET SUJ. EMPLOI",201288,"Cat7"]
["PR.SPEC.ET DE RESULTAT CAT. A - D2005-1784*30/12/2005       ",201289,"Cat7"]
["PR.SPEC.ET DE RESULTAT TECHNICIENS B ET C ONF - D2005-1784*30/12/2005  ",201290,"Cat7"]
["PR.SPEC.ET DE RESULTAT ADMINISTRATIFS B ET C ONF - D2005-1784*30/12/2005 ",201291,"Cat7"]
["INDEMNITE D ASTREINTE",201292,"Cat2"]
["IND. SUJ. ET RISQUE",201293,"Cat7"]
["IND.CONTRAINTES ADM.",201294,"Cat7"]
["IND.CONTINUITE DE SERVICE",201295,"Cat2"]
["IND.FONCTIONS PARTIC",201296,"Cat7"]
["ACF PERFORMANCE CADRES D2002-710*02/05/2002 - DGFIP/FISCALITE   ",201297,"Cat4"]
["IND SUJETIONS SPECIALES",201299,"Cat7"]
["HSE FAI 2ND DEGRE",201300,"Cat2"]
["HSE ZEP 2ND DEGRE",201301,"Cat2"]
["MAJ ACF CAMPAGNE IR",201302,"Cat7"]
["ALLOC.COMPL.FONCTIONS",201303,"Cat7"]
["ALLOC.COMPL.FONCTIONS",201304,"Cat7"]
["ALLOC.COMPL.FONCTIONS",201305,"Cat7"]
["ALLOC.COMPL.FONCTIONS",201306,"Cat7"]
["INDEMNITE DE FONCTION",201307,"Cat7"]
["INDEMNITE FORFAITAIRE",201308,"Cat7"]
["INDEMNITE FORFAITAIRE",201309,"Cat7"]
["INDEMNITE DE FONCTIONS",201310,"Cat7"]
["IND.SUJETIONS HORAIRES - D2002-532*16/04/2002 - TITULAIRES ET CONTRACTUELS EQT",201311,"Cat2"]
["PRIME DE MODERNISATION",201312,"Cat7"]
["INDEMNITE FORFAITAIRE",201313,"Cat7"]
["BONIFICATION INDEMNITAIRE",201314,"Cat7"]
["MAJ.FONCT.IND.TECH.SEC. - METEO-FRANCE - D2006-1235*10/10/2006",201315,"Cat7"]
["MAJ.RESID.IND.TECH.SEC. - METEO-FRANCE D2006-1235*10/10/2006",201316,"Cat3"]
["INDEMNITE DE SUJETIONS",201317,"Cat7"]
["IND.CONTR.TECHN.EXPLOIT.",201318,"Cat7"]
["MODULATION IND.TECN.SEC.",201319,"Cat4"]
["INDEMNITE FORFAITAIRE",201320,"Cat7"]
["PRIME D'ENCADREMENT - D2004-1162*29/10/2004 - ARRETES DES 27/05/05 ET 02/01/92",201321,"Cat7"]
["IND.FORFAITAIRE MENSUELLE",201322,"Cat7"]
["INDEMNITE DE PERFORMANCE METEO-FRANCE - D2006-1019*11/08/2006                ",201323,"Cat4"]
["INF.FORFAITAIRE MENSUELLE",201324,"Cat7"]
["IND.SPECIF.DE FONCTIONS",201325,"Cat7"]
["IND.FONCTIONS PART FIXE",201326,"Cat7"]
["IND.FONCTIONS PART VAR.",201327,"Cat7"]
["PRIME DE TECHNICITE",201328,"Cat7"]
["IND.DIMANCHES ET FERIES",201329,"Cat2"]
["COMPLEMENT SPECIFIQUE",201330,"Cat7"]
["PRIME DE RENDEMENT - D90-408*16/05/90 MODIFIEPAR D2006-1301*23/10/2006",201331,"Cat6"]
["IND.TRAVAIL DOMINICAL - D2002-857*03/05/2002 -D2012-261*23/02/2012",201332,"Cat2"]
["MAJ.IND.TRAVAIL DOMINICAL - D2002-857*03/05/2002 - D2012-261*23/02/2012",201333,"Cat2"]
["IND.RISQUES ET SUJ.SPEC. - PJJ -D2006-1335*03/11/2006",201334,"Cat7"]
["VAC. COMM. VIDEOSURV.",201335,"Cat5"]
["PRIME DE RENDEMENT",201336,"Cat7"]
["SUP IND SPEC QUALIF",201337,"Cat7"]
["VACATIONS DE FORMATION - D56-585*12/06/1956 - 1ERDEGRE",201338,"Cat5"]
["VACATIONS DE FORMATION - D2010-235*05/03/2010 MODIFIE - 2ND DEGRE",201339,"Cat5"]
["VACATIONS DE FORMATION - D2010-235*05/03/2010 MODIFIE - SOUTIEN",201340,"Cat5"]
["VACATIONS DE FORMATION - D2010-235*05/03/2010 MODIFIE",201341,"Cat5"]
["VACATIONS DE FORMATION - D2010-235*05/03/2010 MODIFIE - AVS",201342,"Cat5"]
["AIDE DEROUL. EPR. - SCO. - D2010-235*05/03/2010 - DIPLOME NATIONALE DU BREVET",201343,"Cat5"]
["AIDE DEROUL. EPR. - SCO. - D2010-235*05/03/2010 - DIPLOMES D'ENSEIGNEMENT GAL ET TECHN.",201344,"Cat5"]
["AIDE DEROUL. EPR. - SCO. - D2010-235*05/03/2010 - DIPLOMES PROFESSIONNELS",201345,"Cat5"]
["AIDE DEROUL. EPR. - SCO. - D2010-235*05/03/2010 - EXAMENS POST-BACCALAUREAT",201346,"Cat5"]
["TRAV. ADM. ET SURV.- SCO.",201347,"Cat5"]
["TRAV. ADM. ET SURV.- SCO.",201348,"Cat5"]
["AIDE DEROUL. EPR. - SUP.",201349,"Cat5"]
["AIDE DEROUL. EPR. - SUP.",201350,"Cat5"]
["IND.JURY.CONC.EXAM.- SCO. - D2010-235*05/03/2010 - DIPLOME NATIONAL DU BREVET",201351,"Cat5"]
["IND.JURY.CONC.EXAM.- SCO. - D2010-235*05/03/2010 - DIPLOMES D'ENSEIGNEMENT GAL ET TECHN.",201352,"Cat5"]
["IND.JURY.CONC.EXAM.- SCO. - D2010-235*05/03/2010 - DIPLOMES PROFESSIONNELS",201353,"Cat5"]
["IND.JURY.CONC.EXAM.- SCO. - D2010-235*05/03/2010 - EXAMENS POST BACCALAUREAT",201354,"Cat5"]
["IND.JURY.CONC.EXAM.- SCO.",201355,"Cat5"]
["IND.JURY.CONC.EXAM.- SCO. - D2010-235*05/03/2010 MODIFIE - CONCOURS PERSONNEL NON ENS.",201356,"Cat5"]
["IND.JURY.CONC.EXAM.- SUP. - D2010-235*05/03/2010 - BACCALAUREAT A LICENCE",201357,"Cat5"]
["IND.JURY.CONC.EXAM.- SUP. - D2010-235*05/03/2010 - MASTER",201358,"Cat5"]
["PRESTATION ASS.INVALIDITE - ARTICLE L.712-1 DU CSS -D72-154*24/02/1972",201359,"hors champ"]
["COMPLEMENT SPECIAL CMS - D59-1193*13/10/1959 - MILITAIRES",201360,"Cat2"]
["INDEMNITE OPEX",201361,"Cat3"]
["INDEMNITE OPEX",201362,"Cat3"]
["IND. SERVICE EN CAMPAGNE",201363,"Autre"]
["IND.FORF.PERMANENCE NUIT",201364,"Cat2"]
["VACATIONS MGIJ 2ND DEGRE",201365,"Cat5"]
["INDEMNITE DE FONCTIONS",201366,"Cat7"]
["INDEMNITE DE RESIDENCE",201367,"Cat3"]
["INDEMNITE SPECIALE",201368,"Cat7"]
["INDEMNITE DE FONCTIONS",201369,"Cat7"]
["IND.FORFAITAIRE MENSUELLE",201370,"Cat7"]
["IND.FORF. DE RISQUES",201371,"Cat7"]
["IND.RISQUES ET SUJ. SPEC.",201372,"Cat7"]
["PRIME DE BIVALENCE",201373,"Cat7"]
["PRESTATION FRAIS MEDIC. - ADMINISTRATION PENITENTIAIRE - D66-874*29/11/1966 MODIFIE",201374,"Autre"]
["PRIME DE POLYVALENCE",201375,"Cat7"]
["ACF HUISSIER PART VAR.",201376,"Cat7"]
["IND.FONCTIONS PART VAR.",201377,"Cat7"]
["IND.FORF.SUJETIONS PART. - D96-941*28/10/1996",201378,"Cat7"]
["IND.COMPENS.SUJ.SPECIF.",201379,"Cat7"]
["IND.SUJ. EXCEPTIONNELLES - D2005-1645*26/12/2005 - SGAP 13 (CORSE), 75 ET 78",201380,"Cat7"]
["INDEMNITE SPECIALE - PJJ - D75 179*21/03/1975",201381,"Cat7"]
["PRIME DE FONCTIONS",201382,"Cat7"]
["PR.SPEC. ET DE RESULTAT CONTRACTUELS ONF CDI - D2005-1779 ET D2005-1784*30/12/2005",201383,"Cat7"]
["PR.INVENTION/ INT. BREVET",201384,"Cat4"]
["INDEMNITE DE FONCTIONS",201385,"Cat7"]
["INDEMNITE DE FONCTIONS",201386,"Cat7"]
["INDEMNITE FORFAITAIRE",201387,"Cat7"]
["INDEMNITE DE FONCTIONS",201388,"Cat7"]
["INDEMNITE D'EXPERTISE - AERES - ART. 3 D2007-922*39217",201389,"Cat5"]
["INDEMNITE DE FONCTIONS - AERES - D2007-923*15/05/27",201390,"Cat7"]
["IND.SPEC.QUALIFICATION",201391,"Cat7"]
["IND. DE RESPONSABILITE",201392,"Cat7"]
["MAJORATION SOLDE 25% - D50-1258*03/10/1950",201393,"Cat3"]
["IND. FORFAITAIRE C.D.B.F.",201394,"Cat7"]
["IND. FORFAITAIRE C.D.B.F. - D2007-1171*02/08/2007 - ARTICLE 4",201395,"Cat7"]
["IND. MENSUELLE C.D.B.F. - D2007-1171*02/08/2007 - ARTICLE 5",201396,"Cat7"]
["VACATIONS C.D.B.F. - D2007-1171*02/08/2007 - ARTICLE 6",201397,"Cat5"]
["PRIME DE RENDEMENT",201398,"Cat6"]
["IND. SUJETION SPECIALE",201399,"Cat7"]
["IND. DIFF. EXCEPTIONNELLED2007-1258*23/08/2007 - PERSONNELS MEDAD A DISPO COLL. LOC.",201400,"Autre"]
["HS ACCOMP.EDUCATIF PUB 1 - D66-787*14/10/1966 MODIFIE",201401,"Cat2"]
["HS ACCOMP.EDUCATIF PUB 2 - D50-1253*06/10/1953 MODIFIE",201402,"Cat2"]
["HS ACCOMP.EDUCATIF PRI 2 - D50-1253*06/10/1953 MODIFIE",201403,"Cat2"]
["AVANTAGE EN NATURE NTIC",201404,"hors champ"]
["AVANTAGE EN NATURE NOURR.",201405,"hors champ"]
["AVANTAGE EN NATURE VEHIC.",201406,"hors champ"]
["AVANTAGES EN NATURE DIV.",201407,"hors champ"]
["IND.SUJ.SPEC. 2EME PART - D2002-1247*04/10/2002- DISPOSITIF TEPA",201408,"Cat2"]
["IND. POUR SERVICE SUPPL.",201409,"Cat2"]
["INDEMNITE DE FONCTIONS",201410,"Cat7"]
["INDEMNITE SPECIALE",201411,"Cat7"]
["ALLOCATION COMPLEMENTAIRE - TITULAIRES DETACHES SUR CONTRAT AUPRES DU MEDIATEUR",201412,"Cat7"]
["PRIME DE RESULTAT MEDIATEUR - TITULAIRES DETACHES SUR CONTRAT ET NON TITUL. ",201413,"Cat4"]
["PRIME DE FONCTION",201414,"Cat7"]
["PRIME DE RENDEMENT",201415,"Cat7"]
["PRIME DE CABINET",201416,"Cat7"]
["IND. REND. ET FONCT. - D2007-1366*18/09/2007",201417,"Cat7"]
["COMPLEMENT REMUNERATION",201418,"Cat7"]
["COMPLEMENT ITS DECEMBRE",201419,"Cat7"]
["IND. CONGES NON PRIS - D2007-1597*12/11/2007 - CATEGORIE A ET ASSIMILES",201420,"Cat2"]
["IND. CONGES NON PRIS - D2007-1597*12/11/2007 - CATEGORIE B ET ASSIMILES",201421,"Cat2"]
["IND. CONGES NON PRIS - D2007-1597*12/11/2007 - CATEGORIE C ET ASSIMILES",201422,"Cat2"]
["MISE SOUS PLI - EL. PDT. - D2012-498*17/04/2012 - ELECTION PREDIDENTIELLE",201423,"Cat5"]
["MISE SOUS PLI - EL. LEG. - D2012-498*17/04/2012 - ELECTIONS LEGISLATIVES",201424,"Cat5"]
["MISE SOUS PLI - EL. EUR.",201425,"Cat5"]
["MISE SOUS PLI - EL. SEN. - D2012-498*17/04/2012 - ELECTIONS SENATORIALES",201426,"Cat5"]
["MISE SOUS PLI - EL. CANT.",201427,"Cat5"]
["MISE SOUS PLI - EL. MUN.",201428,"Cat5"]
["MISE SOUS PLI - REFER.",201429,"Cat5"]
["MISE SOUS PLI - EL. O.PR.",201430,"Cat5"]
["MISE SOUS PLI - EL. REG.",201431,"Cat5"]
["MISE SOUS PLI - EL. PART. - D2012-498*17/04/2012 - ELECTIONS PARTIELLES",201432,"Cat5"]
["COMM. CONTROLE EL. PDT.",201433,"Cat5"]
["COMM. CONTROLE EL. LEG. - D73-176*22/02/1973 - COMMISSION DE CONTROLE LEGISLATIVES",201434,"Cat5"]
["COMM. CONTROLE EL. EUR.",201435,"Cat5"]
["COMM. CONTROLE EL. SEN.",201436,"Cat5"]
["COMM. CONTROLE EL. CANT.",201437,"Cat5"]
["COMM. CONTROLE EL. MUN.",201438,"Cat5"]
["COMM. CONTROLE REFER.",201439,"Cat5"]
["COMM. CONTROLE EL. O.PR.",201440,"Cat5"]
["COMM. CONTROLE EL. REG.",201441,"Cat5"]
["COMM. CONTROLE EL. PART.",201442,"Cat5"]
["IND. TRAV. SUPP. EL. PDT. - D2004-143*13/02/2004",201443,"Cat2"]
["IND. TRAV. SUPP. EL. LEG. - D2004-143*13/02/2004",201444,"Cat2"]
["IND. TRAV. SUPP. EL. EUR.",201445,"Cat2"]
["IND. TRAV. SUPP. EL. SEN. - D2004-143*13/02/2004",201446,"Cat2"]
["IND. TRAV. SUPP. EL. DEP.",201447,"Cat2"]
["IND. TRAV. SUPP. EL. MUN.",201448,"Cat2"]
["IND. TRAV. SUPP. REFER.",201449,"Cat2"]
["IND. TRAV. SUPP. EL. O.P.",201450,"Cat2"]
["IND. TRAV. SUPP. EL. REG.",201451,"Cat2"]
["IND. TRAV. SUPP. EL. PAR. - D2004-143*13/02/2004",201452,"Cat2"]
["IND.HORAIRE TRAVAIL DJF - D74-1068*13/12/1974",201453,"Cat2"]
["A.R.C.E",201454,"hors champ"]
["IND. FRAIS LOGT PAR NAS",201455,"hors champ"]
["I.C.S. FORFAITAIRE",201456,"Cat2"]
["I.C.S. COMPLEMENTAIRE",201457,"Cat2"]
["IND.FORFAITAIRE MENSUELLE",201458,"Cat7"]
["INDEMNITE FORFAITAIRE",201459,"Cat7"]
["MAJOR.IND.SUJ.SPECIALES",201460,"Cat7"]
["MAJOR.IND.RESP.DIRECTION",201461,"Cat7"]
["REMUN. CENTRE DE BAC - D2012-923*27/07/2012",201462,"Cat7"]
["ACF PRIME INDUSTRIELLE",201463,"Cat7"]
["PR.SPECIF.RECONNAISSANCE",201464,"Cat7"]
["PR.SPECIF.RECONNAISSANCE",201465,"Cat7"]
["ACCOMP.MODERNISATION",201466,"Cat7"]
["PRIME DE TECHNICITE (OE)",201467,"Cat7"]
["IND.FONCT. ET OBJECTIFS - D2007-1776*17/12/2007",201468,"Cat7"]
["IND.FONCTIONS-PART FONCT. - D2007-1762*14/12/2007 - TA ET CAA",201469,"Cat7"]
["IND.FONCTIONS-PART INDIV. - D2007-1762*14/12/2007",201470,"Cat7"]
["INDEMNITE DE FONCTIONS - D2007-1882*26/12/2007",201471,"Cat7"]
["PR. POUR SERVICES RENDUS - D55-1002*26/07/1955 MODIFIE - MEDDTL",201472,"Cat7"]
["PRIME DE RISQUES",201473,"Cat6"]
["ALLOC. DE FORMATION (DIF) - ABROGEE PAR D2017-928*06/42856",201474,"hors champ"]
["ALLOC. DE FORMATION (DIF)",201475,"hors champ"]
["ALLOC. DE FORMATION (DIF)",201476,"hors champ"]
["IND. SPECIF. DE FONCTIONS",201477,"Cat7"]
["IND. EXCEPT. DE DEPART",201478,"Cat8"]
["INDEMNITE DE FONCTIONS",201479,"Cat7"]
["GARANTIE POUVOIR D'ACHAT - D2008-539*06/06/2008 - PERSONNELS TITULAIRES",201480,"Autre"]
["PRIME SPECIALE (SALAIRE)",201484,"Cat7"]
["PRIME SPECIALE (RENDT) CHEFS D'EQUIPE DU CADASTRE E+5       ",201485,"Cat4"]
["IND. TRAVAUX MALSAINS",201486,"Cat7"]
["REM.COMMISSION D'OFFICE",201487,"Cat5"]
["PR. OFFICIERS EMBARQUES",201488,"Cat7"]
["PR. ENCADT ASSISTANT PONT",201489,"Cat7"]
["SUPPLEMENT INDEMNITAIRE",201490,"Cat7"]
["PRIME DE RESTRUCTURATION - D2008-366*17/04/2008 -",201491,"Cat8"]
["ALLOC.AIDE MOBILITE CONJ. - D2008-366*17/04/2008 - D2008-647*30/06/2008",201492,"Cat8"]
["COMPLT INDEM. RESTRUCT.",201493,"Cat8"]
["IND. DE DEPART VOLONTAIRE",201494,"Cat8"]
["IND.FONCT.PERFORM. (FIXE)",201495,"Cat7"]
["IND.FONCT.PERFORM. (VAR.) D2008-432*05/05/2008",201496,"Cat4"]
["INDEMNITE SPECIALE",201497,"Cat6"]
["IND. SPEC. COMPENSATRICE D78-293*10/03/1978 MODIFIE - SAINT PIERRE ET MIQUELON",201498,"Cat3"]
["MAJORATION COM (40%)",201499,"Cat3"]
["IND. MENSUELLE TECHNICITE",201500,"Cat7"]
["IND. ACCOMP. RECONVERSION",201501,"Cat8"]
["IND. TRAVAUX INSALUBRES  D67-624*23/07/1963 -  D82-294*30/03/1982 -MILITAIRES DGA",201502,"Cat7"]
["IND. DE RESPONSABILITE",201503,"Cat7"]
["IND. JURYS ET CONCOURS",201504,"Cat5"]
["COURS ET CONFERENCES",201505,"Cat5"]
["IND. D'ENSEIGNEMENT",201506,"Cat5"]
["IND. TEMPORAIRE MOBILITE - D2008-369*17/04/2008 - D2008-640*30/06/2008",201507,"Cat8"]
["PRIME D'ACTIVITE SGAR",201508,"Cat7"]
["SUPPLT INDEMNITAIRE - NOTES 300058 ET 300210/DEF/DFP/PER4 DES 10 ET 20/01/1997",201509,"Cat7"]
["MAJ ACF RESP. ENCADRT - D2002-710*02/05/2002 - DGDDI",201510,"Cat7"]
["GARANTIE POUVOIR D'ACHAT - D2008-539*06/06/2008 - PERSONNELS CONTRACTUELS",201511,"hors champ"]
["REM. ACCOMP. EDUC. HTS - D96-80*30/12/1996 MODIFIE#NAME?",201512,"Cat2"]
["PRIME DE RENDEMENT D2008-718*18/07/2008 - AGENTS TECHNIQUES MINDEF ",201513,"Cat4"]
["IND. FONCTIONS TECHNIQUES",201514,"Cat7"]
["INDEMNITE COMPENSATRICE  D2008-718*18/07/2008 - AGENTS TECHNIQUES MINDEF",201515,"Autre"]
["INDEMNITE DIFFERENTIELLE - D2008-719*18/07/2008 - TECHNICIENS ET AGENTS TECHN. MINDEF",201516,"Autre"]
["IND. FORF. C.I.R.A.",201517,"Cat7"]
["INF. FORF. DOC. FRANCAISE",201518,"Cat5"]
["IND. SUJ. ALERTE OPERAT.",201519,"Cat2"]
["ALL. MOBILITE GEO. ARMEES",201520,"Cat3"]
["INDEMNITE COMPENSATRICE  D2005-143*17/02/2005 -",201521,"Autre"]
["INDEMNITE SPECIALE",201522,"Cat7"]
["IFR COMPLEMENT FONCTION",201523,"Cat7"]
["PRIME DE SUJETIONS SPEC.",201524,"Cat7"]
["PRIME DE SUJETIONS SPEC.",201525,"Cat7"]
["IND. MENSUELLE TECHNICITE - D2010-1568*15/12/2010 - DM DU 18/03/2008 - DGFIP",201526,"Cat7"]
["PR.ENTREE DANS LE METIER - D2008-926*12/09/2008 (MEN) - D2008-1178*14/11/2008 (MAP)",201527,"Autre"]
["PR.SPECIALE 3 HSA 2ND DEG",201528,"Cat2"]
["I.S.S. - PART VARIABLE",201529,"Cat6"]
["IAT RESERVE D'OBJECTIFS",201530,"Cat6"]
["IFTS RESERVE D'OBJECTIFS",201531,"Cat7"]
["P.R. RESERVE D'OBJECTIFS-D45-1753*06/08/1945 - MINISTERE DE L'INTERIEUR",201532,"Cat6"]
["PRIME DITE ARTICLE 10 - 2008-815*25/08/2008 - ARTICLE 10",201533,"Cat2"]
["IEMP RESERVE D'OBJECTIFS D97-1223 ET D97-1224*26/12/1997 ",201534,"Cat7"]
["IEMP SPECIFICITES",201535,"Cat7"]
["ACF HARMONISATION - D2002-710 - DGFIP MONTANTS PRECALCULES",201536,"Cat7"]
["ACF HARMONISATION",201537,"Cat7"]
["IND. MENSUELLE TECHNICITE",201538,"Cat7"]
["I.F.O. PART FONCTIONNELLE - D2008-1309*11/12/2008 - PJJ",201539,"Cat7"]
["I.F.O. PART INDIVIDUELLE - D2008-1309*11/12/2008 - PJJ",201540,"Cat4"]
["PR. SPECIF. DE FONCTIONS",201541,"Cat7"]
["IND. FORMATION CONTINUE",201542,"Cat5"]
["PR. ENCADRT. EDUC. NUIT - D2008-1205*20/11/2008 - PROTECTION JUDICIAIRE DE LA JEUNESSE",201543,"Cat2"]
["IND. DE COMMEMORATION    D2008-1316*12/12/2008 - ANCIENS COMBATTANTS  ",201544,"Cat7"]
["PART. RECH. SUR CONTRATS D85-618*13/06/1985 - UNIVERSITES RCE    ",201545,"Cat4"]
["IND. D'ADMINISTRATION",201546,"Cat7"]
["COMPLT INDEMNITAIRE RCE",201547,"Cat4"]
["PFR - PART FONCTIONS - D2008-1533*22/12/2008",201548,"Cat7"]
["PFR - PART RESULTATS - D2008-1533*22/12/2008",201549,"Cat4"]
["PFR - VERST EXCEPTIONNEL",201550,"Cat4"]
["VACATIONS",201551,"Cat5"]
["RENFORCEMENT ANGLAIS COL. - D96-80*30/01/1996 MODIFIE",201552,"Cat5"]
["RENFORCEMENT ANGLAIS LYC. - D96-80*30/01/1996 MODIFIE",201553,"Cat5"]
["PR. SPECIF. HABILITATION",201554,"Cat7"]
["REM. ACCOMP. EDUC. HTS",201555,"Cat5"]
["IND. TRANSACTIONNELLE    PART ASSUJETTIE DE L'INDEMNITE DE LICENCIEMENT",201556,"hors champ"]
["PR.SPEC.ACCR.RESP.PEDAG.",201557,"Cat7"]
["REM. DOCTOR. CONTRACTUEL",201558,"Cat7"]
["INDEMNIS. DES ENQUETES - D69-600*13/06/1969 MODIFIE - STATISTIQUE AGRICOLE",201559,"Cat6"]
["IND. DES ENQUETES (RGA)",201560,"Cat5"]
["CPLT REM.DOCTOR.CONTRACT.",201561,"Cat5"]
["IND. EVALUATION CE1-CM2",201562,"Cat5"]
["PRIME ART. L954-2 C.EDUC. - ARTICLE L 954-2 DU CODE DE L'EDUCATION - UNIVERSITES RCE",201563,"Cat4"]
["JOURS CET A OPTION RAFP - D2009-1065*28/08/2009",201564,"Cat2"]
["JOURS CET B OPTION RAFP - D2009-1065*28/08/2009",201565,"Cat2"]
["JOURS CET C OPTION RAFP - D2009-1065*28/08/2009",201566,"Cat2"]
["MAJ. ACF RESPONSABLE LABO - D2002-710*02/05/2002",201567,"Cat7"]
["I.A.S. PART FIXE",201568,"Cat7"]
["I.A.S. PART VARIABLE",201569,"Cat7"]
["I.A.S. - CPLT FORFAITAIRE",201570,"Cat3"]
["INDEMNITE T.A.O.P.C.",201571,"Cat2"]
["REMISES ART. D322 DU CPP",201572,"Autre"]
["PR. ENTREE DANS LE METIER",201573,"Autre"]
["PR.RECONVERSION CO EN SU",201574,"Cat8"]
["B.M.C. - IND. DE SEJOUR",201575,"hors champ"]
["B.M.C. - EXPLO CARRIERE",201576,"hors champ"]
["HEURES D'ENS. F.C. - D.U.",201577,"Cat7"]
["HEURES D'ENS. - D.U.",201578,"Cat7"]
["IND. JURY CONC. PRE-CAPA",201579,"Cat5"]
["TRAVAUX PRATIQUES SUAPS",201580,"Cat7"]
["PR. ENCADR. DOCTOR. RECH. - D2009-851*08/07/2009 MODIFIE PAR D2014-557*28/05/2014",201581,"Cat4"]
["INDEMNITE DE FONCTIONS - D2009-1428*20/11/2009",201582,"Cat7"]
["REM. STAGIAIRES MASTER 2",201583,"Cat7"]
["INDEMNITE DE FONCTIONS",201584,"Cat7"]
["PFR - PART FONCTIONS - ABROGEE PAR D2016-1916*27/12/2016",201585,"Cat7"]
["PFR - PART RESULTATS - ABROGEE PAR D2016-1916*27/12/2016",201586,"Cat4"]
["PFR - VERST EXCEPTIONNEL",201587,"Cat7"]
["PRIME DE FONCTIONS",201588,"Cat7"]
["SUPPLEMENT MARINS O.M.",201589,"Cat3"]
["COMPLT REM. MALADIE",201590,"hors champ"]
["PRIME DE MISE A NIVEAU",201591,"Cat7"]
["IRCP PART FONCTIONNELLE - D2008-1144*06/11/2008 - CORPS PREFECTORAL",201592,"Cat7"]
["IRCP - MODULATION P. V. - 2008-1144*06/11/2008 - CORPS PREFECTORAL",201593,"Cat4"]
["VACATIONS PANDEMIE",201594,"Cat5"]
["VACATIONS PANDEMIE",201595,"Cat7"]
["IND.MODERNISATION METIERS",201596,"Cat7"]
["IND. SPECIF. SUJ. PART.",201597,"Cat7"]
["ACF - MODULATION",201598,"Cat7"]
["IND. HEBERGEMENT EDUCATIF - D2010-75*22/01/2010 - PJJ",201599,"Cat7"]
["ACF - HARMONISATION",201600,"Cat7"]
["PRIME DE RENDEMENT - D92-33*09/01/1992 MODIFIE#NAME?",201601,"Cat6"]
["PFR - PART FONCTIONS - ABROGEE PAR D2016-1916*27/12/2016",201602,"Cat7"]
["PFR - PART RESULTATS - ABROGEE PAR D2016-1916*27/12/2016",201603,"Cat4"]
["PFR - VERST EXCEPTIONNEL",201604,"Cat7"]
["IND. DIR. SCIENTIFIQUES",201605,"Cat7"]
["IND. EXTENSION HAUTURIERE - D2009-671*11/06/2009",201606,"Cat5"]
["IND. PART. F.C. ADULTES",201607,"Cat7"]
["PR. SPECIF. DE FONCTIONS - D2010-454*04/05/2010",201608,"Cat7"]
["IRCP - PART VARIABLE - D2008-1144*06/11/2008 - CORPS PREFECTORAL",201609,"Cat4"]
["IND. COMM. CONTR. ELECT.",201610,"Cat5"]
["INTERESSEMENT PART. RECH. D2010-619*07/06/2010 - UNIVERSITES RCE",201611,"Cat4"]
["IND. FORF. MENSUELLE - PRESIDENTS DE COMMISSION#NAME?",201612,"Cat5"]
["INDEMNITE DE COMMISSION - MEMBRES ET ASSESSEURS DESCOMMISSIONS - TOUS MINISTERES",201613,"Cat5"]
["INDEMNITE FORFAITAIRE - PRESIDENTS DE COMMISSIONSI PAIEMENT PAR SEANCE",201614,"Cat5"]
["IND. HORAIRE TRAV. NUIT - D2010-685*25/06/2010",201615,"Cat2"]
["IND. INNOV. TECHNOLOGIQUE2000-632*30/06/2000 - RESSOURCES PROPRES GRETA ",201616,"Cat5"]
["INDEMNITE DE FONCTIONS - D2010-660*11/06/2010",201617,"Cat7"]
["RETRIBUTION D2010-147 - D2010-147*15/02/2010",201618,"Cat5"]
["PR.SPECIALE 3 HSA 2ND DEG - ABROGEE PAR D2016-1174*30/08/2016",201619,"Cat2"]
["I.S.S. - PART VARIABLE - ABROGEE PAR D2015-1087*28/08/2015",201620,"Cat7"]
["TUTORAT DES STAGIAIRES",201621,"Cat7"]
["TUTORAT DES COPSY",201622,"Cat7"]
["SUIVI ETUDIANTS EN STAGE",201623,"Cat7"]
["IND. REFERENT HANDICAP - ABROGEE PAR D2017-965*10/42856",201624,"Cat7"]
["IND.ADMIN.ET CONSEILLERS",201625,"Cat7"]
["I.R.P. - PART FONCTIONS - D2010-1102* 21/09/2010 -POLICE NATIONALE",201626,"Cat7"]
["I.R.P. - PART RESULTATS - D2010-1102*21/09/2010 - POLICE NATIONALE",201627,"Cat4"]
["IND. EVAL. L337-1 C.EDUC",201628,"Cat5"]
["VAC STG REM. NIVEAU PASS.D96-80*30/01/1996 MODIFIE  ",201629,"Cat2"]
["PFR - PART FONCTIONS - D2010-1206*12/10/2010 - IGA -IGAS",201630,"Cat7"]
["PFR - PART RESULTATS - D2010-1206*12/10/2010 - IGA/IGAS",201631,"Cat4"]
["PFR - VERST EXCEPTIONNEL - D2010-1206*12/10/2010 - IGA/IGAS",201632,"Cat7"]
["IND.POUR SERVICE A LA MER",201633,"Cat5"]
["IND.RESP. PART FONCTIONS",201634,"Cat7"]
["IND.RESP. PART VARIABLE D2010-1405*12/11/2010 - RECTEURS D'ACADEMIE     ",201635,"Cat4"]
["IND.RESP. VST EXCEPT.",201636,"Cat7"]
["INDEMNITE DIFFERENTIELLE DECISION MINISTERIELLE MEN F10010425 - BOEN 15/12/2010",201637,"Autre"]
["IND.HORAIRE TRAVAIL DJF - D2010-1489*06/12/2010 - MINISTERES FINANCIERS",201638,"Cat2"]
["IPF - PART FONCTIONS - D2010-1705*30/12/2010 - IPEF",201639,"Cat7"]
["IPF - PART RESULTATS - D2010-1705*30/12/2010",201640,"Cat4"]
["IPF - VST EXCEPTIONNEL - D2010-1705*30/12/2010 - IPEF",201641,"Cat7"]
["DIFFERENTIEL INDICIAIRE  ARS - COMEX",201642,"Autre"]
["COMPLEMENT PERSONNEL",201643,"Autre"]
["PART PERFORMANCE ARS - COMEX - VERSEMENT MENSUEL      ",201644,"Cat4"]
["PART PERFORMANCE EXCEPT. ARS - COMEX - VERSEMENT PONCTUEL      ",201645,"Cat4"]
["MISSION ETUDES EXPERTISES",201646,"Cat7"]
["MISSION ETUDES EXPERTISES - D2011-142*03/02/2011 - VERSEMENT PAR MENSUALITES",201647,"Cat7"]
["IND. EVALUATION EN CCF D2010-1000*24/08/2010    ",201648,"Cat7"]
["IND.FONCTIONS IC (IFIC)",201649,"Cat7"]
["A.J.A.P.F.V - CHAPITRE VIII DU TITRE VIDU LIVRE IER DU CSS",201650,"hors champ"]
["VACATIONS SANTE SCOLAIRE",201651,"Cat7"]
["PRIME SPECIFIQUE - D88-1083*30/11/1988 - D98-.7694967694967695",201652,"Cat7"]
["IND. FORF. MENSUELLE",201653,"Cat5"]
["IND. QUALIF. ET FONCTIONS",201654,"Cat7"]
["IND. CHARGES ET RESPONS.-D2011-502*06/05/2011 - ART 14 - PERS. NAVIGANTS TECHNIQUES",201655,"hors champ"]
["PRIME DE PERFORMANCE - D2011-502*06/05/2011 - ART.15 - PERS. NAVIGANTS INSTRUCTEURS",201656,"Cat4"]
["IND. ACCOMPT MOBILITE - D2011-513*10/05/2011",201657,"Cat3"]
["AIDE DIFFERENT. RECLASST",201658,"Autre"]
["INDEMNITE SPECIFIQUE",201659,"Autre"]
["INDEMNITE SPECIFIQUE - PROTOCOLE DAP SYNDICATS 05/02/2005 - A PARTIR 05/02/2005",201660,"Autre"]
["IND. D'ENSEIGNEMENT EPS",201661,"Cat5"]
["VACATIONS",201662,"Cat5"]
["PART INDEMNITAIRE DE BASE",201663,"Cat7"]
["PART INDEMNITAIRE COMPL.",201664,"Cat7"]
["INDEMNITE DE FONCTIONS - D2011-905*29/07/2011 - DEFENSEUR DES DROITS ET ADJOINTS",201665,"Cat7"]
["INDEMNITE FORFAITAIRE",201666,"Cat7"]
["INDEMNITE FORFAITAIRE",201667,"Cat7"]
["IND. FONCTIONS TECHNIQUES - D89-752*18/10/1989 MODIFIE",201668,"Cat6"]
["INTERESSEMENT PERF. COLL. D2011-1038*29/08/2011     ",201669,"Cat4"]
["REM. ACT. FORM. RECRUT. - D2010-235*05/03/2010 MODIFIE - FAIT GENERATEUR A/C 09/2011",201670,"Cat5"]
["IND. SPEC. ECLAIR P. FIXE - D2011-1101*12/09/2011",201671,"Cat7"]
["IND. SPEC. ECLAIR P. VAR. D2011-1101*12/09/2011    ",201672,"Cat7"]
["INDEMNITE DE FONCTIONS",201673,"Cat7"]
["PR. TECHNICITE PART FIXE",201674,"Cat7"]
["PR. TECHNICITE PART VAR. D2011-1171*23/09/2011 ART. 4 - OUVRIERS DGAC ET METEO-France",201675,"Cat7"]
["IND. TRAVAUX INCOMMODES  D2011-1171*23/09/2011 ART. 5 - OUVRIERS DGAC ET METEO-FRANCE",201676,"Cat7"]
["PR. FONCTION SPECIFIQUE",201677,"Cat7"]
["PRIME DE FONCTION",201678,"Cat7"]
["ABONDT 50% HS NUIT D.J.F.",201679,"Cat2"]
["IND. PARTICULIERE DOM",201680,"Cat3"]
["IND. PREMIERE EMBAUCHE",201681,"Cat7"]
["IND. PART. MAINTIEN REM. D2011-1171*23/09/2011 - ART. 13 - OUVRIERS DGAC",201682,"Autre"]
["IND. ART.6 D2000-820",201683,"Cat7"]
["PRIME SPECIFIQUE - D2003-1284*26/12/2003 MODIFIE - MAGISTRATS ART.706-16 DU CPP",201684,"Cat7"]
["INDEMNITE FORFAITAIRE - D2011-1312*17/10/2011",201685,"Cat7"]
["INDEMNITE SPECIALE",201686,"Cat7"]
["IND. JOURN. DE RESERVE",201687,"Cat2"]
["IND. FORFAITAIRE SPECIF.",201688,"Cat7"]
["PR.DIR.PERF. (FONCTIONS)",201689,"Cat7"]
["PR.DIR.PERF. (RESULTATS) D2011-1562*16/11/2011       ",201690,"Cat4"]
["INDEMNITE DIFFERENTIELLE D2003-59*20/01/2003 - SGAR",201691,"Autre"]
["INDEMNITE DE FONCTIONS",201692,"Cat7"]
["INDEMNITE DE FONCTIONS - D95-735*10/05/1995 MODIFIE - CONSEIL SUP. DE LA MAGISTRATURE",201693,"Cat7"]
["IND. SUJETIONS 1ERE PART - D98-1235*29/12/1998 - MIOMCTI CORPS DES TRANSMISSIONS",201694,"Cat2"]
["IND. SUJETIONS 2EME PART - D98-1235*29/12/1998",201695,"Cat7"]
["IND. FONCTIONS PARTIC. - D2012-293*29/02/2012 - CONSEILLERS PEDAG. DEP. EPS",201696,"Cat7"]
["ASTREINTES CONTX ADMIN.",201697,"Cat2"]
["ACF - MODULATION - D2002-710*02/05/2002 - DGDDI MODULATION CODES 1067 ET 1068",201698,"Cat7"]
["IND. COMPENS. EXCEPT.    D2012-393*22/03/2012",201699,"Cat8"]
["IND. SECTIONNEMENT ELECT.",201700,"Cat5"]
["REM. RECUEIL PROCURATIONSD2012-500*17/04/2012",201701,"Autre"]
["IND. JOURN. SECU. NAVIRES - D2012-671*04/05/2012",201702,"Cat2"]
["COMPLT SPECIF. RESTRUCT.",201703,"Cat8"]
["INDEMNITE DE FORMATION",201704,"Cat7"]
["AIDE. DEROUL. EPR. - SCO. - D2010-235*05/03/2010 - CONCOURS PERSONNELS ENSEIGNANTS SCOL.",201705,"Cat5"]
["AIDE. DEROUL. EPR. - SCO.",201706,"Cat5"]
["IND.JURY.CONC.EXAM.- SCO. - D2010-235*05*03/2010 - CONCOURS PERSONNELS ENSEIGNANTS",201707,"Cat5"]
["IND.JURY.CONC.EXAM.- SCO. - D2010-235*05/03/2010 - CONCOURS PERSONNELS NON ENSEIGNANTS",201708,"Cat5"]
["INDEMNITE DE COMMISSION - DEDOUBLEMENT DU CODE 201613 POUR LE PAIEMENT PAR SEANCE",201709,"Cat5"]
["REM. INTERVENANT MEN",201710,"Autre"]
["VACATIONS ENS. AGRICOLE",201711,"Cat7"]
["IND. REMUN. SERVICES - D88-132*04/02/1988",201712,"Cat5"]
["PRIME D'INTERESSEMENT  D96-858*02/10/1996       ",201713,"Cat4"]
["REMBOURSEMENT COT. CRPN  CIRCULAIRE CRPN DU 21/06/2012",201714,"hors champ"]
["HSE - REMISE A NIVEAU 1PU - D50-1253*06/10/1950 - POST-TEPA",201715,"Cat2"]
["HSE - REMISE A NIVEAU 1PR",201716,"Cat2"]
["HSE - REUSSITE SCOLAIRE - D50-1253*06/10/1953 - D89#NAME?",201717,"Cat2"]
["HSE ANGLAIS RENFORCE COL. - D50-1253*06/10/1950 - POST TEPA",201718,"Cat2"]
["HSE ANGLAIS RENFORCE LYC. - D50-1253*06/10/1950 - POST-TEPA",201719,"Cat2"]
["HSA - AIDE PERSO AU LYCEE",201720,"Cat2"]
["HSE - AIDE PERSO AU LYCEE - D50-1253*06/10/1950 - POST-TEPA",201721,"Cat2"]
["HSE STG REM. NIVEAU PASS. - D50-1253*06/10/1950 - POST-TEPA",201722,"Cat2"]
["HEURES SUP. DJF + 14 H. - D2002-60*14/01/2002 - D2002-598*25/04/2002 - POST-TEPA",201723,"Cat2"]
["HEURES SUP. NUIT + 14 H. - D2002-60*14/01/2002 - D2002-598*25/04/2002 - POST-TEPA",201724,"Cat2"]
["HEURES SUPPL.NON MAJOREES",201725,"Cat2"]
["HEURES SUPPL. MAJO 25 %",201726,"Cat2"]
["HEURES SUPPL. MAJO 50 %",201727,"Cat2"]
["HEURES SUPPL. MAJO 100%",201728,"Cat2"]
["IND. EXCEPT. PANDEMIE",201729,"Cat2"]
["I.F.R.R. - PART FONCT. - D2012-933*01/08/2012 - MEN",201730,"Cat7"]
["I.F.R.R. - COMPLT FONCT.",201731,"Cat7"]
["I.F.R.R. - PART RESULTATS D2012-933*01/08/2012 - MEN  ",201732,"Cat4"]
["MAJO ACF CONTR. EN TRAIN - D2002-710*02/05/2002 - DGDDI",201733,"Cat7"]
["RETRIBUTION D2012-1085",201734,"Cat5"]
["INDEMNITE MENSUELLED99-343*04/05/1999   ",201735,"Cat5"]
["PR. RESULTATS - PART FIXE",201736,"Cat7"]
["PR. RESULTATS - PART VAR. D2012-1165*17/10/2012 ",201737,"Cat4"]
["MAJ ACF ISA - D2002-710*02/05/2002 - DGDDI SUJETIONS AEROPORTUAIRES",201738,"Cat7"]
["I.F.R.R. - PART FONCT. - D2012-1252*12/11/2012 - MAAF",201739,"Cat7"]
["I.F.R.R.  COMPLT FONCT. - D2012-1252*12/11/2012 - MAAF",201740,"Cat7"]
["I.F.R.R. - PART RESULTATS D2012-933*01/08/2012 - MEN  ",201741,"Cat4"]
["INDEMNITE SPECIALE",201742,"Cat7"]
["ISOE PART MODULABLE D94-50*21/01/1994 MODIFIE - MAAF MENSUALISATION EX 0430",201743,"Cat7"]
["PRIME D'ENSEIGNEMENT SUP. D90-75*17/01/1990 - MAAF EX-203",201744,"Cat7"]
["IND. CONS. FORM. CONT. D91-588*24/06/1991  ",201745,"Cat7"]
["INDEMNITE FORFAITAIRE - D93-350*10/03/1993 - PERSONNEL EDUCATION MAAF - EX-0292",201746,"Cat7"]
["PR. ENCADRT DOCTOR. RECH.D93-596*26/03/1993- EX-0406 POUR LE MAAF   ",201747,"Cat7"]
["PRIME D'ADMINISTRATION D91-580*20/06/1991 MODIFIE - EX-0407 POUR LE MAAF",201748,"Cat7"]
["INDEMNITE SPECIALE D98-40*13/01/1998 MODIFIE - EX 0223 POUR LE MAAF   ",201749,"Cat7"]
["PRIME PEDAGOGIQUE D93-595*26/03/1993 ",201750,"Cat7"]
["IND. DE RESPONSABILITE",201751,"Cat7"]
["IND.SUJETIONS SPECIALES",201752,"Cat7"]
["PR.SPECIALE 3 HSA 2ND DEG",201753,"Cat2"]
["IND. AGENT ENQUETEUR - AGENTS ENQUETEURS INSEE -CIRCULAIRE DU 04/12/2012",201754,"Cat6"]
["IND. QUARTIER PRIORITAIRE - AGENTS ENQUETEURS INSEE -CIRCULAIRE DU 04/12/2012",201755,"Cat6"]
["IND. ENQUETE DIFFICILE",201756,"Cat7"]
["REM ACT-ACCESSOIRE PEDAGO - D2012-871*11/07/2012 - MEN",201757,"Cat5"]
["IND. DIFFER. HORS DEPLAC.AGENTS ENQUETEURS DE L'INSEE - CIRCULAIRE DU 04/12/2012",201758,"Autre"]
["IND. DIFFER. DEPLACEMENTS AGENTS ENQUETEURS DE L'INSEE - CIRCULAIRE DU 04/12/2012",201759,"hors champ"]
["VACATIONS MLDS 2ND DEGRE - D2012-871*11/07/2012",201760,"Cat5"]
["PRIME DE FONCTIONS",201761,"Cat7"]
["INDEMNITE D'ASTREINTE - D2012-1406*17/12/2012 - PERSONNELS DES DDI",201762,"Cat2"]
["TUTORAT E.A.P. - D2010-235*05/03/2010 MODIFIE",201763,"Cat5"]
["I.S.F.I.C.D2006-491*26/04/2006",201764,"Cat7"]
["INDEMNITE DE TUTORAT",201765,"Cat7"]
["IND. HORAIRE ANIMATION",201766,"Cat5"]
["PRIME DE RESPONSABILITE - DECRET A PARAITRE",201767,"Cat7"]
["IND. DE SUJ. GEOGRAPHIQUE - D2013-314*15/04/2013 - A/C 01/10/2013 EX-0673",201768,"Cat3"]
["IEMP - SPECIFICITES - D97-1223 ET D97-1224*26/12/1997 - EX-1535 SUITE A MENSU.",201769,"Cat7"]
["IND. CONGE INDIV. FORM.  D2007-1470*15/10/2007 - D2007-1942*26/12/2007 - RESERVE ONP",201770,"hors champ"]
["REM. FORF. CONTR. ADMISS.RECRUTEMENT EXCEPTIONNEL CONTRACTUELS 86-83 RENTREE 09/2013",201771,"Cat7"]
["I.H. ADMISSIBLE P.E.",201772,"Cat7"]
["I.H. ADMISSIBLE CERT. PLP",201773,"Cat7"]
["I.H. ADMISSIBLE EPS",201774,"Cat7"]
["CPL.FORF.ADMISS. CPE/DOC",201775,"Cat7"]
["COMPLT FIDEL. SECT. DIFF. - D99-1055*15/12/1999 MODIFIE - POLICE NATIONALE",201776,"Cat3"]
["IND. CONTROLE SAM. D.J.F. - D2013-423*23/05/2013 - SECR. ADM. CONTROLE DEV. DURABLE",201777,"Cat2"]
["MISE SOUS PLI - EL. TERR.",201778,"Cat5"]
["COMM. CONTROLE EL. TERR.",201779,"Cat5"]
["IND. TRAV. SUPP. EL. TERR D2004-143*13/02/2004 - ELECTIONS TERRITORIALES OUTRE-MER  ",201780,"Cat2"]
["I.S.A.E. - DECRET N2013-790*30/08/213",201781,"Cat7"]
["I.S.A.E. - DECRET N2013-790*30/08/213",201782,"Cat7"]
["CONGE DE RECONVERSION    ART. L4139-5 DU CODE DE LA DEFENSE - RESERVE ONP",201783,"hors champ"]
["CONGE SUPPL. RECONVERSIONART. L4139-5 DU CODE DE LA DEFENSE - RESERVE ONP",201784,"hors champ"]
["IND. ACT. MILIT. SPECIF.",201785,"hors champ"]
["IND. DE RESPONSABILITE",201786,"Cat7"]
["COMPLEMENT D'I.D.V.",201787,"Cat8"]
["I.F.R.R. - INTERIM - D2012-933*01/08/2012 - ART. 5 - MEN",201788,"Cat7"]
["INDEMNITE COMPENSATRICE  D2013-954*23/10/2013 - ACSE MIN 709",201789,"Autre"]
["I.R.P. - RESPONSABILITE - D2013-1144*11/12/2013",201790,"Cat7"]
["I.R.P. - PERFORMANCE D2013-1144*11/12/2013 ",201791,"Cat4"]
["MAJO ACF - CONTR. NAVIRES - D2002-710*02/05/2002 - DGDDI",201792,"Cat7"]
["I.F.S.E. - D2014-513*20/05/2014",201793,"Cat7"]
["COMPLEMENT INDEMNITAIRE - D2014-513*20/05/2014",201794,"Cat4"]
["IND. DE VACATION HORAIRE D96-513*07/06/1996 - RESERVE ONP",201795,"Cat7"]
["CONGE CREATION ENTREPRISEART. L4139-5-1 DU CODE DE LA DEFENSE - RESERVE ONP",201796,"hors champ"]
["INDEMNITE COMPENSATOIRE - D2013-1270*27/12/2013",201797,"Autre"]
["I.F.R. - PART FONCTIONS",201798,"Cat7"]
["I.F.R. - PART RESULTATS D2014-22*09/01/2014 - ANACT - MIN 703 ",201799,"Cat4"]
["ACF TECHNICITE - D2002-710*02/05/2002 - DGFIP",201800,"Cat7"]
["ACF EXPERTISE - D2002-710*02/05/2002 - DGFIP",201801,"Cat7"]
["ACF ENCADREMENT - D2002-710*02/05/2002 - DGFIP",201802,"Cat7"]
["ACF EXPERTISE ENCADREMENT - D2002-710*02/05/2002 - DGFIP",201803,"Cat7"]
["ACF ENCADREMENT SUPERIEUR - D2002-710*02/05/2002",201804,"Cat7"]
["ACF MODULATION",201805,"Cat7"]
["ACF RESPONS. PARTICULIERE - D2002-710*02/05/2002 - DGFIP HUISSIERS",201806,"Cat7"]
["ACF RESPONS. PARTICULIERE - D2002-710*02/05/2002 - DGFIP - COMPTABLES",201807,"Cat7"]
["ACF CONTROLE REDEVANCE - D2002-710*02/05/2002",201808,"Cat7"]
["ACF DIR. NLES ET SPECIAL. - D2002-710*02/05/2002",201809,"Cat7"]
["ACF POURSUITES ET RECOUV. - D2002-710*02/05/2002 - DGFIP",201810,"Cat7"]
["ACF ASSISTANCE USAGERS - D2002-710*02/05/2002 - DGFIP",201811,"Cat7"]
["ACF CAISSIER - D2002-710*02/05/2002 - DGFIP",201812,"Cat7"]
["ACF ACCUEIL - D2002-710*02/05/2002 - DGFIP",201813,"Cat7"]
["ACF CHARGE DE CLIENTELE",201814,"Cat7"]
["ACF PUBLICITE FONCIERE - D2002-710*02/05/2002",201815,"Cat7"]
["ACF FINITIONS ET SCANNAGE - D2002-710*02/05/2002",201816,"Cat7"]
["ACF EDITIQUE - D2002-710*02/05/2002 - DGFIP",201817,"Cat7"]
["ACF PHOTOGRAMMETRE - D2002-710*02/05/2002 - DGFIP",201818,"Cat7"]
["ACF SCES CENTRAUX ET ASS. - D2002-710*02/05/2002 - DGFIP",201819,"Cat7"]
["ACF DELEG. ACTION SOCIALE - D2002-710*02/05/2002 - DGFIP",201820,"Cat7"]
["ACF DDG - D2002-710*02/05/2002 - DGFIP",201821,"Cat7"]
["ACF EQUIPE DE RENFORT - D2002-710*02/05/2002 - DGFIP",201822,"Cat7"]
["ACF ENCAISSEMENT - D2002-710*02/05/2002 - DGFIP",201823,"Cat7"]
["ACF CONTRAINTES GEOGR. - D2002-710*02/05/2002 - DGFIP",201824,"Cat7"]
["ACF CONTRAINTES PARTIC. - D2002-710*02/05/2002",201825,"Cat7"]
["ACF TRANSPOSITION - D2002-710*02/05/2002 - DGFIP",201826,"Cat7"]
["ACF GARANTIE - D2002-710*02/05/2002 - DGFIP",201827,"Cat7"]
["ACF CONTRAINTES HORAIRES - D2002-710*02/05/2002 - DGFIP",201828,"Cat7"]
["GARANTIE INDEMNITAIRE - D2014-513*20/05/2014 ARTICLE 6",201829,"Autre"]
["REGUL. HSA/HSE CPGE - D50-1253*06/10/1953 - ARRET CE N350750 DU 03/07/2013",201830,"Cat2"]
["INDEMNITE DE FONCTIONS",201831,"Cat7"]
["MAJ. SPEC. TRAV. DE NUIT",201832,"Cat2"]
["TUTORAT CONTRACTUELS ADM.",201833,"Cat5"]
["I.P.T.S. - PART FONCTIONS - D2014-999*02/09/2014",201834,"Cat7"]
["I.P.T.S. - COMPLT ANNUEL - D2014-999*02/09/2014",201835,"Cat4"]
["INDEMNITE DE FONCTIONS",201836,"Cat7"]
["COMPLT D'ACCOMPAGNEMENT - D2014-507*19/05/2014",201837,"Cat8"]
["INDEMNITE COMPENSATRICE  D2014-518*21/05/2014",201838,"Autre"]
["INDEMNITE DE DIRECTION",201839,"Cat7"]
["MAJORATION TRAIT. MAYOTTE - D2013-964*28/10/2013 - D2014-729*27/06/2014 - CONGE BONIFIE",201840,"Cat3"]
["IND. CHARG. ADM. GARANTIE - D90-427*22/05/1990 MODIFIE - ARTICLE 1",201841,"Cat7"]
["MAJ. ACF SPECIF OUTRE-MER - D2002-710*02/05/2002 - EX-1110 MENSUALISEE A/C 10/2014",201842,"Cat3"]
["IND. CONS. PEDAGOGIQUE - D2014-1019*08/09/2014",201843,"Cat7"]
["IND MAITRE FORM/TUTOR. 1D - D2014-1016*08/09/2014",201844,"Cat4"]
["IND FORMATEUR ACADEMIQUE - D2014-1018*08/08/2014",201846,"Cat7"]
["IND TUTORAT STAGIAIRE 2D - D2014-1017*08/08/2014",201847,"Cat7"]
["INDEMNITE DE FONCTIONS",201848,"Cat7"]
["INDEMNITE DE SUJETIONS - D2004-1054*01/10/2004",201849,"Cat7"]
["PRIME REDEP. COMPETENCES",201850,"Cat8"]
["ALLOC.AIDE MOBILITE CONJ.",201851,"Cat8"]
["INDEMNITE DE FONCTIONS",201852,"Cat5"]
["IND. DETACHEMENT SUR TIB CIRCULAIRE DU 8 SEPTEMBRE 2008 - ONF    ",201853,"hors champ"]
["IND. DETACHEMENT SUR IR",201854,"Autre"]
["ACT PILOT NAT 1ER DEGRE - D2014-1394*24/11/2014",201855,"Cat5"]
["ACT PILOT NAT 2ND DEGRE - D2014-1394*24/11/2014",201856,"Cat5"]
["INDEMNITE COMPENSATRICE - D2014-1457*05/12/2014 - EX-IR DES COMMUNES MINIERES DU 57",201857,"Cat3"]
["IND. DIFFER. TEMPORAIRE - D2014-1527*16/12/2014",201858,"Autre"]
["IND. SPECIALE FORFAITAIRE",201859,"Cat7"]
["INDEMNITE D'INTERVENTION - D2014-1684*30/12/2014",201860,"Cat2"]
["IND. FORF. MENSUELLE",201861,"Cat7"]
["IND. COMPENS. DE PREAVIS ART. L1234-5 DU CODE DU TRAVAIL",201862,"Autre"]
["INDEMNITE DE SUJETIONS - D2004-1228*17/11/2004",201863,"Cat2"]
["INDEMNITE DE SUJETIONS - D90-944*23/10/1990",201864,"Cat7"]
["INDEMNITE DE SUJETIONS - D2004-1055*01/10/2004",201865,"Cat2"]
["TUTORAT ETUDIANT SOPA - D2010-235*05/03/2010 MODIFIE",201866,"Cat5"]
["IND. DE SUJETION SPECIALE - D2004-1011*21/09/2004 MODIFIE",201867,"Cat7"]
["INDEMNITE DE FONCTION - D2002-1302*25/10/2002",201868,"Cat7"]
["ACF CHARGE DE CLIENTELE",201869,"Cat7"]
["INDEMNITE DEGRESSIVE - D2015-492*29/04/2015",201870,"Autre"]
["IND. COMP. TEMPORAIRE    D2015-399*08/04/2015",201871,"Autre"]
["INDEMNITE D'ASTREINTE - D2015-415*15/04/2015 (EX-0277)",201872,"Cat2"]
["INDEMNITE D'INTERVENTION - D2015-415*15/04/2015",201873,"Cat2"]
["INDEMNITE DE PERMANENCE - D2003-545*18/06/2003 MODIFIE PAR D2015-415*15/04/2015",201874,"Cat2"]
["I.M.P. ANNUELLE ETAB. - D2015-475*27/04/2015",201875,"Cat7"]
["I.M.P. ANNUELLE ACAD. - D2015-475*27/04/2015",201876,"Cat7"]
["I.M.P. PONCTUELLE ETAB. - D2015-475*27/04/2015",201877,"Cat7"]
["I.M.P. PONCTUELLE ACAD. - D2015-475*27/04/2015",201878,"Cat7"]
["I.S.S. EFF. PLETHORIQUES - D2015-477*27/04/2015",201879,"Cat7"]
["I.S.S. EDUC. PHYS. SPORT. - D2015-476*27/04/2015",201880,"Cat7"]
["I.S.S. VOIE PROFESS. - D2015-476*27/04/2015",201881,"Cat7"]
["IND. SUJETION  REP+ - D2015-1087*28/08/2015",201882,"Cat7"]
["IND. SUJETION REP - D2015-1087*28/08/2015",201883,"Cat7"]
["IND. EDUC. PRIORITAIRE",201884,"Cat7"]
["IND. EDUC. PRIORITAIRE - D2015-1087*28/08/2015 - INSPECTEURS DE L'EDUCATION NATIONALE",201885,"Cat7"]
["CLAUSE SAUVEGARDE ZEP - D2015-1087*28/08/2015",201886,"Autre"]
["CLAUSE SAUVEGARDE ECLAIR - D2015-1087*28/08/2015",201887,"Autre"]
["IND. FORMATION CONTINUE",201888,"Autre"]
["IND. ACT. OPERATIONNELLE - D2015-767*29/06/2015",201889,"Cat7"]
["CPLT SPECIF. RESTRUCT. - D2015-787*29/06/2015 - DGDDI",201890,"Cat8"]
["PRIME DE QUALIFICATION",201891,"Cat7"]
["IND. FORF. DE SUJETIONS",201892,"Cat7"]
["IND. DIFFERENTIELLE",201893,"Cat3"]
["P.A.R.R. ETAT 1ERE PART - D2015-1120*04/09/2015",201894,"Cat8"]
["P.A.R.R. ETAT 2EME PART - D2015-1120*04/09/2015",201895,"Cat8"]
["COMPLT MOBILITE CONJOINT",201896,"Cat8"]
["IND. DE DEPART VOLONTAIRE",201897,"Cat8"]
["INDEMNITE DE FONCTION - D2015-1143*15/09/2015 - HCERES",201898,"Cat5"]
["INDEMNITE DE FONCTION",201899,"Cat7"]
["INDEMNITE DE FONCTION",201900,"Cat7"]
["INDEMNITE D'EXPERTISE",201901,"Cat7"]
["IND. FORMATION CONTINUE",201902,"Cat7"]
["ACF CHARGE DE CLIENTELE - D2002-710*02/05/2002",201903,"Cat7"]
["B.M.C.- FAMILY ALLOWANCE BOURSES MARIE CURIE - UNIVERSITE RCE",201904,"hors champ"]
["COMPLT PRIME DE RENDEMENT",201905,"Cat7"]
["IND. SPECIF. TECHNICITE",201906,"Cat7"]
["INDEMNITE SPECIALE - D2015-1920*30/12/2015",201907,"Cat7"]
["PR. FONCTIONS RENDEMENT",201908,"Cat7"]
["PR. FONCT. RENDT VST EXC.",201909,"hors champ"]
["REM. CHAIRE JEAN MONNET",201910,"Autre"]
["REM. TUTORAT APPRENTI - D2010-235*05/03/2010",201911,"Cat5"]
["MAJO ACF RESP TECH BCMA - D2002-710*02/05/2002 - DGDDI",201912,"Cat7"]
["MAJO ACF RESP/MON SECUR - D2002-710*02/05/2002 - DGDDI",201913,"Cat7"]
["I.S.A.E - D2013-790*30/08/2013 MODIFIE - MENSUALISATION AU 01/09/2016",201914,"Cat7"]
["IND. SUJ. SPECIFIQUE PTS - D2016-1259*27/09/2016",201915,"Cat7"]
["INDEMNITE DE FONCTIONS",201916,"Cat7"]
["IND. COMPENS. SUJ. SPECIF",201917,"Cat3"]
["HSA HORS SUPPLEANCES - D50-1253*06/10/1950 - PROFS CONTRACTUELS 2ND DEGRE PUBLIC",201918,"Cat2"]
["HSA SUPPLEANCES - D50-1253-06/10/1950 - PROFS CONTRACTUELS 2ND DEGRE PUBLIC",201919,"Cat2"]
["HSE HORS SUPPLEANCES",201920,"Cat2"]
["HSE SUPPLEANCES",201921,"Cat2"]
["HSA HORS SUPPLEANCES MLDS",201922,"Cat2"]
["HSA SUPPLEANCES MLDS",201923,"Cat2"]
["HSE HORS SUPPLEANCES MLDS",201924,"Cat2"]
["HSE  SUPPLEANCES MLDS",201925,"Cat2"]
["MAJO 1ERE HSA HORS SUPPL. - D50-1253*06/10/1950 - PROFS CONTRACTUELS 2ND DEGRE PUBLIC",201926,"Cat2"]
["MAJO 1ERE HSA SUPPLEANCESD50-1253*06/10/1950 - PROFS CONTRACTUELS 2ND DEGRE PUBLIC",201927,"Cat2"]
["MAJ 1ERE HSA H.SUPPL.MLDS",201928,"Cat2"]
["MAJ 1ERE HSA SUPPL. MLDS",201929,"Cat2"]
["HSE LV 1ER DEGRE",201930,"Cat2"]
["HSE ACCOMPAGNEMENT EDUC.",201931,"Cat2"]
["HSE REUSSITE SCOLAIRE",201932,"Cat2"]
["HSE ANGLAIS AU COLLEGE",201933,"Cat2"]
["HSE ANGLAIS AU LYCEE",201934,"Cat2"]
["HSE ACCOMP. INDIV. LYC.",201935,"Cat2"]
["HSE STAGE REMISE A NIVEAU",201936,"Cat2"]
["HSE RCD - D50-1253*06/10/1950 - PROFS CONTRACTUELS 2ND DEGRE PUBLIC",201937,"Cat2"]
["HSE RCD MLDS",201938,"Cat2"]
["HSA HORS SUPPLEANCES - D2016-974*18/07/2016 - MAITRES DELEGUES 2ND DEGRE PRIVE",201939,"Cat2"]
["HSA SUPPLEANCES",201940,"Cat2"]
["HSE HORS SUPPLEANCES",201941,"Cat2"]
["HSE SUPPLEANCES",201942,"Cat2"]
["MAJO 1ERE HSA HORS SUPPL. - D2016-974*18/07/2016",201943,"Cat2"]
["MAJO 1ERE HSA SUPPLEANCES",201944,"Cat2"]
["HSE ACCOMPAGNEMENT EDUC.",201945,"Cat2"]
["HSE ANGLAIS AU COLLEGE",201946,"Cat2"]
["HSE ANGLAIS AU LYCEE",201947,"Cat2"]
["HSE ACCOMP. INDIV. LYC.",201948,"Cat2"]
["HSE STAGE REMISE A NIVEAU",201949,"Cat2"]
["HSE RCD",201950,"Cat2"]
["HS MA 1D ENS. PRIVE",201951,"Cat2"]
["HS MA 1D REMISE A NIVEAU",201952,"Cat2"]
["MAJ ACF STAG. EXTERNE B - D2002-710*02/05/2002 - DGDDI STAGIAIRES EXTERNE DE CAT. B",201953,"Cat7"]
["PRIME FORFAITAIRE OPJ - D2016-1261*27/09/2016 - ART. 1ER 1",201954,"Cat7"]
["PRIME FORFAITAIRE OPJ - D2016-1261*27/09/2016 - ART. 1ER 2",201955,"Cat7"]
["INDEMNITE DIFFERENTIELLE D2016-1271*29/09/2016",201956,"Autre"]
["IND. JURY SELECTION IUF",201957,"Cat5"]
["RIST PART FONCTIONS",201958,"Cat7"]
["RIST PART EXPER. PROF.",201959,"Cat7"]
["RIST PART LIC-ISQ (ICNA)",201960,"Cat7"]
["RIST CPLT PART LIC-ISQ",201961,"Cat7"]
["RIST CPLT EXPERIMENTATION",201962,"Cat7"]
["RIST IND. COMPENSATOIRE",201963,"Autre"]
["INDEMNITE FORFAITAIRE    ART. R236-3 DU CODE DE L'EDUCATION",201964,"hors champ"]
["CLAUSE DE MAINTIEN - D2015-984*31/07/2015 ART.30 - D2015-1043*20/08/2015 ART. 6",201965,"Cat8"]
["IND. TRAVAUX SOUS-MARINS",201966,"Cat7"]
["IND. SUJ. PARTICULIERES - D2001-1148*05/11/2001 - CABINETS MINISTERIELS - VST PONCTUEL",201967,"Cat7"]
["PRIME DE RENDEMENT",201968,"Cat6"]
["IND. SUJETIONS DE JOUR",201969,"Cat7"]
["IND. SUJETIONS DE NUIT",201970,"Cat7"]
["INDEMNITE DE BORD",201971,"Cat6"]
["IND. FORF. DE FONCTIONS",201972,"Cat6"]
["PRIME DE FONCTION",201973,"Cat7"]
["IND. CONTROLE EN USINE",201974,"Cat7"]
["INDEMNITE DE CONGES      D2016-1994*30/12/2016 - ART. 16 - PERSONNELS OMID",201975,"Cat2"]
["INDEMNITE D'INTERIM",201976,"Cat7"]
["IND. FORF. DE CONTRAINTES",201977,"Cat7"]
["IND. TUTORAT DE DIRECTEUR - D2010-235*05/03/2010",201978,"Cat5"]
["INDEMNITE DIFFERENTIELLE D2015-1089*28/08/2015 - RECODIFICATION 201893",201979,"Autre"]
["IND. FORF. MENSUELLE",201980,"Cat7"]
["IND. FORFAITAIRE PASP ART. R236-15 DU CODE DE LA SECURITE INTERIEURE",201981,"Cat5"]
["IND. D'ABSENCE CUMULEE",201982,"Cat2"]
["MAJ. ACF TGD/RI - D2002-710*02/05/2002",201983,"Cat7"]
["MAJ. ACF RESP. COMPTABLE - D2002-710*02/05/2002",201984,"Cat7"]
["INDEMNITE DE FONCTIONS",201985,"Cat7"]
["RIST MAJO CDG/CRNAO",201986,"Cat7"]
["RIST MAJO GEO N/N-E",201987,"Cat3"]
["RIST PART LIC-ISQ (TS)",201988,"Cat7"]
["RIST PART TECHNIQUE PEE",201989,"Cat7"]
["RIST PART TECHNIQUE PEQ",201990,"Cat7"]
["RIST PART TECHNIQUE PQH 1",201991,"Cat7"]
["RIST PART TECHNIQUE PQH 2",201992,"Cat7"]
["IND. TEMP. SUJ. SERV. ACC - D2017-829*05/05/2017",201993,"Cat7"]
["IND. ENSEIGNEMENT SEGPA - D2017-964*10/05/2017",201994,"Cat7"]
["I.M.P. ANNUELLE DSDEN - D2017-965*10/05/2017",201995,"Cat7"]
["I.M.P ANNUELLE ACAD. - D2017-965*10/05/2017 - 1ER DEGRE",201996,"Cat7"]
["I.M.P. PONCTUELLE DSDEN",201997,"Cat7"]
["I.M.P. PONCTUELLE ACAD.",201998,"Cat7"]
["IND. FONCT. PARTICULIERES - D2017-966*10/05/2017",201999,"Cat7"]
["IND. FONCTIONS LDS",202000,"Cat7"]
["INDEMN. DE REPRESENTATION",202001,"Cat7"]
["INDEMNITE COMPENSATRICE",202002,"Autre"]
["INDEMNITE DIFFERENTIELLE D93-490*25/03/1993",202003,"Autre"]
["INDEMNITE E.N.A",202004,"Cat7"]
["INDEMNITE D'INTERIM",202005,"Cat7"]
["REPRESENTA. SUR INTERIM",202006,"Cat7"]
["IND. MENSUELLE TECHNICITE",202007,"Cat7"]
["IND. SUJ. SPECIALE POLICED2013-617*11/07/2013",202008,"Cat6"]
["IND. DE SUIVI ET ORIENT.",202009,"Cat7"]
["REPRESENTATION",202010,"Cat7"]
["HEURES SUPP.ANNEE",202011,"Cat2"]
["INDEMN. RESPONSABILITE",202012,"Cat7"]
["HEURES SUPP.ANNEE",202013,"Cat2"]
["INDEMNITE D'ETABLISSEMENT",202014,"Cat7"]
["IND.JURYS D EXAMEN",202015,"Cat5"]
["INDEMN. EQUIPEMENT VSNA",202016,"Cat7"]
["HEURES SUPP EFFECTIVES",202017,"Cat2"]
["REGUL RED.COT.HEURES.SUP.",202018,"hors champ"]
["INDEMN.CHARGES MILITAIRES",202019,"Autre"]
["INDEMNITE PERI EDUCATIVE",202020,"Cat2"]
["INDEMNITE SOMMET DE GRADE",202021,"Autre"]
["INDEMNITE",202022,"Autre"]
["ISOE PART MODULABLE",202023,"Cat7"]
["INDEMNITE EXCEPTIONNELLE  (REGULARISATION)",202024,"Autre"]
["INDEMNITE EXCEPTIONNELLE (ANNEE ANTERIEURE)",202025,"Autre"]
["HEURES SUPP.EFFECTIVES",202026,"Cat2"]
["COMPLEMENT INDEMNITAIRE  COMPLEMENT INDEMNITAIRE BUREAU 2D (ETR 2005 034)",202027,"Cat3"]
["RESTITUTION LOGEMENT     COMPLEMENT INDEMNITAIRE BUREAU 2D (ETR 2005 034)",202028,"Cat3"]
["PRIME D'INTERESSEMENT    DGFIP",202029,"Cat4"]
["REMB. COTIS OUV RAFP",202030,"hors champ"]
["HEURES SUPP.ANNEE",202031,"Cat2"]
["INDEMN. DE RESPONSABILITE",202032,"Cat7"]
["HEURES SUPP. ANNEE       D2007-1430*04/10/2007",202033,"Cat2"]
["PR.SPECIALE 3 HSA 2ND DEGD2008-927*12/09/2008 - ENSEIGNANTS AEFE",202034,"Cat2"]
["IND. CONGES NON PRIS     D2007-1597*20/11/2007",202035,"Cat2"]
["PRIME DE FUSION DGFIP    DM DU 18/03/2000 - DGFIP FILIERE GESTION PUBLIQUE",202036,"Cat8"]
["HEURES SUPP EFFECTIVES   D2007-1430*04/10/2007",202037,"Cat2"]
["INDEMN. CHARGES MILITAIR.",202039,"Autre"]
["IND. DE SUIVI ET ORIENT.",202040,"Cat7"]
["IND. MILITAIRES (DIVERS)",202041,"Autre"]
["INDEMNITE",202042,"Autre"]
["COMPL. AVANTAGE FAMILIAL",202043,"hors champ"]
["INDEMNITE EXCEPTIONNELLE",202044,"Autre"]
["COMPL. AVANTAGE FAMILIAL",202045,"hors champ"]
["HEURES SUPP.EFFECTIVES",202046,"Cat2"]
["COMPLEMENT INDEMNITAIRE  COMPLEMENT INDEMNITAIRE BUREAU 2D (ETR 2005 034)",202047,"Cat3"]
["RESTITUTION LOGEMENT     COMPLEMENT INDEMNITAIRE BUREAU 2D (ETR 2005 034)",202048,"Cat3"]
["IMT FUSION               DGFIP - DM DU 18/03/2008",202049,"Cat8"]
["INDEMNITE DEGRESSIVE     D2015-492*29/04/2015",202050,"Autre"]
["IND. CONGES NON PRIS     D2007-1597*12/11/2007 - CATEGORIE A ET ASSIMILES",202101,"Cat2"]
["IND. CONGES NON PRIS     D2007-1597*12/11/2007 - CATEGORIE B ET ASSIMILES",202102,"Cat2"]
["IND. CONGES NON PRIS     D2007-1597*12/11/2007 - CATEGORIE C ET ASSIMILES",202103,"Cat2"]
["JOURS CET A OPTION RAFP  D2009-1065*28/08/2009 - CATEGORIE A",202104,"Cat2"]
["JOURS CET B OPTION RAFP  D2009-1065*28/08/2009 - CATEGORIE B",202105,"Cat2"]
["JOURS CET C OPTION RAFP  D2009-1065*28/08/2009 - CATEGORIE C",202106,"Cat2"]
["IND. EVALUATION CE1-CM2  D2009-808*30/06/2009 - ABROGE PAR D2013-515*19/06/2013",202107,"Cat7"]
["PRIME DE SPECIALITE      CORRESPONDANTS DU MAEE EN POSTE EN TUNISIE",202108,"hors champ"]
["PRIME DE SPECIALITE      COOPERANTS DU MAEE EN POSTE EN TUNISIE",202109,"hors champ"]
["INDEM. FORFAIT. DE CONGE D2006-1642*20/12/2006",202110,"Cat3"]
["PRIME DE PERFORMANCE",202111,"Cat4"]
["DROIT 1ERE INSCRIPTION",202112,"hors champ"]
["I.S.A.E.",202121,"Cat7"]
["IND.MISSION PARTICULIERE D2015-475*27/04/2015 - ARR*01/03/2016 - VST MENSUEL",202122,"Cat7"]
["IND.MISSION PARTICULIERE D2015-475*27/04/2015 - ARR01/03/2016 - VST PONCTUEL",202123,"Cat7"]
["IND. FONCT. PARTICULIERE AEFE - PROFESSEURS DES ECOLES",202125,"Cat7"]
["IND. SUJ. PARTICULIERES  AEFE - CONSEILLERS D'ORIENTATION PSYCHOLOGUES",202126,"Cat7"]
["IND. SUJ. PARTICULIERES  AEFE - PERSONNELS DE DOCUMENTATION",202127,"Cat7"]
["GARANTIE ART. 11         ARRETE DU 23/10/2017 NOR ECOP1706753A",202128,"Cat8"]
["PRIME DE FUSION DGFIP    DM DU 18/03/2008 - DGFIP FILIERE FISCALITE",202136,"Cat8"]
["INDEMNITE DE FORMATION",202200,"Autre"]
["INDEMNITE COMPENSATRICE  D2017-1302*24/08/2017",202201,"Autre"]
["IND. FORF. MENSUELLE",202202,"Cat7"]
["INDEMNITE DE FORMATION",202203,"Autre"]
["PRIME DE RENDEMENT",202204,"Cat7"]
["INDEMNITE DE FONCTIONS - D2017-    *  /  /2017 - PSYCHOLOGUES EDUCATION NATIONALE",202205,"Cat7"]
["IND. COMPENSATRICE CSG - L2017-1837*30/12/2017 - D2017-1889*30/12/2017",202206,"Autre"]
["INDEMNITE D'INTERIM - MEN - COMMUNE Ó DIVERS DISPOSITIFS INDEMNITAIRES",202207,"Cat7"]
["VACATIONS CPH",202208,"Cat5"]
["IND. COMPENSATRICE CSG   L2017-1837*30/12/2017 - D2017-1889*30/12/2017",202209,"Autre"]
["PRIME DE FONCTIONS",202210,"Cat7"]
["IND. FORMATION INITIALE",202211,"Autre"]
["PRIME FORF. DE FONCTIONS - ",202212,"Cat7"]
["IND. ENSEIGNEMENT SEGPA",202213,"Cat7"]
["COMPLEMENT PERSONNEL",202214,"Cat4"]
["PART VARIABLE",202215,"Cat4"]
["IND. SUJETIONS HORAIRES",202216,"Cat2"]
["IND. SUJETIONS SPECIALES",202217,"Cat7"]
["ALLOCATION SPECIALE",202218,"Autre"]
["I.M.P. DEVOIRS FAITS",202219,"Cat7"]
["IND. C.E. S.E. PART FIXE",202220,"Cat7"]
["IND. C.E. S.E. PART VAR.",202221,"Cat4"]
["INDEMNITE CHARGES PENIT.",202222,"Cat7"]
["ACF ACCUEIL USAGERS",202223,"Cat7"]
["IND. ENERGIE-PROPULSION",202224,"Cat7"]
["INDEMNITE DE FONCTIONS",202225,"Cat7"]
["INDEMNITE D'ASTREINTE",202226,"Cat2"]
["INDEMNITE D'INTERVENTION",202227,"Cat2"]
["SAUVEGARDE IND. REP +",202228,"Autre"]
["SAUVEGARDE IND. REP",202229,"Autre"]
["HSE DEVOIRS FAITS",202230,"Cat2"]
["HSE CONTR DEV FAITS PUB",202231,"Cat2"]
["VAC. DEVOIRS FAITS PUBLIC",202232,"Cat5"]
["VAC. DEVOIRS FAITS PRIVE",202233,"Cat5"]
["INDEMNITE DE FONCTION",202234,"Cat7"]
["ISHR - PART FONCTIONNELLE",202235,"Cat7"]
["ISHR - PART VARIABLE",202236,"Cat4"]
["ISHR - IND. COMPENSATRICE",202237,"Autre"]
["IND. TEMP. ACCOMPAGNEMENT",202238,"Cat8"]
["IND. FORFAITAIRE DE CONGED2006-1642*22/12/2006 - MILITAIRES DGA A L'ETRANGER",202239,"Cat3"]
["IND. FONCT. F.C. ADULTES D2018-1174*18/12/2018",202240,"Cat7"]
["PR. FIDELISATION ART. 1  D2018-1319*28/12/2018",202241,"Cat3"]
["PR. FIDELISATION ART. 5  D2018-1319*28/12/2018",202242,"Cat3"]
["PR. FIDELISATION ART. 8  D2018-1319*28/12/2018",202243,"Cat3"]
["ACF - DEPLOIEMENT PAS    D2002-710*02/05/2010",202244,"Cat4"]
["INDEMNITE SPECIFIQUE IDF CIRCULAIRE INSEE DU 3 AVRIL 2017 - ENQUETEURS",202245,"Cat7"]
["IND. ENGAG. SERV. PUBLIC ART D6152-23-1 6░ DU CODE DE LA SANTE PUBLIQUE",202246,"Cat7"]
["I.M.P. ANNUELLE ERASMUS+ D2015-475*27/04/2014",202247,"Cat7"]
["IND. COMPENSATRICE CSG   L2017-1837*30/12/2017 - D2017-1889*30/12/2017",202248,"Autre"]
["HEURES D'INTERROGATION   D50-1253*06/10/1953 - HORS DISPOSITIF MUES",202249,"Cat2"]
["IND. HOR. DE SURVEILLANCED66-787*14/10/1966",202250,"Cat2"]
["COURS COMPLEMENTAIRES    D83-1175*23/12/1983",202251,"Cat2"]
["COURS COMPL. CHAIRE VAC. D83-1175*23/12/1983",202252,"Cat2"]
["INDEMNITE D'INTERVENTION D2002-158*02/08/2002",202253,"Cat2"]
["INDEMNITE D'INTERVENTION D2000-815*20/08/2000 - D2019-133*25/02/2019",202254,"Cat2"]
["MAJ ACF TRAVAIL NUIT DJF D2002-710*02/05/2002",202255,"Cat2"]
["INDEMNITE DE FONCTIONS   D2019-456*15/05/2019 - PRESIDENT ACNUSA",202256,"Cat7"]
["ALLOC.COMPL.FONCTIONS    D2002-710*02/05/2002 - DGDDI MARINS",202257,"Cat7"]
["INDEMNITE D'ASTREINTE-D2003-621*04/07/2003",202258,"Cat2"]
["ALLOCATION DE FORMATION",202260,"Cat5"]
["COMPLEMENT ANNUEL-D65-382*21/05/1965 MODIFIE (ART. 12-2",202261,"Cat4"]
["COMPLEMENT INDIVIDUEL",202262,"Cat6"]
["PR. PERFORMANCE COLL.",202263,"Cat4"]
["PR. PERFORMANCE INDIV.",202264,"Cat4"]
["INDEMNITE DE CONTROLE",202265,"Cat7"]
["IND. BLOCAGE DE SITE",202266,"Cat7"]
["INDEMNITE EXCEPTIONNELLE",202267,"Cat2"]
["INDEMNITE D'ASTREINTE",202268,"Cat2"]
["INDEMNITE D'INTERVENTION",202269,"Cat2"]
["IND. JOURN. DET. OPER.",202270,"Cat2"]
["PRIME DE POSTE DE JOUR",202271,"Cat2"]
["PRIME DE POSTE DE NUIT",202272,"Cat2"]
["PRIME DE POSTE COMP FORF",202273,"Cat2"]
["PR. DE POSTE PASSAGE 3X8",202274,"Cat2"]
["IND. FORF. TRAV. EXC. DJF",202275,"Cat2"]
["FORFAIT JOURN HAB/DESHAB",202276,"Cat2"]
["COMPENS. DOUCHE/LAVAGE",202277,"Cat2"]
["INDEMNITE DE TRANSPORT",202278,"hors champ"]
["IND. FORFAITAIRE HV",202279,"Cat2"]
["INDEMNITE DEGRESSIVE",202280,"Cat7"]
["PRIME DE RECONNAISSANCE",202281,"Cat4"]
["ACF - CDL",202282,"Cat7"]
["IND. ACCOMP. MOB. FONCT.",202283,"Cat8"]
["IND. SPECIF. RUPT. CONV.",202284,"Cat8"]
["IND. SPECIF. RUPT. CONV.",202285,"Cat8"]
["IND. CONGE TRANSITION PRO",202286,"hors champ"]
["INDEMNITE POUR MISSION",202287,"Cat2"]
["IND. EXCEPT. E3C BAC",202288,"Cat2"]
["IND. EXCEPT. E3C BAC",202289,"Cat2"]
["IND. DE RUPTURE ANTICIPEE",202290,"hors champ"]
["IND. ORGANIS. DE COLLECTE",202291,"Cat7"]
["IND. SUJ. SPEC. DE POLICE",202292,"Cat6"]
["INDEMNITE DE FONCTIONS",202293,"Cat7"]
["INDEMNITE DE FONCTIONS",202295,"Cat7"]
["INDEMNITE DE FONCTIONS",202296,"Cat7"]
["PRIME EXCEPTIONNELLE",202297,"Cat2"]
["IND. SPECIF. RUPT. CONV.",202298,"Cat8"]
["IHE - DISPOSITIF 2S2C",202299,"Cat2"]
["HSE - DISPOSITIF 2S2C",202300,"Cat2"]
["HSE - DISPOSITIF 2S2C",202301,"Cat2"]
["INDEMNITE DE DIRECTION",202302,"Cat7"]
["IND. INTERV. SANS DEPLACT",202304,"Cat2"]
["IND. DE RESPONSABILITE",202305,"Cat7"]
["I.M.P. ANNUELLE ETAB.",202306,"Cat7"]
["MAJ. EXCEPT. HS COVID-19",202307,"Cat2"]
["IND. TRAVAUX SALISSANTS",202308,"Cat7"]
["MAJORATION COM (84%)",202309,"Cat3"]
["MAJORATION COM (108%)",202310,"Cat3"]
["IND. FONCTIONS PARTIC.",202312,"Cat7"]
["PRIME DE LIEN AU SERVICE",202313,"Cat3"]
["COMPLT TRAIT. INDICIAIRE",202314,"Cat7"]
["COMPLEMENT DE SALAIRE",202315,"Cat7"]
["COMPLEMENT DE SALAIRE",202316,"Cat7"]
["IND. DE FIN DE CONTRAT",202317,"hors champ"]
["PR. FIDELISATION TERRIT.",202318,"Cat3"]
["IND. DIRECTION PART FONCT",202319,"Cat7"]
["IND. DIRECTION PART VAR.",202320,"Cat4"]
["HEURES SUP. 14 PREM. H.",204102,"Cat2"]
["HEURES SUPPL. + DE 14 H.",204103,"Cat2"]
["HEURES SUP. DJF 14 PREM.",204104,"Cat2"]
["HEURES SUP. NUIT 14 PREM.",204105,"Cat2"]
["HEURES SUP. DJF + 14 H.",204106,"Cat2"]
["HEURES SUP. NUIT + 14 H.",204107,"Cat2"]
["HEURES SUPPLEMENTAIRES",204117,"Cat2"]
["HEURES SUPPLEMENTAIRES",204118,"Cat2"]
["IND. POUR SERVICES SUPPL.",204196,"Cat2"]
["COURS COMPL.ENS.SUP.",204204,"Cat2"]
["HEURES ANNEE ENSEIGNT",204205,"Cat2"]
["HEURES SUPPL.SURVEILLANCE",204206,"Cat2"]
["HEURES D'INTERROGATION",204207,"Cat2"]
["IND.HORAIRES HORS SERVICE",204210,"Cat2"]
["HEURES-ANNEE SUPPLEANCE",204213,"Cat2"]
["HEURES SUPPL. EFF. ENS.",204215,"Cat2"]
["H.SUP.EFF.SURV.HORS SUPPL",204216,"Cat2"]
["HEURES-ANNEE SURV.SUPPL.",204217,"Cat2"]
["COURS COMPL. UNIVERSITE",204218,"Cat2"]
["COURS COMPL. CHAIRE VAC",204226,"Cat2"]
["COURS COMPLEMENTAIRES",204331,"Cat2"]
["HSE FAI 1ER DEGRE",204409,"Cat2"]
["HSE ZEP 1ER DEGRE",204410,"Cat2"]
["IND. ENSEIGNT MILIEU PEN.",204484,"Cat7"]
["HSE ENSEIGNT SUPPLEANCES",204497,"Cat2"]
["HSE ENSEIGNT SUPPLEANCES",204498,"Cat2"]
["HSA ENS. HORS SUPPL. MGI",204530,"Cat2"]
["HSA ENS. SUPPLEANCES MGI",204531,"Cat2"]
["HSE ENS. HORS SUPPL. MGI",204532,"Cat2"]
["HSE ENS. SUPPL. MGI",204533,"Cat2"]
["MAJO 1ERE HSA ENS.",204576,"Cat2"]
["MAJO 1ERE HSA ENS.",204577,"Cat2"]
["MAJO 1ERE HSA ENS.MGI",204578,"Cat2"]
["MAJO 1ERE HSA ENS. MGI",204579,"Cat2"]
["MAJO 1ERE HSA SURV.",204580,"Cat2"]
["MAJO 1ERE HSA SURVEIL.",204581,"Cat2"]
["HEURES SUPPLEMENTAIRES",204648,"Cat2"]
["ASTREINTES (INTERV.)",204667,"Cat2"]
["HEURES SUPPL. 1ER TAUX",205060,"Cat2"]
["HEURES SUPPL. 2EME TAUX",205061,"Cat2"]
["HEURES COMPL.NON MAJOREES",205062,"Cat2"]
["HEURES SUPPL.NON MAJOREES",205063,"Cat2"]
["HEURES SUPPL. MAJO 25 %",205064,"Cat2"]
["HEURES SUPPL. MAJO 50 %",205065,"Cat2"]
["HEURES SUPPL. MAJO 100%",205066,"Cat2"]
["IND. EXCEPT. PANDEMIE",205067,"Cat2"]
["IND.SUJ. SPEC. 2EME PART",205092,"Cat2"]
["HSE LANG.VIVANTES 1° DEG.",205195,"Cat2"]
["HSE ENS.SUPPL.C.DUREE",205241,"Cat2"]
["HSE ENS.SUPPL.C.DUREE",205242,"Cat2"]
["HSE FAI 2ND DEGRE        D50-1253*06/10/1950 MODIFIE - D2007-1430*04/10/2007",205300,"Cat2"]
["HSE ZEP 2ND DEGRE",205301,"Cat2"]
["HS ACCOMP.EDUCATIF PUB 1°",205401,"Cat2"]
["HS ACCOMP.EDUCATIF PUB 2°",205402,"Cat2"]
["HS ACCOMP.EDUCATIF PRI 2°",205403,"Cat2"]
["HSE - REMISE A NIVEAU 1PU",205404,"Cat2"]
["HSE - REMISE A NIVEAU 1PR",205405,"Cat2"]
["HSE - REUSSITE SCOLAIRE",205410,"Cat2"]
["HSE ANGLAIS RENFORCE COL.",205411,"Cat2"]
["HSE ANGLAIS RENFORCE LYC.",205412,"Cat2"]
["HSA - AIDE PERSO AU LYCEE",205413,"Cat2"]
["HSE - AIDE PERSO AU LYCEE",205414,"Cat2"]
["HSE STG REM. NIVEAU PASS.",205415,"Cat2"]
["REGUL. HSA/HSE CPGE",205830,"Cat2"]
["TRAITEMENT BRUT - ","101000","TIB"]
["FORFAIT TELETRAVAIL-D2021-1123*26/08/2021","200042","Cat5"]
["REMBT CSG NON DEDUCTIBLE-MARINS DE L'EQUIPEMENT (CODE 0947)","201117","hors champ"]
["IND PREMIERE AFFECTATION-D91-166*12/02/1991 - MINISTERE DE L'AGRICULTURE","202259","Cat3"]
["INDEMNITE FORFAITAIRE-D2020-173*27/02/2020","202294","Cat7"]
["PRIME DE QUALIFICATION-D2004-537*14/01/2004","202303","Cat7"]
["PRIME EQUIPT INFORMATIQUE-D2020-1524*05/12/2020 - D2021-1095*18/08/2021","202321","Cat5"]
["IND. HORAIRES ENSEIGNT.-D66-787*14/10/1966 - ENSEIGNANTS CONTRACTUELS","202322","Cat2"]
["IND. HORAIRES ENSEIGNT.-D66-787*14/10/1966","202323","Cat2"]
["PRIME DE RENDEMENT-D73-542*20/06/1973 - DIRECTEURS CNMSS","202324","Cat6"]
["\"PRIME GRENELLE\"-D2021-276*12/02/2021 - TITULAIRES","202326","Cat7"]
["\"PRIME GRENELLE\"-D2021-276*12/02/2021 - CONTRACTUELS","202327","Cat7"]
["IND. SERVICES AERIENS-D49-1655*28/12/1949","202328","Cat6"]
["GARANTIE INDEMNITAIRE-D2020-1469*27/11/2020","202329","Autre"]
["IND. REMUN. DE SERVICES-D88-132*04/02/1988","202330","Cat7"]
["INDEMNITE COMPENSATRICE-D2020-1488*01/01/2020","202331","Autre"]
["IND. MOBILITE GEOGRAPH.-D2020-1654*22/12/2020","202332","Cat3"]
["IND. CONTROLE S.T.N.C.J.-D2020-1778*30/12/2020","202333","Cat7"]
["IND. SPECIF. TR. DE NUIT-D2020-1782*30/12/2020","202334","Cat2"]
["PR. DE DEBUT DE CARRIERE-D89-922*22/12/1989 - D98-1057*16/11/1998","202335","Cat7"]
["IND. SERVICES AERIENS-D48-1686*30/10/1948","202336","Cat7"]
["H.S. D'ENSEIGNEMENT-D71-750*14/09/1971 MODIFIE","202348","Cat2"]
["INDEMNITE DE FONCTIONS-D2021-591*12/05/2021","202349","Cat7"]
["COMPLEMENT INDEMNITAIRE-D2021-591*12/05/2021","202350","Cat4"]
["IND. D'ENCADREMENT SNU-D2021-626*20/05/2021","202351","Cat5"]
["INDEMNITE D'ACCUEIL-D2021-878*01/07/2021","202357","Cat4"]
["HS POLICE NATIONALE-AVANT 2019","202358","Cat2"]
["IND. FORF. DE RISQUES-D2008-939*12/09/2008","202360","Cat7"]
["PRIME \"GRAND AGE\"-D2020-66*30/01/2020","202361","Cat7"]
["PRIM RECONNAISSANCE DGFIP-D2002-710*02/05/2002","202372","Cat4"]
["PRIME D'ATTRACTIVITE-D2021-1372*19/10/2021 - TITULAIRES","202373","Cat7"]
["PRIME D'ATTRACTIVITE-D2021-1372*19/10/2021 - CONTRACTUELS","202374","Cat7"]
["PRECOMPTE SERV. NON FAIT","604930","Autre"]
["PREC. CARENCE REM. PR.   ART. 105 LFI 2012 - PRECOMPTE SUR REMUNERATION PRINCIPALE","604958","Autre"]

{"sheet":"Nomenclature DGFIP","index":17,"n_rows":0,"n_cols":0,"rows_kept":0,"cut":false,"hidden":true,"merged":[]}

{"sheet":"Reimport nomenclature","index":18,"n_rows":0,"n_cols":0,"rows_kept":0,"cut":false,"hidden":true,"merged":[]}

{"sheet":"Reimport rémunération","index":19,"n_rows":0,"n_cols":0,"rows_kept":0,"cut":false,"hidden":true,"merged":[]}

{"sheet":"Importer la nomenclature","index":20,"n_rows":17,"n_cols":2,"rows_kept":17,"cut":false,"hidden":true,"merged":[[12,0,12,1],[12,2,12,8],[14,0,14,1],[14,2,14,8],[16,0,16,1],[16,2,16,8]]}
[1]
[null,2]
[]
[]
[]
[]
[]
[]
[]
[]
[]
[]
["Votre fichier de la nomenclature:"]
[]
["Votre fichier 2 :"]
[]
["Votre fichier 3 :"]

{"sheet":"catégories de rémunération","index":21,"n_rows":13,"n_cols":3,"rows_kept":13,"cut":false,"hidden":true,"merged":[]}
["Catégorie","Intitulés des différentes catégories","Indicatrice sur-rémunération du temps partiel"]
["TIB","TIB",1]
["Cat1","sur-rémunération temps partiel (80% ou 90%)",0]
["Cat2","temps ou aux cycles de travail",0]
["Cat3","géographie et aux mobilités non forcées",1]
["Cat4","résultats / performance / engagement professionnel",0]
["Cat5","rémunérations accessoires",0]
["Cat6","fonctions / sujétions indexées sur le traitement",1]
["Cat7","fonctions / sujétions non indexées sur le traitement",1]
["Cat8","restructurations ou mobilités forcées",0]
["Cat9"]
["Cat10"]
["Autre","autres primes et écarts résiduels sur traitement",0]

{"sheet":"Erreur page","index":22,"n_rows":0,"n_cols":0,"rows_kept":0,"cut":false,"hidden":true,"merged":[]}

{"sheet":"nomenclature rémunérations","index":23,"n_rows":679,"n_cols":3,"rows_kept":679,"cut":false,"hidden":true,"merged":[]}
["Libellé code de paie","Code de paie","Libellé catégorie"]
["TRAITEMENT BRUT - ",101000,"TIB"]
["TRAITEMENT BRUT - AGENTS EN CONGE DE LONGUEDUREE",101020,"hors champ"]
["INDEMNITE COMPENSATRICE - D47-1457*04/08/1947 MODIFIE",101030,"Cat10"]
["TRAITEMENT BRUT N.B.I. - ",101070,"Cat5"]
["INDEMNITE DE RESIDENCE - ",102000,"Cat2"]
["SUPP FAMILIAL TRAITEMENT - ",104000,"hors champ"]
["ABATTEMENT INDEMNITAIRE - LFI 2016 - ART. 148",200007,"Cat10"]
["PRESTAT. ASS. MALADIE S.S - ",200008,"hors champ"]
["RENTE ACCIDENT DU TRAVAIL - ARTICLES R434-15 ET R434-34 DU CSS - VST MENSUEL",200014,"hors champ"]
["RENTE ACCIDENT DU TRAVAIL - ARTICLES R434-15 ET R434-34 DU CSS - VST TRIMESTRIEL",200016,"hors champ"]
["IND. LICENCIEMENT PECULE - D86-83*17/01/1986 TITRE XII",200018,"Cat10"]
["INDEMNITE DE STAGE - D2006-781*03/07/2006 - D2014-1021*08/09/2014 (MEN)",200021,"Cat10"]
["FRAIS DEPLAC. FORF. SPEC. - D54-135 (MEN) - D2006-1680 A 1682",200023,"hors champ"]
["IND. HABILLEMENT CHAUSSUR - D 60 1302 DU 5 DECEMBRE 1960 A DU 20/12/96 C.05 TRIM",200029,"Cat5"]
["FRAIS BUREAU TELEPHONE - ",200030,"Cat10"]
["INDEMNITE DE COSTUME - ",200031,"Cat5"]
["REMBT DOMICILE-TRAVAIL - D2010-676*21/06/2010 - ILE-DE-FRANCE",200033,"hors champ"]
["FRAIS D'APPROCHE - D69-600*13/06/1969 MODIFIE - STATISTIQUE AGRICOLE",200036,"Cat10"]
["REMBT DOMICILE-TRAVAIL - D2010-676*21/06/2010 - HORS ILE-DE-FRANCE",200039,"hors champ"]
["IND. KILOMETRIQUE VELO - D2016-",200040,"hors champ"]
["INDEM MISSION DEPLT TEMP - ",200048,"Cat10"]
["IND. SURVEILLANCE CASINOS - ",200053,"Cat10"]
["INDEMNITE D'UNIFORME - ",200055,"Cat10"]
["IND. PETIT EQUIPEMENT - ",200056,"Cat10"]
["INDEMNITE DE PANIER - ",200060,"Cat10"]
["IND. SORTIES EN MER - ",200064,"Cat10"]
["ALLOC. CHIEN DE SERVICE - D 2003 449 DU 16/05/03 ADU 16/05/03 (JO DU 21/05/03)",200075,"Cat10"]
["MAJOR. TIERCE PERSONNE - ART. L434-2 DU CSS AVANTART. 85 DE LA LFSS POUR 2013",200076,"Cat10"]
["IND.DETERIOR.EFFETS PERSO - ",200081,"Cat10"]
["IND. ENTRETIEN HABILL. - D2005-1028*26/08/2005 - D2000-153*21/02/2000",200085,"Cat10"]
["IND. 1ERE MISE D'UNIFORME - D2010-532*20/05/2016",200086,"Cat10"]
["FRAIS REPRESENT C.ETAT - VICE PDT CONSEIL ETAT ETPDT COURS ADM. D'APPEL",200095,"Cat10"]
["MEDAILLE D'HONNEUR - D96 342 DU 22/04/96",200097,"Cat10"]
["H. SUP. 14 PREM. H. - ",200102,"Cat1"]
["H. SUP. PLUS DE 14 H. - ",200103,"Cat1"]
["H. SUP. DIM. ET J. F. - ",200104,"Cat1"]
["H SUP 22 HEURES Ó 7 HEURE - ",200105,"Cat1"]
["IND FORF TRAV SUP ADM CEN - D63 32 DU 19/01/63 A DU 5/08/75 A DU 23/12/94 C.20 TRIM",200106,"cat5"]
["IND. SUJETIONS SPE. - D78.965 D73.973 D90.966 D91.1108 ET D92.1002",200108,"Cat5"]
["IND. SUJETIONS DIV. - ",200109,"Cat5"]
["IND. DE RESPONSABILITE. - D 00.1101 DU 14/04/00 ETD 02.47 DU 09/01/02",200110,"cat5"]
["IND. TRAV. DANG. OU SALIS - D67.624 DU 23/7/67 MODIFA DU 11/8/75 DU 20/02/96 ALR211.8",200111,"Cat3"]
["IND SUJ SPECIALES CHARGES - D92.356 DU 27/3/92 D90.50DU 12/01/90 RLR211.2 C.05 C.20",200112,"cat5"]
["IND. DIFFICULTES ADMINIS. - D 46.2020 DU 17/9/46 C F3.38 DU 28/5/58 C.05",200113,"Cat3"]
["PRIME RENDEMENT ADM CENT - D50.196 DU 06/02/50 D45.1753 DU 6/08/45 A DU 2/05/02",200114,"cat5"]
["PRIME DE RENDEMENT - CF. ANNEXE 14 POUR LES TEXTES - SERVICES DECONCENTRES",200115,"cat5"]
["HEURES SUPPLEMENTAIRES - D68-518*30/05/1968 - SERVICES PENITENTIAIRES",200117,"Cat1"]
["INDEMNITE DE TECHNICITE - D2010-920*03/08/2010 - D2010-921*03/08/2010",200119,"cat5"]
["IND. TECH. OPER.MACH.CPT. - D73.374 DU 28/03/1973",200121,"cat5"]
["VACATIONS - ",200125,"Cat3"]
["S.F.T. DIFFERENTIEL. - ",200126,"Cat10"]
["PRIME SPEC. INSTALLATION - D89-259*24/04/1989",200127,"Cat2"]
["INDEMNITE COMPENSATRICE - AUTRES QUE CELLES PREVUESAU D47-1457*04/08/1947 MODIFIE",200129,"Cat10"]
["COMPENSATRICE ART. 2 - D47-1457*04/08/1947 MODIFIE - ARTICLE 2",200130,"Cat10"]
["COMPENSATRICE ART. 4 - D47-1457*04/08/1947 MODIFIE - ARTICLE 4",200131,"Cat10"]
["MAJORATION TRAITEMENT 40% - ANTILLES - GUYANE - SAINT#NAME?",200141,"Cat2"]
["MAJORATION TRAITEMENT 35% - REUNION",200142,"Cat2"]
["INDEXATION REUNION. - ",200143,"Cat10"]
["INDEMNITE SPECIALE INSTIT - ",200147,"cat5"]
["IND.FORFAIT. DEGRESSIVE. - D 77.1445 DU 21/12/77 A DU 9/10/95 RLR 211.3 C.05 C.20",200154,"Cat3"]
["IND. SUJETIONS EXCEPT. - D 76.1167 DU 3/12/1976 ADU9/10/95 RLR 211.5D C.20",200167,"Cat3"]
["IND. RESPONS. REGISSEUR. - D92-681 D92-1368 D97-33",200168,"cat5"]
["IND. CAISSE ET RESPONSAB. - D 73 899 DU 18/09/73 A DU16/3/1971 ET DU19/8/1995 RLR 211.3",200172,"cat5"]
["IND. GESTION ET RESPONSAB - D 71.34 DU 6/1/1971 A DU9/10/1995 RLR 211.3 C.05 C.20",200173,"cat5"]
["IND. DE RISQUES. - D69-945*16/10/1969-D2006-1335*03/11/2006 (MIATTRANSITOIRE)",200175,"cat5"]
["IND. TRAVAIL DE NUIT - CF LISTE DES DECRETS A LARUBRIQUE 0176 DE L'ANNEXE 14-B",200176,"Cat1"]
["IND. TRAVAIL DOMINICAL - D 72.430 DU 24/5/1972 MODIF A DU 9/10/1995 RLR 211.5D C.20",200177,"Cat1"]
["INDEMNITE D INTERIM - ",200185,"Cat3"]
["INDEMNITE DE FONCTIONS - D 2000 1104 DU 14/11/00 ET ARRETE DU 14/11/00",200186,"cat5"]
["PRIME REND.PERS.TECHNIQUE - D 2001 1027 DU 2/11/2001",200189,"cat5"]
["SUPP. TRAV. HORS SERVICE - D 88.132 DU 4/2/1988 RLR211.3  C.05 C.20",200196,"Cat1"]
["IND. FORFAIT ENSEIGNANTS. - ",200203,"cat5"]
["HEURES ANNEES ENSEIGNT - SECONDAIRE ET TECHNIQUE",200205,"Cat1"]
["HEURES D INTERROGATION. - ",200207,"Cat1"]
["HTS PAE OU ETUDE DIRIGEE - ",200208,"Cat1"]
["IND. HORAIRES ENSEIGNT. - ",200210,"Cat1"]
["H. A. SUPPLEANCE ENSEIGNT - ",200213,"Cat1"]
["H. EFF. ENSEIGNEMENT. - EFFECTUEES EN DEHORS DESSUPPLEANCES",200215,"Cat1"]
["PR.PART.RECH.SCIENTIFIQUE - D 86.1170 DU 30/10/86 A DU 30/10/86 C N.17 DU 11/5/95 C.22",200221,"cat5"]
["IND.SPEC CONSERV BIBLIOTH - INDEMNITE SPECIALE AUX CONSERVATEURS DES BIBLIOTHEQUES",200223,"cat5"]
["COURS COMPL. CHAIRE VAC. - D83-1175*23/12/83",200226,"Cat1"]
["IND RESPONS CHEF TRAVAUX - ",200230,"cat5"]
["IND. FORF. SUJ. SPEC. - ",200234,"cat5"]
["IND. PROF. JEUN.ET SPORTS - ",200238,"cat5"]
["INDEMNITE DE SCOLARITE - D72-73*21/01/1973",200241,"Cat3"]
["IND. MEDECINS-INSPECTEURS - D73-964*11/10/1973 MODIFIE",200242,"cat5"]
["COLLABORATIONS DIVERSES - D95-532*04/05/1995 MAE",200249,"Cat3"]
["IND. PERSON. TECHNIQUES. - ",200254,"cat5"]
["IND. DE BIBLIOTHEQUE. - ",200263,"cat5"]
["IND. SPEC. FORF. SUJ. - ",200268,"cat5"]
["IND. COMPLEM. RESIDENCE. - ",200273,"Cat2"]
["IND. CHARGE MISSION. - ",200275,"Cat3"]
["INDEMNITE D'ASTREINTE. - ",200277,"Cat1"]
["VACATIONS TRAIT. ASS.L.V. - REMUNERATION DES ASSISTANTS DE LANGUE VIVANTE",200279,"cat5"]
["ALLOC. GARANTIE MARQUE. - ",200283,"Cat3"]
["INDEMNITE DE FORMATION - D74-44*18/01/1974",200284,"hors champ"]
["PRIME FONCT. INFORMATIQUE - D 71 343 DU 29/04/1971 D80 948 DU 28/11/1980 C.22 MENS",200286,"cat5"]
["IND. CONGE PAYE. - ",200290,"Cat10"]
["IND. DIFFERENTIELLE - D99-770*06/06/1999 ABROGEPAR D2015-1089*28/08/2015",200291,"Cat10"]
["MAJORATION D'EMBARQUEMENT - ",200293,"Cat1"]
["PRIME SERVICE INFIRMIERS - ",200296,"Cat5"]
["IND. DE RISQUE INDEXEE - D2011-571*24/05/2011",200312,"Cat5"]
["PRIME VOL PERS NAVIGUANT - ",200316,"cat5"]
["IND. HORAIRE SPEC. T.A.I. - D 72.1012 DU 7/11/1972 ADU 15/4/1975 ET DU 20/2/76 C.20.22",200320,"Cat3"]
["IND. MENSUELLE TECHNICITE - D2010-1568*15/12/2010",200321,"cat5"]
["SUPPL.FAMILIAL TRAITEMENT - RAI - BERKANIS REUNION",200322,"hors champ"]
["IND CONSEILLER FORMATION - ",200323,"cat5"]
["REMP.PORTIER CONCIERGE TI - ",200332,"cat5"]
["IND. SUJ. SPECIALE POLICE - D2013-617*11/07/2013",200333,"Cat5"]
["MAJORATION TRAVAIL NUIT - ",200334,"Cat1"]
["PRIME DE DEMINAGE - ",200335,"cat5"]
["PRIME PERSONNEL NAVIGANT - ",200336,"cat5"]
["IND LANGUE ETRANGERE - D75-1090 DU 17/11/1975",200338,"cat5"]
["IND RISQUES AERIENS P.A.F - ",200339,"cat5"]
["IND TECHNICITE SECURITE - METEO FRANCE D2006-1235*10/10/2006",200348,"cat5"]
["METEO. IND. SERV. EN MER. - ",200351,"cat5"]
["PRIME RECH.ENSEIGN.SUP. - D 89.775 D 89.776 DU 23/10/89 A DU 23/10/89 MODIF  C.20",200361,"cat5"]
["COMPLEMENT REMUNERATION - ",200362,"Cat3"]
["ISOE PART FIXE - ",200364,"Cat3"]
["PRIME PEDAGOGIQUE - D 90.49 DU 12/1/90 MODIFA DU 13/10/95 RLR 212.7  C.20",200376,"cat5"]
["IND DIFFERENTIELLE / IRL - COMPENSATRICE IRL INSTITUTEURS",200377,"cat5"]
["IND ACTIVITES PERI EDUCAT - ",200379,"cat5"]
["INDEMNITE DE FONCTION - D2005 1048 ET 1049 DU 26/08/2005 AVIATION CIVILE",200389,"cat5"]
["IND SUJET. SPECIALES ZEP - ",200403,"cat5"]
["PRIME D'ADMINISTRATION - D 90.50 DU 12/01/90 A DU13/10/95 RLR 211.2 C.05 C.20",200407,"cat5"]
["IND FONCT PART PROF ECOLE - D 91 236 DU 28/02/1991",200408,"cat5"]
["ALLOC AIDE RETOUR EMPLOI - ART L 351 12 DU CODE TRAVAIL  A 18/12/97 C.22",200412,"hors champ"]
["IND SUJ PARTICUL.EDUC.NAT - D 91.466 DU 14/5/1991 A DU 14/5/1991 RLR 212.8 C.22",200413,"cat5"]
["IND FORF CONSEIL PR EDUCA - ",200414,"cat5"]
["IND DIFFERENTIELLE SMIC - D91-769*02/08/1991",200415,"Cat10"]
["I.S.O.E. PART MODULABLE - ",200430,"Cat3"]
["INDEMNITE CHARGES PENIT. - D2006-1353*08/11/2006",200431,"cat5"]
["PRIME ENCADT TECHNI. ART - ",200432,"cat5"]
["IND. SUJETIONS SPECIALES - D2002-47*09/01/2002 MODIFIE - PERSONNEL DE DIRECTION E.N.",200433,"cat5"]
["IND CHARGES ADMINISTRAT - D 71 847 DU 13/10/71",200437,"cat5"]
["PRIME TECHNICITE FORF BIB - D 93.526 DU 26/3/93 A DU17/7/96 RLR 211.5A C.22",200440,"cat5"]
["IND FORFAITAIRE MENSUELLE - D93-552*27/03/1993 - AUDITEURS DE JUSTICE",200444,"cat5"]
["SUJ.ENSEIGN.FORMATI.CONT. - D 93 436 DU 24/03/1993",200451,"cat5"]
["REM.ACTI.FORM.CONTINUE EN - D 93 438 DU 24/03/1993",200453,"Cat10"]
["REGUL COTIS S.S. PEC AA - ",200457,"hors champ"]
["REGUL COTIS IRCANTEC AA - ",200458,"hors champ"]
["ISO ELEVE PART FIXE - ",200462,"Cat3"]
["IND TECHNI.INSPECT.DDASS - D 98 568 DU 7/07/1998",200463,"cat5"]
["IND. DE CHARGES ADMIN. - D90-427*22/05/1990 MODIFIE - D92-204*28/02/1992",200466,"Cat10"]
["PREST. ESPECES AS.MALADIE - NOTES PAY 95 197 ET 95 187B",200474,"Cat10"]
["PRIME DE COMMANDEMENT P.N - ABROGEE PAR D2013-1144*11/12/2013",200476,"cat5"]
["IND. FIDELIS. SECT. DIFF. - D99-1055*15/12/1999 MODIFIE - POLICE NATIONALE",200477,"Cat2"]
["INDEMNITE FORFAITAIRE - D2007-349*14/03/2007 - ADM.PENIT. INSERTION ET PROBATION",200480,"cat5"]
["IND ENSEIG MILIEU PENIT - D71-685*18/08/1971",200484,"cat5"]
["IND CHARGES ADM SECR ACAD - D 92.356 DU 27/3/1992 A DU 09/7/1998 RLR 211.3 C.22",200487,"cat5"]
["INDEMNITE EXCEPTIONNELLE - D 97 215 DU 10/03/1997",200489,"Cat3"]
["PRIME ACTIVITE CONTR TRAV - D 97 530 DU 26/05/1997",200491,"Cat3"]
["IND EXPERTISE POL SCIENTI - D 97 647 DU 31/05/1997",200492,"cat5"]
["ALLOCATION SPECIALE - D89-755*18/10/1989 MODIFIE - ING.ETUDES ET FABRICATION DEF.",200493,"Cat3"]
["HSE ENS SUPPLEANCES - ",200497,"Cat1"]
["IND EXERCICE POSTES DIFF. - D2005 1644*26/12/2005",200506,"Cat2"]
["REM.SECTION APPRENTISSAGE - D79 916 DU 17/10/79 D68 536 DU 23/05/68",200507,"Cat3"]
["IND EX.DE MISSIONS PREFEC - D 97 1224 DU 26/12/97 JO28/12/97   D 97 1223",200508,"Cat3"]
["REMUN. ETUDES DIRIGEES - D96-80*30/01/1996 MODIFIE- ARRETE DU 21/01/2009",200510,"Cat3"]
["IND. TRAVAUX INSALUBRES - D67-624*23/07/1967 - OUVRIERS DU MINISTÞRE DES ARMEES",200515,"Cat3"]
["IND. TRAVAUX SALISSANTS - D67-624*23/07/1967 - OUVRIERS DU MINISTERE DES ARMEES",200516,"Cat3"]
["IND. TRAVAUX DANGEREUX - D 67 624 23/07/67 A 11/08/75 RLR 211 8 A 20/02/96 RLR 211 8",200517,"Cat3"]
["RISQUES PROF. CIVILS DEF - D 82300 31/3/82 ARRETE 28/2/95",200518,"cat5"]
["PR. SERVICE ET RENDEMENT - D2009-1558*15/12/2009",200522,"Cat3"]
["SURVEILL TRAV.USINE PRIVE - D 45 1857 DU 18/08/1945",200523,"Cat3"]
["HSE HORS SUPPLEANCES MLDS - HEURES SUPPL.ENSEIGT MDLSHORS SUPPLEANCES",200532,"Cat1"]
["HSE SUPPLEANCES MLDS - HSE ENSEIGT MDLS DANS LECADRE DES SUPPLEANCES",200533,"Cat1"]
["IND.PERMANENCE DOMICILE - DECIS.MINIST.N27328MA/SCR/PC*21/11/1960 DM N37108*01/09/80",200534,"Cat1"]
["INDEMNITE SPECIALE - D2001-414*09/05/2001 - CORPS TECHNIQUES DE L'IGN",200542,"cat5"]
["IND.TRAVAUX SOUS MARINS - (D98 341*06/05/1998) MIN.DEFENSE",200543,"cat5"]
["IND.ENQUETEURS DE PRIX - (D71 159*26/02/1971) MIN.DEFENSE",200545,"cat5"]
["REM. GESTION OPHLM - ARTICLE R423-23 DU CODE DE LA CONSTRUCTION ET DE L'HABITAT",200574,"cat5"]
["MAJO.1ERE HSA ENSEIGNT - EN DEHORS DES SUPPLEANCES(1ERE HEURE) (D50 1253*06/10/1950)",200576,"Cat1"]
["MAJO.1ERE HSA ENSEIGNT - DANS LE CADRE DES SUPPLEANCES (D50 1253*06/10/1950)",200577,"Cat1"]
["IND.SUIVI APPRENTIS - (D99 703*03/08/1999)",200582,"Cat3"]
["PRIME DE SERVICE - SERVICE DE SANTE DES ARMEES (ARR.24/03/1987 MODIFIE)",200584,"cat5"]
["IND.SUJ.SPECIALE - SERVICE DE SANTE DES ARMEES (D90 693*01/08/1990)",200585,"cat5"]
["PRIME SPEC.SUJETION - SERVICE DE SANTE DES ARMEES (ARR.23/04/1975)",200586,"cat5"]
["PRIME FORF.MENSUELLE - SERVICE DE SANTE DES ARMEES (ARR.23/04/1975)",200587,"cat5"]
["IND.FORF.TRAV.DIM.& JF. - (D92 7*02/01/1992) SERVICE DE SANTE DES ARMEES",200588,"Cat1"]
["IND.FONCTIONS PARTIC. - D 99 886 DU 19/10/1999",200597,"cat5"]
["IND.ENSEIGT MILIEU PENIT. - (D2000 876*06/09/2000)",200603,"cat5"]
["ALLOC.COMPL.FONCTION - (D2002 710*02/05/2002)",200604,"cat5"]
["IND.SPEC.SERVICE - (D2003 799*25/08/2003)",200605,"cat5"]
["PRIME FORF.OPJ - (D99 708*03/08/1999) OFFICIER POLICE JUDICIAIRE",200606,"cat5"]
["PRIME SPECIALE - (D2000 239*13/03/2000)AGRICULTURE   PERS. NON OUVRIERS",200608,"cat5"]
["IND DE GESTION DES A.S.A. - DGFIP/GESTION PUBLIQUE",200609,"cat5"]
["IND.SPEC.SUJETIONS - (D2000 240*13/03/2000) MIN.AGRICULT.",200611,"cat5"]
["IND.COMPENS.NOURRITURE - PERSONNELS CIVILS CUISINEET SALLE MIN.DEFENSE",200615,"Cat10"]
["IND.FONCTION ANIMATION - (D2001 775*30/08/2001)",200616,"cat5"]
["PRIME INNOV.SCIENT./TECH. - (D2000 730*31/07/2000)",200627,"cat5"]
["PRIME DE RENDEMENT - D45-1753*06/08/1945 DGFIPGESTION PUBLIQUE",200631,"Cat3"]
["IND.DIFFICULTE ACCES - (D2000 1108*14/11/2000)",200633,"Cat2"]
["ALLOC.INDEMNITAIRE - ",200639,"Cat10"]
["IND. JOURN. DE SUJETIONS - D2001-297*04/04/2001",200640,"Cat2"]
["IND.SPEC.RENFORT SAISON. - (D2001 676 ARRETE 27/07/2001)",200645,"Cat3"]
["IND.COMPENS.SUJ.SPECIF. - D2005-1643*26/12/2005",200646,"Cat2"]
["ALLOCATION DE MAITRISE - D2001-722*31/07/2001",200647,"Cat3"]
["IND.FONCTIONS - (D2001 811*07/09/2001)",200650,"cat5"]
["REM. DES ASTREINTES - D2000-815*25/08/2000 ET TEXTES VISANT CE MEME DECRET",200667,"Cat1"]
["PRIME FONCTIONS PARTICUL. - (D2001 1359 ARR.28/12/2001) PERS.ACTIFS POLICE NAT.",200671,"cat5"]
["PRIME SPEC.INSTALLATION - (D2001 1225*20/12/2001)",200672,"Cat2"]
["IND.PARTIC.SUJ.INSTALL. - (D2001 1226*20/12/2001)",200673,"Cat2"]
["IND. ADM. ET TECHNICITE - D2006-61*14/01/2002",200674,"cat5"]
["IND.FORF.TRAV.SUPPL. - 2002-63*14/01/2002 - SERVICES DECONCENTRES",200676,"Cat3"]
["IND SPECIFIQUE DE GESTION - D2005 1679*28/12/2005 - ADMINISTRATION PENITENTIAIRE",200678,"cat5"]
["VACATION TRAITEMENT - CONSEILLERS D'ETAT EN SERVICE EXTRAORDINAIRE",200679,"Cat3"]
["IND.COMMISSAIRE GVT. - DECRET 63 766 DU 30/07/1963",200680,"cat5"]
["INDEMNITE DE LOGEMENT - D71-631 DU 28/07/1971 MODIFIE",200683,"cat5"]
["PRIME DE DANGER - (D2002 103*23/01/2002) TRAITEMENT MUNITIONS",200688,"Cat3"]
["PRIME TECHNIQUE - PRIME TECHNIQUE ENTRETIEN,TRAVAUX,EXPLOITATION EQUIPEMENT",200692,"Cat3"]
["IND. RESPONSABILITE - INDEMNITE DE RESPONSABILITE",200701,"cat5"]
["IND.SUJETIONS SPECIALES - DE REMPLACEMENT (NON IMPOSABLE)",200702,"Cat10"]
["IND.SUJETIONS EXCEPT. - FRACTION NON IMPOSABLE",200703,"Cat10"]
["IND.COMP.TRANSPORT CORSE - D89-251 DU 20/04/1989",200707,"Cat2"]
["INDEMNITE D'ELOIGNEMENT - D68-568*21/06/1968 - TAAF",200708,"Cat2"]
["IND.CAISSE ET RESPONSAB. - D73-899*18/09/1973",200709,"cat5"]
["IND.FORF.FRAIS REPRESENT. - D2001 1045*06/11/2001",200710,"cat5"]
["IND. DE PERTE AU CHANGE - INDEMNITE DE PERTE AU CHANGE",200713,"Cat10"]
["IND. RESID. A L'ETRANGER - D67-290*28/03/1967 - ART.2",200714,"Cat2"]
["IND.FRAIS EXPATRIATION - INDEMNITE REPRESENT.FRAISEXPATR.TEMPORAIRE",200717,"Cat2"]
["MAJORATIONS FAMILIALES - D67-290*28/03/1967 - ART.8",200718,"hors champ"]
["INDEMNITE D'ETABLISSEMENT - D67-290*28/03/1967 - ART.11",200727,"Cat10"]
["CPLT SPECIF/EXCEPT RESTR. - D97-599 ET D97-600*30/05/1997 MODIFIES",200730,"Cat10"]
["CPLT SPECIF/EXCEPT RESTR. - D97-599 ET D97-600*30/05/1997 - PART EXONEREE DE COTISATIONS",200731,"Cat10"]
["IND.SEJOUR - PERSONNELS CIVILS PLACESSUITE DES FORCES FR. EN ALLEMAGNE",200734,"Cat2"]
["MAJ. SPEC. SERV. EN RFA - PERSONNELS CIVILS PLACESSUITE DES FORCES FR.EN ALLGNE",200735,"Cat2"]
["COMPL.IND.SEJOUR - PERSONNELS CIVILS PLACESSUITE DES FORCES FR.EN ALLGNE",200736,"Cat2"]
["IND.RESERVISTES CIVILS - POLICE NATIONALE  (D20031395*31/12/2003)",200740,"Cat3"]
["IND. CHARGES MILITAIRES - D59-1193*13/10/1959 MODIFIE - DGA",200746,"Cat10"]
["IND.FORF.FRAIS REPRESENT. - D2001-1045*06/11/2001 - CORPS PREFECTORAL",200750,"Cat10"]
["SUPPLEMENT FAMILIAL - D67-290*28/03/1967 MODIFIE - ART. 7 - COUR DES COMPTES",200754,"hors champ"]
["MAJ.IND.CHARG.MILITAIRE - MAJO.INDEMNITE POUR CHARGES MILITAIRES(D59 1193*13/10/1959)",201000,"Cat10"]
["COMPL.FORF.IND.CH.MILIT. - COMPLEMENT FORFAITAIRE INDEMNITE POUR CHARGES MILITAIRES",201001,"cat5"]
["PRIME SERVICE ET RENDT - PRIME DE SERVICE ET RENDEMENT INGENIEURS ARMEMENT",201003,"cat5"]
["PRIME DE SERVICE - D80-119*05/02/1980 - INGENIEURS ETUDES TECHNIQUES ARMEMENT",201004,"cat5"]
["ALLOC.SPEC.DEVELOPPEMENT - INGENIEURS DE L'ARMEMENT",201005,"Cat3"]
["PRIME DE QUALIFICATION - D54 539*26/05/1954 - D751206*22/12/1975 - 16 % SOLDE BRUTE",201006,"Cat3"]
["PRIME DE QUALIFICATION - D64-1374*31/12/1964 - D70-319*14/04/1970 - 28 % SOLDE BRUTE",201007,"Cat3"]
["IND.APPEL PREPA.DEFENSE - D98 1051*23/11/1998",201016,"Cat3"]
["PR. SERVICE ET RENDEMENT - D70-354*21/04/1970 - INGENIEURS DU GREF",201023,"cat5"]
["PR. SERVICE ET RENDEMENT - D70-354*21/04/1970 - VETERINAIRES INSPECTEURS",201025,"cat5"]
["PR. SERVICE ET RENDEMENT - D70-354*21/04/1970 - ITA,ITR, ITEF",201026,"cat5"]
["PR. SERVICE ET RENDEMENT - D70-354*21/04/1970 - TECHNICIENS DU MAP",201027,"cat5"]
["PRIME DE TECHNICITE - (D2001 479*30/05/2001)",201031,"cat5"]
["PRIME D'ACTIVITE - PRIME D'ACTIVITE INSPECTION DU TRAVAIL",201032,"Cat3"]
["PRIME DE TECHNICITE - D2000-1139*24/11/2000 -D2000-1140*24/11/2000",201033,"cat5"]
["IND. SUJ. PARTICULIERES - D2001-1148*05/12/2001 - PERSONNELS DES CABINETS MINISTERIELS",201036,"cat5"]
["PRIME FORFAITAIRE - D2003-1284 Ó 1286 DU 26/12/2003 - MAGISTRATS - ENM",201037,"cat5"]
["PRIME COMPLEMENTAIRE - (D2003 1284*26/12/2003)",201039,"cat5"]
["IND.ACT.OBLIG.PROF. - (D2002 185*14/02/2002 JODU 15/02/2002)",201050,"Cat3"]
["IND.FORFAIT.ACTIVITE - (D2002 469*05/04/2002 JODU 07/04/2002)",201051,"Cat3"]
["IND. DEMINAGE/DEPIEGEAGE - OUVRIERS MIN.DEFENSE (PASSOUMIS AU FSPOEIE)",201052,"cat5"]
["IND.FORF.RESPONSABILITE - (D2002 740*02/05/2002 JODU 04/05/2002)",201056,"cat5"]
["IND. DE JOUR FERIE - D2002-856*03/05/2002 - D2012-261*23/02/2012",201058,"Cat1"]
["IND.GESTION - (D2002 83*17/01/2002)",201063,"cat5"]
["ALLOC.COMPL.FONCTIONS - DGFIP/FISCALITE - D2002-710*02/05/2002",201065,"cat5"]
["IND.DIFFERENTIELLE - (D2002 711*02/05/2002 JODU 04/05/2002)",201066,"Cat10"]
["ALLOC.COMPL.FONCTIONS - DGDDI (COMMANDEMENT)",201067,"cat5"]
["ALLOC.COMPL.DE FONCTIONS - DGDDI (ADMINISTRATION GENERALE)",201068,"cat5"]
["ALLOC.COMPL.FONCTIONS - DGDDI(OPERATIONS COMMERCIALES)",201069,"cat5"]
["ALLOC.COMPL.FONCTIONS - DGDDI (COMPTABLES)",201070,"cat5"]
["ALLOC.COMPL.FONCTIONS - DGDDI (SURVEILLANCE)",201071,"cat5"]
["ALLOC.COMPL.FONCTIONS - DGDDI (SPECIALISTES SURVEILLANCE)",201072,"cat5"]
["IND.FORF.REPRES.SUJETIONS - (D2002 1105*30/08/2002 JODU 01/09/2002)",201073,"Cat3"]
["ALLOC.COMP. FONCTIONS - D2002-710*02/05/2002 - INSEE DRIRE DGCCRF",201076,"cat5"]
["ACF - RESPONSABILITES - INSEE - D2002-710*02/05/22",201077,"cat5"]
["ALLOC.COMPL.FONCTIONS - (ARTICLE 6 ARRETE DU 02/05/2002) INSEE",201078,"cat5"]
["MAJ.ACF CATEG.A - MAJORATION ACF CATEGORIEA (DGDDI)",201082,"cat5"]
["MAJ.ACF ST MARTIN - MAJO.ALLOC.COMPL.FONCTIONS ST MARTIN (DOUANES)",201084,"Cat2"]
["MAJ.ACF - MAJO.ACF CHEFS DE POLE DES RECETTES REGIONALES ET ADJOINTS",201085,"cat5"]
["MAJ ACF - MAJORATION ACF POSTE DIFFICILE (DOUANES)",201086,"cat5"]
["MAJ.ACF SERVICE - SECRET.DU DIR.GAL,CHEFS DE SERVICE,SOUS DIRECTEURS(DOUANES)",201088,"cat5"]
["MAJ.ACF OBLIG. RESIDENCE - MAJO.ACF OBLIGATION DE RESIDENCE (DGDDI)",201089,"cat5"]
["PRIME RENDEMENT - PRIME DE RENDEMENT DGDDI",201090,"Cat3"]
["PRIME DE RENDEMENT - DGCCRF   DECRET 45 1753 ET DECRET 50 196 ARRETE DU 02/05/02",201091,"Cat3"]
["IND.SUJ.SPEC. 1ERE PART - D2002 1247*04/10/2002",201092,"cat5"]
["ALLOC.COMPL.FONCTIONS - DGFIP/GESTION PUBLIQUE (EXPERTISE) - DPAEP (SGAR)",201093,"cat5"]
["ACF ANIMATION DU RESEAU - DGFIP/GESTION PUBLIQUE -D2002-710*02/05/2002",201095,"cat5"]
["ACF SUJETIONS SPECIALES - DGFIP/GESTION PUBLIQUE -AGENTS CHARGES DES POURSUITES",201098,"cat5"]
["PRIME FORF.FONCTIONS - (PART LIEE FONCTION OCCUPEE)ALLOUEE MAGISTRATS DES CRC",201102,"cat5"]
["PRIME RENDEMENT - ALLOUEE PERSONNELS COUR DES COMPTES ET CRC",201104,"Cat3"]
["PRIME RENDEMENT - ALLOUEE PERSONNELS CRC,DREE,MIN.AGR.,EMPL.,EQUIPT,IGF",201105,"Cat3"]
["MAJ.ACF NUIT - MAJORATION ACF TRAVAIL DENUIT",201106,"Cat1"]
["MAJ.ACF DJF - MAJORATION ACF TRAVAIL DIMANCHES,JOURS FERIES",201107,"Cat1"]
["MAJ.ACF RTS - MAJORATION ACF REGIME TRAVAIL SUPPLEMENTAIRE",201108,"Cat1"]
["MAJ.ACF ENTRETIEN MOTO - 1ERE MISE ET ENTRETIEN MOTOCYCLETTES (DGDDI)",201109,"cat5"]
["ALLOC.SPECIF.BSM - PERSONNELS BRIGADE DE SURVEILLANCE DU MINEFI (BSM)",201111,"cat5"]
["PRIME DE RENDEMENT - PERSONNELS DES DRIRE",201112,"Cat3"]
["IND.SPEC.SERVICE - DIRECTEUR CENTR.,INGEN. DES TRAV.IMMOB.,MARITIMES/MIN 370",201123,"cat5"]
["PRIME SERVICE ET RENDT - DIRECTEUR CENTR.,INGEN.DES TRAV.IMMO.ET MARITIMES MIN370",201124,"Cat3"]
["INDEMNITE FONCTION - (D2005 480*16/05/05)(D92224*10/03/92)(D2003 1068*10/11/03)",201128,"cat5"]
["IND FORF DE SUJETIONS - CONSEILLERS D'EDUCAT. ETEDUC. INST NAT SOURDS AVEUGLES",201129,"cat5"]
["INDEMNITE SPECIALE - ADJOINTS ET AGENTS SANITAIRES (D92 1438*30/12/1992)",201130,"Cat3"]
["INDEMNITE SPECIALE - TECHNICIENS SANITAIRES (D92 1438*30/12/1992)",201131,"Cat3"]
["INDEMNITE SPECIALE - INGENIEURS SANITAIRES (D90 976*30/10/1990)",201132,"Cat3"]
["IND SUJETIONS SPECIALES - PHARMACIENS INSPECTEURS SANTE PUBLIQUE(D79 126*01/02/1979)",201133,"cat5"]
["INDEMNITE SPECIFIQUE - COMMANDEMT ENCADREMT POLICE NAT (D2003 402*29/04/2003)",201138,"Cat1"]
["INDEMNITE DE TECHNICITE - MEDECINS INSPECTEURS SANTE PUBLIQUE (D91 657*15/07/1991)",201140,"cat5"]
["INDEMNITE TECHNICITE - PHARMACIENS INSPECTEURS SANTE PUBLIQUE (D92 1077*01/10/1992)",201141,"cat5"]
["INDEMNITE DE GESTION - (D2003 404*29/04/2003)",201143,"cat5"]
["IND FONCTION - (D2003 745*31/07/2003)",201150,"cat5"]
["PR.PART.RECH.SCIENTIFIQUE - (D2003 813*26/08/03)(D951105*12/10/95)(D78 211*28/02/78)",201151,"cat5"]
["IND SERV EXTRAORDINAIRE - (D95 860*27/07/1995 MODIFIE)",201153,"Cat3"]
["IND.COMPL.DE FONCTIONS - (D2002 1090*07/08/2002)",201155,"cat5"]
["PRIME MODULABLE - (D2003 1284 A 2003 1286*26/12/2003)",201158,"Cat3"]
["REVENU REMPLACEMENT CPA - AGENTS EN CPA A COMPTER DU 01/01/2004(LOI 2003 775)",201161,"Cat10"]
["PRIME RENDEMENT - (D45 1753*06/08/1945)",201165,"Cat3"]
["PRIME RENDEMENT - (D57 1030*18/09/1957)",201167,"Cat3"]
["PRIME DE SUJETIONS - (D92 1002*18/09/1992)",201170,"cat5"]
["PRIME SERVICE ET RENDT - D58-7*02/01/1958 MODIFIE#NAME?",201174,"Cat3"]
["IND.SUJETIONS SPECIALES - (D96 88*02/02/1996)",201181,"cat5"]
["PR. SERVICE ET SUJETIONS - D2008-886*02/09/2008 - OFFICIERS DE PORT",201185,"cat5"]
["PRIME PERSONNEL NAVIGANT - D2009-1556*14/12/2009",201188,"cat5"]
["IND EXERCICE DE FONCTIONS - (D2004 529*11/06/2004)",201191,"cat5"]
["PRIME RESULTATS EXCEPT. - DECRET 2004 731 DU 21 7 2004   (MEL HESPEEL DU 29 7)",201193,"Cat3"]
["IND SUJETION D'ABSENCE - D2002 674*24/04/2002",201194,"Cat1"]
["HEURES SUPP ENSEIGNEMENT - DECRET 501253 06/10/1950RLR2134",201195,"Cat1"]
["CLAUSE DE MAINTIEN DRIRE - CLAUSE DE MAINTIEN VERSEETECHNICIENS DRIRE",201196,"Cat10"]
["IND.FONCTION ET RESULTATS - D2004 1082*13/10/2004",201197,"cat5"]
["MAJ SUPP RENDT BRIGADES - MAJORATION ACF (DGDDI)",201198,"cat5"]
["MAJ.ACF SRBJ - SUPPLEMENT RENDT BRIGADESJOURNALIER (DGDDI)",201199,"cat5"]
["MAJ.ACF ISM - ISM(INDEMNITE DE SERVICEDE MER) DGDDI",201200,"cat5"]
["MAJ ACF ALLOC.FORFAITAIRE - DGDDI",201201,"cat5"]
["MAJ ACF IND.CARENAGE - DGDDI",201203,"cat5"]
["MAJ ACF CUISINIER - MAJ ACF PRIME DE CUISINIER (DGDDI)",201205,"cat5"]
["MAJ CAF COMPENSATION - PERSONNELS DNRED (RENSEIGTS ET ENQUETES DOUANIERES)",201206,"cat5"]
["MAJ ACF MAINT.INFORMATQ - DGDDI",201207,"cat5"]
["MAJ ACF DELEG.DEPART. - MAJ ACF ALLOCATION DELEG.DEPTX ACTION SOCIALE (MINEFI)",201209,"cat5"]
["IND.SPECIFIQUE FONCTION - (D2004 1244*23/11/2004) PREFETS NOMMES HORS CADRE",201214,"cat5"]
["INDEMNITE DE MISSION - D2004-1315*26/11/2004",201217,"Cat3"]
["ALLOC.RESPONSABILITE - (D2005 297*31/03/2005)",201219,"cat5"]
["MAJ.COM (73%) - (D67 600*23/07/1967)",201222,"Cat2"]
["MAJ COM (65%) - (D67 600*23/07/1967)",201223,"Cat2"]
["INDEMNITE SPECIALE - D98-40*13/01/1998 MODIFIE- MEN A/C 01/07/2005",201225,"Cat3"]
["IND. FORF. D'ACTIVITE - D2003 10 DU 03/01/2003",201226,"cat5"]
["IND. PROFESSEUR PRINCIPAL - D71 884 DU 22/11/1971   D93 55 DU 15/01/1993 A/C 09/2005",201227,"cat5"]
["I.S.O.E. PART MODULABLE - D93 55 DU 15/01/1993 MODIFIE   A/C 09/2005",201228,"Cat3"]
["INDEMNITE SCIENTIFIQUE - D90 409 DU 16/05/90 CONSERVATEURS DU PATRIMOINE",201236,"cat5"]
["IND.SPECIFIQUE DE SEJOURS - D2000 379 DU 28/04/2000PROTECTION JUD. DE LA JEUNESSE",201238,"Cat3"]
["HSE ENS.SUPPL.C.DUREE - D2005 1036 DU 26/08/2005",201241,"Cat1"]
["PR.DANGER PART FONCT. - D2005 1098 DU 02/09/05SECURITE CIVILE",201244,"cat5"]
["IND. CHARGES ADMIN. - D2004 119 DU 05/02/2004",201252,"cat5"]
["IND. SPECIALE ISOLEMENT - D77 1364 DU 05/12/1977 MODIFIÚ",201256,"Cat2"]
["PRIME DE RENDEMENT - D92 1001 DU 18/09/1992  MENESR  CHEFS DE TRAVAUX D'ART",201258,"Cat3"]
["PRIME DE RENDEMENT - D99 33 DU 09/01/1999 MODIFIÚ CONSERVATEURS GAUX BIBIOTHÞQUES",201259,"Cat3"]
["VACATIONS - VACATIONS INDEXEES SUR LEPOINT (DEDOUBLEMENT 0125)",201260,"Cat3"]
["PRIME DE QUALIFICATION - DIPLOMES ET TITRES DE GUERRE EQUIPEMENT",201263,"cat5"]
["PRIME DE QUALIFICATION - PERSONNELS MILITAIRES ENACTIVITÚ EQUIPEMENT",201264,"cat5"]
["MAJORATION COM (92%) - D67 600 DU 23/07/1967",201269,"Cat2"]
["REPARTITION CONTENTIEUSE - DECRET DU 8 AVRIL 1939 MODIFIE - ART 391 CODE DES DOUANES",201278,"Cat3"]
["COMPENS. EXCEPTIONNELLES - DGDDI - D2002-710*02/05/22",201279,"Cat3"]
["MAJ. ACF \"ENSEIGNEMENT\" - D2002-710 DU 02/05/2002",201280,"cat5"]
["COMPLT ACF GARANTIE REM - D2002-710 DU 02/05/2002 -DM DU 20/12/2005 - DGDDI",201281,"cat5"]
["PR. RESP ET TECHN. PETR. - D2005-375*20/04/2005",201285,"cat5"]
["IND.SUJETIONS HORAIRES - D2002-532*16/04/2002 - TITULAIRES ET CONTRACTUELS EQT",201311,"cat5"]
["MAJ.FONCT.IND.TECH.SEC. - METEO-FRANCE - D2006-1235*10/10/2006",201315,"cat5"]
["MAJ.RESID.IND.TECH.SEC. - METEO-FRANCE D2006-1235*10/10/2006",201316,"cat5"]
["PRIME D'ENCADREMENT - D2004-1162*29/10/2004 - ARRETES DES 27/05/05 ET 02/01/92",201321,"cat5"]
["PRIME DE RENDEMENT - D90-408*16/05/90 MODIFIEPAR D2006-1301*23/10/2006",201331,"Cat3"]
["IND.TRAVAIL DOMINICAL - D2002-857*03/05/2002 -D2012-261*23/02/2012",201332,"Cat1"]
["MAJ.IND.TRAVAIL DOMINICAL - D2002-857*03/05/2002 - D2012-261*23/02/2012",201333,"Cat1"]
["IND.RISQUES ET SUJ.SPEC. - PJJ -D2006-1335*03/11/2006",201334,"Cat5"]
["VACATIONS DE FORMATION - D56-585*12/06/1956 - 1ERDEGRE",201338,"cat4"]
["VACATIONS DE FORMATION - D2010-235*05/03/2010 MODIFIE - 2ND DEGRE",201339,"cat4"]
["VACATIONS DE FORMATION - D2010-235*05/03/2010 MODIFIE - SOUTIEN",201340,"cat4"]
["VACATIONS DE FORMATION - D2010-235*05/03/2010 MODIFIE",201341,"cat4"]
["VACATIONS DE FORMATION - D2010-235*05/03/2010 MODIFIE - AVS",201342,"cat4"]
["AIDE DEROUL. EPR. - SCO. - D2010-235*05/03/2010 - DIPLOME NATIONALE DU BREVET",201343,"cat4"]
["AIDE DEROUL. EPR. - SCO. - D2010-235*05/03/2010 - DIPLOMES D'ENSEIGNEMENT GAL ET TECHN.",201344,"cat4"]
["AIDE DEROUL. EPR. - SCO. - D2010-235*05/03/2010 - DIPLOMES PROFESSIONNELS",201345,"cat4"]
["AIDE DEROUL. EPR. - SCO. - D2010-235*05/03/2010 - EXAMENS POST-BACCALAUREAT",201346,"cat4"]
["IND.JURY.CONC.EXAM.- SCO. - D2010-235*05/03/2010 - DIPLOME NATIONAL DU BREVET",201351,"cat4"]
["IND.JURY.CONC.EXAM.- SCO. - D2010-235*05/03/2010 - DIPLOMES D'ENSEIGNEMENT GAL ET TECHN.",201352,"cat4"]
["IND.JURY.CONC.EXAM.- SCO. - D2010-235*05/03/2010 - DIPLOMES PROFESSIONNELS",201353,"cat4"]
["IND.JURY.CONC.EXAM.- SCO. - D2010-235*05/03/2010 - EXAMENS POST BACCALAUREAT",201354,"cat4"]
["IND.JURY.CONC.EXAM.- SCO. - D2010-235*05/03/2010 MODIFIE - CONCOURS PERSONNEL NON ENS.",201356,"cat4"]
["IND.JURY.CONC.EXAM.- SUP. - D2010-235*05/03/2010 - BACCALAUREAT A LICENCE",201357,"cat4"]
["IND.JURY.CONC.EXAM.- SUP. - D2010-235*05/03/2010 - MASTER",201358,"cat4"]
["PRESTATION ASS.INVALIDITE - ARTICLE L.712-1 DU CSS -D72-154*24/02/1972",201359,"Cat10"]
["COMPLEMENT SPECIAL CMS - D59-1193*13/10/1959 - MILITAIRES",201360,"cat5"]
["PRESTATION FRAIS MEDIC. - ADMINISTRATION PENITENTIAIRE - D66-874*29/11/1966 MODIFIE",201374,"Cat10"]
["IND.FORF.SUJETIONS PART. - D96-941*28/10/1996",201378,"cat5"]
["IND.SUJ. EXCEPTIONNELLES - D2005-1645*26/12/2005 - SGAP 13 (CORSE), 75 ET 78",201380,"Cat2"]
["INDEMNITE SPECIALE - PJJ - D75 179*21/03/1975",201381,"cat5"]
["INDEMNITE D'EXPERTISE - AERES - ART. 3 D2007-922*39217",201389,"cat5"]
["INDEMNITE DE FONCTIONS - AERES - D2007-923*15/05/27",201390,"cat5"]
["MAJORATION SOLDE 25% - D50-1258*03/10/1950",201393,"Cat3"]
["IND. FORFAITAIRE C.D.B.F. - D2007-1171*02/08/2007 - ARTICLE 4",201395,"cat5"]
["IND. MENSUELLE C.D.B.F. - D2007-1171*02/08/2007 - ARTICLE 5",201396,"cat5"]
["VACATIONS C.D.B.F. - D2007-1171*02/08/2007 - ARTICLE 6",201397,"Cat3"]
["HS ACCOMP.EDUCATIF PUB 1 - D66-787*14/10/1966 MODIFIE",201401,"Cat1"]
["HS ACCOMP.EDUCATIF PUB 2 - D50-1253*06/10/1953 MODIFIE",201402,"Cat1"]
["HS ACCOMP.EDUCATIF PRI 2 - D50-1253*06/10/1953 MODIFIE",201403,"Cat1"]
["IND.SUJ.SPEC. 2EME PART - D2002-1247*04/10/2002- DISPOSITIF TEPA",201408,"Cat1"]
["ALLOCATION COMPLEMENTAIRE - TITULAIRES DETACHES SUR CONTRAT AUPRES DU MEDIATEUR",201412,"Cat10"]
["IND. REND. ET FONCT. - D2007-1366*18/09/2007",201417,"Cat3"]
["IND. CONGES NON PRIS - D2007-1597*12/11/2007 - CATEGORIE A ET ASSIMILES",201420,"Cat1"]
["IND. CONGES NON PRIS - D2007-1597*12/11/2007 - CATEGORIE B ET ASSIMILES",201421,"Cat1"]
["IND. CONGES NON PRIS - D2007-1597*12/11/2007 - CATEGORIE C ET ASSIMILES",201422,"Cat1"]
["MISE SOUS PLI - EL. PDT. - D2012-498*17/04/2012 - ELECTION PREDIDENTIELLE",201423,"Cat1"]
["MISE SOUS PLI - EL. LEG. - D2012-498*17/04/2012 - ELECTIONS LEGISLATIVES",201424,"Cat1"]
["MISE SOUS PLI - EL. SEN. - D2012-498*17/04/2012 - ELECTIONS SENATORIALES",201426,"Cat1"]
["MISE SOUS PLI - EL. PART. - D2012-498*17/04/2012 - ELECTIONS PARTIELLES",201432,"Cat1"]
["COMM. CONTROLE EL. LEG. - D73-176*22/02/1973 - COMMISSION DE CONTROLE LEGISLATIVES",201434,"cat5"]
["IND. TRAV. SUPP. EL. PDT. - D2004-143*13/02/2004",201443,"Cat1"]
["IND. TRAV. SUPP. EL. LEG. - D2004-143*13/02/2004",201444,"Cat1"]
["IND. TRAV. SUPP. EL. SEN. - D2004-143*13/02/2004",201446,"Cat1"]
["IND. TRAV. SUPP. EL. PAR. - D2004-143*13/02/2004",201452,"Cat1"]
["IND.HORAIRE TRAVAIL DJF - D74-1068*13/12/1974",201453,"Cat1"]
["REMUN. CENTRE DE BAC - D2012-923*27/07/2012",201462,"cat4"]
["IND.FONCT. ET OBJECTIFS - D2007-1776*17/12/2007",201468,"Cat3"]
["IND.FONCTIONS-PART FONCT. - D2007-1762*14/12/2007 - TA ET CAA",201469,"cat5"]
["IND.FONCTIONS-PART INDIV. - D2007-1762*14/12/2007",201470,"cat5"]
["INDEMNITE DE FONCTIONS - D2007-1882*26/12/2007",201471,"cat5"]
["PR. POUR SERVICES RENDUS - D55-1002*26/07/1955 MODIFIE - MEDDTL",201472,"Cat3"]
["ALLOC. DE FORMATION (DIF) - ABROGEE PAR D2017-928*06/42856",201474,"cat4"]
["GARANTIE POUVOIR D'ACHAT - D2008-539*06/06/2008 - PERSONNELS TITULAIRES",201480,"Cat10"]
["PRIME DE RESTRUCTURATION - D2008-366*17/04/2008 -",201491,"Cat2"]
["ALLOC.AIDE MOBILITE CONJ. - D2008-366*17/04/2008 - D2008-647*30/06/2008",201492,"Cat2"]
["IND. TEMPORAIRE MOBILITE - D2008-369*17/04/2008 - D2008-640*30/06/2008",201507,"Cat2"]
["SUPPLT INDEMNITAIRE - NOTES 300058 ET 300210/DEF/DFP/PER4 DES 10 ET 20/01/1997",201509,"Cat3"]
["MAJ ACF RESP. ENCADRT - D2002-710*02/05/2002 - DGDDI",201510,"cat5"]
["GARANTIE POUVOIR D'ACHAT - D2008-539*06/06/2008 - PERSONNELS CONTRACTUELS",201511,"Cat10"]
["REM. ACCOMP. EDUC. HTS - D96-80*30/12/1996 MODIFIE#NAME?",201512,"Cat1"]
["INDEMNITE DIFFERENTIELLE - D2008-719*18/07/2008 - TECHNICIENS ET AGENTS TECHN. MINDEF",201516,"Cat10"]
["IND. MENSUELLE TECHNICITE - D2010-1568*15/12/2010 - DM DU 18/03/2008 - DGFIP",201526,"cat5"]
["PR.ENTREE DANS LE METIER - D2008-926*12/09/2008 (MEN) - D2008-1178*14/11/2008 (MAP)",201527,"cat5"]
["PRIME DITE ARTICLE 10 - 2008-815*25/08/2008 - ARTICLE 10",201533,"Cat3"]
["ACF HARMONISATION - D2002-710 - DGFIP MONTANTS PRECALCULES",201536,"cat5"]
["I.F.O. PART FONCTIONNELLE - D2008-1309*11/12/2008 - PJJ",201539,"Cat3"]
["I.F.O. PART INDIVIDUELLE - D2008-1309*11/12/2008 - PJJ",201540,"Cat3"]
["PR. ENCADRT. EDUC. NUIT - D2008-1205*20/11/2008 - PROTECTION JUDICIAIRE DE LA JEUNESSE",201543,"Cat1"]
["PFR - PART FONCTIONS - D2008-1533*22/12/2008",201548,"cat5"]
["PFR - PART RESULTATS - D2008-1533*22/12/2008",201549,"Cat3"]
["RENFORCEMENT ANGLAIS COL. - D96-80*30/01/1996 MODIFIE",201552,"Cat3"]
["RENFORCEMENT ANGLAIS LYC. - D96-80*30/01/1996 MODIFIE",201553,"Cat3"]
["INDEMNIS. DES ENQUETES - D69-600*13/06/1969 MODIFIE - STATISTIQUE AGRICOLE",201559,"Cat3"]
["PRIME ART. L954-2 C.EDUC. - ARTICLE L 954-2 DU CODE DE L'EDUCATION - UNIVERSITES RCE",201563,"Cat3"]
["JOURS CET A OPTION RAFP - D2009-1065*28/08/2009",201564,"Cat1"]
["JOURS CET B OPTION RAFP - D2009-1065*28/08/2009",201565,"Cat1"]
["JOURS CET C OPTION RAFP - D2009-1065*28/08/2009",201566,"Cat1"]
["MAJ. ACF RESPONSABLE LABO - D2002-710*02/05/2002",201567,"cat5"]
["PR. ENCADR. DOCTOR. RECH. - D2009-851*08/07/2009 MODIFIE PAR D2014-557*28/05/2014",201581,"cat5"]
["INDEMNITE DE FONCTIONS - D2009-1428*20/11/2009",201582,"cat5"]
["PFR - PART FONCTIONS - ABROGEE PAR D2016-1916*27/12/2016",201585,"cat5"]
["PFR - PART RESULTATS - ABROGEE PAR D2016-1916*27/12/2016",201586,"Cat3"]
["IRCP PART FONCTIONNELLE - D2008-1144*06/11/2008 - CORPS PREFECTORAL",201592,"Cat3"]
["IRCP - MODULATION P. V. - 2008-1144*06/11/2008 - CORPS PREFECTORAL",201593,"Cat3"]
["IND. HEBERGEMENT EDUCATIF - D2010-75*22/01/2010 - PJJ",201599,"Cat3"]
["PRIME DE RENDEMENT - D92-33*09/01/1992 MODIFIE#NAME?",201601,"Cat3"]
["PFR - PART FONCTIONS - ABROGEE PAR D2016-1916*27/12/2016",201602,"cat5"]
["PFR - PART RESULTATS - ABROGEE PAR D2016-1916*27/12/2016",201603,"Cat3"]
["IND. EXTENSION HAUTURIERE - D2009-671*11/06/2009",201606,"Cat3"]
["PR. SPECIF. DE FONCTIONS - D2010-454*04/05/2010",201608,"cat5"]
["IRCP - PART VARIABLE - D2008-1144*06/11/2008 - CORPS PREFECTORAL",201609,"Cat3"]
["IND. FORF. MENSUELLE - PRESIDENTS DE COMMISSION#NAME?",201612,"cat5"]
["INDEMNITE DE COMMISSION - MEMBRES ET ASSESSEURS DESCOMMISSIONS - TOUS MINISTERES",201613,"Cat3"]
["INDEMNITE FORFAITAIRE - PRESIDENTS DE COMMISSIONSI PAIEMENT PAR SEANCE",201614,"cat5"]
["IND. HORAIRE TRAV. NUIT - D2010-685*25/06/2010",201615,"Cat1"]
["INDEMNITE DE FONCTIONS - D2010-660*11/06/2010",201617,"cat5"]
["RETRIBUTION D2010-147 - D2010-147*15/02/2010",201618,"Cat3"]
["PR.SPECIALE 3 HSA 2ND DEG - ABROGEE PAR D2016-1174*30/08/2016",201619,"Cat3"]
["I.S.S. - PART VARIABLE - ABROGEE PAR D2015-1087*28/08/2015",201620,"Cat3"]
["IND. REFERENT HANDICAP - ABROGEE PAR D2017-965*10/42856",201624,"Cat3"]
["I.R.P. - PART FONCTIONS - D2010-1102* 21/09/2010 -POLICE NATIONALE",201626,"cat5"]
["I.R.P. - PART RESULTATS - D2010-1102*21/09/2010 - POLICE NATIONALE",201627,"Cat3"]
["PFR - PART FONCTIONS - D2010-1206*12/10/2010 - IGA -IGAS",201630,"cat5"]
["PFR - PART RESULTATS - D2010-1206*12/10/2010 - IGA/IGAS",201631,"Cat3"]
["PFR - VERST EXCEPTIONNEL - D2010-1206*12/10/2010 - IGA/IGAS",201632,"Cat3"]
["IND.HORAIRE TRAVAIL DJF - D2010-1489*06/12/2010 - MINISTERES FINANCIERS",201638,"Cat1"]
["IPF - PART FONCTIONS - D2010-1705*30/12/2010 - IPEF",201639,"cat5"]
["IPF - PART RESULTATS - D2010-1705*30/12/2010",201640,"Cat3"]
["IPF - VST EXCEPTIONNEL - D2010-1705*30/12/2010 - IPEF",201641,"Cat3"]
["MISSION ETUDES EXPERTISES - D2011-142*03/02/2011 - VERSEMENT PAR MENSUALITES",201647,"Cat3"]
["A.J.A.P.F.V - CHAPITRE VIII DU TITRE VIDU LIVRE IER DU CSS",201650,"Cat10"]
["PRIME SPECIFIQUE - D88-1083*30/11/1988 - D98-.7694967694967695",201652,"Cat3"]
["IND. ACCOMPT MOBILITE - D2011-513*10/05/2011",201657,"Cat2"]
["INDEMNITE SPECIFIQUE - PROTOCOLE DAP SYNDICATS 05/02/2005 - A PARTIR 05/02/2005",201660,"Cat3"]
["INDEMNITE DE FONCTIONS - D2011-905*29/07/2011 - DEFENSEUR DES DROITS ET ADJOINTS",201665,"cat5"]
["IND. FONCTIONS TECHNIQUES - D89-752*18/10/1989 MODIFIE",201668,"cat5"]
["REM. ACT. FORM. RECRUT. - D2010-235*05/03/2010 MODIFIE - FAIT GENERATEUR A/C 09/2011",201670,"cat4"]
["IND. SPEC. ECLAIR P. FIXE - D2011-1101*12/09/2011",201671,"Cat3"]
["PRIME SPECIFIQUE - D2003-1284*26/12/2003 MODIFIE - MAGISTRATS ART.706-16 DU CPP",201684,"cat5"]
["INDEMNITE FORFAITAIRE - D2011-1312*17/10/2011",201685,"Cat3"]
["INDEMNITE DE FONCTIONS - D95-735*10/05/1995 MODIFIE - CONSEIL SUP. DE LA MAGISTRATURE",201693,"cat5"]
["IND. SUJETIONS 1ERE PART - D98-1235*29/12/1998 - MIOMCTI CORPS DES TRANSMISSIONS",201694,"Cat1"]
["IND. SUJETIONS 2EME PART - D98-1235*29/12/1998",201695,"cat5"]
["IND. FONCTIONS PARTIC. - D2012-293*29/02/2012 - CONSEILLERS PEDAG. DEP. EPS",201696,"cat5"]
["ACF - MODULATION - D2002-710*02/05/2002 - DGDDI MODULATION CODES 1067 ET 1068",201698,"cat5"]
["IND. JOURN. SECU. NAVIRES - D2012-671*04/05/2012",201702,"Cat1"]
["AIDE. DEROUL. EPR. - SCO. - D2010-235*05/03/2010 - CONCOURS PERSONNELS ENSEIGNANTS SCOL.",201705,"cat4"]
["IND.JURY.CONC.EXAM.- SCO. - D2010-235*05*03/2010 - CONCOURS PERSONNELS ENSEIGNANTS",201707,"cat4"]
["IND.JURY.CONC.EXAM.- SCO. - D2010-235*05/03/2010 - CONCOURS PERSONNELS NON ENSEIGNANTS",201708,"cat4"]
["INDEMNITE DE COMMISSION - DEDOUBLEMENT DU CODE 201613 POUR LE PAIEMENT PAR SEANCE",201709,"Cat3"]
["IND. REMUN. SERVICES - D88-132*04/02/1988",201712,"Cat3"]
["HSE - REMISE A NIVEAU 1PU - D50-1253*06/10/1950 - POST-TEPA",201715,"Cat1"]
["HSE - REUSSITE SCOLAIRE - D50-1253*06/10/1953 - D89#NAME?",201717,"Cat1"]
["HSE ANGLAIS RENFORCE COL. - D50-1253*06/10/1950 - POST TEPA",201718,"Cat1"]
["HSE ANGLAIS RENFORCE LYC. - D50-1253*06/10/1950 - POST-TEPA",201719,"Cat1"]
["HSE - AIDE PERSO AU LYCEE - D50-1253*06/10/1950 - POST-TEPA",201721,"Cat1"]
["HSE STG REM. NIVEAU PASS. - D50-1253*06/10/1950 - POST-TEPA",201722,"Cat1"]
["HEURES SUP. DJF + 14 H. - D2002-60*14/01/2002 - D2002-598*25/04/2002 - POST-TEPA",201723,"Cat1"]
["HEURES SUP. NUIT + 14 H. - D2002-60*14/01/2002 - D2002-598*25/04/2002 - POST-TEPA",201724,"Cat1"]
["I.F.R.R. - PART FONCT. - D2012-933*01/08/2012 - MEN",201730,"cat5"]
["MAJO ACF CONTR. EN TRAIN - D2002-710*02/05/2002 - DGDDI",201733,"cat5"]
["MAJ ACF ISA - D2002-710*02/05/2002 - DGDDI SUJETIONS AEROPORTUAIRES",201738,"cat5"]
["I.F.R.R. - PART FONCT. - D2012-1252*12/11/2012 - MAAF",201739,"cat5"]
["I.F.R.R.  COMPLT FONCT. - D2012-1252*12/11/2012 - MAAF",201740,"cat5"]
["INDEMNITE FORFAITAIRE - D93-350*10/03/1993 - PERSONNEL EDUCATION MAAF - EX-0292",201746,"cat5"]
["IND. AGENT ENQUETEUR - AGENTS ENQUETEURS INSEE -CIRCULAIRE DU 04/12/2012",201754,"cat5"]
["IND. QUARTIER PRIORITAIRE - AGENTS ENQUETEURS INSEE -CIRCULAIRE DU 04/12/2012",201755,"Cat2"]
["REM ACT-ACCESSOIRE PEDAGO - D2012-871*11/07/2012 - MEN",201757,"cat5"]
["VACATIONS MLDS 2ND DEGRE - D2012-871*11/07/2012",201760,"Cat3"]
["INDEMNITE D'ASTREINTE - D2012-1406*17/12/2012 - PERSONNELS DES DDI",201762,"Cat1"]
["TUTORAT E.A.P. - D2010-235*05/03/2010 MODIFIE",201763,"Cat3"]
["PRIME DE RESPONSABILITE - DECRET A PARAITRE",201767,"cat5"]
["IND. DE SUJ. GEOGRAPHIQUE - D2013-314*15/04/2013 - A/C 01/10/2013 EX-0673",201768,"Cat2"]
["IEMP - SPECIFICITES - D97-1223 ET D97-1224*26/12/1997 - EX-1535 SUITE A MENSU.",201769,"Cat3"]
["COMPLT FIDEL. SECT. DIFF. - D99-1055*15/12/1999 MODIFIE - POLICE NATIONALE",201776,"Cat2"]
["IND. CONTROLE SAM. D.J.F. - D2013-423*23/05/2013 - SECR. ADM. CONTROLE DEV. DURABLE",201777,"Cat1"]
["I.S.A.E. - DECRET N2013-790*30/08/213",201781,"Cat3"]
["I.S.A.E. - DECRET N2013-790*30/08/213",201782,"Cat3"]
["I.F.R.R. - INTERIM - D2012-933*01/08/2012 - ART. 5 - MEN",201788,"Cat3"]
["I.R.P. - RESPONSABILITE - D2013-1144*11/12/2013",201790,"cat5"]
["MAJO ACF - CONTR. NAVIRES - D2002-710*02/05/2002 - DGDDI",201792,"cat5"]
["I.F.S.E. - D2014-513*20/05/2014",201793,"Cat3"]
["COMPLEMENT INDEMNITAIRE - D2014-513*20/05/2014",201794,"Cat3"]
["INDEMNITE COMPENSATOIRE - D2013-1270*27/12/2013",201797,"Cat10"]
["ACF TECHNICITE - D2002-710*02/05/2002 - DGFIP",201800,"cat5"]
["ACF EXPERTISE - D2002-710*02/05/2002 - DGFIP",201801,"cat5"]
["ACF ENCADREMENT - D2002-710*02/05/2002 - DGFIP",201802,"cat5"]
["ACF EXPERTISE ENCADREMENT - D2002-710*02/05/2002 - DGFIP",201803,"cat5"]
["ACF ENCADREMENT SUPERIEUR - D2002-710*02/05/2002",201804,"cat5"]
["ACF RESPONS. PARTICULIERE - D2002-710*02/05/2002 - DGFIP HUISSIERS",201806,"cat5"]
["ACF RESPONS. PARTICULIERE - D2002-710*02/05/2002 - DGFIP - COMPTABLES",201807,"cat5"]
["ACF CONTROLE REDEVANCE - D2002-710*02/05/2002",201808,"cat5"]
["ACF DIR. NLES ET SPECIAL. - D2002-710*02/05/2002",201809,"cat5"]
["ACF POURSUITES ET RECOUV. - D2002-710*02/05/2002 - DGFIP",201810,"cat5"]
["ACF ASSISTANCE USAGERS - D2002-710*02/05/2002 - DGFIP",201811,"cat5"]
["ACF CAISSIER - D2002-710*02/05/2002 - DGFIP",201812,"cat5"]
["ACF ACCUEIL - D2002-710*02/05/2002 - DGFIP",201813,"cat5"]
["ACF PUBLICITE FONCIERE - D2002-710*02/05/2002",201815,"cat5"]
["ACF FINITIONS ET SCANNAGE - D2002-710*02/05/2002",201816,"cat5"]
["ACF EDITIQUE - D2002-710*02/05/2002 - DGFIP",201817,"cat5"]
["ACF PHOTOGRAMMETRE - D2002-710*02/05/2002 - DGFIP",201818,"cat5"]
["ACF SCES CENTRAUX ET ASS. - D2002-710*02/05/2002 - DGFIP",201819,"cat5"]
["ACF DELEG. ACTION SOCIALE - D2002-710*02/05/2002 - DGFIP",201820,"cat5"]
["ACF DDG - D2002-710*02/05/2002 - DGFIP",201821,"cat5"]
["ACF EQUIPE DE RENFORT - D2002-710*02/05/2002 - DGFIP",201822,"cat5"]
["ACF ENCAISSEMENT - D2002-710*02/05/2002 - DGFIP",201823,"cat5"]
["ACF CONTRAINTES GEOGR. - D2002-710*02/05/2002 - DGFIP",201824,"cat5"]
["ACF CONTRAINTES PARTIC. - D2002-710*02/05/2002",201825,"cat5"]
["ACF TRANSPOSITION - D2002-710*02/05/2002 - DGFIP",201826,"cat5"]
["ACF GARANTIE - D2002-710*02/05/2002 - DGFIP",201827,"cat5"]
["ACF CONTRAINTES HORAIRES - D2002-710*02/05/2002 - DGFIP",201828,"cat5"]
["GARANTIE INDEMNITAIRE - D2014-513*20/05/2014 ARTICLE 6",201829,"cat5"]
["REGUL. HSA/HSE CPGE - D50-1253*06/10/1953 - ARRET CE N350750 DU 03/07/2013",201830,"Cat1"]
["I.P.T.S. - PART FONCTIONS - D2014-999*02/09/2014",201834,"cat5"]
["I.P.T.S. - COMPLT ANNUEL - D2014-999*02/09/2014",201835,"Cat3"]
["COMPLT D'ACCOMPAGNEMENT - D2014-507*19/05/2014",201837,"Cat2"]
["MAJORATION TRAIT. MAYOTTE - D2013-964*28/10/2013 - D2014-729*27/06/2014 - CONGE BONIFIE",201840,"Cat2"]
["IND. CHARG. ADM. GARANTIE - D90-427*22/05/1990 MODIFIE - ARTICLE 1",201841,"Cat10"]
["MAJ. ACF SPECIF OUTRE-MER - D2002-710*02/05/2002 - EX-1110 MENSUALISEE A/C 10/2014",201842,"Cat2"]
["IND. CONS. PEDAGOGIQUE - D2014-1019*08/09/2014",201843,"cat5"]
["IND MAITRE FORM/TUTOR. 1D - D2014-1016*08/09/2014",201844,"cat4"]
["IND FORMATEUR ACADEMIQUE - D2014-1018*08/08/2014",201846,"cat4"]
["IND TUTORAT STAGIAIRE 2D - D2014-1017*08/08/2014",201847,"cat4"]
["INDEMNITE DE SUJETIONS - D2004-1054*01/10/2004",201849,"cat5"]
["ACT PILOT NAT 1ER DEGRE - D2014-1394*24/11/2014",201855,"cat5"]
["ACT PILOT NAT 2ND DEGRE - D2014-1394*24/11/2014",201856,"cat5"]
["INDEMNITE COMPENSATRICE - D2014-1457*05/12/2014 - EX-IR DES COMMUNES MINIERES DU 57",201857,"Cat2"]
["IND. DIFFER. TEMPORAIRE - D2014-1527*16/12/2014",201858,"Cat3"]
["INDEMNITE D'INTERVENTION - D2014-1684*30/12/2014",201860,"Cat1"]
["INDEMNITE DE SUJETIONS - D2004-1228*17/11/2004",201863,"cat5"]
["INDEMNITE DE SUJETIONS - D90-944*23/10/1990",201864,"cat5"]
["INDEMNITE DE SUJETIONS - D2004-1055*01/10/2004",201865,"cat5"]
["TUTORAT ETUDIANT SOPA - D2010-235*05/03/2010 MODIFIE",201866,"cat4"]
["IND. DE SUJETION SPECIALE - D2004-1011*21/09/2004 MODIFIE",201867,"cat5"]
["INDEMNITE DE FONCTION - D2002-1302*25/10/2002",201868,"cat5"]
["INDEMNITE DEGRESSIVE - D2015-492*29/04/2015",201870,"Cat10"]
["INDEMNITE D'ASTREINTE - D2015-415*15/04/2015 (EX-0277)",201872,"Cat1"]
["INDEMNITE D'INTERVENTION - D2015-415*15/04/2015",201873,"Cat1"]
["INDEMNITE DE PERMANENCE - D2003-545*18/06/2003 MODIFIE PAR D2015-415*15/04/2015",201874,"Cat1"]
["I.M.P. ANNUELLE ETAB. - D2015-475*27/04/2015",201875,"Cat3"]
["I.M.P. ANNUELLE ACAD. - D2015-475*27/04/2015",201876,"Cat3"]
["I.M.P. PONCTUELLE ETAB. - D2015-475*27/04/2015",201877,"Cat3"]
["I.M.P. PONCTUELLE ACAD. - D2015-475*27/04/2015",201878,"Cat3"]
["I.S.S. EFF. PLETHORIQUES - D2015-477*27/04/2015",201879,"Cat3"]
["I.S.S. EDUC. PHYS. SPORT. - D2015-476*27/04/2015",201880,"cat5"]
["I.S.S. VOIE PROFESS. - D2015-476*27/04/2015",201881,"cat5"]
["IND. SUJETION  REP+ - D2015-1087*28/08/2015",201882,"cat5"]
["IND. SUJETION REP - D2015-1087*28/08/2015",201883,"cat5"]
["IND. EDUC. PRIORITAIRE - D2015-1087*28/08/2015 - INSPECTEURS DE L'EDUCATION NATIONALE",201885,"cat5"]
["CLAUSE SAUVEGARDE ZEP - D2015-1087*28/08/2015",201886,"Cat3"]
["CLAUSE SAUVEGARDE ECLAIR - D2015-1087*28/08/2015",201887,"Cat3"]
["IND. ACT. OPERATIONNELLE - D2015-767*29/06/2015",201889,"Cat3"]
["CPLT SPECIF. RESTRUCT. - D2015-787*29/06/2015 - DGDDI",201890,"Cat2"]
["P.A.R.R. ETAT 1ERE PART - D2015-1120*04/09/2015",201894,"Cat2"]
["P.A.R.R. ETAT 2EME PART - D2015-1120*04/09/2015",201895,"Cat2"]
["INDEMNITE DE FONCTION - D2015-1143*15/09/2015 - HCERES",201898,"cat5"]
["ACF CHARGE DE CLIENTELE - D2002-710*02/05/2002",201903,"cat5"]
["INDEMNITE SPECIALE - D2015-1920*30/12/2015",201907,"Cat3"]
["REM. TUTORAT APPRENTI - D2010-235*05/03/2010",201911,"cat4"]
["MAJO ACF RESP TECH BCMA - D2002-710*02/05/2002 - DGDDI",201912,"cat5"]
["MAJO ACF RESP/MON SECUR - D2002-710*02/05/2002 - DGDDI",201913,"cat5"]
["I.S.A.E - D2013-790*30/08/2013 MODIFIE - MENSUALISATION AU 01/09/2016",201914,"Cat3"]
["IND. SUJ. SPECIFIQUE PTS - D2016-1259*27/09/2016",201915,"Cat5"]
["HSA HORS SUPPLEANCES - D50-1253*06/10/1950 - PROFS CONTRACTUELS 2ND DEGRE PUBLIC",201918,"Cat1"]
["HSA SUPPLEANCES - D50-1253-06/10/1950 - PROFS CONTRACTUELS 2ND DEGRE PUBLIC",201919,"Cat1"]
["MAJO 1ERE HSA HORS SUPPL. - D50-1253*06/10/1950 - PROFS CONTRACTUELS 2ND DEGRE PUBLIC",201926,"Cat1"]
["HSE RCD - D50-1253*06/10/1950 - PROFS CONTRACTUELS 2ND DEGRE PUBLIC",201937,"Cat1"]
["HSA HORS SUPPLEANCES - D2016-974*18/07/2016 - MAITRES DELEGUES 2ND DEGRE PRIVE",201939,"Cat1"]
["MAJO 1ERE HSA HORS SUPPL. - D2016-974*18/07/2016",201943,"Cat1"]
["MAJ ACF STAG. EXTERNE B - D2002-710*02/05/2002 - DGDDI STAGIAIRES EXTERNE DE CAT. B",201953,"cat5"]
["PRIME FORFAITAIRE OPJ - D2016-1261*27/09/2016 - ART. 1ER 1",201954,"Cat3"]
["PRIME FORFAITAIRE OPJ - D2016-1261*27/09/2016 - ART. 1ER 2",201955,"Cat3"]
["CLAUSE DE MAINTIEN - D2015-984*31/07/2015 ART.30 - D2015-1043*20/08/2015 ART. 6",201965,"Cat3"]
["IND. SUJ. PARTICULIERES - D2001-1148*05/11/2001 - CABINETS MINISTERIELS - VST PONCTUEL",201967,"cat5"]
["IND. TUTORAT DE DIRECTEUR - D2010-235*05/03/2010",201978,"Cat3"]
["MAJ. ACF TGD/RI - D2002-710*02/05/2002",201983,"cat5"]
["MAJ. ACF RESP. COMPTABLE - D2002-710*02/05/2002",201984,"cat5"]
["IND. TEMP. SUJ. SERV. ACC - D2017-829*05/05/2017",201993,"Cat3"]
["IND. ENSEIGNEMENT SEGPA - D2017-964*10/05/2017",201994,"cat5"]
["I.M.P. ANNUELLE DSDEN - D2017-965*10/05/2017",201995,"Cat3"]
["I.M.P ANNUELLE ACAD. - D2017-965*10/05/2017 - 1ER DEGRE",201996,"Cat3"]
["IND. FONCT. PARTICULIERES - D2017-966*10/05/2017",201999,"cat5"]
["INDEMNITE DE FONCTIONS - D2017-    *  /  /2017 - PSYCHOLOGUES EDUCATION NATIONALE",202205,"cat5"]
["IND. COMPENSATRICE CSG - L2017-1837*30/12/2017 - D2017-1889*30/12/2017",202206,"Cat10"]
["INDEMNITE D'INTERIM - MEN - COMMUNE Ó DIVERS DISPOSITIFS INDEMNITAIRES",202207,"Cat3"]
["PRIME FORF. DE FONCTIONS - ",202212,"cat5"]
[null,102003,"Autre"]
[null,102004,"Autre"]
[null,102005,"Autre"]
[null,102006,"Autre"]
[null,102007,"Autre"]
[null,102008,"Autre"]
[null,102009,"Autre"]
[null,102010,"Autre"]
[null,102011,"Autre"]
[null,102012,"Autre"]
[null,102015,"Autre"]
[null,102016,"Autre"]
[null,200013,"Autre"]
[null,200670,"Autre"]
[null,201094,"Autre"]
[null,201097,"Autre"]
[null,201137,"Autre"]
[null,201204,"Autre"]
[null,201208,"Autre"]
[null,201212,"Autre"]
[null,201246,"Autre"]
[null,201266,"Autre"]
[null,201323,"Autre"]
[null,201487,"Autre"]
[null,201493,"Autre"]
[null,201494,"Autre"]
[null,201572,"Autre"]
[null,201814,"Autre"]
[null,201836,"Autre"]
[null,201896,"Autre"]
[null,201985,"Autre"]
[null,202005,"Autre"]
[null,202007,"Autre"]
[null,202012,"Autre"]
[null,202014,"Autre"]
[null,202027,"Autre"]
[null,202032,"Autre"]
[null,202047,"Autre"]
[null,202050,"Autre"]
[null,202101,"Autre"]
[null,202102,"Autre"]
[null,202103,"Autre"]
[null,202104,"Autre"]
[null,202128,"Autre"]
[null,202204,"Autre"]
[null,202209,"Autre"]
[null,202223,"Autre"]

{"sheet":"1er fichier","index":24,"n_rows":17,"n_cols":2,"rows_kept":17,"cut":false,"hidden":true,"merged":[[12,0,12,1],[12,2,12,8],[14,0,14,1],[14,2,14,8],[16,0,16,1],[16,2,16,8]]}
[1]
[null,2]
[]
[]
[]
[]
[]
[]
[]
[]
[]
[]
["Votre fichier 1 :"]
[]
["Votre fichier 2 :"]
[]
["Votre fichier 3 :"]

{"sheet":"Base","index":25,"n_rows":16,"n_cols":6,"rows_kept":16,"cut":false,"hidden":true,"merged":[]}
[]
[]
[]
[]
[]
[]
[]
[]
[]
[]
[]
[]
[]
[]
[]
[null,null,null,null,null,10]

{"sheet":"Tmp","index":26,"n_rows":0,"n_cols":0,"rows_kept":0,"cut":false,"hidden":true,"merged":[]}

{"sheet":"T0","index":27,"n_rows":0,"n_cols":0,"rows_kept":0,"cut":false,"hidden":true,"merged":[]}

{"sheet":"T1","index":28,"n_rows":0,"n_cols":0,"rows_kept":0,"cut":false,"hidden":true,"merged":[]}

{"sheet":"T2","index":29,"n_rows":0,"n_cols":0,"rows_kept":0,"cut":false,"hidden":true,"merged":[]}

{"sheet":"Import Fini","index":30,"n_rows":12,"n_cols":8,"rows_kept":12,"cut":false,"hidden":true,"merged":[[10,1,10,5],[13,0,13,1],[13,2,13,8],[15,0,15,1],[15,2,15,8]]}
[]
[null,null,null,null,null,0,0,0]
[]
[]
[]
[]
[]
[]
[]
[]
[]
[null,"L'importation du fichier a été un succès."]

{"sheet":"2eme fichier","index":31,"n_rows":19,"n_cols":7,"rows_kept":19,"cut":false,"hidden":true,"merged":[[18,0,18,1],[18,2,18,8],[12,0,12,1],[12,2,12,8],[14,0,14,1],[14,2,14,8],[16,0,16,1],[16,2,16,8]]}
[1]
[null,null,null,null,null,0,0]
[]
[]
[]
[]
[]
[]
[]
[null,"L'importation du 1er fichier a été un succès."]
[]
[]
["Votre fichier 2 :"]
[]
["Votre fichier 2 :"]
[]
["Votre fichier 3 :"]
[]
["Votre fichier 4 :"]

{"sheet":"3eme fichier","index":32,"n_rows":19,"n_cols":7,"rows_kept":19,"cut":false,"hidden":true,"merged":[[18,0,18,1],[18,2,18,8],[12,0,12,1],[12,2,12,8],[14,0,14,1],[14,2,14,8],[16,0,16,1],[16,2,16,8]]}
[1]
[null,null,null,null,null,0,0]
[]
[]
[]
[]
[]
[]
[]
[null,"L'importation du 2ème fichier a été un succès."]
[]
[]
["Votre fichier 3 :",null," "]
[]
["Votre fichier 2 :"]
[]
["Votre fichier 3 :"]
[]
["Votre fichier 4 :"]

{"sheet":"4eme fichier","index":33,"n_rows":19,"n_cols":7,"rows_kept":19,"cut":false,"hidden":true,"merged":[[18,0,18,1],[18,2,18,8],[12,0,12,1],[12,2,12,8],[14,0,14,1],[14,2,14,8],[16,0,16,1],[16,2,16,8]]}
[1]
[null,null,null,null,null,0,0]
[]
[]
[]
[]
[]
[]
[]
[null,"L'importation du 3ème fichier a été un succès."]
[]
[]
["Votre fichier 4 :",null," "]
[]
["Votre fichier 2 :"]
[]
["Votre fichier 3 :"]
[]
["Votre fichier 4 :"]